{"text_format":"1","workbook":"xlsx","n_sheets":14,"sheets":["Instructions","ImportPanel","Table_Contents","GV","FN","PN","AC","QS","PV","DG","SE","SD","DU","SU"],"not_rendered":{"charts":22,"images":7,"macros":1,"external_links":0,"defined_names":64,"comments":0,"pivot_tables":0},"unopened":[],"bounds":{"document_bytes":16777216,"sheet_cells":100000,"rows_first":2000,"rows_last":500,"rows_between":2000,"halvings":0,"cell_chars":16384,"cell_head_chars":4096},"cells_cut":0,"cells_raw":0,"read":"whole","date_system":"1900"}

{"sheet":"Instructions","index":0,"n_rows":150,"n_cols":10,"rows_kept":150,"cut":false,"hidden":false,"merged":[[155,3,155,4],[155,0,155,2],[154,0,154,2],[148,3,148,4],[149,3,149,4],[150,3,150,4],[151,3,151,4],[152,3,152,4],[153,3,153,4],[154,3,154,4],[149,0,149,2],[150,0,150,2],[151,0,151,2],[152,0,152,2],[153,0,153,2],[123,3,123,4],[124,3,124,4],[125,3,125,4],[126,3,126,4],[148,0,148,2],[123,0,123,2],[124,0,124,2],[125,0,125,2],[126,0,126,2],[127,0,127,2],[5,3,5,5],[121,0,121,2],[122,0,122,2],[121,3,121,4],[122,3,122,4],[63,1,63,5],[64,1,68,5],[70,1,70,5],[71,1,73,5],[84,1,89,5],[75,1,75,5],[76,1,76,5],[77,1,77,5],[78,1,78,5],[6,1,6,3],[10,1,10,5],[57,1,57,5],[34,1,34,5],[27,1,27,5],[8,1,8,5],[38,1,38,5],[48,1,48,5],[39,1,39,5],[40,1,40,5],[12,1,12,5],[16,1,16,5],[19,1,19,5],[20,1,20,5],[23,1,23,5],[28,1,28,5],[29,1,29,5],[30,1,30,5],[54,1,54,5],[50,1,50,5],[36,1,36,5],[53,1,53,5],[35,1,35,5],[32,1,32,5],[31,1,31,5],[13,1,13,3],[21,1,21,3],[24,1,24,3],[26,1,26,3],[26,4,26,5]]}
[]
[]
[]
[]
[]
[null,null,null,"Instructions for Using the ECTA/DaSy Framework                                              Self-Assessment Comparison (SAC) Tool"]
[null,"Overview"]
[null,null,null,null,null,null,null,null,null,"Overview"]
[null,"The instructions are provided in this document and in the workbook for your convenience. The five major steps are described below.  Click on the link for additional details for each step.",null,null,null,null,null,null,null,"There are 15 worksheets within the Self-Assessment workbooks, 11 of which are for rating the elements of quality: for each of the 5 ECTA components and the 6 Data subcomponents. The purpose of each worksheet is described below, as well as the instructions on how to use each."]
[]
[null,"Data are NOT entered or edited in the SAC Tool. All of the data are imported from other self-assessment files. The SAC Tool displays the resulting comparisons."]
[null,null,null,null,null,null,null,null,null,0]
[null,"Step 1: Complete self-assessment files.  To compare any component or data subcomponent, you must have a self-assessment file representing Time 1 and a self-assessment file representing Time 2. Users may compare ratings across as many as three time points, thus adding a Time 3 file, but this is optional. "]
[null,"Go to Step 1 details."]
[]
[null,"Step 2: Ensure self-assessment files are named correctly.",null,null,null,"    Go to Step 2 details."]
[null,"\nThe names of the self-assessment, or point-in-time source files, must be exactly as follows:\nECTA-DaSy_Self-Assessment_T1.xlsm – Time1\nECTA-DaSy_Self-Assessment_T2.xlsm – Time 2\nECTA-DaSy_Self-Assessment_T3.xlsm – optional Time3\nThe comparison file, or SAC tool, must be named ECTA-DaSy_Self-Assessment_Comparison.xlsm\n"]
[null,"Step 3: Open the SAC tool and the self-assessment files.  All files must be open at the same "]
[null,"time.",null,"  Go to Step 3 details."]
[]
[null,"Step 4: Use the ImportPanel worksheet in the SAC tool to import data from the self-assessment files. Select the components for Time 1 that you wish to import. Then select the same components for Time 2 (and for Time 3, as applicable)."]
[null,"Go to Step 4 details."]
[]
[null,"Step 5: Select one of two views to display the comparison data.  After the data are imported, go to the component or data subcomponent worksheet in the SAC tool and choose Hide Elements to display just the QI ratings, or Show Elements to display the QI and EQ ratings."]
[null,"Go to Step 5 details."]
[]
[null,"Details by Step"]
[null,"Step 1: Complete self-assessment files.  ",null,null,null,null,null,null,null,"Participants"]
[null,"• States should complete the self-assessment process at Time1 (baseline) and a later time (Time2) using the self-assessment tool.  Comparisons for a third time point, Time3, are possible.  \n• Each source file must have at least one set of QI (and EQ) ratings for one or more components or one of the data subcomponents.\n• The date each component/subcomponent was completed must be entered in the Participants worksheet in the corresponding self-assessment source file. Dates are entered in Row 12 of the Participant worksheet. These dates will be imported into the comparison file along with the QI and EQ ratings.\n• The priority ratings for the QIs and EQs also will be imported if they are available in the source file. If you want the priority ratings in the comparison file, enter them in each source file before you import. \n",null,null,null,null,null,null,null,"Enter the name and/or role of each participant, and place an “X” in the cell in the component.  The date on which the self-assessment was completed may also be entered in row 12."]
[null,"Step 2: Ensure self-assessment files are named correctly."]
[null,"The SAC tool relies on a strict naming convention for the files that will be used:\n•   SAC Comparison File   \nThe SAC tool, or comparison file, must be named ECTA-DaSy_Self-Assessment_Comparison.xlsm\n•   Source Files\nThe names of the point-in-time source files must be exactly as follows:\nECTA-DaSy_Self-Assessment_T1.xlsm – Time1\nECTA-DaSy_Self-Assessment_T2.xlsm – Time 2\nECTA-DaSy_Self-Assessment_T3.xlsm – optional Time3\n",null,null,null,null,null,null,null,"Note:  Be sure to enter in cell C8 whether your program is Part C or B 619."]
[null,"Step 3: Open the SAC tool and the self-assessment files.  "]
[null,"•   Open at least two source files named as described above, with T1 and T2. It does not matter which worksheet is visible, just that the file is open. Make sure there are dates in the Participant worksheets in each source file for the components that you plan to import. \n•   If your file is not open or is not named exactly as required, the following error message will appear and your data will not be copied from your source file into this comparison file: \n \n",null,null,null,null,null,null,null,"Table of Contents"]
[]
[null,null,null,null,null,null,null,null,null,"Once all elements for a QI are entered, the QI rating is automatically calculated and displayed in the row for the respective QI (in the light blue cell)."]
[null,"•   Be sure to enable the macros after opening the SAC tool. There are several ways to accomplish this, depending on which version of Microsoft you are using. \no     Microsoft 2013: Click on the Enable Content button in the yellow Message Bar.\no     Microsoft Excel 2007 and 2010: Go to File > Info > Enable Content > Enable All Content.\no     Microsoft 2003: Download and install the Compatibility Pack from Microsoft: https://www.microsoft.com/en-us/download/details.aspx?id=3\n\n",null,null,null,null,null,null,null,"Evidence:  Immediately below each element is a text box (shaded light orange) that can be used to document the evidence for the element.  The text box will expand to the needed length."]
[null,"o    If you cannot enable the macros through one of these methods, you may need to change a setting in your security or trust center settings. Information on how to do this is at http://www.exceltrick.com/how_to/enable-macros-in-excel/."]
[]
[null,"Step 4: Use the ImportPanel worksheet in the SAC tool to import data from the self-assessment files."]
[null,"•  With the source files open, open the comparison file and go to the ImportPanel tab. The ImportPanel is set up so that you can select and import one component or data subcomponent at a time or all the components at once. Selections for Time 1 should be made first, followed by Time 2, and then Time 3, if applicable. Using the ImportPanel worksheet, select the components for Time 1 that you wish to import. Then select the same components for Time 2 and for Time 3.",null,null,null,null,null,null,null,"Priority:  To the right of each cell for the element and QI rating is a cell to indicate the Priority of each element and QI.  The Priority rating is an optional feature and may be used for planning which elements or QIs to work on.  The Priority options are high, medium or low, or may be left blank.   "]
[null,"Below is a partial screen shot of the ImportPanel. To import the data for the Governance (GV) component for Time 1, click on the cell GVT1. After the import is complete, click on the GVT2 cell to import the data for Time 2. Continue the process to import additional components and subcomponents."]
[]
[]
[]
[]
[null,null,null,null,null,null,null,null,null,0]
[]
[null,null,null,null,null,null,null,null,null,"Note that of the entire list, four are not recommended for619 programs.  These four data elements will be excluded from the calculation IF the program is 619 is selected in the Participant tab.  If no program type is selected, a link is provided back to the Participant tab."]
[null,"•   If, after importing any component, you notice that the date is missing, go back to the Participant worksheet in the source file, enter the date, and rerun the import. The date of your most recent import will be displayed in the top row of the ImportPanel (see screenshot above); however, that field will change if another import occurs for the same time period.\n•   Use of the ALL button in the ImportPanel imports data for all components for a given time period, e.g., T1 or T2. It may take a few minutes to import data for all the components.\n",null,null,null,null,null,null,null,0]
[]
[null,"Step 5: Select one of two views to display the comparison data.  "]
[]
[]
[null,"• After the ratings for the same component for two (or three) points in time are imported, the comparisons of the QI and EQ ratings are automatically generated and displayed in the worksheet that corresponds to the selected components/subcomponents (there are five ECTA components and six data subcomponents). \n• Use the Table of Contents or the tabs at the bottom of the spreadsheet to get to a component worksheet.\n"]
[null,"•   Two views are available: Hide Elements and Show Elements. Buttons for each view are at the top right of each worksheet. The Hide Elements view displays each of the QIs followed by the QI ratings for Time 1, in blue; Time 2, in red; and Time 3, in green. The date the component was completed for each time point is provided atop the ratings. To the right of the QI ratings are the Priority Ratings for Time 1, Time 2, and Time 3. The bar chart to the right depicts the QI ratings for each QI for each time point. \n",null,null,null,null,null,null,null,"The QI Summary tab displays a summary of the QI ratings for each of those completed.  "]
[null,null,null,null,null,null,null,null,null,"The number of elements in each QI with ratings of 1, 2, 3 and 4 are summarized to the right of the graph, followed by the total number of elements in that QI."]
[]
[null,"•   To view the EQ ratings for each element, click the Show Elements button. Remember that the QI buttons at the top may be used to navigate to each QI. When the EQ ratings are displayed, a smaller version of the bar graph is displayed in the upper right of each worksheet."]
[]
[null,"Governance QI1:"]
[]
[]
[]
[null,"Saving the Results of the SAC Tool"]
[null,"Save the SAC file as you would any other workbook. If at a later time you wish to do more comparisons, e.g., for other components or data subcomponents or additional points in time, you may use the same comparison file. However, if you have renamed that file for any reason, you will need to change the filename back to ECTA-DaSy_Self-Assessment_Comparison. "]
[]
[]
[]
[]
[]
[null,"Printing the Results of the SAC Tool"]
[null,"Each worksheet in the workbook has an existing default print area. You may redefine or resize the print areas by using the Print Area option in Excel’s Page Layout tab."]
[]
[]
[]
[null,"Hints for Using the SAC Tool"]
[null,"•   When you are comparing more than one component, the dates of completion for Time 1 or Time 2 need not be the same for each of the components within Time 1 or Time 2. The only requirement is that the date in the T1 file for a component or data subcomponent) be earlier than the date for the same component in the T2 file."]
[null,"•   The import will work if you have different components in different self-assessment files, e.g., Governance for Time 1 is in one file and Stakeholder Engagement for Time 2 is in another. Just make sure that the component that you wish to import is in a file with the proper name, clearly labeled at T1, T2, or T3, and is open."]
[null,"•   You can always change filenames after you have completed the import/comparison; just make sure the file meets the filename requirements if it is used again in the import process."]
[]
[]
[]
[]
[]
[null,"The contents of this tool and guidance were developed under grants from the U.S. Department of Education, #H326P120002 and #H373Z120002. However, those contents do not necessarily represent the policy of the U.S. Department of Education, and you should not assume endorsement by the Federal Government. \nProject Officers:  Meredith Miceli, Richelle Davis, and Julia Martin Eile.\n"]
[]
[]
[]
[]
[]
[]
[]
[]
[]
[]
[]
[]
[]
[]
[]
[]
[]
[]
[]
[]
[]
[]
[]
[]
[]
[]
[]
[]
[]
[]
[]
[]
[]
[]
[]
[]
[]
[]
[]
[]
[]
[]
[]
[]
[]
[]
[]
[]
[]
[]
[]
[]
[]
[]
[]
[]
[]
[]
[]
[]
[]
[]
[]
["Version",null,null,"Description/Changes",null,"Date"]
[1,null,null,"Initial release",null,"2016-06-28"]

{"sheet":"ImportPanel","index":1,"n_rows":22,"n_cols":20,"rows_kept":22,"cut":false,"hidden":false,"merged":[[9,11,9,17],[21,4,27,4],[21,6,27,6],[21,8,27,8],[10,11,10,17],[11,11,11,17],[12,11,12,17],[13,11,13,17],[14,11,14,17],[21,5,26,5],[15,11,15,17],[16,11,16,17],[17,11,17,17],[18,11,18,17],[21,7,26,7],[0,0,2,2],[0,11,4,17],[6,11,6,17],[7,11,7,17],[8,11,8,17]]}
["Your most recent import:",null,null,null,null,null,null,null,null,null,null,{"$f":"IF(E2&G2&I2=\"\",\"\",T1)","v":""},null,null,null,null,null,null,null,"Note: You just imported one (or more) of the components by clicking one of the component-import buttons.  In each column, the time associated with the component of the most recent button you clicked appears to the left. For example, if you click \"GV T2\" then the time-stamp associated with the GV component in the Participants tab of your T2 file appears to the left.  If the date that appears to the left is mising or is not correct, please edit the date on the participants tab in that other file (your T1, T2, or T3 file) and then click the corresponding button, below, to re-import that data."]
[]
[]
[]
[null,null,null,null,"Time 1",null,"Time 2",null,"Time 3"]
[]
[null,null,"GV",null,null,null,null,null,null,null,"`","Clicking any button in this row will update only the GV tab in \"Comparison\" (from T1, T2, or T3)"]
[null,null,"FN",null,null,null,null,null,null,null,"`","Clicking any button in this row will update only the FN tab in \"Comparison\" (from T1, T2, or T3)"]
[null,null,"PN",null,null,null,null,null,null,null,"`","Clicking any button in this row will update only the PN tab in \"Comparison\" (from T1, T2, or T3)"]
[null,null,"AC",null,null,null,null,null,null,null,"`","Clicking any button in this row will update only the AC tab in \"Comparison\" (from T1, T2, or T3)"]
[null,null,"QS",null,null,null,null,null,null,null,"`","Clicking any button in this row will update only the QS tab in \"Comparison\" (from T1, T2, or T3)"]
[null,null,"PV",null,null,null,null,null,null,null,"`","Clicking any button in this row will update only the PV tab in \"Comparison\" (from T1, T2, or T3)"]
[null,null,"DG",null,null,null,null,null,null,null,"`","Clicking any button in this row will update only the DG tab in \"Comparison\" (from T1, T2, or T3)"]
[null,null,"SE",null,null,null,null,null,null,null,"`","Clicking any button in this row will update only the SE tab in \"Comparison\" (from T1, T2, or T3)"]
[null,null,"SD",null,null,null,null,null,null,null,"`","Clicking any button in this row will update only the SD tab in \"Comparison\" (from T1, T2, or T3)"]
[null,null,"DU",null,null,null,null,null,null,null,"`","Clicking any button in this row will update only the DU tab in \"Comparison\" (from T1, T2, or T3)"]
[null,null,"SU",null,null,null,null,null,null,null,"`","Clicking any button in this row will update only the SU tab in \"Comparison\" (from T1, T2, or T3)"]
[]
[null,null,"ALL",null,null,null,null,null,null,null,"`","Clicking any button in this row will update ALL tabs in \"Comparison\" (from T1, T2, or T3)"]
[]
[null,null,null,null,"`",null,"`",null,"`"]
[null,null,null,null,"Clicking any button in this column will update the Element and QI Ratings, and Priorities for Time 1",null,"Clicking any button in this column will update the Element and QI Ratings, and Priorities for Time 2",null,"Clicking any button in this column will update the Elements and QI Ratings, and Priorities for Time 3"]

{"sheet":"Table_Contents","index":2,"n_rows":36,"n_cols":3,"rows_kept":36,"cut":false,"hidden":false,"merged":[[1,1,1,2]]}
[]
[null,"ECTA/DaSy Framework Self-Assessment "]
[]
[null,"GV","Governance"]
[null,null,"GV Subcomponent: Vision, mission, and/or purpose"]
[null,null,"GV Subcomponent: Legal Foundations"]
[null,null,"GV Subcomponent: Administrative Structures"]
[null,null,"GV Subcomponent: Leadership and Performance Management"]
[null,"FN","Finance"]
[null,null,"FN Subcomponent: Finance Planning Process/Forecasting"]
[null,null,"FN Subcomponent: Fiscal Data"]
[null,null,"FN Subcomponent: Procurement"]
[null,null,"FN Subcomponent: Resource Allocation, Use of Funds and Disbursement"]
[null,null,"FN Subcomponent: Monitoring and Accountability of Funds and Resources"]
[null,"PN","Personnel/Workforce"]
[null,null,"PN Subcomponent: Leadership, Coordination, and Sustainability"]
[null,null,"PN Subcomponent: State Personnel Standards"]
[null,null,"PN Subcomponent: Preservice Personnel Development"]
[null,null,"PN Subcomponent: Inservice Personnel Development"]
[null,null,"PN Subcomponent: Recruitment and Retention"]
[null,null,"PN Subcomponent: Evaluation"]
[null,"AC","Accountability and Quality Improvement"]
[null,null,"AC Subcomponent: Planning for Accountability and Improvement"]
[null,null,"AC Subcomponent: Collecting and Analyzing Performance Data"]
[null,null,"AC Subcomponent: Using Results for Continuous Improvement"]
[null,"QS","Quality Standards"]
[null,null,"QS Subcomponent: Child-Level Standards"]
[null,null,"QS Subcomponent: Program-Level Standards"]
[]
[null,"DS","Data System"]
[null,"PV","DS Subcomponent: Purpose and Vision"]
[null,"DG","DS Subcomponent: Data Governance and Management"]
[null,"SE","DS Subcomponent: Stakeholder Engagement"]
[null,"SD","DS Subcomponent: System Design and Development"]
[null,"DU","DS Subcomponent: Data Use"]
[null,"SU","DS Subcomponent: Sustainability"]

{"sheet":"GV","index":3,"n_rows":125,"n_cols":33,"rows_kept":125,"cut":false,"hidden":false,"merged":[[9,4,9,5],[5,8,5,13],[6,8,6,13],[7,8,7,13],[8,8,8,13],[8,15,8,17],[2,3,2,5],[4,7,4,13],[8,4,8,5],[3,4,3,5],[4,4,4,5],[5,4,5,5],[6,4,6,5],[7,4,7,5],[12,19,13,19],[14,19,15,19],[16,19,17,19],[18,19,19,19],[20,19,21,19],[22,19,23,19],[24,19,25,19],[26,19,27,19],[28,19,29,19],[120,19,121,19],[122,19,123,19],[96,19,97,19],[98,19,99,19],[100,19,101,19],[102,19,103,19],[104,19,105,19],[106,19,107,19],[108,19,109,19],[112,19,113,19],[114,19,115,19],[116,19,117,19],[118,19,119,19],[32,19,33,19],[103,5,103,8],[104,4,104,8],[105,5,105,8],[58,10,59,10],[56,10,57,10],[62,10,63,10],[64,10,65,10],[68,10,69,10],[74,10,75,10],[54,19,55,19],[56,19,57,19],[58,19,59,19],[34,19,35,19],[36,19,37,19],[38,19,39,19],[40,19,41,19],[42,19,43,19],[44,19,45,19],[46,19,47,19],[50,19,51,19],[52,19,53,19],[100,4,100,8],[101,5,101,8],[102,4,102,8],[84,19,85,19],[86,19,87,19],[88,19,89,19],[90,19,91,19],[94,19,95,19],[74,19,75,19],[76,19,77,19],[78,19,79,19],[82,19,83,19],[64,19,65,19],[66,19,67,19],[68,19,69,19],[72,19,73,19],[62,19,63,19],[98,4,98,8],[11,4,11,8],[25,5,25,8],[79,5,79,8],[73,5,73,8],[74,4,74,8],[75,5,75,8],[76,4,76,8],[77,5,77,8],[78,4,78,8],[71,4,71,8],[72,4,72,8],[34,4,34,8],[35,5,35,8],[36,4,36,8],[37,5,37,8],[38,4,38,8],[39,5,39,8],[27,5,27,8],[28,4,28,8],[29,5,29,8],[20,4,20,8],[12,4,12,8],[14,4,14,8],[18,4,18,8],[26,10,27,10],[28,10,29,10],[38,10,39,10],[22,4,22,8],[24,4,24,8],[19,5,19,8],[21,5,21,8],[34,10,35,10],[36,10,37,10],[32,10,33,10],[31,4,31,8],[24,10,25,10],[16,4,16,8],[72,10,73,10],[76,10,77,10],[42,10,43,10],[44,10,45,10],[46,10,47,10],[50,10,51,10],[52,10,53,10],[54,10,55,10],[13,5,13,8],[15,5,15,8],[17,5,17,8],[14,10,15,10],[16,10,17,10],[12,10,13,10],[40,10,41,10],[40,4,40,8],[41,5,41,8],[32,4,32,8],[33,5,33,8],[26,4,26,8],[18,10,19,10],[20,10,21,10],[22,10,23,10],[23,5,23,8],[120,10,121,10],[96,10,97,10],[98,10,99,10],[100,10,101,10],[102,10,103,10],[118,10,119,10],[84,10,85,10],[86,10,87,10],[88,10,89,10],[90,10,91,10],[94,10,95,10],[122,10,123,10],[59,5,59,8],[61,4,61,8],[62,4,62,8],[63,5,63,8],[64,4,64,8],[65,5,65,8],[66,4,66,8],[67,5,67,8],[68,4,68,8],[91,5,91,8],[99,5,99,8],[84,4,84,8],[85,5,85,8],[115,5,115,8],[116,4,116,8],[82,4,82,8],[83,5,83,8],[78,10,79,10],[116,10,117,10],[108,10,109,10],[104,10,105,10],[106,10,107,10],[114,10,115,10],[123,5,123,8],[69,5,69,8],[93,4,93,8],[94,4,94,8],[95,5,95,8],[96,4,96,8],[111,4,111,8],[112,4,112,8],[113,5,113,8],[114,4,114,8],[107,5,107,8],[108,4,108,8],[109,5,109,8],[81,4,81,8],[122,4,122,8],[86,4,86,8],[87,5,87,8],[88,4,88,8],[89,5,89,8],[90,4,90,8],[120,4,120,8],[121,5,121,8],[106,4,106,8],[97,5,97,8],[6,32,7,37],[8,32,8,37],[117,5,117,8],[118,4,118,8],[119,5,119,8],[42,4,42,8],[43,5,43,8],[44,4,44,8],[45,5,45,8],[46,4,46,8],[47,5,47,8],[49,4,49,8],[50,4,50,8],[51,5,51,8],[112,10,113,10],[57,5,57,8],[58,4,58,8],[52,4,52,8],[53,5,53,8],[54,4,54,8],[55,5,55,8],[56,4,56,8],[82,10,83,10],[66,10,67,10]]}
[null,null,null,"Governance",null,null,null,null,null,null,null,null,null,null,null,null,null,null,null,null,null,null,null,null,null,null,null,{"$f":"E1&F1","v":""}]
[null,null,null,null,null,null,null,null,null,null,null,null,null,null,null,null,null,null,null,null,null,null,null,null,null,null,null,""]
[null,null,null,"Quality Indicator Rating (Calculated)",null,null,null,null,null,null,null,null,null,null,null,null,null,null,null,null,null,null,null,null,null,null,null,""]
[null,null,null,1,"None of the elements is yet planned or in place.  ",null,null,null,null,null,null,null,null,null,null,null,null,null,null,null,null,null,null,null,null,null,null,"None of the elements is yet planned or in place.  "]
[null,null,null,2,"Most of the elements are not yet planned or in place. ",null,null,"Element of Quality Rating (EQR) [Imported from T1, T2, T3]",null,null,null,null,null,null,null,null,null,null,null,null,null,null,null,null,null,null,null,"Most of the elements are not yet planned or in place. "]
[null,null,null,3,"Some elements are in place; a few may be fully implemented.",null,null,1,"No - element not in place and not planning to work on it at this time",null,null,null,null,null,null,null,null,null,null,null,null,null,null,null,null,null,null,"Some elements are in place; a few may be fully implemented."]
[null,null,null,4,"At least half of the elements are in place; a few may be fully implemented.",null,null,2,"No - element not in place but planning to work on it or getting started",null,null,null,null,null,null,null,null,null,null,null,null,null,null,null,null,null,null,"At least half of the elements are in place; a few may be fully implemented.",null,null,null,null,{"$f":"IF(ISERROR(FIND(\"Subcomponent\",D1)),D1,\"DS: \"&MID(D1,18,99))","v":"Governance"}]
[null,null,null,5,"At least half of the elements are in place; some are fully implemented.",null,null,3,"Yes - element partially implemented",null,null,null,null,null,null,null,null,null,null,null,null,null,null,null,null,null,null,"At least half of the elements are in place; some are fully implemented."]
[null,null,null,6,"At least half of the elements are fully implemented; the rest are partially implemented.",null,null,4,"Yes - element fully implemented",null,null,null,null,null,null,"PRIORITY",null,null,null,null,null,null,null,null,null,null,null,"At least half of the elements are fully implemented; the rest are partially implemented.",null,null,null,null,"Quality Indicator Ratings"]
[null,null,null,7,"All elements are fully implemented.",null,null,null,null,null,null,"TIME1","TIME2","TIME3",null,"TIME1","TIME2","TIME3",null,null,null,null,null,null,null,null,null,"All elements are fully implemented."]
[null,null,{"$f":"MID(CELL(\"Filename\",C1),FIND(\"]\",CELL(\"Filename\",C1))+1,255)","v":"GV"},null,null,null,null,null,null,null,"Date:",null,null,null,null,null,null,null,null,null,null,null,null,null,null,null,null,""]
[null,null,null,"QI 1","Vision, mission and/or purpose guide decisions and provide direction for quality comprehensive and coordinated Part C and Section 619 statewide systems.",null,null,null,null,null,"QI Rating: ",null,null,null,null,null,null,null,{"$f":"IF(E12=\"Evidence:\",1,0)","v":0},"#",{"$f":"IF(LEFT(D12,2)=\"QI\",0,1)","v":0},null,null,null,null,null,null,{"$f":"E12&F12","v":"Vision, mission and/or purpose guide decisions and provide direction for quality comprehensive and coordinated Part C and Section 619 statewide systems."},{"$f":"K12","v":"QI Rating: "}]
[null,null,null,"a","Core values, beliefs, guiding principles and current evidence-based practices are the foundation for public statements of vision/mission/purpose.",null,null,null,null,null,"Element Rating:",null,null,null,null,null,null,null,0,{"$f":"IFERROR(VLOOKUP(L13,#REF!,2,FALSE),\"\")","v":""},{"$f":"IF(LEFT(D13,2)=\"QI\",0,1)","v":1},null,null,null,null,null,null,"Core values, beliefs, guiding principles and current evidence-based practices are the foundation for public statements of vision/mission/purpose.",{"$f":"K13","v":"Element Rating:"}]
[null,null,null,null,"Evidence:",null,null,null,null,null,null,null,null,null,null,null,null,null,1,null,1,null,null,null,null,null,null,"Evidence:"]
[null,null,null,"b","These public statements are consistent with The Individuals with Disabilities Education Act (IDEA).",null,null,null,null,null,"Element Rating:",null,null,null,null,null,null,null,0,{"$f":"IFERROR(VLOOKUP(L15,#REF!,2,FALSE),\"\")","v":""},1,null,null,null,null,null,null,"These public statements are consistent with The Individuals with Disabilities Education Act (IDEA).",{"$f":"K15","v":"Element Rating:"}]
[null,null,null,null,"Evidence:",null,null,null,null,null,null,null,null,null,null,null,null,null,1,null,1,null,null,null,null,null,null,"Evidence:"]
[null,null,null,"c","These public statements address who the program serves, what the program does and the intended outcomes for children and families.",null,null,null,null,null,"Element Rating:",null,null,null,null,null,null,null,0,{"$f":"IFERROR(VLOOKUP(L17,#REF!,2,FALSE),\"\")","v":""},1,null,null,null,null,null,null,"These public statements address who the program serves, what the program does and the intended outcomes for children and families.",{"$f":"K17","v":"Element Rating:"}]
[null,null,null,null,"Evidence:",null,null,null,null,null,null,null,null,null,null,null,null,null,1,null,1,null,null,null,null,null,null,"Evidence:"]
[null,null,null,"d","These public statements are developed with input from all stakeholders.",null,null,null,null,null,"Element Rating:",null,null,null,null,null,null,null,0,{"$f":"IFERROR(VLOOKUP(L19,#REF!,2,FALSE),\"\")","v":""},1,null,null,null,null,null,null,"These public statements are developed with input from all stakeholders.",{"$f":"K19","v":"Element Rating:"}]
[null,null,null,null,"Evidence:",null,null,null,null,null,null,null,null,null,null,null,null,null,1,null,1,null,null,null,null,null,null,"Evidence:"]
[null,null,null,"e","These public statements are readily available (e.g. on the website, in a parent handbook, etc.) and effectively communicated to all stakeholders including practitioners, families, and community partners.",null,null,null,null,null,"Element Rating:",null,null,null,null,null,null,null,0,{"$f":"IFERROR(VLOOKUP(L21,#REF!,2,FALSE),\"\")","v":""},1,null,null,null,null,null,null,"These public statements are readily available (e.g. on the website, in a parent handbook, etc.) and effectively communicated to all stakeholders including practitioners, families, and community partners.",{"$f":"K21","v":"Element Rating:"}]
[null,null,null,null,"Evidence:",null,null,null,null,null,null,null,null,null,null,null,null,null,1,null,1,null,null,null,null,null,null,"Evidence:"]
[null,null,null,"f","These public statements are clear and understood by staff, local program administrators and families.",null,null,null,null,null,"Element Rating:",null,null,null,null,null,null,null,0,{"$f":"IFERROR(VLOOKUP(L23,#REF!,2,FALSE),\"\")","v":""},1,null,null,null,null,null,null,"These public statements are clear and understood by staff, local program administrators and families.",{"$f":"K23","v":"Element Rating:"}]
[null,null,null,null,"Evidence:",null,null,null,null,null,null,null,null,null,null,null,null,null,1,null,1,null,null,null,null,null,null,"Evidence:"]
[null,null,null,"g","System level decisions (e.g. fiscal, data, standards, personnel, monitoring), programmatic decisions (e.g. services and supports) and strategic planning are guided by the public statements of vision/mission/purpose.",null,null,null,null,null,"Element Rating:",null,null,null,null,null,null,null,0,{"$f":"IFERROR(VLOOKUP(L25,#REF!,2,FALSE),\"\")","v":""},1,null,null,null,null,null,null,"System level decisions (e.g. fiscal, data, standards, personnel, monitoring), programmatic decisions (e.g. services and supports) and strategic planning are guided by the public statements of vision/mission/purpose.",{"$f":"K25","v":"Element Rating:"}]
[null,null,null,null,"Evidence:",null,null,null,null,null,null,null,null,null,null,null,null,null,1,null,1,null,null,null,null,null,null,"Evidence:"]
[null,null,null,"h","These public statements are reviewed and revised as necessary with stakeholder input.",null,null,null,null,null,"Element Rating:",null,null,null,null,null,null,null,0,{"$f":"IFERROR(VLOOKUP(L27,#REF!,2,FALSE),\"\")","v":""},1,null,null,null,null,null,null,"These public statements are reviewed and revised as necessary with stakeholder input.",{"$f":"K27","v":"Element Rating:"}]
[null,null,null,null,"Evidence:",null,null,null,null,null,null,null,null,null,null,null,null,null,1,null,1,null,null,null,null,null,null,"Evidence:"]
[null,null,null,"i","These Part C and 619 public statements of vision, mission and/or purpose are recognized as an integral part of the broader early care and education public statements and strategic plans.",null,null,null,null,null,"Element Rating:",null,null,null,null,null,null,null,0,{"$f":"IFERROR(VLOOKUP(L29,#REF!,2,FALSE),\"\")","v":""},1,null,null,null,null,null,null,"These Part C and 619 public statements of vision, mission and/or purpose are recognized as an integral part of the broader early care and education public statements and strategic plans.",{"$f":"K29","v":"Element Rating:"}]
[null,null,null,null,"Evidence:",null,null,null,null,null,null,null,null,null,null,null,null,null,1,null,1,null,null,null,null,null,null,"Evidence:"]
[null,null,null,null,null,null,null,null,null,null,null,null,null,null,null,null,null,null,0,null,1,null,null,null,null,null,null,"",{"$f":"K31","v":0}]
[null,null,null,"QI 2","Legal foundations (e.g. statutes, regulations, interagency agreements and/or policies) provide the authority and direction to effectively implement the Part C and 619 statewide systems.",null,null,null,null,null,"QI Rating: ",null,null,null,null,null,null,null,0,"#",0,null,null,null,null,null,null,"Legal foundations (e.g. statutes, regulations, interagency agreements and/or policies) provide the authority and direction to effectively implement the Part C and 619 statewide systems.","QI Rating: "]
[null,null,null,"a","Legal foundations are aligned with IDEA and other federal and state mandates.",null,null,null,null,null,"Element Rating:",null,null,null,null,null,null,null,0,{"$f":"IFERROR(VLOOKUP(L33,#REF!,2,FALSE),\"\")","v":""},1,null,null,null,null,null,null,"Legal foundations are aligned with IDEA and other federal and state mandates.","Element Rating:"]
[null,null,null,null,"Evidence:",null,null,null,null,null,null,null,null,null,null,null,null,null,1,null,1,null,null,null,null,null,null,"Evidence:"]
[null,null,null,"b","Legal foundations are developed with input from stakeholders.",null,null,null,null,null,"Element Rating:",null,null,null,null,null,null,null,0,{"$f":"IFERROR(VLOOKUP(L35,#REF!,2,FALSE),\"\")","v":""},1,null,null,null,null,null,null,"Legal foundations are developed with input from stakeholders.",{"$f":"K35","v":"Element Rating:"}]
[null,null,null,null,"Evidence:",null,null,null,null,null,null,null,null,null,null,null,null,null,1,null,1,null,null,null,null,null,null,"Evidence:"]
[null,null,null,"c","Legal foundations are clearly written and provide details needed for implementation at the local level.",null,null,null,null,null,"Element Rating:",null,null,null,null,null,null,null,0,{"$f":"IFERROR(VLOOKUP(L37,#REF!,2,FALSE),\"\")","v":""},1,null,null,null,null,null,null,"Legal foundations are clearly written and provide details needed for implementation at the local level.",{"$f":"K37","v":"Element Rating:"}]
[null,null,null,null,"Evidence:",null,null,null,null,null,null,null,null,null,null,null,null,null,1,null,1,null,null,null,null,null,null,"Evidence:"]
[null,null,null,"d","Legal foundations support and do not hinder the implementation of evidence-based practices.",null,null,null,null,null,"Element Rating:",null,null,null,null,null,null,null,0,{"$f":"IFERROR(VLOOKUP(L39,#REF!,2,FALSE),\"\")","v":""},1,null,null,null,null,null,null,"Legal foundations support and do not hinder the implementation of evidence-based practices.",{"$f":"K39","v":"Element Rating:"}]
[null,null,null,null,"Evidence:",null,null,null,null,null,null,null,null,null,null,null,null,null,1,null,1,null,null,null,null,null,null,"Evidence:"]
[null,null,null,"e","Legal foundations are readily available and communicated to stakeholders and partners.",null,null,null,null,null,"Element Rating:",null,null,null,null,null,null,null,0,{"$f":"IFERROR(VLOOKUP(L41,#REF!,2,FALSE),\"\")","v":""},1,null,null,null,null,null,null,"Legal foundations are readily available and communicated to stakeholders and partners.",{"$f":"K41","v":"Element Rating:"}]
[null,null,null,null,"Evidence:",null,null,null,null,null,null,null,null,null,null,null,null,null,1,null,1,null,null,null,null,null,null,"Evidence:"]
[null,null,null,"f","Legal foundations provide the authority for the state to monitor implementation.",null,null,null,null,null,"Element Rating:",null,null,null,null,null,null,null,0,{"$f":"IFERROR(VLOOKUP(L43,#REF!,2,FALSE),\"\")","v":""},1,null,null,null,null,null,null,"Legal foundations provide the authority for the state to monitor implementation.",{"$f":"K43","v":"Element Rating:"}]
[null,null,null,null,"Evidence:",null,null,null,null,null,null,null,null,null,null,null,null,null,{"$f":"IF(E44=\"Evidence:\",1,0)","v":1},null,1,null,null,null,null,null,null,{"$f":"E44&F44","v":"Evidence:"}]
[null,null,null,"g","Legal foundations are reviewed and revised as necessary with stakeholder input, using existing data and other pertinent information.",null,null,null,null,null,"Element Rating:",null,null,null,null,null,null,null,0,{"$f":"IFERROR(VLOOKUP(L45,#REF!,2,FALSE),\"\")","v":""},1,null,null,null,null,null,null,"Legal foundations are reviewed and revised as necessary with stakeholder input, using existing data and other pertinent information.",{"$f":"K45","v":"Element Rating:"}]
[null,null,null,null,"Evidence:",null,null,null,null,null,null,null,null,null,null,null,null,null,1,null,1,null,null,null,null,null,null,"Evidence:"]
[null,null,null,"h","Legal foundations support coordination of systems and services across all early care and education programs.",null,null,null,null,null,"Element Rating:",null,null,null,null,null,null,null,0,{"$f":"IFERROR(VLOOKUP(L47,#REF!,2,FALSE),\"\")","v":""},1,null,null,null,null,null,null,"Legal foundations support coordination of systems and services across all early care and education programs.",{"$f":"K47","v":"Element Rating:"}]
[null,null,null,null,"Evidence:",null,null,null,null,null,null,null,null,null,null,null,null,null,1,null,1,null,null,null,null,null,null,"Evidence:"]
[null,null,null,null,null,null,null,null,null,null,null,null,null,null,null,null,null,null,0,null,1,null,null,null,null,null,null,"",{"$f":"K49","v":0}]
[null,null,null,"QI 3","Administrative structures such as state and regional and/or local system entities are designed to carry out IDEA and related federal and state mandates to ensure statewide implementation of the system including provision of services.",null,null,null,null,null,"QI Rating: ",null,null,null,null,null,null,null,0,"#",0,null,null,null,null,null,null,"Administrative structures such as state and regional and/or local system entities are designed to carry out IDEA and related federal and state mandates to ensure statewide implementation of the system including provision of services.","QI Rating: "]
[null,null,null,"a","Part C and 619 lead agencies assign all required components of IDEA and related federal and state mandates to entities within the state.",null,null,null,null,null,"Element Rating:",null,null,null,null,null,null,null,0,{"$f":"IFERROR(VLOOKUP(L51,#REF!,2,FALSE),\"\")","v":""},1,null,null,null,null,null,null,"Part C and 619 lead agencies assign all required components of IDEA and related federal and state mandates to entities within the state.","Element Rating:"]
[null,null,null,null,"Evidence:",null,null,null,null,null,null,null,null,null,null,null,null,null,1,null,1,null,null,null,null,null,null,"Evidence:"]
[null,null,null,"b","Information about the state system components and how to access services is widely available and understood by providers, families and the general public.",null,null,null,null,null,"Element Rating:",null,null,null,null,null,null,null,0,{"$f":"IFERROR(VLOOKUP(L53,#REF!,2,FALSE),\"\")","v":""},1,null,null,null,null,null,null,"Information about the state system components and how to access services is widely available and understood by providers, families and the general public.",{"$f":"K53","v":"Element Rating:"}]
[null,null,null,null,"Evidence:",null,null,null,null,null,null,null,null,null,null,null,null,null,1,null,1,null,null,null,null,null,null,"Evidence:"]
[null,null,null,"c","Decisions about Part C and 619 state, and regional and/or local system structures facilitate collaboration and service delivery across early care and education programs.",null,null,null,null,null,"Element Rating:",null,null,null,null,null,null,null,0,{"$f":"IFERROR(VLOOKUP(L55,#REF!,2,FALSE),\"\")","v":""},1,null,null,null,null,null,null,"Decisions about Part C and 619 state, and regional and/or local system structures facilitate collaboration and service delivery across early care and education programs.",{"$f":"K55","v":"Element Rating:"}]
[null,null,null,null,"Evidence:",null,null,null,null,null,null,null,null,null,null,null,null,null,1,null,1,null,null,null,null,null,null,"Evidence:"]
[null,null,null,"d","Part C and 619 lead agencies design state, and regional and/or local entities to ensure equitable access to services statewide.",null,null,null,null,null,"Element Rating:",null,null,null,null,null,null,null,0,{"$f":"IFERROR(VLOOKUP(L57,#REF!,2,FALSE),\"\")","v":""},1,null,null,null,null,null,null,"Part C and 619 lead agencies design state, and regional and/or local entities to ensure equitable access to services statewide.",{"$f":"K57","v":"Element Rating:"}]
[null,null,null,null,"Evidence:",null,null,null,null,null,null,null,null,null,null,null,null,null,1,null,1,null,null,null,null,null,null,"Evidence:"]
[null,null,null,"e","Part C and 619 lead agencies evaluate the structure of entities assigned for state, regional and local implementation on an ongoing basis and revise as needed to ensure equitable delivery of services.",null,null,null,null,null,"Element Rating:",null,null,null,null,null,null,null,0,{"$f":"IFERROR(VLOOKUP(L59,#REF!,2,FALSE),\"\")","v":""},1,null,null,null,null,null,null,"Part C and 619 lead agencies evaluate the structure of entities assigned for state, regional and local implementation on an ongoing basis and revise as needed to ensure equitable delivery of services.",{"$f":"K59","v":"Element Rating:"}]
[null,null,null,null,"Evidence:",null,null,null,null,null,null,null,null,null,null,null,null,null,1,null,1,null,null,null,null,null,null,"Evidence:"]
[null,null,null,null,null,null,null,null,null,null,null,null,null,null,null,null,null,null,0,null,1,null,null,null,null,null,null,"",{"$f":"K61","v":0}]
[null,null,null,"QI 4","State and regional and/or local entities enforce roles and responsibilities for implementing IDEA and other federal and state mandates.",null,null,null,null,null,"QI Rating: ",null,null,null,null,null,null,null,0,"#",0,null,null,null,null,null,null,"State and regional and/or local entities enforce roles and responsibilities for implementing IDEA and other federal and state mandates.","QI Rating: "]
[null,null,null,"a","State Part C and 619 agencies and partners have enforceable roles and responsibilities established through clearly written state laws, regulations, policies, procedures, contracts, or agreements.",null,null,null,null,null,"Element Rating:",null,null,null,null,null,null,null,0,{"$f":"IFERROR(VLOOKUP(L63,#REF!,2,FALSE),\"\")","v":""},1,null,null,null,null,null,null,"State Part C and 619 agencies and partners have enforceable roles and responsibilities established through clearly written state laws, regulations, policies, procedures, contracts, or agreements.","Element Rating:"]
[null,null,null,null,"Evidence:",null,null,null,null,null,null,null,null,null,null,null,null,null,1,null,1,null,null,null,null,null,null,"Evidence:"]
[null,null,null,"b","Regional and local entities have enforceable roles and responsibilities for provision of direct services established through clearly written state laws, regulations, policies, procedures, contracts, or agreements.",null,null,null,null,null,"Element Rating:",null,null,null,null,null,null,null,0,{"$f":"IFERROR(VLOOKUP(L65,#REF!,2,FALSE),\"\")","v":""},1,null,null,null,null,null,null,"Regional and local entities have enforceable roles and responsibilities for provision of direct services established through clearly written state laws, regulations, policies, procedures, contracts, or agreements.",{"$f":"K65","v":"Element Rating:"}]
[null,null,null,null,"Evidence:",null,null,null,null,null,null,null,null,null,null,null,null,null,1,null,1,null,null,null,null,null,null,"Evidence:"]
[null,null,null,"c","Administrators, practitioners and other agency personnel, at all levels of the system, understand and perform their roles and responsibilities in accordance with the lines of decision-making within the state structure.",null,null,null,null,null,"Element Rating:",null,null,null,null,null,null,null,0,{"$f":"IFERROR(VLOOKUP(L67,#REF!,2,FALSE),\"\")","v":""},1,null,null,null,null,null,null,"Administrators, practitioners and other agency personnel, at all levels of the system, understand and perform their roles and responsibilities in accordance with the lines of decision-making within the state structure.",{"$f":"K67","v":"Element Rating:"}]
[null,null,null,null,"Evidence:",null,null,null,null,null,null,null,null,null,null,null,null,null,1,null,1,null,null,null,null,null,null,"Evidence:"]
[null,null,null,"d","There is an ongoing process for reviewing and revising, as necessary, the designation of roles and responsibilities.",null,null,null,null,null,"Element Rating:",null,null,null,null,null,null,null,0,{"$f":"IFERROR(VLOOKUP(L69,#REF!,2,FALSE),\"\")","v":""},1,null,null,null,null,null,null,"There is an ongoing process for reviewing and revising, as necessary, the designation of roles and responsibilities.",{"$f":"K69","v":"Element Rating:"}]
[null,null,null,null,"Evidence:",null,null,null,null,null,null,null,null,null,null,null,null,null,1,null,1,null,null,null,null,null,null,"Evidence:"]
[null,null,null,null,null,null,null,null,null,null,null,null,null,null,null,null,null,null,0,null,1,null,null,null,null,null,null,"",{"$f":"K71","v":0}]
[null,null,null,"QI 5","State and regional and/or local system entities are designed to maximize meaningful family engagement in the development and implementation of the system.",null,null,null,null,null,"QI Rating: ",null,null,null,null,null,null,null,0,"#",0,null,null,null,null,null,null,"State and regional and/or local system entities are designed to maximize meaningful family engagement in the development and implementation of the system.","QI Rating: "]
[null,null,null,"a","Decisions about system structures support equitable representation of families on the state Interagency Coordinating Council (ICC), local ICCs, task forces, and committees.",null,null,null,null,null,"Element Rating:",null,null,null,null,null,null,null,0,{"$f":"IFERROR(VLOOKUP(L73,#REF!,2,FALSE),\"\")","v":""},1,null,null,null,null,null,null,"Decisions about system structures support equitable representation of families on the state Interagency Coordinating Council (ICC), local ICCs, task forces, and committees.","Element Rating:"]
[null,null,null,null,"Evidence:",null,null,null,null,null,null,null,null,null,null,null,null,null,1,null,1,null,null,null,null,null,null,"Evidence:"]
[null,null,null,"b","Part C and 619 state staff or representatives support (e.g. through stipends, transportation, information and preparation, convenient time and location, mentoring, FTE, consulting fee) family members’ active roles on councils, committees, and task forces to allow their full participation and input into system decisions related to areas such as policies, training and TA, monitoring, and program improvement.",null,null,null,null,null,"Element Rating:",null,null,null,null,null,null,null,0,{"$f":"IFERROR(VLOOKUP(L75,#REF!,2,FALSE),\"\")","v":""},1,null,null,null,null,null,null,"Part C and 619 state staff or representatives support (e.g. through stipends, transportation, information and preparation, convenient time and location, mentoring, FTE, consulting fee) family members’ active roles on councils, committees, and task forces to allow their full participation and input into system decisions related to areas such as policies, training and TA, monitoring, and program improvement.",{"$f":"K75","v":"Element Rating:"}]
[null,null,null,null,"Evidence:",null,null,null,null,null,null,null,null,null,null,null,null,null,{"$f":"IF(E76=\"Evidence:\",1,0)","v":1},null,1,null,null,null,null,null,null,{"$f":"E76&F76","v":"Evidence:"}]
[null,null,null,"c","There are ongoing system wide efforts to recruit families that are representative of the demographics of the state and local communities and support their leadership development.",null,null,null,null,null,"Element Rating:",null,null,null,null,null,null,null,0,{"$f":"IFERROR(VLOOKUP(L77,#REF!,2,FALSE),\"\")","v":""},{"$f":"IF(LEFT(D77,2)=\"QI\",0,1)","v":1},null,null,null,null,null,null,"There are ongoing system wide efforts to recruit families that are representative of the demographics of the state and local communities and support their leadership development.",{"$f":"K77","v":"Element Rating:"}]
[null,null,null,null,"Evidence:",null,null,null,null,null,null,null,null,null,null,null,null,null,1,null,1,null,null,null,null,null,null,"Evidence:"]
[null,null,null,"d","There is an ongoing process for evaluating and improving meaningful family engagement in the system.",null,null,null,null,null,"Element Rating:",null,null,null,null,null,null,null,0,{"$f":"IFERROR(VLOOKUP(L79,#REF!,2,FALSE),\"\")","v":""},1,null,null,null,null,null,null,"There is an ongoing process for evaluating and improving meaningful family engagement in the system.",{"$f":"K79","v":"Element Rating:"}]
[null,null,null,null,"Evidence:",null,null,null,null,null,null,null,null,null,null,null,null,null,1,null,1,null,null,null,null,null,null,"Evidence:"]
[null,null,null,null,null,null,null,null,null,null,null,null,null,null,null,null,null,null,0,null,1,null,null,null,null,null,null,"",{"$f":"K81","v":0}]
[null,null,null,"QI 6","State leadership advocates for and leverages fiscal and human resources to meet the needs for implementation and oversight of the statewide system and services.",null,null,null,null,null,"QI Rating: ",null,null,null,null,null,null,null,0,"#",0,null,null,null,null,null,null,"State leadership advocates for and leverages fiscal and human resources to meet the needs for implementation and oversight of the statewide system and services.","QI Rating: "]
[null,null,null,"a","State leadership continuously uses information and data to identify fiscal and human resource needs for system implementation and oversight (personnel, data system, monitoring, standards, and finance).",null,null,null,null,null,"Element Rating:",null,null,null,null,null,null,null,0,{"$f":"IFERROR(VLOOKUP(L83,#REF!,2,FALSE),\"\")","v":""},1,null,null,null,null,null,null,"State leadership continuously uses information and data to identify fiscal and human resource needs for system implementation and oversight (personnel, data system, monitoring, standards, and finance).","Element Rating:"]
[null,null,null,null,"Evidence:",null,null,null,null,null,null,null,null,null,null,null,null,null,1,null,1,null,null,null,null,null,null,"Evidence:"]
[null,null,null,"b","State leadership effectively seeks and garners federal, state, and/or local resources to meet the needs of the statewide system.",null,null,null,null,null,"Element Rating:",null,null,null,null,null,null,null,0,{"$f":"IFERROR(VLOOKUP(L85,#REF!,2,FALSE),\"\")","v":""},1,null,null,null,null,null,null,"State leadership effectively seeks and garners federal, state, and/or local resources to meet the needs of the statewide system.",{"$f":"K85","v":"Element Rating:"}]
[null,null,null,null,"Evidence:",null,null,null,null,null,null,null,null,null,null,null,null,null,1,null,1,null,null,null,null,null,null,"Evidence:"]
[null,null,null,"c","State leadership allocates sufficient resources to perform the administrative duties and responsibilities required under IDEA and other state or federal mandates (e.g. Part C and 619 lead agency FTE, proportion of the budget for infrastructure vs. services).",null,null,null,null,null,"Element Rating:",null,null,null,null,null,null,null,0,{"$f":"IFERROR(VLOOKUP(L87,#REF!,2,FALSE),\"\")","v":""},1,null,null,null,null,null,null,"State leadership allocates sufficient resources to perform the administrative duties and responsibilities required under IDEA and other state or federal mandates (e.g. Part C and 619 lead agency FTE, proportion of the budget for infrastructure vs. services).",{"$f":"K87","v":"Element Rating:"}]
[null,null,null,null,"Evidence:",null,null,null,null,null,null,null,null,null,null,null,null,null,1,null,1,null,null,null,null,null,null,"Evidence:"]
[null,null,null,"d","State leadership assists local programs/districts to problem-solve and identify creative strategies to address fiscal and human resource challenges to promote implementation of evidence-based practices.",null,null,null,null,null,"Element Rating:",null,null,null,null,null,null,null,0,{"$f":"IFERROR(VLOOKUP(L89,#REF!,2,FALSE),\"\")","v":""},1,null,null,null,null,null,null,"State leadership assists local programs/districts to problem-solve and identify creative strategies to address fiscal and human resource challenges to promote implementation of evidence-based practices.",{"$f":"K89","v":"Element Rating:"}]
[null,null,null,null,"Evidence:",null,null,null,null,null,null,null,null,null,null,null,null,null,1,null,1,null,null,null,null,null,null,"Evidence:"]
[null,null,null,"e","State leadership seeks and supports opportunities for collaborating with other agencies/community partners to share fiscal and human resources across all early care and education initiatives.",null,null,null,null,null,"Element Rating:",null,null,null,null,null,null,null,0,{"$f":"IFERROR(VLOOKUP(L91,#REF!,2,FALSE),\"\")","v":""},1,null,null,null,null,null,null,"State leadership seeks and supports opportunities for collaborating with other agencies/community partners to share fiscal and human resources across all early care and education initiatives.",{"$f":"K91","v":"Element Rating:"}]
[null,null,null,null,"Evidence:",null,null,null,null,null,null,null,null,null,null,null,null,null,1,null,1,null,null,null,null,null,null,"Evidence:"]
[null,null,null,null,null,null,null,null,null,null,null,null,null,null,null,null,null,null,0,null,1,null,null,null,null,null,null,"",{"$f":"K93","v":0}]
[null,null,null,"QI 7","Leaders use written priorities with corresponding strategic plan(s) and evaluation to drive ongoing system improvement.",null,null,null,null,null,"QI Rating: ",null,null,null,null,null,null,null,0,"#",0,null,null,null,null,null,null,"Leaders use written priorities with corresponding strategic plan(s) and evaluation to drive ongoing system improvement.","QI Rating: "]
[null,null,null,"a","The vision/mission/purpose drives Part C and 619 priorities and strategic plan(s).",null,null,null,null,null,"Element Rating:",null,null,null,null,null,null,null,0,{"$f":"IFERROR(VLOOKUP(L95,#REF!,2,FALSE),\"\")","v":""},1,null,null,null,null,null,null,"The vision/mission/purpose drives Part C and 619 priorities and strategic plan(s).","Element Rating:"]
[null,null,null,null,"Evidence:",null,null,null,null,null,null,null,null,null,null,null,null,null,1,null,1,null,null,null,null,null,null,"Evidence:"]
[null,null,null,"b","The priorities and strategic plan(s) are based on data (e.g. monitoring, data systems, demographic projections) about the system and services.",null,null,null,null,null,"Element Rating:",null,null,null,null,null,null,null,0,{"$f":"IFERROR(VLOOKUP(L97,#REF!,2,FALSE),\"\")","v":""},1,null,null,null,null,null,null,"The priorities and strategic plan(s) are based on data (e.g. monitoring, data systems, demographic projections) about the system and services.",{"$f":"K97","v":"Element Rating:"}]
[null,null,null,null,"Evidence:",null,null,null,null,null,null,null,null,null,null,null,null,null,1,null,1,null,null,null,null,null,null,"Evidence:"]
[null,null,null,"c","The priorities and strategic plan(s) are developed with input from all relevant stakeholders.",null,null,null,null,null,"Element Rating:",null,null,null,null,null,null,null,0,{"$f":"IFERROR(VLOOKUP(L99,#REF!,2,FALSE),\"\")","v":""},1,null,null,null,null,null,null,"The priorities and strategic plan(s) are developed with input from all relevant stakeholders.",{"$f":"K99","v":"Element Rating:"}]
[null,null,null,null,"Evidence:",null,null,null,null,null,null,null,null,null,null,null,null,null,1,null,1,null,null,null,null,null,null,"Evidence:"]
[null,null,null,"d","The priorities and strategic plan(s) provide clear and detailed information with regard to short and long term goals, strategies, responsible individuals, timelines, and benchmarks for evaluation.",null,null,null,null,null,"Element Rating:",null,null,null,null,null,null,null,0,{"$f":"IFERROR(VLOOKUP(L101,#REF!,2,FALSE),\"\")","v":""},1,null,null,null,null,null,null,"The priorities and strategic plan(s) provide clear and detailed information with regard to short and long term goals, strategies, responsible individuals, timelines, and benchmarks for evaluation.",{"$f":"K101","v":"Element Rating:"}]
[null,null,null,null,"Evidence:",null,null,null,null,null,null,null,null,null,null,null,null,null,1,null,1,null,null,null,null,null,null,"Evidence:"]
[null,null,null,"e","The priorities and strategic plan(s) are sanctioned and supported by those in authority.",null,null,null,null,null,"Element Rating:",null,null,null,null,null,null,null,0,{"$f":"IFERROR(VLOOKUP(L103,#REF!,2,FALSE),\"\")","v":""},1,null,null,null,null,null,null,"The priorities and strategic plan(s) are sanctioned and supported by those in authority.",{"$f":"K103","v":"Element Rating:"}]
[null,null,null,null,"Evidence:",null,null,null,null,null,null,null,null,null,null,null,null,null,1,null,1,null,null,null,null,null,null,"Evidence:"]
[null,null,null,"f","The priorities and strategic plan(s) are coordinated or aligned across agency partners (Part C, 619 and other early care and education initiatives) to ensure collaborative impact.",null,null,null,null,null,"Element Rating:",null,null,null,null,null,null,null,0,{"$f":"IFERROR(VLOOKUP(L105,#REF!,2,FALSE),\"\")","v":""},1,null,null,null,null,null,null,"The priorities and strategic plan(s) are coordinated or aligned across agency partners (Part C, 619 and other early care and education initiatives) to ensure collaborative impact.",{"$f":"K105","v":"Element Rating:"}]
[null,null,null,null,"Evidence:",null,null,null,null,null,null,null,null,null,null,null,null,null,1,null,1,null,null,null,null,null,null,"Evidence:"]
[null,null,null,"g","The priorities and strategic plan(s) are transparent and communicated with all stakeholders.",null,null,null,null,null,"Element Rating:",null,null,null,null,null,null,null,0,{"$f":"IFERROR(VLOOKUP(L107,#REF!,2,FALSE),\"\")","v":""},1,null,null,null,null,null,null,"The priorities and strategic plan(s) are transparent and communicated with all stakeholders.",{"$f":"K107","v":"Element Rating:"}]
[null,null,null,null,"Evidence:",null,null,null,null,null,null,null,null,null,null,null,null,null,{"$f":"IF(E108=\"Evidence:\",1,0)","v":1},null,1,null,null,null,null,null,null,{"$f":"E108&F108","v":"Evidence:"}]
[null,null,null,"h","Part C and 619 state staff or representatives monitor the progress of the priorities and strategic plans and review and revise them as necessary based on data on progress and changing context.",null,null,null,null,null,"Element Rating:",null,null,null,null,null,null,null,0,{"$f":"IFERROR(VLOOKUP(L109,#REF!,2,FALSE),\"\")","v":""},1,null,null,null,null,null,null,"Part C and 619 state staff or representatives monitor the progress of the priorities and strategic plans and review and revise them as necessary based on data on progress and changing context.",{"$f":"K109","v":"Element Rating:"}]
[null,null,null,null,"Evidence:",null,null,null,null,null,null,null,null,null,null,null,null,null,1,null,1,null,null,null,null,null,null,"Evidence:"]
[null,null,null,null,null,null,null,null,null,null,null,null,null,null,null,null,null,null,0,null,1,null,null,null,null,null,null,"",{"$f":"K111","v":0}]
[null,null,null,"QI 8","Part C and 619 state staff or representatives use and promote strategies that facilitate clear communication and collaboration, and build and maintain relationships between and among Part C and Section 619 stakeholders and partners.",null,null,null,null,null,"QI Rating: ",null,null,null,null,null,null,null,0,"#",0,null,null,null,null,null,null,"Part C and 619 state staff or representatives use and promote strategies that facilitate clear communication and collaboration, and build and maintain relationships between and among Part C and Section 619 stakeholders and partners.","QI Rating: "]
[null,null,null,"a","A written formal communication process is in place that includes multi-level strategies detailing how information is shared, input is received, and responses are given (feedback loops) with stakeholders and partners at all levels of the system.",null,null,null,null,null,"Element Rating:",null,null,null,null,null,null,null,0,{"$f":"IFERROR(VLOOKUP(L113,#REF!,2,FALSE),\"\")","v":""},1,null,null,null,null,null,null,"A written formal communication process is in place that includes multi-level strategies detailing how information is shared, input is received, and responses are given (feedback loops) with stakeholders and partners at all levels of the system.","Element Rating:"]
[null,null,null,null,"Evidence:",null,null,null,null,null,null,null,null,null,null,null,null,null,1,null,1,null,null,null,null,null,null,"Evidence:"]
[null,null,null,"b","Part C and 619 state staff or representatives monitor progress of the written communication process, reviewing and revising it as necessary, based on data on progress and changing context.",null,null,null,null,null,"Element Rating:",null,null,null,null,null,null,null,0,{"$f":"IFERROR(VLOOKUP(L115,#REF!,2,FALSE),\"\")","v":""},1,null,null,null,null,null,null,"Part C and 619 state staff or representatives monitor progress of the written communication process, reviewing and revising it as necessary, based on data on progress and changing context.",{"$f":"K115","v":"Element Rating:"}]
[null,null,null,null,"Evidence:",null,null,null,null,null,null,null,null,null,null,null,null,null,1,null,1,null,null,null,null,null,null,"Evidence:"]
[null,null,null,"c","Leaders use and encourage strategies that promote frank, respectful discussions and facilitate the development and maintenance of long-term collaborative relationships across agencies and partners.",null,null,null,null,null,"Element Rating:",null,null,null,null,null,null,null,0,{"$f":"IFERROR(VLOOKUP(L117,#REF!,2,FALSE),\"\")","v":""},1,null,null,null,null,null,null,"Leaders use and encourage strategies that promote frank, respectful discussions and facilitate the development and maintenance of long-term collaborative relationships across agencies and partners.",{"$f":"K117","v":"Element Rating:"}]
[null,null,null,null,"Evidence:",null,null,null,null,null,null,null,null,null,null,null,null,null,1,null,1,null,null,null,null,null,null,"Evidence:"]
[null,null,null,"d","Leaders continuously gather and use information from stakeholders and partners at all levels of the system to inform decisions, influence state policy, and improve the system.",null,null,null,null,null,"Element Rating:",null,null,null,null,null,null,null,0,{"$f":"IFERROR(VLOOKUP(L119,#REF!,2,FALSE),\"\")","v":""},1,null,null,null,null,null,null,"Leaders continuously gather and use information from stakeholders and partners at all levels of the system to inform decisions, influence state policy, and improve the system.",{"$f":"K119","v":"Element Rating:"}]
[null,null,null,null,"Evidence:",null,null,null,null,null,null,null,null,null,null,null,null,null,1,null,1,null,null,null,null,null,null,"Evidence:"]
[null,null,null,"e","Leaders regularly inform legislators, funders and public/private partners about the benefits and accomplishments of Part C and 619, and the continuing needs of the system related to the strategic plan.",null,null,null,null,null,"Element Rating:",null,null,null,null,null,null,null,0,{"$f":"IFERROR(VLOOKUP(L121,#REF!,2,FALSE),\"\")","v":""},1,null,null,null,null,null,null,"Leaders regularly inform legislators, funders and public/private partners about the benefits and accomplishments of Part C and 619, and the continuing needs of the system related to the strategic plan.",{"$f":"K121","v":"Element Rating:"}]
[null,null,null,null,"Evidence:",null,null,null,null,null,null,null,null,null,null,null,null,null,1,null,1,null,null,null,null,null,null,"Evidence:"]
[null,null,null,"f","Leaders implement an effective public awareness campaign to ensure families and referral sources are aware of the benefits of program and how to access services.",null,null,null,null,null,"Element Rating:",null,null,null,null,null,null,null,0,{"$f":"IFERROR(VLOOKUP(L123,#REF!,2,FALSE),\"\")","v":""},1,null,null,null,null,null,null,"Leaders implement an effective public awareness campaign to ensure families and referral sources are aware of the benefits of program and how to access services.",{"$f":"K123","v":"Element Rating:"}]
[null,null,null,null,"Evidence:",null,null,null,null,null,null,null,null,null,null,null,null,null,1,null,1,null,null,null,null,null,null,"Evidence:"]
[null,null,null,null,null,null,null,null,null,null,null,null,null,null,null,null,null,null,null,null,null,null,null,null,null,null,null,""]

{"sheet":"FN","index":4,"n_rows":162,"n_cols":33,"rows_kept":162,"cut":false,"hidden":false,"merged":[[6,4,6,5],[6,8,6,13],[7,4,7,5],[7,8,7,13],[8,4,8,5],[8,8,8,13],[2,3,2,5],[3,4,3,5],[4,4,4,5],[4,7,4,13],[5,4,5,5],[5,8,5,13],[12,19,13,19],[13,5,13,8],[14,4,14,8],[14,10,15,10],[14,19,15,19],[15,5,15,8],[8,15,8,17],[9,4,9,5],[11,4,11,8],[12,4,12,8],[12,10,13,10],[20,4,20,8],[20,10,21,10],[20,19,21,19],[21,5,21,8],[18,4,18,8],[18,10,19,10],[18,19,19,19],[19,5,19,8],[16,4,16,8],[16,10,17,10],[16,19,17,19],[17,5,17,8],[24,4,24,8],[24,10,25,10],[26,19,27,19],[27,5,27,8],[24,19,25,19],[25,5,25,8],[26,4,26,8],[26,10,27,10],[22,4,22,8],[22,10,23,10],[22,19,23,19],[23,5,23,8],[36,19,37,19],[37,5,37,8],[38,4,38,8],[38,10,39,10],[43,5,43,8],[36,4,36,8],[36,10,37,10],[39,5,39,8],[32,19,33,19],[33,5,33,8],[34,4,34,8],[34,10,35,10],[32,4,32,8],[32,10,33,10],[34,19,35,19],[35,5,35,8],[44,19,45,19],[45,5,45,8],[46,4,46,8],[46,10,47,10],[50,19,51,19],[51,5,51,8],[44,4,44,8],[44,10,45,10],[42,4,42,8],[42,10,43,10],[54,4,54,8],[54,10,55,10],[54,19,55,19],[55,5,55,8],[52,4,52,8],[52,10,53,10],[52,19,53,19],[53,5,53,8],[47,5,47,8],[50,4,50,8],[50,10,51,10],[62,19,63,19],[63,5,63,8],[64,4,64,8],[64,10,65,10],[62,4,62,8],[62,10,63,10],[61,4,61,8],[56,19,57,19],[57,5,57,8],[58,4,58,8],[58,10,59,10],[56,4,56,8],[56,10,57,10],[58,19,59,19],[59,5,59,8],[73,5,73,8],[74,4,74,8],[74,10,75,10],[72,4,72,8],[72,10,73,10],[66,19,67,19],[67,5,67,8],[64,19,65,19],[65,5,65,8],[66,4,66,8],[66,10,67,10],[82,4,82,8],[82,10,83,10],[79,5,79,8],[76,19,77,19],[77,5,77,8],[78,4,78,8],[78,10,79,10],[75,5,75,8],[76,4,76,8],[76,10,77,10],[114,4,114,8],[114,10,115,10],[104,19,105,19],[105,5,105,8],[106,4,106,8],[106,10,107,10],[104,4,104,8],[104,10,105,10],[100,19,101,19],[101,5,101,8],[102,4,102,8],[102,10,103,10],[100,4,100,8],[100,10,101,10],[102,19,103,19],[103,5,103,8],[122,19,123,19],[123,5,123,8],[122,4,122,8],[122,10,123,10],[118,4,118,8],[118,10,119,10],[29,4,29,8],[30,4,30,8],[31,5,31,8],[41,4,41,8],[48,4,48,8],[49,5,49,8],[120,19,121,19],[121,5,121,8],[118,19,119,19],[119,5,119,8],[120,4,120,8],[120,10,121,10],[116,19,117,19],[117,5,117,8],[114,19,115,19],[115,5,115,8],[116,4,116,8],[116,10,117,10],[99,4,99,8],[110,4,110,8],[111,5,111,8],[113,4,113,8],[109,5,109,8],[107,5,107,8],[108,4,108,8],[94,4,94,8],[69,4,69,8],[70,4,70,8],[71,5,71,8],[80,4,80,8],[81,5,81,8],[85,4,85,8],[97,5,97,8],[95,5,95,8],[96,4,96,8],[90,4,90,8],[91,5,91,8],[87,5,87,8],[88,4,88,8],[86,4,86,8],[89,5,89,8],[83,5,83,8],[159,5,159,8],[160,4,160,8],[30,10,31,10],[70,10,71,10],[92,10,93,10],[124,10,125,10],[130,10,131,10],[150,4,150,8],[151,5,151,8],[152,4,152,8],[153,5,153,8],[154,4,154,8],[155,5,155,8],[144,4,144,8],[145,5,145,8],[146,4,146,8],[147,5,147,8],[148,4,148,8],[149,5,149,8],[137,5,137,8],[138,4,138,8],[139,5,139,8],[140,4,140,8],[141,5,141,8],[30,19,31,19],[48,10,49,10],[48,19,49,19],[46,19,47,19],[42,19,43,19],[38,19,39,19],[156,4,156,8],[157,5,157,8],[158,4,158,8],[143,4,143,8],[131,5,131,8],[132,4,132,8],[133,5,133,8],[134,4,134,8],[135,5,135,8],[136,4,136,8],[124,4,124,8],[125,5,125,8],[127,4,127,8],[128,4,128,8],[129,5,129,8],[130,4,130,8],[92,4,92,8],[93,5,93,8],[92,19,93,19],[110,10,111,10],[110,19,111,19],[108,19,109,19],[106,19,107,19],[108,10,109,10],[70,19,71,19],[80,10,81,10],[80,19,81,19],[78,19,79,19],[74,19,75,19],[72,19,73,19],[94,10,95,10],[96,19,97,19],[94,19,95,19],[96,10,97,10],[90,10,91,10],[90,19,91,19],[86,19,87,19],[88,10,89,10],[86,10,87,10],[88,19,89,19],[82,19,83,19],[138,10,139,10],[134,19,135,19],[136,10,137,10],[136,19,137,19],[134,10,135,10],[130,19,131,19],[132,10,133,10],[132,19,133,19],[124,19,125,19],[128,10,129,10],[128,19,129,19],[6,32,7,37],[8,32,8,37],[161,5,161,8],[160,19,161,19],[160,10,161,10],[156,19,157,19],[158,10,159,10],[158,19,159,19],[156,10,157,10],[152,19,153,19],[154,10,155,10],[154,19,155,19],[152,10,153,10],[148,19,149,19],[150,10,151,10],[150,19,151,19],[148,10,149,10],[144,19,145,19],[146,10,147,10],[146,19,147,19],[144,10,145,10],[138,19,139,19],[140,10,141,10],[140,19,141,19]]}
[null,null,null,"Finance",null,null,null,null,null,null,null,null,null,null,null,null,null,null,null,null,null,null,null,null,null,null,null,{"$f":"E1&F1","v":""}]
[null,null,null,null,null,null,null,null,null,null,null,null,null,null,null,null,null,null,null,null,null,null,null,null,null,null,null,""]
[null,null,null,"Quality Indicator Rating (Calculated)",null,null,null,null,null,null,null,null,null,null,null,null,null,null,null,null,null,null,null,null,null,null,null,""]
[null,null,null,1,"None of the elements is yet planned or in place.  ",null,null,null,null,null,null,null,null,null,null,null,null,null,null,null,null,null,null,null,null,null,null,"None of the elements is yet planned or in place.  "]
[null,null,null,2,"Most of the elements are not yet planned or in place. ",null,null,"Element of Quality Rating (EQR) [Imported from T1, T2, T3]",null,null,null,null,null,null,null,null,null,null,null,null,null,null,null,null,null,null,null,"Most of the elements are not yet planned or in place. "]
[null,null,null,3,"Some elements are in place; a few may be fully implemented.",null,null,1,"No - element not in place and not planning to work on it at this time",null,null,null,null,null,null,null,null,null,null,null,null,null,null,null,null,null,null,"Some elements are in place; a few may be fully implemented."]
[null,null,null,4,"At least half of the elements are in place; a few may be fully implemented.",null,null,2,"No - element not in place but planning to work on it or getting started",null,null,null,null,null,null,null,null,null,null,null,null,null,null,null,null,null,null,"At least half of the elements are in place; a few may be fully implemented.",null,null,null,null,{"$f":"IF(ISERROR(FIND(\"Subcomponent\",D1)),D1,\"DS: \"&MID(D1,18,99))","v":"Finance"}]
[null,null,null,5,"At least half of the elements are in place; some are fully implemented.",null,null,3,"Yes - element partially implemented",null,null,null,null,null,null,null,null,null,null,null,null,null,null,null,null,null,null,"At least half of the elements are in place; some are fully implemented."]
[null,null,null,6,"At least half of the elements are fully implemented; the rest are partially implemented.",null,null,4,"Yes - element fully implemented",null,null,null,null,null,null,"PRIORITY",null,null,null,null,null,null,null,null,null,null,null,"At least half of the elements are fully implemented; the rest are partially implemented.",null,null,null,null,"Quality Indicator Ratings"]
[null,null,null,7,"All elements are fully implemented.",null,null,null,null,null,null,"TIME1","TIME2","TIME3",null,"TIME1","TIME2","TIME3",null,null,null,null,null,null,null,null,null,"All elements are fully implemented."]
[null,null,{"$f":"MID(CELL(\"Filename\",C1),FIND(\"]\",CELL(\"Filename\",C1))+1,255)","v":"FN"},null,null,null,null,null,null,null,"Date:",null,null,null,null,null,null,null,null,null,null,null,null,null,null,null,null,""]
[null,null,null,"QI 1","Part C and Section 619 state staff conduct finance planning to identify adequate resources at the state, and regional and/or local levels to meet program infrastructure and service delivery needs.",null,null,null,null,null,"QI Rating: ",null,null,null,null,null,null,null,{"$f":"IF(E12=\"Evidence:\",1,0)","v":0},"#",{"$f":"IF(LEFT(D12,2)=\"QI\",0,1)","v":0},null,null,null,null,null,null,"Part C and Section 619 state staff conduct finance planning to identify adequate resources at the state, and regional and/or local levels to meet program infrastructure and service delivery needs.",{"$f":"K12","v":"QI Rating: "}]
[null,null,null,"a","Finance planning uses demographic information of children potentially eligible for the IDEA program and their eligibility for other early care and education programs/funding streams (e.g., Title I, Early/Head Start, state Pre-K) to project the amount of financial resources needed over time and determine how and which resources to access.",null,null,null,null,null,"Element Rating:",null,null,null,null,null,null,null,0,{"$f":"IFERROR(VLOOKUP(L13,#REF!,2,FALSE),\"\")","v":""},{"$f":"IF(LEFT(D13,2)=\"QI\",0,1)","v":1},null,null,null,null,null,null,"Finance planning uses demographic information of children potentially eligible for the IDEA program and their eligibility for other early care and education programs/funding streams (e.g., Title I, Early/Head Start, state Pre-K) to project the amount of financial resources needed over time and determine how and which resources to access.",{"$f":"K13","v":"Element Rating:"}]
[null,null,null,null,"Evidence:",null,null,null,null,null,null,null,null,null,null,null,null,null,1,null,1,null,null,null,null,null,null,"Evidence:",0]
[null,null,null,"b","Finance planning includes a review of program costs, projected revenues and expenditures, and estimated need to garner the resources necessary to support and sustain the system.",null,null,null,null,null,"Element Rating:",null,null,null,null,null,null,null,0,{"$f":"IFERROR(VLOOKUP(L15,#REF!,2,FALSE),\"\")","v":""},1,null,null,null,null,null,null,"Finance planning includes a review of program costs, projected revenues and expenditures, and estimated need to garner the resources necessary to support and sustain the system.","Element Rating:"]
[null,null,null,null,"Evidence:",null,null,null,null,null,null,null,null,null,null,null,null,null,1,null,1,null,null,null,null,null,null,"Evidence:",0]
[null,null,null,"c","Part C and Section 619 state staff conduct fiscal mapping of federal, state, local, and private resources to better connect existing funding sources, identify opportunities for cost savings and assure that all potential resources are accessed.",null,null,null,null,null,"Element Rating:",null,null,null,null,null,null,null,0,{"$f":"IFERROR(VLOOKUP(L17,#REF!,2,FALSE),\"\")","v":""},1,null,null,null,null,null,null,"Part C and Section 619 state staff conduct fiscal mapping of federal, state, local, and private resources to better connect existing funding sources, identify opportunities for cost savings and assure that all potential resources are accessed.","Element Rating:"]
[null,null,null,null,"Evidence:",null,null,null,null,null,null,null,null,null,null,null,null,null,1,null,1,null,null,null,null,null,null,"Evidence:",0]
[null,null,null,"d","Family leaders, key partners (e.g., Early/Head Start, state Pre-K, Medicaid) and program and fiscal staff, who are knowledgeable about specific funding streams, are involved in discussions and decision-making.",null,null,null,null,null,"Element Rating:",null,null,null,null,null,null,null,0,{"$f":"IFERROR(VLOOKUP(L19,#REF!,2,FALSE),\"\")","v":""},1,null,null,null,null,null,null,"Family leaders, key partners (e.g., Early/Head Start, state Pre-K, Medicaid) and program and fiscal staff, who are knowledgeable about specific funding streams, are involved in discussions and decision-making.","Element Rating:"]
[null,null,null,null,"Evidence:",null,null,null,null,null,null,null,null,null,null,null,null,null,1,null,1,null,null,null,null,null,null,"Evidence:",0]
[null,null,null,"e","Part C and Section 619 state staff conduct a cost-benefit analysis of potential funding sources and develop clear, detailed financing strategies, specifying which funding stream(s) would be most beneficial to pursue for what purpose/service or function.",null,null,null,null,null,"Element Rating:",null,null,null,null,null,null,null,0,{"$f":"IFERROR(VLOOKUP(L21,#REF!,2,FALSE),\"\")","v":""},1,null,null,null,null,null,null,"Part C and Section 619 state staff conduct a cost-benefit analysis of potential funding sources and develop clear, detailed financing strategies, specifying which funding stream(s) would be most beneficial to pursue for what purpose/service or function.","Element Rating:"]
[null,null,null,null,"Evidence:",null,null,null,null,null,null,null,null,null,null,null,null,null,1,null,1,null,null,null,null,null,null,"Evidence:",0]
[null,null,null,"f","A clearly written finance plan aligns with the program priorities and strategic plan(s), the program public statements of vision/mission and/or purpose, and articulates measurable goals and activities.",null,null,null,null,null,"Element Rating:",null,null,null,null,null,null,null,0,{"$f":"IFERROR(VLOOKUP(L23,#REF!,2,FALSE),\"\")","v":""},1,null,null,null,null,null,null,"A clearly written finance plan aligns with the program priorities and strategic plan(s), the program public statements of vision/mission and/or purpose, and articulates measurable goals and activities.","Element Rating:"]
[null,null,null,null,"Evidence:",null,null,null,null,null,null,null,null,null,null,null,null,null,1,null,1,null,null,null,null,null,null,"Evidence:",0]
[null,null,null,"g","The finance plan is available and effectively communicated to stakeholders, including state and local administrators, fiscal staff, funding partners, practitioners, and families.",null,null,null,null,null,"Element Rating:",null,null,null,null,null,null,null,0,{"$f":"IFERROR(VLOOKUP(L25,#REF!,2,FALSE),\"\")","v":""},1,null,null,null,null,null,null,"The finance plan is available and effectively communicated to stakeholders, including state and local administrators, fiscal staff, funding partners, practitioners, and families.","Element Rating:"]
[null,null,null,null,"Evidence:",null,null,null,null,null,null,null,null,null,null,null,null,null,1,null,1,null,null,null,null,null,null,"Evidence:",0]
[null,null,null,"h","The finance plan is reviewed and revised, as necessary, including identification of additional financial resources and unexpected fiscal changes to ensure that sufficient funding is available to meet changing needs (e.g., demographics, political and economic context).",null,null,null,null,null,"Element Rating:",null,null,null,null,null,null,null,0,{"$f":"IFERROR(VLOOKUP(L27,#REF!,2,FALSE),\"\")","v":""},1,null,null,null,null,null,null,"The finance plan is reviewed and revised, as necessary, including identification of additional financial resources and unexpected fiscal changes to ensure that sufficient funding is available to meet changing needs (e.g., demographics, political and economic context).","Element Rating:"]
[null,null,null,null,"Evidence:",null,null,null,null,null,null,null,null,null,null,null,null,null,1,null,1,null,null,null,null,null,null,"Evidence:",0]
[null,null,null,null,null,null,null,null,null,null,null,null,null,null,null,null,null,null,0,null,1,null,null,null,null,null,null,"",0]
[null,null,null,"QI 2","State and regional and/or local system entities use strategic finance planning to forecast a long-term and annual proposed budget to ensure a strong base of financial support is formed.",null,null,null,null,null,"QI Rating: ",null,null,null,null,null,null,null,0,"#",0,null,null,null,null,null,null,"State and regional and/or local system entities use strategic finance planning to forecast a long-term and annual proposed budget to ensure a strong base of financial support is formed.","QI Rating: "]
[null,null,null,"a","A proposed budget is developed to forecast the amount of funds needed from each funding source to operate the system for the year as well as a projection of the funds needed to operate the system in the long-term.",null,null,null,null,null,"Element Rating:",null,null,null,null,null,null,null,0,{"$f":"IFERROR(VLOOKUP(L31,#REF!,2,FALSE),\"\")","v":""},1,null,null,null,null,null,null,"A proposed budget is developed to forecast the amount of funds needed from each funding source to operate the system for the year as well as a projection of the funds needed to operate the system in the long-term.","Element Rating:"]
[null,null,null,null,"Evidence:",null,null,null,null,null,null,null,null,null,null,null,null,null,1,null,1,null,null,null,null,null,null,"Evidence:",0]
[null,null,null,"b","Trend analyses of children and families served, services provided and funds expended  are conducted to predict future budget and personnel needs for use in short and long term planning.",null,null,null,null,null,"Element Rating:",null,null,null,null,null,null,null,0,{"$f":"IFERROR(VLOOKUP(L33,#REF!,2,FALSE),\"\")","v":""},1,null,null,null,null,null,null,"Trend analyses of children and families served, services provided and funds expended  are conducted to predict future budget and personnel needs for use in short and long term planning.","Element Rating:"]
[null,null,null,null,"Evidence:",null,null,null,null,null,null,null,null,null,null,null,null,null,1,null,1,null,null,null,null,null,null,"Evidence:",0]
[null,null,null,"c","State and regional and/or local system entities have adequate budgetary control and flexibility regarding use of funds and resources to support system implementation and improvement.",null,null,null,null,null,"Element Rating:",null,null,null,null,null,null,null,0,{"$f":"IFERROR(VLOOKUP(L35,#REF!,2,FALSE),\"\")","v":""},1,null,null,null,null,null,null,"State and regional and/or local system entities have adequate budgetary control and flexibility regarding use of funds and resources to support system implementation and improvement.","Element Rating:"]
[null,null,null,null,"Evidence:",null,null,null,null,null,null,null,null,null,null,null,null,null,1,null,1,null,null,null,null,null,null,"Evidence:",0]
[null,null,null,"d","The proposed budget aligns with the public statements of vision/mission and/or purpose of the broader early care and education system.",null,null,null,null,null,"Element Rating:",null,null,null,null,null,null,null,0,{"$f":"IFERROR(VLOOKUP(L37,#REF!,2,FALSE),\"\")","v":""},1,null,null,null,null,null,null,"The proposed budget aligns with the public statements of vision/mission and/or purpose of the broader early care and education system.","Element Rating:"]
[null,null,null,null,"Evidence:",null,null,null,null,null,null,null,null,null,null,null,null,null,1,null,1,null,null,null,null,null,null,"Evidence:",0]
[null,null,null,"e","The Governor, legislators and state leaders actively support budget appropriation requests from the system.",null,null,null,null,null,"Element Rating:",null,null,null,null,null,null,null,0,{"$f":"IFERROR(VLOOKUP(L39,#REF!,2,FALSE),\"\")","v":""},1,null,null,null,null,null,null,"The Governor, legislators and state leaders actively support budget appropriation requests from the system.","Element Rating:"]
[null,null,null,null,"Evidence:",null,null,null,null,null,null,null,null,null,null,null,null,null,1,null,1,null,null,null,null,null,null,"Evidence:",0]
[null,null,null,null,null,null,null,null,null,null,null,null,null,null,null,null,null,null,0,null,1,null,null,null,null,null,null,"",0]
[null,null,null,"QI 3","State and regional and/or local system entities have access to fiscal data for program planning, budget development and required reporting.",null,null,null,null,null,"QI Rating: ",null,null,null,null,null,null,null,0,"#",0,null,null,null,null,null,null,"State and regional and/or local system entities have access to fiscal data for program planning, budget development and required reporting.","QI Rating: "]
[null,null,null,"a","A coordinated state-wide means of collecting timely and accurate fiscal data on revenue and expenditures, by specific fund source, is in place with the ability to disaggregate fiscal and program data by region and/or program.",null,null,null,null,null,"Element Rating:",null,null,null,null,null,null,null,0,{"$f":"IFERROR(VLOOKUP(L43,#REF!,2,FALSE),\"\")","v":""},1,null,null,null,null,null,null,"A coordinated state-wide means of collecting timely and accurate fiscal data on revenue and expenditures, by specific fund source, is in place with the ability to disaggregate fiscal and program data by region and/or program.","Element Rating:"]
[null,null,null,null,"Evidence:",null,null,null,null,null,null,null,null,null,null,null,null,null,1,null,1,null,null,null,null,null,null,"Evidence:",0]
[null,null,null,"b","Data checks and other mechanisms are in place to ensure the accuracy and reliability of fiscal data.",null,null,null,null,null,"Element Rating:",null,null,null,null,null,null,null,0,{"$f":"IFERROR(VLOOKUP(L45,#REF!,2,FALSE),\"\")","v":""},1,null,null,null,null,null,null,"Data checks and other mechanisms are in place to ensure the accuracy and reliability of fiscal data.","Element Rating:"]
[null,null,null,null,"Evidence:",null,null,null,null,null,null,null,null,null,null,null,null,null,1,null,1,null,null,null,null,null,null,"Evidence:",0]
[null,null,null,"c","Fiscal data are linked to programmatic data (e.g., number of referrals, referral source, child count, units of service) to allow for analysis of the amount of funds spent.",null,null,null,null,null,"Element Rating:",null,null,null,null,null,null,null,0,{"$f":"IFERROR(VLOOKUP(L47,#REF!,2,FALSE),\"\")","v":""},1,null,null,null,null,null,null,"Fiscal data are linked to programmatic data (e.g., number of referrals, referral source, child count, units of service) to allow for analysis of the amount of funds spent.","Element Rating:"]
[null,null,null,null,"Evidence:",null,null,null,null,null,null,null,null,null,null,null,null,null,1,null,1,null,null,null,null,null,null,"Evidence:",0]
[null,null,null,"d","Fiscal reports on distribution and expenditure of funds by specific fund source are generated and shared to inform fiscal and program staff of financial status, to facilitate resource management, and to meet state and federal fiscal reporting requirements.",null,null,null,null,null,"Element Rating:",null,null,null,null,null,null,null,0,{"$f":"IFERROR(VLOOKUP(L49,#REF!,2,FALSE),\"\")","v":""},1,null,null,null,null,null,null,"Fiscal reports on distribution and expenditure of funds by specific fund source are generated and shared to inform fiscal and program staff of financial status, to facilitate resource management, and to meet state and federal fiscal reporting requirements.","Element Rating:"]
[null,null,null,null,"Evidence:",null,null,null,null,null,null,null,null,null,null,null,null,null,1,null,1,null,null,null,null,null,null,"Evidence:",0]
[null,null,null,"e","Training and technical assistance are provided systematically to state, regional and/or local system entities on how to access and use fiscal data.",null,null,null,null,null,"Element Rating:",null,null,null,null,null,null,null,0,{"$f":"IFERROR(VLOOKUP(L51,#REF!,2,FALSE),\"\")","v":""},1,null,null,null,null,null,null,"Training and technical assistance are provided systematically to state, regional and/or local system entities on how to access and use fiscal data.","Element Rating:"]
[null,null,null,null,"Evidence:",null,null,null,null,null,null,null,null,null,null,null,null,null,1,null,1,null,null,null,null,null,null,"Evidence:",0]
[null,null,null,"f","Part C and Section 619 state staff make fiscal and programmatic data readily available in a variety of formats that can be used by stakeholders (e.g., ICC, SAC, legislators and the general public) for advocacy in the procurement of funds.",null,null,null,null,null,"Element Rating:",null,null,null,null,null,null,null,0,{"$f":"IFERROR(VLOOKUP(L53,#REF!,2,FALSE),\"\")","v":""},1,null,null,null,null,null,null,"Part C and Section 619 state staff make fiscal and programmatic data readily available in a variety of formats that can be used by stakeholders (e.g., ICC, SAC, legislators and the general public) for advocacy in the procurement of funds.","Element Rating:"]
[null,null,null,null,"Evidence:",null,null,null,null,null,null,null,null,null,null,null,null,null,1,null,1,null,null,null,null,null,null,"Evidence:",0]
[null,null,null,"g","Part C and Section 619 state staff make fiscal data readily available in a variety of formats that can be used by state, regional and/or local structures for accountability and program  improvement.",null,null,null,null,null,"Element Rating:",null,null,null,null,null,null,null,0,{"$f":"IFERROR(VLOOKUP(L55,#REF!,2,FALSE),\"\")","v":""},1,null,null,null,null,null,null,"Part C and Section 619 state staff make fiscal data readily available in a variety of formats that can be used by state, regional and/or local structures for accountability and program  improvement.","Element Rating:"]
[null,null,null,null,"Evidence:",null,null,null,null,null,null,null,null,null,null,null,null,null,1,null,1,null,null,null,null,null,null,"Evidence:",0]
[null,null,null,"h","Relevant fiscal data (e.g., expenses by service, region and/or local entity, and fund source) are shared among early care and education programs to assess efficient and effective use of resources and to inform budgetary decisions in the alignment and coordination of early care and education systems.",null,null,null,null,null,"Element Rating:",null,null,null,null,null,null,null,0,{"$f":"IFERROR(VLOOKUP(L57,#REF!,2,FALSE),\"\")","v":""},1,null,null,null,null,null,null,"Relevant fiscal data (e.g., expenses by service, region and/or local entity, and fund source) are shared among early care and education programs to assess efficient and effective use of resources and to inform budgetary decisions in the alignment and coordination of early care and education systems.","Element Rating:"]
[null,null,null,null,"Evidence:",null,null,null,null,null,null,null,null,null,null,null,null,null,1,null,1,null,null,null,null,null,null,"Evidence:",0]
[null,null,null,"i","A systematic process is in place to evaluate and determine whether the means of collecting and disseminating fiscal data is providing data that is useful to stakeholders.",null,null,null,null,null,"Element Rating:",null,null,null,null,null,null,null,0,{"$f":"IFERROR(VLOOKUP(L59,#REF!,2,FALSE),\"\")","v":""},1,null,null,null,null,null,null,"A systematic process is in place to evaluate and determine whether the means of collecting and disseminating fiscal data is providing data that is useful to stakeholders.","Element Rating:"]
[null,null,null,null,"Evidence:",null,null,null,null,null,null,null,null,null,null,null,null,null,1,null,1,null,null,null,null,null,null,"Evidence:",0]
[null,null,null,null,null,null,null,null,null,null,null,null,null,null,null,null,null,null,0,null,1,null,null,null,null,null,null,"",0]
[null,null,null,"QI 4","State and regional and/or local system entities use fiscal data to manage the budget.",null,null,null,null,null,"QI Rating: ",null,null,null,null,null,null,null,0,"#",0,null,null,null,null,null,null,"State and regional and/or local system entities use fiscal data to manage the budget.","QI Rating: "]
[null,null,null,"a","Fiscal data on revenues, planned expenses and actual expenditures are tracked and used on an ongoing basis to manage fiscal resources.",null,null,null,null,null,"Element Rating:",null,null,null,null,null,null,null,0,{"$f":"IFERROR(VLOOKUP(L63,#REF!,2,FALSE),\"\")","v":""},1,null,null,null,null,null,null,"Fiscal data on revenues, planned expenses and actual expenditures are tracked and used on an ongoing basis to manage fiscal resources.","Element Rating:"]
[null,null,null,null,"Evidence:",null,null,null,null,null,null,null,null,null,null,null,null,null,1,null,1,null,null,null,null,null,null,"Evidence:",0]
[null,null,null,"b","Fiscal data are used to inform budget development, adjustment and re-distribution of funds and resources based on service and program needs.",null,null,null,null,null,"Element Rating:",null,null,null,null,null,null,null,0,{"$f":"IFERROR(VLOOKUP(L65,#REF!,2,FALSE),\"\")","v":""},1,null,null,null,null,null,null,{"$f":"E65&F65","v":"Fiscal data are used to inform budget development, adjustment and re-distribution of funds and resources based on service and program needs."},"Element Rating:"]
[null,null,null,null,"Evidence:",null,null,null,null,null,null,null,null,null,null,null,null,null,1,null,1,null,null,null,null,null,null,"Evidence:",0]
[null,null,null,"c","Fiscal data are sources of information that drive program improvement and effective utilization of funding sources.",null,null,null,null,null,"Element Rating:",null,null,null,null,null,null,null,0,{"$f":"IFERROR(VLOOKUP(L67,#REF!,2,FALSE),\"\")","v":""},1,null,null,null,null,null,null,"Fiscal data are sources of information that drive program improvement and effective utilization of funding sources.","Element Rating:"]
[null,null,null,null,"Evidence:",null,null,null,null,null,null,null,null,null,null,null,null,null,1,null,1,null,null,null,null,null,null,"Evidence:",0]
[null,null,null,null,null,null,null,null,null,null,null,null,null,null,null,null,null,null,0,null,1,null,null,null,null,null,null,"",0]
[null,null,null,"QI 5","State and regional and/or local system entities secure funds and resources so that funds can be allocated and distributed to meet the needs of the system in accordance with the finance plan.",null,null,null,null,null,"QI Rating: ",null,null,null,null,null,null,null,0,"#",0,null,null,null,null,null,null,"State and regional and/or local system entities secure funds and resources so that funds can be allocated and distributed to meet the needs of the system in accordance with the finance plan.","QI Rating: "]
[null,null,null,"a","State and regional and/or local fiscal and programmatic staff are aware of the operating budget that is in place and what funds are available for the system to use.",null,null,null,null,null,"Element Rating:",null,null,null,null,null,null,null,0,{"$f":"IFERROR(VLOOKUP(L71,#REF!,2,FALSE),\"\")","v":""},1,null,null,null,null,null,null,"State and regional and/or local fiscal and programmatic staff are aware of the operating budget that is in place and what funds are available for the system to use.","Element Rating:"]
[null,null,null,null,"Evidence:",null,null,null,null,null,null,null,null,null,null,null,null,null,1,null,1,null,null,null,null,null,null,"Evidence:",0]
[null,null,null,"b","A formal process (e.g., budget line item, designated account number) is in place to ensure that appropriated funds are designated for use only by the system.",null,null,null,null,null,"Element Rating:",null,null,null,null,null,null,null,0,{"$f":"IFERROR(VLOOKUP(L73,#REF!,2,FALSE),\"\")","v":""},1,null,null,null,null,null,null,"A formal process (e.g., budget line item, designated account number) is in place to ensure that appropriated funds are designated for use only by the system.","Element Rating:"]
[null,null,null,null,"Evidence:",null,null,null,null,null,null,null,null,null,null,null,null,null,1,null,1,null,null,null,null,null,null,"Evidence:",0]
[null,null,null,"c","State and regional and/or local entities are informed about legal requirements (e.g., Maintenance of Effort (MOE), system of payments, fiscal accountability), related to accessing and using funds and resources that support programs and services.",null,null,null,null,null,"Element Rating:",null,null,null,null,null,null,null,0,{"$f":"IFERROR(VLOOKUP(L75,#REF!,2,FALSE),\"\")","v":""},1,null,null,null,null,null,null,"State and regional and/or local entities are informed about legal requirements (e.g., Maintenance of Effort (MOE), system of payments, fiscal accountability), related to accessing and using funds and resources that support programs and services.","Element Rating:"]
[null,null,null,null,"Evidence:",null,null,null,null,null,null,null,null,null,null,null,null,null,{"$f":"IF(E76=\"Evidence:\",1,0)","v":1},null,1,null,null,null,null,null,null,"Evidence:",0]
[null,null,null,"d","Families are generally informed about the fiscal process and their fiscal responsibilities.",null,null,null,null,null,"Element Rating:",null,null,null,null,null,null,null,0,{"$f":"IFERROR(VLOOKUP(L77,#REF!,2,FALSE),\"\")","v":""},{"$f":"IF(LEFT(D77,2)=\"QI\",0,1)","v":1},null,null,null,null,null,null,"Families are generally informed about the fiscal process and their fiscal responsibilities.",{"$f":"K77","v":"Element Rating:"}]
[null,null,null,null,"Evidence:",null,null,null,null,null,null,null,null,null,null,null,null,null,1,null,1,null,null,null,null,null,null,"Evidence:",0]
[null,null,null,"e","Families understand their financial obligations, if any, for receiving services as well as the cost of providing services.",null,null,null,null,null,"Element Rating:",null,null,null,null,null,null,null,0,{"$f":"IFERROR(VLOOKUP(L79,#REF!,2,FALSE),\"\")","v":""},1,null,null,null,null,null,null,"Families understand their financial obligations, if any, for receiving services as well as the cost of providing services.","Element Rating:"]
[null,null,null,null,"Evidence:",null,null,null,null,null,null,null,null,null,null,null,null,null,1,null,1,null,null,null,null,null,null,"Evidence:",0]
[null,null,null,"f","Additional funds are secured, as necessary, based on review of demographic, fiscal and program data.",null,null,null,null,null,"Element Rating:",null,null,null,null,null,null,null,0,{"$f":"IFERROR(VLOOKUP(L81,#REF!,2,FALSE),\"\")","v":""},1,null,null,null,null,null,null,"Additional funds are secured, as necessary, based on review of demographic, fiscal and program data.","Element Rating:"]
[null,null,null,null,"Evidence:",null,null,null,null,null,null,null,null,null,null,null,null,null,1,null,1,null,null,null,null,null,null,"Evidence:",0]
[null,null,null,"g","State and regional and/or local administrative and fiscal staff have clearly defined roles and responsibilities for accessing available funds to support the system.",null,null,null,null,null,"Element Rating:",null,null,null,null,null,null,null,0,{"$f":"IFERROR(VLOOKUP(L83,#REF!,2,FALSE),\"\")","v":""},1,null,null,null,null,null,null,"State and regional and/or local administrative and fiscal staff have clearly defined roles and responsibilities for accessing available funds to support the system.","Element Rating:"]
[null,null,null,null,"Evidence:",null,null,null,null,null,null,null,null,null,null,null,null,null,1,null,1,null,null,null,null,null,null,"Evidence:",0]
[null,null,null,null,null,null,null,null,null,null,null,null,null,null,null,null,null,null,0,null,1,null,null,null,null,null,null,"",0]
[null,null,null,"QI 6","Part C and Section 619 state staff coordinate and align resources and funding streams with other state agencies, programs and initiatives in order to improve system effectiveness, implement evidence-based practices and ensure efficient use of resources.",null,null,null,null,null,"QI Rating: ",null,null,null,null,null,null,null,0,"#",0,null,null,null,null,null,null,"Part C and Section 619 state staff coordinate and align resources and funding streams with other state agencies, programs and initiatives in order to improve system effectiveness, implement evidence-based practices and ensure efficient use of resources.","QI Rating: "]
[null,null,null,"a","Collaboration and coordination of resources across state agencies, programs and initiatives  (e.g., early care and education, health) occurs through review and alignment of fiscal and programmatic policies and activities.",null,null,null,null,null,"Element Rating:",null,null,null,null,null,null,null,0,{"$f":"IFERROR(VLOOKUP(L87,#REF!,2,FALSE),\"\")","v":""},1,null,null,null,null,null,null,"Collaboration and coordination of resources across state agencies, programs and initiatives  (e.g., early care and education, health) occurs through review and alignment of fiscal and programmatic policies and activities.","Element Rating:"]
[null,null,null,null,"Evidence:",null,null,null,null,null,null,null,null,null,null,null,null,null,1,null,1,null,null,null,null,null,null,"Evidence:",0]
[null,null,null,"b","Specific mechanisms (e.g., policy, IAs, MOUs, Medicaid state plan amendments, waivers, and guidance) clearly articulate service, programmatic and funding responsibilities.",null,null,null,null,null,"Element Rating:",null,null,null,null,null,null,null,0,{"$f":"IFERROR(VLOOKUP(L89,#REF!,2,FALSE),\"\")","v":""},1,null,null,null,null,null,null,"Specific mechanisms (e.g., policy, IAs, MOUs, Medicaid state plan amendments, waivers, and guidance) clearly articulate service, programmatic and funding responsibilities.","Element Rating:"]
[null,null,null,null,"Evidence:",null,null,null,null,null,null,null,null,null,null,null,null,null,1,null,1,null,null,null,null,null,null,"Evidence:",0]
[null,null,null,"c","Administrative requirements for accessing funding sources are minimized and aligned to reduce burden on regional and/or local entities.",null,null,null,null,null,"Element Rating:",null,null,null,null,null,null,null,0,{"$f":"IFERROR(VLOOKUP(L91,#REF!,2,FALSE),\"\")","v":""},1,null,null,null,null,null,null,"Administrative requirements for accessing funding sources are minimized and aligned to reduce burden on regional and/or local entities.","Element Rating:"]
[null,null,null,null,"Evidence:",null,null,null,null,null,null,null,null,null,null,null,null,null,1,null,1,null,null,null,null,null,null,"Evidence:",0]
[null,null,null,"d","Regional and/or local entities are encouraged to pursue partnerships across agencies, programs and initiatives (e.g., early care and education, health) to leverage resources.",null,null,null,null,null,"Element Rating:",null,null,null,null,null,null,null,0,{"$f":"IFERROR(VLOOKUP(L93,#REF!,2,FALSE),\"\")","v":""},1,null,null,null,null,null,null,"Regional and/or local entities are encouraged to pursue partnerships across agencies, programs and initiatives (e.g., early care and education, health) to leverage resources.","Element Rating:"]
[null,null,null,null,"Evidence:",null,null,null,null,null,null,null,null,null,null,null,null,null,1,null,1,null,null,null,null,null,null,"Evidence:",0]
[null,null,null,"e","Partners across state agencies, programs and initiatives and at all levels of the system clearly communicate on an on-going basis regarding agency responsibilities related to requirements for funding sources.",null,null,null,null,null,"Element Rating:",null,null,null,null,null,null,null,0,{"$f":"IFERROR(VLOOKUP(L95,#REF!,2,FALSE),\"\")","v":""},1,null,null,null,null,null,null,"Partners across state agencies, programs and initiatives and at all levels of the system clearly communicate on an on-going basis regarding agency responsibilities related to requirements for funding sources.","Element Rating:"]
[null,null,null,null,"Evidence:",null,null,null,null,null,null,null,null,null,null,null,null,null,1,null,1,null,null,null,null,null,null,"Evidence:",0]
[null,null,null,"f","There is an ongoing process for reviewing and revising, as necessary, the clear designation of agency roles and responsibilities reflected in state, regional and/or local mechanisms (e.g., policy, IAs, MOUs, Medicaid state plan amendments, waivers, and guidance).",null,null,null,null,null,"Element Rating:",null,null,null,null,null,null,null,0,{"$f":"IFERROR(VLOOKUP(L97,#REF!,2,FALSE),\"\")","v":""},1,null,null,null,null,null,null,"There is an ongoing process for reviewing and revising, as necessary, the clear designation of agency roles and responsibilities reflected in state, regional and/or local mechanisms (e.g., policy, IAs, MOUs, Medicaid state plan amendments, waivers, and guidance).","Element Rating:"]
[null,null,null,null,"Evidence:",null,null,null,null,null,null,null,null,null,null,null,null,null,1,null,1,null,null,null,null,null,null,"Evidence:",0]
[null,null,null,null,null,null,null,null,null,null,null,null,null,null,null,null,null,null,0,null,1,null,null,null,null,null,null,"",0]
[null,null,null,"QI 7","Part C and Section 619 state staff equitably allocate funds to meet the needs of the system, including children and families.",null,null,null,null,null,"QI Rating: ",null,null,null,null,null,null,null,0,"#",0,null,null,null,null,null,null,"Part C and Section 619 state staff equitably allocate funds to meet the needs of the system, including children and families.","QI Rating: "]
[null,null,null,"a","Resource allocation is based on data to address geographic and demographic differences and needs (e.g., cost study, reimbursement rate for services, formula based on critical variables).",null,null,null,null,null,"Element Rating:",null,null,null,null,null,null,null,0,{"$f":"IFERROR(VLOOKUP(L101,#REF!,2,FALSE),\"\")","v":""},1,null,null,null,null,null,null,"Resource allocation is based on data to address geographic and demographic differences and needs (e.g., cost study, reimbursement rate for services, formula based on critical variables).","Element Rating:"]
[null,null,null,null,"Evidence:",null,null,null,null,null,null,null,null,null,null,null,null,null,1,null,1,null,null,null,null,null,null,"Evidence:",0]
[null,null,null,"b","The allocation process is designed to support and fund the implementation of evidence- based practices (e.g., environment, instruction, teaming and collaboration) and high quality programs.",null,null,null,null,null,"Element Rating:",null,null,null,null,null,null,null,0,{"$f":"IFERROR(VLOOKUP(L103,#REF!,2,FALSE),\"\")","v":""},1,null,null,null,null,null,null,"The allocation process is designed to support and fund the implementation of evidence- based practices (e.g., environment, instruction, teaming and collaboration) and high quality programs.","Element Rating:"]
[null,null,null,null,"Evidence:",null,null,null,null,null,null,null,null,null,null,null,null,null,1,null,1,null,null,null,null,null,null,"Evidence:",0]
[null,null,null,"c","The method of fund and resource allocation is predictable, transparent and communicated to stakeholders.",null,null,null,null,null,"Element Rating:",null,null,null,null,null,null,null,0,{"$f":"IFERROR(VLOOKUP(L105,#REF!,2,FALSE),\"\")","v":""},1,null,null,null,null,null,null,"The method of fund and resource allocation is predictable, transparent and communicated to stakeholders.","Element Rating:"]
[null,null,null,null,"Evidence:",null,null,null,null,null,null,null,null,null,null,null,null,null,1,null,1,null,null,null,null,null,null,"Evidence:",0]
[null,null,null,"d","The allocation process facilitates and promotes collaboration and shared resources across early care and education programs (e.g., shared program functions, match dollars).",null,null,null,null,null,"Element Rating:",null,null,null,null,null,null,null,0,{"$f":"IFERROR(VLOOKUP(L107,#REF!,2,FALSE),\"\")","v":""},1,null,null,null,null,null,null,"The allocation process facilitates and promotes collaboration and shared resources across early care and education programs (e.g., shared program functions, match dollars).","Element Rating:"]
[null,null,null,null,"Evidence:",null,null,null,null,null,null,null,null,null,null,null,null,null,1,null,1,null,null,null,null,null,null,"Evidence:",0]
[null,null,null,"e","Data are gathered on an ongoing basis to evaluate if the fund and resource allocation process addresses the needs of the program, including children and families.",null,null,null,null,null,"Element Rating:",null,null,null,null,null,null,null,0,{"$f":"IFERROR(VLOOKUP(L109,#REF!,2,FALSE),\"\")","v":""},1,null,null,null,null,null,null,"Data are gathered on an ongoing basis to evaluate if the fund and resource allocation process addresses the needs of the program, including children and families.","Element Rating:"]
[null,null,null,null,"Evidence:",null,null,null,null,null,null,null,null,null,null,null,null,null,1,null,1,null,null,null,null,null,null,"Evidence:",0]
[null,null,null,"f","The allocation process is reviewed and revised as necessary based upon available data.",null,null,null,null,null,"Element Rating:",null,null,null,null,null,null,null,0,{"$f":"IFERROR(VLOOKUP(L111,#REF!,2,FALSE),\"\")","v":""},1,null,null,null,null,null,null,"The allocation process is reviewed and revised as necessary based upon available data.","Element Rating:"]
[null,null,null,null,"Evidence:",null,null,null,null,null,null,null,null,null,null,null,null,null,1,null,1,null,null,null,null,null,null,"Evidence:",0]
[null,null,null,null,null,null,null,null,null,null,null,null,null,null,null,null,null,null,0,null,1,null,null,null,null,null,null,"",0]
[null,null,null,"QI 8","State and regional and/or local system entities use funds and resources efficiently and effectively to implement high quality programs for meeting the needs of children and families.",null,null,null,null,null,"QI Rating: ",null,null,null,null,null,null,null,0,"#",0,null,null,null,null,null,null,"State and regional and/or local system entities use funds and resources efficiently and effectively to implement high quality programs for meeting the needs of children and families.","QI Rating: "]
[null,null,null,"a","Funds and resources are used in accordance with the state’s vision/mission and/or purpose for the early intervention or early childhood special education system.",null,null,null,null,null,"Element Rating:",null,null,null,null,null,null,null,0,{"$f":"IFERROR(VLOOKUP(L115,#REF!,2,FALSE),\"\")","v":""},1,null,null,null,null,null,null,"Funds and resources are used in accordance with the state’s vision/mission and/or purpose for the early intervention or early childhood special education system.","Element Rating:"]
[null,null,null,null,"Evidence:",null,null,null,null,null,null,null,null,null,null,null,null,null,1,null,1,null,null,null,null,null,null,"Evidence:",0]
[null,null,null,"b","Implementation of fiscal policies and procedures related to using funds and resources for provision of high quality programs is supported through guidance and on-going technical assistance.",null,null,null,null,null,"Element Rating:",null,null,null,null,null,null,null,0,{"$f":"IFERROR(VLOOKUP(L117,#REF!,2,FALSE),\"\")","v":""},1,null,null,null,null,null,null,"Implementation of fiscal policies and procedures related to using funds and resources for provision of high quality programs is supported through guidance and on-going technical assistance.","Element Rating:"]
[null,null,null,null,"Evidence:",null,null,null,null,null,null,null,null,null,null,null,null,null,1,null,1,null,null,null,null,null,null,"Evidence:",0]
[null,null,null,"c","State and regional and/or local funds and resources are prioritized to facilitate active implementation of evidence-based practices (e.g., inclusion, coaching, teaming).",null,null,null,null,null,"Element Rating:",null,null,null,null,null,null,null,0,{"$f":"IFERROR(VLOOKUP(L119,#REF!,2,FALSE),\"\")","v":""},1,null,null,null,null,null,null,"State and regional and/or local funds and resources are prioritized to facilitate active implementation of evidence-based practices (e.g., inclusion, coaching, teaming).","Element Rating:"]
[null,null,null,null,"Evidence:",null,null,null,null,null,null,null,null,null,null,null,null,null,1,null,1,null,null,null,null,null,null,"Evidence:",0]
[null,null,null,"d","Funds and resources are used to support alignment and collaboration across early care and education programs.",null,null,null,null,null,"Element Rating:",null,null,null,null,null,null,null,0,{"$f":"IFERROR(VLOOKUP(L121,#REF!,2,FALSE),\"\")","v":""},1,null,null,null,null,null,null,"Funds and resources are used to support alignment and collaboration across early care and education programs.","Element Rating:"]
[null,null,null,null,"Evidence:",null,null,null,null,null,null,null,null,null,null,null,null,null,1,null,1,null,null,null,null,null,null,"Evidence:",0]
[null,null,null,"e","State and regional and/or local system entities comply with federal, state and local system requirements related to use of funds and resources.",null,null,null,null,null,"Element Rating:",null,null,null,null,null,null,null,0,{"$f":"IFERROR(VLOOKUP(L123,#REF!,2,FALSE),\"\")","v":""},1,null,null,null,null,null,null,"State and regional and/or local system entities comply with federal, state and local system requirements related to use of funds and resources.","Element Rating:"]
[null,null,null,null,"Evidence:",null,null,null,null,null,null,null,null,null,null,null,null,null,1,null,1,null,null,null,null,null,null,"Evidence:",0]
[null,null,null,"f","The effective and efficient use of funds is reviewed and revised as necessary to support high quality programs.",null,null,null,null,null,"Element Rating:",null,null,null,null,null,null,null,0,{"$f":"IFERROR(VLOOKUP(L125,#REF!,2,FALSE),\"\")","v":""},1,null,null,null,null,null,null,"The effective and efficient use of funds is reviewed and revised as necessary to support high quality programs.","Element Rating:"]
[null,null,null,null,"Evidence:",null,null,null,null,null,null,null,null,null,null,null,null,null,1,null,1,null,null,null,null,null,null,"Evidence:",0]
[null,null,null,null,null,null,null,null,null,null,null,null,null,null,null,null,null,null,0,null,1,null,null,null,null,null,null,"",0]
[null,null,null,"QI 9","State and regional and/or local system entities disperse funds and make timely payments or reimbursement for allowable expenses.",null,null,null,null,null,"QI Rating: ",null,null,null,null,null,null,null,0,"#",0,null,null,null,null,null,null,"State and regional and/or local system entities disperse funds and make timely payments or reimbursement for allowable expenses.","QI Rating: "]
[null,null,null,"a","Policies and procedures are current and explicit, specifying compliance with federal, state and local requirements (e.g., MOE, payor of last resort, non-supplanting) and describing how financial transactions are approved and paid.",null,null,null,null,null,"Element Rating:",null,null,null,null,null,null,null,0,{"$f":"IFERROR(VLOOKUP(L129,#REF!,2,FALSE),\"\")","v":""},1,null,null,null,null,null,null,{"$f":"E129&F129","v":"Policies and procedures are current and explicit, specifying compliance with federal, state and local requirements (e.g., MOE, payor of last resort, non-supplanting) and describing how financial transactions are approved and paid."},"Element Rating:"]
[null,null,null,null,"Evidence:",null,null,null,null,null,null,null,null,null,null,null,null,null,1,null,1,null,null,null,null,null,null,"Evidence:",0]
[null,null,null,"b","All payment mechanisms (e.g., contracts, grants, vouchers, central finance system) adhere to state and federal requirements regarding use of funds and resources.",null,null,null,null,null,"Element Rating:",null,null,null,null,null,null,null,0,{"$f":"IFERROR(VLOOKUP(L131,#REF!,2,FALSE),\"\")","v":""},1,null,null,null,null,null,null,"All payment mechanisms (e.g., contracts, grants, vouchers, central finance system) adhere to state and federal requirements regarding use of funds and resources.","Element Rating:"]
[null,null,null,null,"Evidence:",null,null,null,null,null,null,null,null,null,null,null,null,null,1,null,1,null,null,null,null,null,null,"Evidence:",0]
[null,null,null,"c","Payment mechanisms identify inconsistencies in use of funds and resources so that corrections can be made.",null,null,null,null,null,"Element Rating:",null,null,null,null,null,null,null,0,{"$f":"IFERROR(VLOOKUP(L133,#REF!,2,FALSE),\"\")","v":""},1,null,null,null,null,null,null,"Payment mechanisms identify inconsistencies in use of funds and resources so that corrections can be made.","Element Rating:"]
[null,null,null,null,"Evidence:",null,null,null,null,null,null,null,null,null,null,null,null,null,1,null,1,null,null,null,null,null,null,"Evidence:",0]
[null,null,null,"d","Programs and practitioners make available information and documentation needed to account for use of funds and/or bill for reimbursement.",null,null,null,null,null,"Element Rating:",null,null,null,null,null,null,null,0,{"$f":"IFERROR(VLOOKUP(L135,#REF!,2,FALSE),\"\")","v":""},1,null,null,null,null,null,null,"Programs and practitioners make available information and documentation needed to account for use of funds and/or bill for reimbursement.","Element Rating:"]
[null,null,null,null,"Evidence:",null,null,null,null,null,null,null,null,null,null,null,null,null,1,null,1,null,null,null,null,null,null,"Evidence:",0]
[null,null,null,"e","Fiscal data on services provided and resources used to support each child and family (e.g., expense reports, unit costs) are compared to those services identified on the IFSP/IEP in order to verify accuracy and process payments, if appropriate.",null,null,null,null,null,"Element Rating:",null,null,null,null,null,null,null,0,{"$f":"IFERROR(VLOOKUP(L137,#REF!,2,FALSE),\"\")","v":""},1,null,null,null,null,null,null,"Fiscal data on services provided and resources used to support each child and family (e.g., expense reports, unit costs) are compared to those services identified on the IFSP/IEP in order to verify accuracy and process payments, if appropriate.","Element Rating:"]
[null,null,null,null,"Evidence:",null,null,null,null,null,null,null,null,null,null,null,null,null,1,null,1,null,null,null,null,null,null,"Evidence:",0]
[null,null,null,"f","A system of checks and balances is in place that describes separation of responsibilities across personnel for approving expenditures and making payments.",null,null,null,null,null,"Element Rating:",null,null,null,null,null,null,null,0,{"$f":"IFERROR(VLOOKUP(L139,#REF!,2,FALSE),\"\")","v":""},1,null,null,null,null,null,null,"A system of checks and balances is in place that describes separation of responsibilities across personnel for approving expenditures and making payments.","Element Rating:"]
[null,null,null,null,"Evidence:",null,null,null,null,null,null,null,null,null,null,null,null,null,{"$f":"IF(E140=\"Evidence:\",1,0)","v":1},null,1,null,null,null,null,null,null,"Evidence:",0]
[null,null,null,"g","Payment policies and procedures and payment mechanisms are reviewed and revised as necessary.",null,null,null,null,null,"Element Rating:",null,null,null,null,null,null,null,0,{"$f":"IFERROR(VLOOKUP(L141,#REF!,2,FALSE),\"\")","v":""},{"$f":"IF(LEFT(D141,2)=\"QI\",0,1)","v":1},null,null,null,null,null,null,"Payment policies and procedures and payment mechanisms are reviewed and revised as necessary.",{"$f":"K141","v":"Element Rating:"}]
[null,null,null,null,"Evidence:",null,null,null,null,null,null,null,null,null,null,null,null,null,1,null,1,null,null,null,null,null,null,"Evidence:",0]
[null,null,null,null,null,null,null,null,null,null,null,null,null,null,null,null,null,null,0,null,1,null,null,null,null,null,null,"",0]
[null,null,null,"QI 10","The state and regional and/or local system entities regularly monitor finances and resources to ensure that spending is in compliance with contract performance and all federal, state and local fiscal requirements.",null,null,null,null,null,"QI Rating: ",null,null,null,null,null,null,null,0,"#",0,null,null,null,null,null,null,"The state and regional and/or local system entities regularly monitor finances and resources to ensure that spending is in compliance with contract performance and all federal, state and local fiscal requirements.","QI Rating: "]
[null,null,null,"a","Fiscal data, methods and tools are used to monitor districts/contractors/practitioners’ performance and compliance with federal and state requirements, as well as contracts, if applicable.",null,null,null,null,null,"Element Rating:",null,null,null,null,null,null,null,0,{"$f":"IFERROR(VLOOKUP(L145,#REF!,2,FALSE),\"\")","v":""},1,null,null,null,null,null,null,"Fiscal data, methods and tools are used to monitor districts/contractors/practitioners’ performance and compliance with federal and state requirements, as well as contracts, if applicable.","Element Rating:"]
[null,null,null,null,"Evidence:",null,null,null,null,null,null,null,null,null,null,null,null,null,1,null,1,null,null,null,null,null,null,"Evidence:",0]
[null,null,null,"b","Fiscal data, methods and tools are used to evaluate if districts/contractors/practitioners’ use funds to help achieve the program’s public statements of vision/mission and/or purpose.",null,null,null,null,null,"Element Rating:",null,null,null,null,null,null,null,0,{"$f":"IFERROR(VLOOKUP(L147,#REF!,2,FALSE),\"\")","v":""},1,null,null,null,null,null,null,"Fiscal data, methods and tools are used to evaluate if districts/contractors/practitioners’ use funds to help achieve the program’s public statements of vision/mission and/or purpose.","Element Rating:"]
[null,null,null,null,"Evidence:",null,null,null,null,null,null,null,null,null,null,null,null,null,1,null,1,null,null,null,null,null,null,"Evidence:",0]
[null,null,null,"c","Policies and procedures are reviewed to ensure they reflect all fiscal mandates.",null,null,null,null,null,"Element Rating:",null,null,null,null,null,null,null,0,{"$f":"IFERROR(VLOOKUP(L149,#REF!,2,FALSE),\"\")","v":""},1,null,null,null,null,null,null,"Policies and procedures are reviewed to ensure they reflect all fiscal mandates.","Element Rating:"]
[null,null,null,null,"Evidence:",null,null,null,null,null,null,null,null,null,null,null,null,null,1,null,1,null,null,null,null,null,null,"Evidence:",0]
[null,null,null,"d","State and regional and/or local system entities participate in fiscal audits, as required, to comply with federal, state and local fiscal mandates.",null,null,null,null,null,"Element Rating:",null,null,null,null,null,null,null,0,{"$f":"IFERROR(VLOOKUP(L151,#REF!,2,FALSE),\"\")","v":""},1,null,null,null,null,null,null,"State and regional and/or local system entities participate in fiscal audits, as required, to comply with federal, state and local fiscal mandates.","Element Rating:"]
[null,null,null,null,"Evidence:",null,null,null,null,null,null,null,null,null,null,null,null,null,1,null,1,null,null,null,null,null,null,"Evidence:",0]
[null,null,null,"e","Fiscal monitoring data are shared with districts/contractors/practitioners for informing improvement  planning.",null,null,null,null,null,"Element Rating:",null,null,null,null,null,null,null,0,{"$f":"IFERROR(VLOOKUP(L153,#REF!,2,FALSE),\"\")","v":""},1,null,null,null,null,null,null,"Fiscal monitoring data are shared with districts/contractors/practitioners for informing improvement  planning.","Element Rating:"]
[null,null,null,null,"Evidence:",null,null,null,null,null,null,null,null,null,null,null,null,null,1,null,1,null,null,null,null,null,null,"Evidence:",0]
[null,null,null,"f","Fiscal noncompliance is corrected in a timely manner when identified through fiscal monitoring or audits in accordance with requirements.",null,null,null,null,null,"Element Rating:",null,null,null,null,null,null,null,0,{"$f":"IFERROR(VLOOKUP(L155,#REF!,2,FALSE),\"\")","v":""},1,null,null,null,null,null,null,"Fiscal noncompliance is corrected in a timely manner when identified through fiscal monitoring or audits in accordance with requirements.","Element Rating:"]
[null,null,null,null,"Evidence:",null,null,null,null,null,null,null,null,null,null,null,null,null,1,null,1,null,null,null,null,null,null,"Evidence:",0]
[null,null,null,"g","Sanctions are used to address programs/practitioners that are unable to timely correct non-compliance and/or are not fiscally sound (e.g., financially secure, have cash on-hand to keep agency in operation).",null,null,null,null,null,"Element Rating:",null,null,null,null,null,null,null,0,{"$f":"IFERROR(VLOOKUP(L157,#REF!,2,FALSE),\"\")","v":""},1,null,null,null,null,null,null,"Sanctions are used to address programs/practitioners that are unable to timely correct non-compliance and/or are not fiscally sound (e.g., financially secure, have cash on-hand to keep agency in operation).","Element Rating:"]
[null,null,null,null,"Evidence:",null,null,null,null,null,null,null,null,null,null,null,null,null,1,null,1,null,null,null,null,null,null,"Evidence:",0]
[null,null,null,"h","Fiscal monitoring methods and tools are reviewed and revised as necessary.",null,null,null,null,null,"Element Rating:",null,null,null,null,null,null,null,0,{"$f":"IFERROR(VLOOKUP(L159,#REF!,2,FALSE),\"\")","v":""},1,null,null,null,null,null,null,"Fiscal monitoring methods and tools are reviewed and revised as necessary.","Element Rating:"]
[null,null,null,null,"Evidence:",null,null,null,null,null,null,null,null,null,null,null,null,null,1,null,1,null,null,null,null,null,null,"Evidence:",0]
[null,null,null,"i","Monitoring methods and tools are aligned whenever possible with other early care and education  programs.",null,null,null,null,null,"Element Rating:",null,null,null,null,null,null,null,0,{"$f":"IFERROR(VLOOKUP(L161,#REF!,2,FALSE),\"\")","v":""},1,null,null,null,null,null,null,"Monitoring methods and tools are aligned whenever possible with other early care and education  programs.","Element Rating:"]
[null,null,null,null,"Evidence:",null,null,null,null,null,null,null,null,null,null,null,null,null,{"$f":"IF(E162=\"Evidence:\",1,0)","v":1},null,{"$f":"IF(LEFT(D162,2)=\"QI\",0,1)","v":1},null,null,null,null,null,null,{"$f":"E162&F162","v":"Evidence:"},{"$f":"K162","v":0}]

{"sheet":"PN","index":5,"n_rows":160,"n_cols":33,"rows_kept":160,"cut":false,"hidden":false,"merged":[[48,10,49,10],[44,10,45,10],[46,10,47,10],[56,10,57,10],[58,10,59,10],[60,10,61,10],[114,10,115,10],[96,10,97,10],[98,10,99,10],[110,10,111,10],[50,10,51,10],[66,10,67,10],[62,10,63,10],[54,10,55,10],[68,10,69,10],[92,10,93,10],[94,10,95,10],[80,10,81,10],[82,10,83,10],[84,10,85,10],[88,10,89,10],[89,5,89,8],[98,4,98,8],[87,5,87,8],[79,5,79,8],[80,4,80,8],[81,5,81,8],[82,4,82,8],[83,5,83,8],[38,4,38,8],[39,5,39,8],[40,4,40,8],[122,4,122,8],[123,5,123,8],[121,5,121,8],[117,4,117,8],[113,5,113,8],[94,4,94,8],[95,5,95,8],[96,4,96,8],[97,5,97,8],[99,5,99,8],[129,5,129,8],[130,4,130,8],[131,5,131,8],[8,15,8,17],[104,10,105,10],[106,10,107,10],[100,10,101,10],[102,10,103,10],[44,4,44,8],[45,5,45,8],[46,4,46,8],[47,5,47,8],[48,4,48,8],[49,5,49,8],[62,4,62,8],[8,4,8,5],[9,4,9,5],[8,8,8,13],[12,10,13,10],[75,5,75,8],[103,5,103,8],[91,4,91,8],[92,4,92,8],[93,5,93,8],[156,10,157,10],[150,10,151,10],[152,10,153,10],[78,10,79,10],[86,10,87,10],[70,10,71,10],[72,10,73,10],[74,10,75,10],[154,10,155,10],[142,10,143,10],[146,10,147,10],[122,10,123,10],[118,10,119,10],[120,10,121,10],[112,10,113,10],[144,10,145,10],[84,4,84,8],[85,5,85,8],[86,4,86,8],[73,5,73,8],[74,4,74,8],[66,4,66,8],[54,4,54,8],[55,5,55,8],[56,4,56,8],[57,5,57,8],[58,4,58,8],[59,5,59,8],[65,4,65,8],[63,5,63,8],[70,4,70,8],[71,5,71,8],[72,4,72,8],[67,5,67,8],[68,4,68,8],[69,5,69,8],[3,4,3,5],[4,4,4,5],[5,4,5,5],[6,4,6,5],[7,4,7,5],[2,3,2,5],[5,8,5,13],[6,8,6,13],[7,8,7,13],[4,7,4,13],[152,19,153,19],[154,19,155,19],[156,19,157,19],[150,19,151,19],[138,19,139,19],[140,19,141,19],[142,19,143,19],[144,19,145,19],[146,19,147,19],[126,19,127,19],[128,19,129,19],[130,19,131,19],[132,19,133,19],[134,19,135,19],[118,19,119,19],[120,19,121,19],[122,19,123,19],[110,19,111,19],[112,19,113,19],[114,19,115,19],[60,19,61,19],[62,19,63,19],[98,19,99,19],[100,19,101,19],[102,19,103,19],[104,19,105,19],[106,19,107,19],[66,19,67,19],[68,19,69,19],[70,19,71,19],[72,19,73,19],[74,19,75,19],[78,19,79,19],[80,19,81,19],[82,19,83,19],[84,19,85,19],[86,19,87,19],[88,19,89,19],[92,19,93,19],[94,19,95,19],[96,19,97,19],[12,19,13,19],[14,19,15,19],[16,19,17,19],[18,19,19,19],[20,19,21,19],[22,19,23,19],[24,19,25,19],[26,19,27,19],[30,19,31,19],[14,10,15,10],[16,10,17,10],[18,10,19,10],[29,4,29,8],[30,4,30,8],[31,5,31,8],[32,4,32,8],[36,4,36,8],[37,5,37,8],[27,5,27,8],[26,4,26,8],[33,5,33,8],[26,10,27,10],[20,10,21,10],[22,10,23,10],[24,10,25,10],[30,10,31,10],[32,10,33,10],[104,4,104,8],[88,4,88,8],[105,5,105,8],[100,4,100,8],[101,5,101,8],[102,4,102,8],[32,19,33,19],[34,19,35,19],[36,19,37,19],[38,19,39,19],[40,19,41,19],[41,5,41,8],[40,10,41,10],[34,10,35,10],[36,10,37,10],[38,10,39,10],[44,19,45,19],[46,19,47,19],[48,19,49,19],[50,19,51,19],[54,19,55,19],[56,19,57,19],[58,19,59,19],[78,4,78,8],[112,4,112,8],[120,4,120,8],[11,4,11,8],[12,4,12,8],[13,5,13,8],[14,4,14,8],[15,5,15,8],[16,4,16,8],[17,5,17,8],[18,4,18,8],[19,5,19,8],[20,4,20,8],[21,5,21,8],[22,4,22,8],[23,5,23,8],[24,4,24,8],[25,5,25,8],[34,4,34,8],[35,5,35,8],[60,4,60,8],[61,5,61,8],[106,4,106,8],[107,5,107,8],[77,4,77,8],[53,4,53,8],[157,5,157,8],[126,10,127,10],[128,10,129,10],[130,10,131,10],[132,10,133,10],[134,10,135,10],[140,4,140,8],[141,5,141,8],[142,4,142,8],[150,4,150,8],[151,5,151,8],[152,4,152,8],[153,5,153,8],[154,4,154,8],[155,5,155,8],[156,4,156,8],[147,5,147,8],[126,4,126,8],[127,5,127,8],[128,4,128,8],[109,4,109,8],[110,4,110,8],[111,5,111,8],[6,32,7,37],[8,32,8,37],[149,4,149,8],[143,5,143,8],[144,4,144,8],[145,5,145,8],[146,4,146,8],[138,10,139,10],[140,10,141,10],[114,4,114,8],[115,5,115,8],[134,4,134,8],[135,5,135,8],[132,4,132,8],[133,5,133,8],[137,4,137,8],[138,4,138,8],[139,5,139,8],[118,4,118,8],[125,4,125,8],[119,5,119,8],[50,4,50,8],[51,5,51,8],[43,4,43,8]]}
[null,null,null,"Personnel/Workforce",null,null,null,null,null,null,null,null,null,null,null,null,null,null,null,null,null,null,null,null,null,null,null,{"$f":"E1&F1","v":""}]
[null,null,null,null,null,null,null,null,null,null,null,null,null,null,null,null,null,null,null,null,null,null,null,null,null,null,null,""]
[null,null,null,"Quality Indicator Rating (Calculated)",null,null,null,null,null,null,null,null,null,null,null,null,null,null,null,null,null,null,null,null,null,null,null,""]
[null,null,null,1,"None of the elements is yet planned or in place.  ",null,null,null,null,null,null,null,null,null,null,null,null,null,null,null,null,null,null,null,null,null,null,"None of the elements is yet planned or in place.  "]
[null,null,null,2,"Most of the elements are not yet planned or in place. ",null,null,"Element of Quality Rating (EQR) [Imported from T1, T2, T3]",null,null,null,null,null,null,null,null,null,null,null,null,null,null,null,null,null,null,null,"Most of the elements are not yet planned or in place. "]
[null,null,null,3,"Some elements are in place; a few may be fully implemented.",null,null,1,"No - element not in place and not planning to work on it at this time",null,null,null,null,null,null,null,null,null,null,null,null,null,null,null,null,null,null,"Some elements are in place; a few may be fully implemented."]
[null,null,null,4,"At least half of the elements are in place; a few may be fully implemented.",null,null,2,"No - element not in place but planning to work on it or getting started",null,null,null,null,null,null,null,null,null,null,null,null,null,null,null,null,null,null,"At least half of the elements are in place; a few may be fully implemented.",null,null,null,null,{"$f":"IF(ISERROR(FIND(\"Subcomponent\",D1)),D1,\"DS: \"&MID(D1,18,99))","v":"Personnel/Workforce"}]
[null,null,null,5,"At least half of the elements are in place; some are fully implemented.",null,null,3,"Yes - element partially implemented",null,null,null,null,null,null,null,null,null,null,null,null,null,null,null,null,null,null,"At least half of the elements are in place; some are fully implemented."]
[null,null,null,6,"At least half of the elements are fully implemented; the rest are partially implemented.",null,null,4,"Yes - element fully implemented",null,null,null,null,null,null,"PRIORITY",null,null,null,null,null,null,null,null,null,null,null,"At least half of the elements are fully implemented; the rest are partially implemented.",null,null,null,null,"Quality Indicator Ratings"]
[null,null,null,7,"All elements are fully implemented.",null,null,null,null,null,null,"TIME1","TIME2","TIME3",null,"TIME1","TIME2","TIME3",null,null,null,null,null,null,null,null,null,"All elements are fully implemented."]
[null,null,{"$f":"MID(CELL(\"Filename\",C1),FIND(\"]\",CELL(\"Filename\",C1))+1,255)","v":"PN"},null,null,null,null,null,null,null,"Date:",null,null,null,null,null,null,null,null,null,null,null,null,null,null,null,null,""]
[null,null,null,"QI 1","A cross sector leadership team is in place that can set priorities and make policy, governance, and financial decisions related to the personnel system.",null,null,null,null,null,"QI Rating: ",null,null,null,null,null,null,null,{"$f":"IF(E12=\"Evidence:\",1,0)","v":0},"#",{"$f":"IF(LEFT(D12,2)=\"QI\",0,1)","v":0},null,null,null,null,null,null,{"$f":"E12&F12","v":"A cross sector leadership team is in place that can set priorities and make policy, governance, and financial decisions related to the personnel system."},{"$f":"K12","v":"QI Rating: "}]
[null,null,null,"a","The composition of the leadership team represents key partners from cross-sector early childhood systems, technical assistance programs, institutions of higher education, parent organizations as well as any other relevant stakeholders across disciplines.",null,null,null,null,null,"Element Rating:",null,null,null,null,null,null,null,0,{"$f":"IFERROR(VLOOKUP(L13,#REF!,2,FALSE),\"\")","v":""},{"$f":"IF(LEFT(D13,2)=\"QI\",0,1)","v":1},null,null,null,null,null,null,"The composition of the leadership team represents key partners from cross-sector early childhood systems, technical assistance programs, institutions of higher education, parent organizations as well as any other relevant stakeholders across disciplines.",{"$f":"K13","v":"Element Rating:"}]
[null,null,null,null,"Evidence:",null,null,null,null,null,null,null,null,null,null,null,null,null,1,null,1,null,null,null,null,null,null,"Evidence:",0]
[null,null,null,"b","Additional stakeholder input, including from families, is actively solicited and considered by the leadership team in setting priorities and determining governance decisions.",null,null,null,null,null,"Element Rating:",null,null,null,null,null,null,null,0,{"$f":"IFERROR(VLOOKUP(L15,#REF!,2,FALSE),\"\")","v":""},1,null,null,null,null,null,null,"Additional stakeholder input, including from families, is actively solicited and considered by the leadership team in setting priorities and determining governance decisions.","Element Rating:"]
[null,null,null,null,"Evidence:",null,null,null,null,null,null,null,null,null,null,null,null,null,1,null,1,null,null,null,null,null,null,"Evidence:",0]
[null,null,null,"c","The leadership team members are aware of other related early childhood and school-age personnel development systems and align efforts when appropriate.",null,null,null,null,null,"Element Rating:",null,null,null,null,null,null,null,0,{"$f":"IFERROR(VLOOKUP(L17,#REF!,2,FALSE),\"\")","v":""},1,null,null,null,null,null,null,"The leadership team members are aware of other related early childhood and school-age personnel development systems and align efforts when appropriate.","Element Rating:"]
[null,null,null,null,"Evidence:",null,null,null,null,null,null,null,null,null,null,null,null,null,1,null,1,null,null,null,null,null,null,"Evidence:",0]
[null,null,null,"d","The leadership team develops an overall vision, mission, and purpose for the CSPD and makes decisions and implements processes that reflect these.",null,null,null,null,null,"Element Rating:",null,null,null,null,null,null,null,0,{"$f":"IFERROR(VLOOKUP(L19,#REF!,2,FALSE),\"\")","v":""},1,null,null,null,null,null,null,"The leadership team develops an overall vision, mission, and purpose for the CSPD and makes decisions and implements processes that reflect these.","Element Rating:"]
[null,null,null,null,"Evidence:",null,null,null,null,null,null,null,null,null,null,null,null,null,1,null,1,null,null,null,null,null,null,"Evidence:",0]
[null,null,null,"e","The CSPD vision, mission and purpose are aligned with the overall early intervention and preschool special education systems.",null,null,null,null,null,"Element Rating:",null,null,null,null,null,null,null,0,{"$f":"IFERROR(VLOOKUP(L21,#REF!,2,FALSE),\"\")","v":""},1,null,null,null,null,null,null,"The CSPD vision, mission and purpose are aligned with the overall early intervention and preschool special education systems.","Element Rating:"]
[null,null,null,null,"Evidence:",null,null,null,null,null,null,null,null,null,null,null,null,null,1,null,1,null,null,null,null,null,null,"Evidence:",0]
[null,null,null,"f","The leadership team examines current policies and state initiatives (e.g. quality rating and improvement systems, educator effectiveness frameworks) to identify opportunities for collaboration and the coordination of resources, including ongoing and sustained funding across cross-sector early childhood systems.",null,null,null,null,null,"Element Rating:",null,null,null,null,null,null,null,0,{"$f":"IFERROR(VLOOKUP(L23,#REF!,2,FALSE),\"\")","v":""},1,null,null,null,null,null,null,"The leadership team examines current policies and state initiatives (e.g. quality rating and improvement systems, educator effectiveness frameworks) to identify opportunities for collaboration and the coordination of resources, including ongoing and sustained funding across cross-sector early childhood systems.","Element Rating:"]
[null,null,null,null,"Evidence:",null,null,null,null,null,null,null,null,null,null,null,null,null,1,null,1,null,null,null,null,null,null,"Evidence:",0]
[null,null,null,"g","The leadership team advocates for and identifies resources for cross-sector priorities and activities.",null,null,null,null,null,"Element Rating:",null,null,null,null,null,null,null,0,{"$f":"IFERROR(VLOOKUP(L25,#REF!,2,FALSE),\"\")","v":""},1,null,null,null,null,null,null,"The leadership team advocates for and identifies resources for cross-sector priorities and activities.","Element Rating:"]
[null,null,null,null,"Evidence:",null,null,null,null,null,null,null,null,null,null,null,null,null,1,null,1,null,null,null,null,null,null,"Evidence:",0]
[null,null,null,"h","The leadership team disseminates information on the CSPD plan to relevant public and private audiences.",null,null,null,null,null,"Element Rating:",null,null,null,null,null,null,null,0,{"$f":"IFERROR(VLOOKUP(L27,#REF!,2,FALSE),\"\")","v":""},1,null,null,null,null,null,null,"The leadership team disseminates information on the CSPD plan to relevant public and private audiences.","Element Rating:"]
[null,null,null,null,"Evidence:",null,null,null,null,null,null,null,null,null,null,null,null,null,1,null,1,null,null,null,null,null,null,"Evidence:",0]
[null,null,null,null,null,null,null,null,null,null,null,null,null,null,null,null,null,null,0,null,1,null,null,null,null,null,null,"",0]
[null,null,null,"QI 2","There is a written multi-year plan in place to address all sub-components of the CSPD.",null,null,null,null,null,"QI Rating: ",null,null,null,null,null,null,null,0,"#",0,null,null,null,null,null,null,"There is a written multi-year plan in place to address all sub-components of the CSPD.","QI Rating: "]
[null,null,null,"a","The development and implementation of the CSPD plan is based on the specific vision, mission, and purpose for a CSPD.",null,null,null,null,null,"Element Rating:",null,null,null,null,null,null,null,0,{"$f":"IFERROR(VLOOKUP(L31,#REF!,2,FALSE),\"\")","v":""},1,null,null,null,null,null,null,"The development and implementation of the CSPD plan is based on the specific vision, mission, and purpose for a CSPD.","Element Rating:"]
[null,null,null,null,"Evidence:",null,null,null,null,null,null,null,null,null,null,null,null,null,1,null,1,null,null,null,null,null,null,"Evidence:",0]
[null,null,null,"b","The CSPD plan is aligned with and informed by stakeholder input, national professional organization personnel standards, state requirements, and the vision, mission, and purpose of the cross-sector early childhood systems involved in the CSPD.",null,null,null,null,null,"Element Rating:",null,null,null,null,null,null,null,0,{"$f":"IFERROR(VLOOKUP(L33,#REF!,2,FALSE),\"\")","v":""},1,null,null,null,null,null,null,"The CSPD plan is aligned with and informed by stakeholder input, national professional organization personnel standards, state requirements, and the vision, mission, and purpose of the cross-sector early childhood systems involved in the CSPD.","Element Rating:"]
[null,null,null,null,"Evidence:",null,null,null,null,null,null,null,null,null,null,null,null,null,1,null,1,null,null,null,null,null,null,"Evidence:",0]
[null,null,null,"c","The CSPD plan articulates a process for two way communication between stakeholders and the leadership team for soliciting input and sharing information on the implementation of activities.",null,null,null,null,null,"Element Rating:",null,null,null,null,null,null,null,0,{"$f":"IFERROR(VLOOKUP(L35,#REF!,2,FALSE),\"\")","v":""},1,null,null,null,null,null,null,"The CSPD plan articulates a process for two way communication between stakeholders and the leadership team for soliciting input and sharing information on the implementation of activities.","Element Rating:"]
[null,null,null,null,"Evidence:",null,null,null,null,null,null,null,null,null,null,null,null,null,1,null,1,null,null,null,null,null,null,"Evidence:",0]
[null,null,null,"d","The CSPD plan includes strategies for engaging in ongoing formative and summative evaluation of the activities.",null,null,null,null,null,"Element Rating:",null,null,null,null,null,null,null,0,{"$f":"IFERROR(VLOOKUP(L37,#REF!,2,FALSE),\"\")","v":""},1,null,null,null,null,null,null,"The CSPD plan includes strategies for engaging in ongoing formative and summative evaluation of the activities.","Element Rating:"]
[null,null,null,null,"Evidence:",null,null,null,null,null,null,null,null,null,null,null,null,null,1,null,1,null,null,null,null,null,null,"Evidence:",0]
[null,null,null,"e","The leadership team monitors both the implementation and effectiveness of the activities of the CSPD plan.",null,null,null,null,null,"Element Rating:",null,null,null,null,null,null,null,0,{"$f":"IFERROR(VLOOKUP(L39,#REF!,2,FALSE),\"\")","v":""},1,null,null,null,null,null,null,"The leadership team monitors both the implementation and effectiveness of the activities of the CSPD plan.","Element Rating:"]
[null,null,null,null,"Evidence:",null,null,null,null,null,null,null,null,null,null,null,null,null,1,null,1,null,null,null,null,null,null,"Evidence:",0]
[null,null,null,"f","The leadership team plans for and ensures that funding and resources are available to sustain the implementation of the CSPD plan.",null,null,null,null,null,"Element Rating:",null,null,null,null,null,null,null,0,{"$f":"IFERROR(VLOOKUP(L41,#REF!,2,FALSE),\"\")","v":""},1,null,null,null,null,null,null,"The leadership team plans for and ensures that funding and resources are available to sustain the implementation of the CSPD plan.","Element Rating:"]
[null,null,null,null,"Evidence:",null,null,null,null,null,null,null,null,null,null,null,null,null,1,null,1,null,null,null,null,null,null,"Evidence:",0]
[null,null,null,null,null,null,null,null,null,null,null,null,null,null,null,null,null,null,0,null,1,null,null,null,null,null,null,"",0]
[null,null,null,"QI 3","State personnel standards across disciplines are aligned to national professional organization personnel standards.",null,null,null,null,null,"QI Rating: ",null,null,null,null,null,null,null,0,"#",0,null,null,null,null,null,null,"State personnel standards across disciplines are aligned to national professional organization personnel standards.","QI Rating: "]
[null,null,null,"a","State personnel standards are based on core knowledge and skills needed for working with young children and their families in cross-sector early childhood systems.",null,null,null,null,null,"Element Rating:",null,null,null,null,null,null,null,0,{"$f":"IFERROR(VLOOKUP(L45,#REF!,2,FALSE),\"\")","v":""},1,null,null,null,null,null,null,"State personnel standards are based on core knowledge and skills needed for working with young children and their families in cross-sector early childhood systems.","Element Rating:"]
[null,null,null,null,"Evidence:",null,null,null,null,null,null,null,null,null,null,null,null,null,1,null,1,null,null,null,null,null,null,"Evidence:",0]
[null,null,null,"b","State personnel standards are specified, accessible, and used by program administrators and staff.",null,null,null,null,null,"Element Rating:",null,null,null,null,null,null,null,0,{"$f":"IFERROR(VLOOKUP(L47,#REF!,2,FALSE),\"\")","v":""},1,null,null,null,null,null,null,"State personnel standards are specified, accessible, and used by program administrators and staff.","Element Rating:"]
[null,null,null,null,"Evidence:",null,null,null,null,null,null,null,null,null,null,null,null,null,1,null,1,null,null,null,null,null,null,"Evidence:",0]
[null,null,null,"c","State certification or licensing boards have a mechanism for assessing the degree to which state personnel standards are demonstrated by graduates of preservice programs across disciplines.",null,null,null,null,null,"Element Rating:",null,null,null,null,null,null,null,0,{"$f":"IFERROR(VLOOKUP(L49,#REF!,2,FALSE),\"\")","v":""},1,null,null,null,null,null,null,"State certification or licensing boards have a mechanism for assessing the degree to which state personnel standards are demonstrated by graduates of preservice programs across disciplines.","Element Rating:"]
[null,null,null,null,"Evidence:",null,null,null,null,null,null,null,null,null,null,null,null,null,1,null,1,null,null,null,null,null,null,"Evidence:",0]
[null,null,null,"d","State personnel standards are reviewed annually and updated, when appropriate, to reflect state personnel needs, changes in legal requirements, changes in national professional organizations personnel standards, evaluation data, and updated knowledge on evidence-based practices.",null,null,null,null,null,"Element Rating:",null,null,null,null,null,null,null,0,{"$f":"IFERROR(VLOOKUP(L51,#REF!,2,FALSE),\"\")","v":""},1,null,null,null,null,null,null,"State personnel standards are reviewed annually and updated, when appropriate, to reflect state personnel needs, changes in legal requirements, changes in national professional organizations personnel standards, evaluation data, and updated knowledge on evidence-based practices.","Element Rating:"]
[null,null,null,null,"Evidence:",null,null,null,null,null,null,null,null,null,null,null,null,null,1,null,1,null,null,null,null,null,null,"Evidence:",0]
[null,null,null,null,null,null,null,null,null,null,null,null,null,null,null,null,null,null,0,null,1,null,null,null,null,null,null,"",0]
[null,null,null,"QI 4","The criteria for state certification, licensure, credentialing and/or endorsement are aligned to state personnel standards and national professional organization personnel standards across disciplines.",null,null,null,null,null,"QI Rating: ",null,null,null,null,null,null,null,0,"#",0,null,null,null,null,null,null,"The criteria for state certification, licensure, credentialing and/or endorsement are aligned to state personnel standards and national professional organization personnel standards across disciplines.","QI Rating: "]
[null,null,null,"a","A system for articulating and attaining a certification, licensure, credentialing and/or endorsement exists across disciplines.",null,null,null,null,null,"Element Rating:",null,null,null,null,null,null,null,0,{"$f":"IFERROR(VLOOKUP(L55,#REF!,2,FALSE),\"\")","v":""},1,null,null,null,null,null,null,"A system for articulating and attaining a certification, licensure, credentialing and/or endorsement exists across disciplines.","Element Rating:"]
[null,null,null,null,"Evidence:",null,null,null,null,null,null,null,null,null,null,null,null,null,1,null,1,null,null,null,null,null,null,"Evidence:",0]
[null,null,null,"b","The criteria and requirements for attaining certification, licensure, credentialing and/or endorsement are specified and accessible for personnel across disciplines.",null,null,null,null,null,"Element Rating:",null,null,null,null,null,null,null,0,{"$f":"IFERROR(VLOOKUP(L57,#REF!,2,FALSE),\"\")","v":""},1,null,null,null,null,null,null,"The criteria and requirements for attaining certification, licensure, credentialing and/or endorsement are specified and accessible for personnel across disciplines.","Element Rating:"]
[null,null,null,null,"Evidence:",null,null,null,null,null,null,null,null,null,null,null,null,null,1,null,1,null,null,null,null,null,null,"Evidence:",0]
[null,null,null,"c","The criteria and requirements for a system of certification, licensure, credential and/or endorsement are competency or skill based.",null,null,null,null,null,"Element Rating:",null,null,null,null,null,null,null,0,{"$f":"IFERROR(VLOOKUP(L59,#REF!,2,FALSE),\"\")","v":""},1,null,null,null,null,null,null,"The criteria and requirements for a system of certification, licensure, credential and/or endorsement are competency or skill based.","Element Rating:"]
[null,null,null,null,"Evidence:",null,null,null,null,null,null,null,null,null,null,null,null,null,1,null,1,null,null,null,null,null,null,"Evidence:",0]
[null,null,null,"d","Mechanisms such as inter-state agreements and policies are defined and exist for cross state reciprocity of certification, licensure, credential and/or endorsement.",null,null,null,null,null,"Element Rating:",null,null,null,null,null,null,null,0,{"$f":"IFERROR(VLOOKUP(L61,#REF!,2,FALSE),\"\")","v":""},1,null,null,null,null,null,null,"Mechanisms such as inter-state agreements and policies are defined and exist for cross state reciprocity of certification, licensure, credential and/or endorsement.","Element Rating:"]
[null,null,null,null,"Evidence:",null,null,null,null,null,null,null,null,null,null,null,null,null,1,null,1,null,null,null,null,null,null,"Evidence:",0]
[null,null,null,"e","The system criteria and requirements are reviewed and updated, as appropriate to reflect state personnel needs, changes in legal requirements, changes in national professional organization personnel standards, evaluation data, and updated knowledge on evidence- based practices.",null,null,null,null,null,"Element Rating:",null,null,null,null,null,null,null,0,{"$f":"IFERROR(VLOOKUP(L63,#REF!,2,FALSE),\"\")","v":""},1,null,null,null,null,null,null,"The system criteria and requirements are reviewed and updated, as appropriate to reflect state personnel needs, changes in legal requirements, changes in national professional organization personnel standards, evaluation data, and updated knowledge on evidence- based practices.","Element Rating:"]
[null,null,null,null,"Evidence:",null,null,null,null,null,null,null,null,null,null,null,null,null,1,null,1,null,null,null,null,null,null,"Evidence:",0]
[null,null,null,null,null,null,null,null,null,null,null,null,null,null,null,null,null,null,0,null,1,null,null,null,null,null,null,"",0]
[null,null,null,"QI 5","Institution of higher education (IHE) programs and curricula across disciplines are aligned with both national professional organization personnel standards and state personnel standards.",null,null,null,null,null,"QI Rating: ",null,null,null,null,null,null,null,0,"#",0,null,null,null,null,null,null,"Institution of higher education (IHE) programs and curricula across disciplines are aligned with both national professional organization personnel standards and state personnel standards.","QI Rating: "]
[null,null,null,"a","IHE programs and curricula for each discipline are based on knowledge and skill competencies that are aligned with state personnel standards.",null,null,null,null,null,"Element Rating:",null,null,null,null,null,null,null,0,{"$f":"IFERROR(VLOOKUP(L67,#REF!,2,FALSE),\"\")","v":""},1,null,null,null,null,null,null,"IHE programs and curricula for each discipline are based on knowledge and skill competencies that are aligned with state personnel standards.","Element Rating:"]
[null,null,null,null,"Evidence:",null,null,null,null,null,null,null,null,null,null,null,null,null,1,null,1,null,null,null,null,null,null,"Evidence:",0]
[null,null,null,"b","IHE programs and curricula for each discipline are based on knowledge and skill competencies that are aligned with national professional organization personnel standards.",null,null,null,null,null,"Element Rating:",null,null,null,null,null,null,null,0,{"$f":"IFERROR(VLOOKUP(L69,#REF!,2,FALSE),\"\")","v":""},1,null,null,null,null,null,null,"IHE programs and curricula for each discipline are based on knowledge and skill competencies that are aligned with national professional organization personnel standards.","Element Rating:"]
[null,null,null,null,"Evidence:",null,null,null,null,null,null,null,null,null,null,null,null,null,1,null,1,null,null,null,null,null,null,"Evidence:",0]
[null,null,null,"c","IHE program competencies are operationalized and defined by example.",null,null,null,null,null,"Element Rating:",null,null,null,null,null,null,null,0,{"$f":"IFERROR(VLOOKUP(L71,#REF!,2,FALSE),\"\")","v":""},1,null,null,null,null,null,null,"IHE program competencies are operationalized and defined by example.","Element Rating:"]
[null,null,null,null,"Evidence:",null,null,null,null,null,null,null,null,null,null,null,null,null,1,null,1,null,null,null,null,null,null,"Evidence:",0]
[null,null,null,"d","IHE programs and curricula for each discipline are aligned with state and local program quality initiatives and evaluation systems (e.g., QRIS, educator effectiveness frameworks,  licensing).",null,null,null,null,null,"Element Rating:",null,null,null,null,null,null,null,0,{"$f":"IFERROR(VLOOKUP(L73,#REF!,2,FALSE),\"\")","v":""},1,null,null,null,null,null,null,"IHE programs and curricula for each discipline are aligned with state and local program quality initiatives and evaluation systems (e.g., QRIS, educator effectiveness frameworks,  licensing).","Element Rating:"]
[null,null,null,null,"Evidence:",null,null,null,null,null,null,null,null,null,null,null,null,null,1,null,1,null,null,null,null,null,null,"Evidence:",0]
[null,null,null,"e","IHE programs and curricula for each discipline are coordinated to ensure an adequate number of programs of study are available to meet current and future personnel needs.",null,null,null,null,null,"Element Rating:",null,null,null,null,null,null,null,0,{"$f":"IFERROR(VLOOKUP(L75,#REF!,2,FALSE),\"\")","v":""},1,null,null,null,null,null,null,"IHE programs and curricula for each discipline are coordinated to ensure an adequate number of programs of study are available to meet current and future personnel needs.","Element Rating:"]
[null,null,null,null,"Evidence:",null,null,null,null,null,null,null,null,null,null,null,null,null,{"$f":"IF(E76=\"Evidence:\",1,0)","v":1},null,1,null,null,null,null,null,null,{"$f":"E76&F76","v":"Evidence:"},0]
[null,null,null,null,null,null,null,null,null,null,null,null,null,null,null,null,null,null,0,null,{"$f":"IF(LEFT(D77,2)=\"QI\",0,1)","v":1},null,null,null,null,null,null,"",{"$f":"K77","v":0}]
[null,null,null,"QI 6","Institution of higher education programs and curricula address early childhood development and discipline specific pedagogy.",null,null,null,null,null,"QI Rating: ",null,null,null,null,null,null,null,0,"#",0,null,null,null,null,null,null,"Institution of higher education programs and curricula address early childhood development and discipline specific pedagogy.","QI Rating: "]
[null,null,null,"a","IHE programs and curricula across disciplines recruit and prepare personnel for professional roles and responsibilities.",null,null,null,null,null,"Element Rating:",null,null,null,null,null,null,null,0,{"$f":"IFERROR(VLOOKUP(L79,#REF!,2,FALSE),\"\")","v":""},1,null,null,null,null,null,null,"IHE programs and curricula across disciplines recruit and prepare personnel for professional roles and responsibilities.","Element Rating:"]
[null,null,null,null,"Evidence:",null,null,null,null,null,null,null,null,null,null,null,null,null,1,null,1,null,null,null,null,null,null,"Evidence:",0]
[null,null,null,"b","IHE programs and curricula across disciplines contain evidence-based practices that reflect the learning needs of children with and at-risk for developmental delays and disabilities and their families.",null,null,null,null,null,"Element Rating:",null,null,null,null,null,null,null,0,{"$f":"IFERROR(VLOOKUP(L81,#REF!,2,FALSE),\"\")","v":""},1,null,null,null,null,null,null,"IHE programs and curricula across disciplines contain evidence-based practices that reflect the learning needs of children with and at-risk for developmental delays and disabilities and their families.","Element Rating:"]
[null,null,null,null,"Evidence:",null,null,null,null,null,null,null,null,null,null,null,null,null,1,null,1,null,null,null,null,null,null,"Evidence:",0]
[null,null,null,"c","IHE programs and curricula provide relevant field experiences such as internships, observations, and practica in a variety of inclusive early childhood settings.",null,null,null,null,null,"Element Rating:",null,null,null,null,null,null,null,0,{"$f":"IFERROR(VLOOKUP(L83,#REF!,2,FALSE),\"\")","v":""},1,null,null,null,null,null,null,"IHE programs and curricula provide relevant field experiences such as internships, observations, and practica in a variety of inclusive early childhood settings.","Element Rating:"]
[null,null,null,null,"Evidence:",null,null,null,null,null,null,null,null,null,null,null,null,null,1,null,1,null,null,null,null,null,null,"Evidence:",0]
[null,null,null,"d","IHE programs and curricula are reviewed, evaluated, and updated to reflect current intervention evidence and revised state personnel standards and national professional organization personnel standards.",null,null,null,null,null,"Element Rating:",null,null,null,null,null,null,null,0,{"$f":"IFERROR(VLOOKUP(L85,#REF!,2,FALSE),\"\")","v":""},1,null,null,null,null,null,null,"IHE programs and curricula are reviewed, evaluated, and updated to reflect current intervention evidence and revised state personnel standards and national professional organization personnel standards.","Element Rating:"]
[null,null,null,null,"Evidence:",null,null,null,null,null,null,null,null,null,null,null,null,null,1,null,1,null,null,null,null,null,null,"Evidence:",0]
[null,null,null,"e","IHE programs of study and curricula utilize evidence-based professional development practices and instructional methods to teach and supervise adult learners.",null,null,null,null,null,"Element Rating:",null,null,null,null,null,null,null,0,{"$f":"IFERROR(VLOOKUP(L87,#REF!,2,FALSE),\"\")","v":""},1,null,null,null,null,null,null,"IHE programs of study and curricula utilize evidence-based professional development practices and instructional methods to teach and supervise adult learners.","Element Rating:"]
[null,null,null,null,"Evidence:",null,null,null,null,null,null,null,null,null,null,null,null,null,1,null,1,null,null,null,null,null,null,"Evidence:",0]
[null,null,null,"f","IHE faculty collaborate and plan with inservice providers to align preservice and inservice personnel development so there is a continuum in the acquisition of content from knowledge to mastery.",null,null,null,null,null,"Element Rating:",null,null,null,null,null,null,null,0,{"$f":"IFERROR(VLOOKUP(L89,#REF!,2,FALSE),\"\")","v":""},1,null,null,null,null,null,null,"IHE faculty collaborate and plan with inservice providers to align preservice and inservice personnel development so there is a continuum in the acquisition of content from knowledge to mastery.","Element Rating:"]
[null,null,null,null,"Evidence:",null,null,null,null,null,null,null,null,null,null,null,null,null,1,null,1,null,null,null,null,null,null,"Evidence:",0]
[null,null,null,null,null,null,null,null,null,null,null,null,null,null,null,null,null,null,0,null,1,null,null,null,null,null,null,"",0]
[null,null,null,"QI 7","A statewide system for inservice personnel development and technical assistance is in place for personnel across disciplines.",null,null,null,null,null,"QI Rating: ",null,null,null,null,null,null,null,0,"#",0,null,null,null,null,null,null,"A statewide system for inservice personnel development and technical assistance is in place for personnel across disciplines.","QI Rating: "]
[null,null,null,"a","A statewide system for inservice personnel development is aligned to national professional organization personnel standards across disciplines.",null,null,null,null,null,"Element Rating:",null,null,null,null,null,null,null,0,{"$f":"IFERROR(VLOOKUP(L93,#REF!,2,FALSE),\"\")","v":""},1,null,null,null,null,null,null,"A statewide system for inservice personnel development is aligned to national professional organization personnel standards across disciplines.","Element Rating:"]
[null,null,null,null,"Evidence:",null,null,null,null,null,null,null,null,null,null,null,null,null,1,null,1,null,null,null,null,null,null,"Evidence:",0]
[null,null,null,"b","A statewide system for inservice personnel development is aligned to state personnel standards across disciplines.",null,null,null,null,null,"Element Rating:",null,null,null,null,null,null,null,0,{"$f":"IFERROR(VLOOKUP(L95,#REF!,2,FALSE),\"\")","v":""},1,null,null,null,null,null,null,"A statewide system for inservice personnel development is aligned to state personnel standards across disciplines.","Element Rating:"]
[null,null,null,null,"Evidence:",null,null,null,null,null,null,null,null,null,null,null,null,null,1,null,1,null,null,null,null,null,null,"Evidence:",0]
[null,null,null,"c","The statewide system for inservice personnel development provides a variety of technical assistance opportunities to meet the needs of personnel.",null,null,null,null,null,"Element Rating:",null,null,null,null,null,null,null,0,{"$f":"IFERROR(VLOOKUP(L97,#REF!,2,FALSE),\"\")","v":""},1,null,null,null,null,null,null,"The statewide system for inservice personnel development provides a variety of technical assistance opportunities to meet the needs of personnel.","Element Rating:"]
[null,null,null,null,"Evidence:",null,null,null,null,null,null,null,null,null,null,null,null,null,1,null,1,null,null,null,null,null,null,"Evidence:",0]
[null,null,null,"d","The inservice personnel development component of the CSPD plan is guided by updated needs assessments of the capability of the workforce in relation to the desired knowledge and skill competencies.",null,null,null,null,null,"Element Rating:",null,null,null,null,null,null,null,0,{"$f":"IFERROR(VLOOKUP(L99,#REF!,2,FALSE),\"\")","v":""},1,null,null,null,null,null,null,"The inservice personnel development component of the CSPD plan is guided by updated needs assessments of the capability of the workforce in relation to the desired knowledge and skill competencies.","Element Rating:"]
[null,null,null,null,"Evidence:",null,null,null,null,null,null,null,null,null,null,null,null,null,1,null,1,null,null,null,null,null,null,"Evidence:",0]
[null,null,null,"e","Inservice personnel development is coordinated across early childhood systems and delivered collaboratively, as appropriate.",null,null,null,null,null,"Element Rating:",null,null,null,null,null,null,null,0,{"$f":"IFERROR(VLOOKUP(L101,#REF!,2,FALSE),\"\")","v":""},1,null,null,null,null,null,null,"Inservice personnel development is coordinated across early childhood systems and delivered collaboratively, as appropriate.","Element Rating:"]
[null,null,null,null,"Evidence:",null,null,null,null,null,null,null,null,null,null,null,null,null,1,null,1,null,null,null,null,null,null,"Evidence:",0]
[null,null,null,"f","Inservice personnel development employs evidenced based professional development practices that incorporate a variety of adult learning strategies including job embedded applications such as coaching, reflective supervision and supportive mentoring.",null,null,null,null,null,"Element Rating:",null,null,null,null,null,null,null,0,{"$f":"IFERROR(VLOOKUP(L103,#REF!,2,FALSE),\"\")","v":""},1,null,null,null,null,null,null,"Inservice personnel development employs evidenced based professional development practices that incorporate a variety of adult learning strategies including job embedded applications such as coaching, reflective supervision and supportive mentoring.","Element Rating:"]
[null,null,null,null,"Evidence:",null,null,null,null,null,null,null,null,null,null,null,null,null,1,null,1,null,null,null,null,null,null,"Evidence:",0]
[null,null,null,"g","Inservice learning opportunities are individualized to the needs of the participants and the objectives of the personnel development.",null,null,null,null,null,"Element Rating:",null,null,null,null,null,null,null,0,{"$f":"IFERROR(VLOOKUP(L105,#REF!,2,FALSE),\"\")","v":""},1,null,null,null,null,null,null,"Inservice learning opportunities are individualized to the needs of the participants and the objectives of the personnel development.","Element Rating:"]
[null,null,null,null,"Evidence:",null,null,null,null,null,null,null,null,null,null,null,null,null,1,null,1,null,null,null,null,null,null,"Evidence:",0]
[null,null,null,"h","Families and/or parent organization participate in the design and delivery of inservice personnel  development.",null,null,null,null,null,"Element Rating:",null,null,null,null,null,null,null,0,{"$f":"IFERROR(VLOOKUP(L107,#REF!,2,FALSE),\"\")","v":""},1,null,null,null,null,null,null,"Families and/or parent organization participate in the design and delivery of inservice personnel  development.","Element Rating:"]
[null,null,null,null,"Evidence:",null,null,null,null,null,null,null,null,null,null,null,null,null,1,null,1,null,null,null,null,null,null,"Evidence:",0]
[null,null,null,null,null,null,null,null,null,null,null,null,null,null,null,null,null,null,0,null,1,null,null,null,null,null,null,"",0]
[null,null,null,"QI 8","A statewide system for inservice personnel development and technical assistance is aligned and coordinated with higher education program and curricula across disciplines.",null,null,null,null,null,"QI Rating: ",null,null,null,null,null,null,null,0,"#",0,null,null,null,null,null,null,"A statewide system for inservice personnel development and technical assistance is aligned and coordinated with higher education program and curricula across disciplines.","QI Rating: "]
[null,null,null,"a","The content for inservice personnel development is based on evidence-based practices.",null,null,null,null,null,"Element Rating:",null,null,null,null,null,null,null,0,{"$f":"IFERROR(VLOOKUP(L111,#REF!,2,FALSE),\"\")","v":""},1,null,null,null,null,null,null,"The content for inservice personnel development is based on evidence-based practices.","Element Rating:"]
[null,null,null,null,"Evidence:",null,null,null,null,null,null,null,null,null,null,null,null,null,1,null,1,null,null,null,null,null,null,"Evidence:",0]
[null,null,null,"b","Faculty from IHEs and inservice staff meet on a quarterly basis to plan for, coordinate, and collaborate on inservice content.",null,null,null,null,null,"Element Rating:",null,null,null,null,null,null,null,0,{"$f":"IFERROR(VLOOKUP(L113,#REF!,2,FALSE),\"\")","v":""},1,null,null,null,null,null,null,"Faculty from IHEs and inservice staff meet on a quarterly basis to plan for, coordinate, and collaborate on inservice content.","Element Rating:"]
[null,null,null,null,"Evidence:",null,null,null,null,null,null,null,null,null,null,null,null,null,1,null,1,null,null,null,null,null,null,"Evidence:",0]
[null,null,null,"c","Content for inservice personnel development extends the depth of core knowledge and skills acquired in preservice programs and addresses updated knowledge on evidence- based practices and changes in state policies and initiatives.",null,null,null,null,null,"Element Rating:",null,null,null,null,null,null,null,0,{"$f":"IFERROR(VLOOKUP(L115,#REF!,2,FALSE),\"\")","v":""},1,null,null,null,null,null,null,"Content for inservice personnel development extends the depth of core knowledge and skills acquired in preservice programs and addresses updated knowledge on evidence- based practices and changes in state policies and initiatives.","Element Rating:"]
[null,null,null,null,"Evidence:",null,null,null,null,null,null,null,null,null,null,null,null,null,1,null,1,null,null,null,null,null,null,"Evidence:",0]
[null,null,null,null,null,null,null,null,null,null,null,null,null,null,null,null,null,null,0,null,1,null,null,null,null,null,null,"",0]
[null,null,null,"QI 9","Comprehensive recruitment and retention strategies are based on multiple data sources, and revised as necessary.",null,null,null,null,null,"QI Rating: ",null,null,null,null,null,null,null,0,"#",0,null,null,null,null,null,null,"Comprehensive recruitment and retention strategies are based on multiple data sources, and revised as necessary.","QI Rating: "]
[null,null,null,"a","Strategies are based on data, current research, and stakeholder input.",null,null,null,null,null,"Element Rating:",null,null,null,null,null,null,null,0,{"$f":"IFERROR(VLOOKUP(L119,#REF!,2,FALSE),\"\")","v":""},1,null,null,null,null,null,null,"Strategies are based on data, current research, and stakeholder input.","Element Rating:"]
[null,null,null,null,"Evidence:",null,null,null,null,null,null,null,null,null,null,null,null,null,1,null,1,null,null,null,null,null,null,"Evidence:",0]
[null,null,null,"b","Strategies target discipline-specific shortages.",null,null,null,null,null,"Element Rating:",null,null,null,null,null,null,null,0,{"$f":"IFERROR(VLOOKUP(L121,#REF!,2,FALSE),\"\")","v":""},1,null,null,null,null,null,null,"Strategies target discipline-specific shortages.","Element Rating:"]
[null,null,null,null,"Evidence:",null,null,null,null,null,null,null,null,null,null,null,null,null,1,null,1,null,null,null,null,null,null,"Evidence:",0]
[null,null,null,"c","The effectiveness of strategies is tracked, reviewed annually, and updated as appropriate based on data, current research, and stakeholder input.",null,null,null,null,null,"Element Rating:",null,null,null,null,null,null,null,0,{"$f":"IFERROR(VLOOKUP(L123,#REF!,2,FALSE),\"\")","v":""},1,null,null,null,null,null,null,"The effectiveness of strategies is tracked, reviewed annually, and updated as appropriate based on data, current research, and stakeholder input.","Element Rating:"]
[null,null,null,null,"Evidence:",null,null,null,null,null,null,null,null,null,null,null,null,null,1,null,1,null,null,null,null,null,null,"Evidence:",0]
[null,null,null,null,null,null,null,null,null,null,null,null,null,null,null,null,null,null,0,null,1,null,null,null,null,null,null,"",0]
[null,null,null,"QI 10","Comprehensive recruitment and retention strategies are being implemented across disciplines.",null,null,null,null,null,"QI Rating: ",null,null,null,null,null,null,null,0,"#",0,null,null,null,null,null,null,"Comprehensive recruitment and retention strategies are being implemented across disciplines.","QI Rating: "]
[null,null,null,"a","Strategies include opportunities for advancement through a variety of processes such as articulation between two and four year institutions of higher education and access to career  pathways/ladders.",null,null,null,null,null,"Element Rating:",null,null,null,null,null,null,null,0,{"$f":"IFERROR(VLOOKUP(L127,#REF!,2,FALSE),\"\")","v":""},1,null,null,null,null,null,null,"Strategies include opportunities for advancement through a variety of processes such as articulation between two and four year institutions of higher education and access to career  pathways/ladders.","Element Rating:"]
[null,null,null,null,"Evidence:",null,null,null,null,null,null,null,null,null,null,null,null,null,1,null,1,null,null,null,null,null,null,"Evidence:",0]
[null,null,null,"b","Strategies focus on induction, improving administrative supports, and using a variety of mentoring models to support and retain personnel.",null,null,null,null,null,"Element Rating:",null,null,null,null,null,null,null,0,{"$f":"IFERROR(VLOOKUP(L129,#REF!,2,FALSE),\"\")","v":""},1,null,null,null,null,null,null,"Strategies focus on induction, improving administrative supports, and using a variety of mentoring models to support and retain personnel.","Element Rating:"]
[null,null,null,null,"Evidence:",null,null,null,null,null,null,null,null,null,null,null,null,null,1,null,1,null,null,null,null,null,null,"Evidence:",0]
[null,null,null,"c","Strategies include incentives and recognition programs such as financial compensation, scholarships, service obligations, loan reimbursement and/or tuition reimbursement to improve access to preservice and inservice personnel development.",null,null,null,null,null,"Element Rating:",null,null,null,null,null,null,null,0,{"$f":"IFERROR(VLOOKUP(L131,#REF!,2,FALSE),\"\")","v":""},1,null,null,null,null,null,null,"Strategies include incentives and recognition programs such as financial compensation, scholarships, service obligations, loan reimbursement and/or tuition reimbursement to improve access to preservice and inservice personnel development.","Element Rating:"]
[null,null,null,null,"Evidence:",null,null,null,null,null,null,null,null,null,null,null,null,null,1,null,1,null,null,null,null,null,null,"Evidence:",0]
[null,null,null,"d","Strategies address alternative routes to certification.",null,null,null,null,null,"Element Rating:",null,null,null,null,null,null,null,0,{"$f":"IFERROR(VLOOKUP(L133,#REF!,2,FALSE),\"\")","v":""},1,null,null,null,null,null,null,"Strategies address alternative routes to certification.","Element Rating:"]
[null,null,null,null,"Evidence:",null,null,null,null,null,null,null,null,null,null,null,null,null,1,null,1,null,null,null,null,null,null,"Evidence:",0]
[null,null,null,"e","Strategies address the usefulness of designing and/or participating in online recruitment systems.",null,null,null,null,null,"Element Rating:",null,null,null,null,null,null,null,0,{"$f":"IFERROR(VLOOKUP(L135,#REF!,2,FALSE),\"\")","v":""},1,null,null,null,null,null,null,"Strategies address the usefulness of designing and/or participating in online recruitment systems.","Element Rating:"]
[null,null,null,null,"Evidence:",null,null,null,null,null,null,null,null,null,null,null,null,null,1,null,1,null,null,null,null,null,null,"Evidence:",0]
[null,null,null,null,null,null,null,null,null,null,null,null,null,null,null,null,null,null,0,null,1,null,null,null,null,null,null,"",0]
[null,null,null,"QI 11","The evaluation plan for the CSPD includes processes and mechanisms to collect, store, and analyze data across all subcomponents.",null,null,null,null,null,"QI Rating: ",null,null,null,null,null,null,null,0,"#",0,null,null,null,null,null,null,"The evaluation plan for the CSPD includes processes and mechanisms to collect, store, and analyze data across all subcomponents.","QI Rating: "]
[null,null,null,"a","Decisions regarding priorities for evaluation questions to be addressed and data to be collected are identified when developing the CSPD plan.",null,null,null,null,null,"Element Rating:",null,null,null,null,null,null,null,0,{"$f":"IFERROR(VLOOKUP(L139,#REF!,2,FALSE),\"\")","v":""},1,null,null,null,null,null,null,"Decisions regarding priorities for evaluation questions to be addressed and data to be collected are identified when developing the CSPD plan.","Element Rating:"]
[null,null,null,null,"Evidence:",null,null,null,null,null,null,null,null,null,null,null,null,null,{"$f":"IF(E140=\"Evidence:\",1,0)","v":1},null,1,null,null,null,null,null,null,{"$f":"E140&F140","v":"Evidence:"},0]
[null,null,null,"b","Multiple processes, mechanisms, and methods to collect data are identified and established based on the need for the information, usefulness of potential findings, and burden on respondents and systems.",null,null,null,null,null,"Element Rating:",null,null,null,null,null,null,null,0,{"$f":"IFERROR(VLOOKUP(L141,#REF!,2,FALSE),\"\")","v":""},{"$f":"IF(LEFT(D141,2)=\"QI\",0,1)","v":1},null,null,null,null,null,null,"Multiple processes, mechanisms, and methods to collect data are identified and established based on the need for the information, usefulness of potential findings, and burden on respondents and systems.",{"$f":"K141","v":"Element Rating:"}]
[null,null,null,null,"Evidence:",null,null,null,null,null,null,null,null,null,null,null,null,null,1,null,1,null,null,null,null,null,null,"Evidence:",0]
[null,null,null,"c","The state has the capacity to support data collection, management, and analysis for personnel qualifications, needs assessment, preservice and inservice personnel development, and personnel supply and demand.",null,null,null,null,null,"Element Rating:",null,null,null,null,null,null,null,0,{"$f":"IFERROR(VLOOKUP(L143,#REF!,2,FALSE),\"\")","v":""},1,null,null,null,null,null,null,"The state has the capacity to support data collection, management, and analysis for personnel qualifications, needs assessment, preservice and inservice personnel development, and personnel supply and demand.","Element Rating:"]
[null,null,null,null,"Evidence:",null,null,null,null,null,null,null,null,null,null,null,null,null,1,null,1,null,null,null,null,null,null,"Evidence:",0]
[null,null,null,"d","Quality review processes for data collection, verification, storage and management, and analysis are defined and implemented regularly.",null,null,null,null,null,"Element Rating:",null,null,null,null,null,null,null,0,{"$f":"IFERROR(VLOOKUP(L145,#REF!,2,FALSE),\"\")","v":""},1,null,null,null,null,null,null,"Quality review processes for data collection, verification, storage and management, and analysis are defined and implemented regularly.","Element Rating:"]
[null,null,null,null,"Evidence:",null,null,null,null,null,null,null,null,null,null,null,null,null,1,null,1,null,null,null,null,null,null,"Evidence:",0]
[null,null,null,"e","Personnel data are linked to child and family outcomes.",null,null,null,null,null,"Element Rating:",null,null,null,null,null,null,null,0,{"$f":"IFERROR(VLOOKUP(L147,#REF!,2,FALSE),\"\")","v":""},1,null,null,null,null,null,null,"Personnel data are linked to child and family outcomes.","Element Rating:"]
[null,null,null,null,"Evidence:",null,null,null,null,null,null,null,null,null,null,null,null,null,1,null,1,null,null,null,null,null,null,"Evidence:",0]
[null,null,null,null,null,null,null,null,null,null,null,null,null,null,null,null,null,null,0,null,1,null,null,null,null,null,null,"",0]
[null,null,null,"QI 12","The evaluation plan is implemented, continuously monitored, and revised as necessary based on multiple data sources.",null,null,null,null,null,"QI Rating: ",null,null,null,null,null,null,null,0,"#",0,null,null,null,null,null,null,"The evaluation plan is implemented, continuously monitored, and revised as necessary based on multiple data sources.","QI Rating: "]
[null,null,null,"a","The implementation of the evaluation plan results in data or data summaries and analysis that are useful for decision-making and are accessible across cross-sector early  childhood systems.",null,null,null,null,null,"Element Rating:",null,null,null,null,null,null,null,0,{"$f":"IFERROR(VLOOKUP(L151,#REF!,2,FALSE),\"\")","v":""},1,null,null,null,null,null,null,"The implementation of the evaluation plan results in data or data summaries and analysis that are useful for decision-making and are accessible across cross-sector early  childhood systems.","Element Rating:"]
[null,null,null,null,"Evidence:",null,null,null,null,null,null,null,null,null,null,null,null,null,1,null,1,null,null,null,null,null,null,"Evidence:",0]
[null,null,null,"b","Data are used to inform decisions, monitor progress, and make program improvements.",null,null,null,null,null,"Element Rating:",null,null,null,null,null,null,null,0,{"$f":"IFERROR(VLOOKUP(L153,#REF!,2,FALSE),\"\")","v":""},1,null,null,null,null,null,null,"Data are used to inform decisions, monitor progress, and make program improvements.","Element Rating:"]
[null,null,null,null,"Evidence:",null,null,null,null,null,null,null,null,null,null,null,null,null,1,null,1,null,null,null,null,null,null,"Evidence:",0]
[null,null,null,"c","Data are collected on personnel variables, such as personnel development participation, acquisition of content, and performance of competencies and those data are examined in relation to relevant child and family outcomes.",null,null,null,null,null,"Element Rating:",null,null,null,null,null,null,null,0,{"$f":"IFERROR(VLOOKUP(L155,#REF!,2,FALSE),\"\")","v":""},1,null,null,null,null,null,null,"Data are collected on personnel variables, such as personnel development participation, acquisition of content, and performance of competencies and those data are examined in relation to relevant child and family outcomes.","Element Rating:"]
[null,null,null,null,"Evidence:",null,null,null,null,null,null,null,null,null,null,null,null,null,1,null,1,null,null,null,null,null,null,"Evidence:",0]
[null,null,null,"d","Data are collected on personnel development variables, such as units of personnel development, type and amount of support (e.g. observational feedback, coaching, practica), and content and those data are examined in relation to relevant child and family outcomes.",null,null,null,null,null,"Element Rating:",null,null,null,null,null,null,null,0,{"$f":"IFERROR(VLOOKUP(L157,#REF!,2,FALSE),\"\")","v":""},1,null,null,null,null,null,null,"Data are collected on personnel development variables, such as units of personnel development, type and amount of support (e.g. observational feedback, coaching, practica), and content and those data are examined in relation to relevant child and family outcomes.","Element Rating:"]
[null,null,null,null,"Evidence:",null,null,null,null,null,null,null,null,null,null,null,null,null,1,null,1,null,null,null,null,null,null,"Evidence:",0]
[null,null,null,null,null,null,null,null,null,null,null,null,null,null,null,null,null,null,null,null,null,null,null,null,null,null,null,{"$f":"E159","v":0},0]
[null,null,null,null,null,null,null,null,null,null,null,null,null,null,null,null,null,null,null,null,null,null,null,null,null,null,null,0,0]

{"sheet":"AC","index":6,"n_rows":114,"n_cols":33,"rows_kept":114,"cut":false,"hidden":false,"merged":[[8,15,8,17],[100,10,101,10],[110,10,111,10],[2,3,2,5],[3,4,3,5],[4,4,4,5],[5,4,5,5],[6,4,6,5],[7,4,7,5],[8,4,8,5],[9,4,9,5],[5,8,5,13],[6,8,6,13],[7,8,7,13],[8,8,8,13],[4,7,4,13],[96,10,97,10],[64,10,65,10],[58,10,59,10],[68,10,69,10],[70,10,71,10],[72,10,73,10],[94,10,95,10],[74,10,75,10],[78,10,79,10],[82,10,83,10],[84,10,85,10],[90,10,91,10],[12,10,13,10],[14,10,15,10],[16,10,17,10],[18,10,19,10],[34,10,35,10],[36,10,37,10],[46,10,47,10],[40,10,41,10],[42,10,43,10],[38,10,39,10],[80,10,81,10],[88,10,89,10],[19,5,19,8],[20,4,20,8],[21,5,21,8],[22,4,22,8],[23,5,23,8],[108,10,109,10],[20,10,21,10],[22,10,23,10],[24,10,25,10],[87,4,87,8],[97,5,97,8],[98,10,99,10],[78,4,78,8],[79,5,79,8],[80,4,80,8],[81,5,81,8],[82,4,82,8],[30,10,31,10],[52,10,53,10],[54,10,55,10],[56,10,57,10],[50,10,51,10],[60,10,61,10],[62,10,63,10],[88,19,89,19],[90,19,91,19],[92,19,93,19],[94,19,95,19],[96,19,97,19],[98,19,99,19],[100,19,101,19],[78,19,79,19],[80,19,81,19],[82,19,83,19],[84,19,85,19],[74,19,75,19],[64,19,65,19],[68,19,69,19],[51,5,51,8],[72,4,72,8],[73,5,73,8],[74,4,74,8],[75,5,75,8],[28,19,29,19],[30,19,31,19],[32,19,33,19],[34,19,35,19],[36,19,37,19],[38,19,39,19],[40,19,41,19],[42,19,43,19],[62,19,63,19],[46,19,47,19],[48,19,49,19],[50,19,51,19],[52,19,53,19],[54,19,55,19],[56,19,57,19],[58,19,59,19],[24,4,24,8],[35,5,35,8],[36,4,36,8],[46,4,46,8],[47,5,47,8],[48,4,48,8],[49,5,49,8],[70,19,71,19],[72,19,73,19],[60,19,61,19],[50,4,50,8],[27,4,27,8],[28,4,28,8],[29,5,29,8],[30,4,30,8],[31,5,31,8],[32,4,32,8],[33,5,33,8],[34,4,34,8],[91,5,91,8],[92,4,92,8],[93,5,93,8],[94,4,94,8],[95,5,95,8],[96,4,96,8],[12,19,13,19],[14,19,15,19],[16,19,17,19],[18,19,19,19],[20,19,21,19],[22,19,23,19],[24,19,25,19],[25,5,25,8],[52,4,52,8],[28,10,29,10],[32,10,33,10],[48,10,49,10],[37,5,37,8],[38,4,38,8],[16,4,16,8],[17,5,17,8],[18,4,18,8],[43,5,43,8],[111,5,111,8],[103,4,103,8],[104,4,104,8],[105,5,105,8],[106,4,106,8],[107,5,107,8],[108,4,108,8],[109,5,109,8],[92,10,93,10],[85,5,85,8],[98,4,98,8],[99,5,99,8],[88,4,88,8],[89,5,89,8],[90,4,90,8],[6,32,7,37],[8,32,8,37],[110,4,110,8],[100,4,100,8],[101,5,101,8],[45,4,45,8],[11,4,11,8],[12,4,12,8],[13,5,13,8],[14,4,14,8],[15,5,15,8],[53,5,53,8],[54,4,54,8],[55,5,55,8],[39,5,39,8],[40,4,40,8],[41,5,41,8],[42,4,42,8],[104,19,105,19],[106,19,107,19],[108,19,109,19],[110,19,111,19],[104,10,105,10],[106,10,107,10],[57,5,57,8],[56,4,56,8],[77,4,77,8],[58,4,58,8],[59,5,59,8],[60,4,60,8],[61,5,61,8],[62,4,62,8],[63,5,63,8],[64,4,64,8],[65,5,65,8],[67,4,67,8],[68,4,68,8],[69,5,69,8],[70,4,70,8],[71,5,71,8],[83,5,83,8],[84,4,84,8]]}
[null,null,null,"Accountability and Quality Improvement"]
[]
[null,null,null,"Quality Indicator Rating (Calculated)"]
[null,null,null,1,"None of the elements is yet planned or in place.  "]
[null,null,null,2,"Most of the elements are not yet planned or in place. ",null,null,"Element of Quality Rating (EQR) [Imported from T1, T2, T3]"]
[null,null,null,3,"Some elements are in place; a few may be fully implemented.",null,null,1,"No - element not in place and not planning to work on it at this time"]
[null,null,null,4,"At least half of the elements are in place; a few may be fully implemented.",null,null,2,"No - element not in place but planning to work on it or getting started",null,null,null,null,null,null,null,null,null,null,null,null,null,null,null,null,null,null,null,null,null,null,null,{"$f":"IF(ISERROR(FIND(\"Subcomponent\",D1)),D1,\"DS: \"&MID(D1,18,99))","v":"Accountability and Quality Improvement"}]
[null,null,null,5,"At least half of the elements are in place; some are fully implemented.",null,null,3,"Yes - element partially implemented"]
[null,null,null,6,"At least half of the elements are fully implemented; the rest are partially implemented.",null,null,4,"Yes - element fully implemented",null,null,null,null,null,null,"PRIORITY",null,null,null,null,null,null,null,null,null,null,null,null,null,null,null,null,"Quality Indicator Ratings"]
[null,null,null,7,"All elements are fully implemented.",null,null,null,null,null,null,"TIME1","TIME2","TIME3",null,"TIME1","TIME2","TIME3"]
[null,null,{"$f":"MID(CELL(\"Filename\",C1),FIND(\"]\",CELL(\"Filename\",C1))+1,255)","v":"AC"},null,null,null,null,null,null,null,"Date:",null,null,null,null,null,null,null,null,null,null,null,null,null,null,null,null,{"$f":"E11&F11","v":""}]
[null,null,null,"QI 1","Ongoing statewide planning for accountability and improvement at all levels is informed by data and reflects strong leadership and commitment to positive outcomes for children and their families.",null,null,null,null,null,"QI Rating: ",null,null,null,null,null,null,null,{"$f":"IF(E12=\"Evidence:\",1,0)","v":0},"#",{"$f":"IF(LEFT(D12,2)=\"QI\",0,1)","v":0},null,null,null,null,null,null,{"$f":"E12&F12","v":"Ongoing statewide planning for accountability and improvement at all levels is informed by data and reflects strong leadership and commitment to positive outcomes for children and their families."},{"$f":"K12","v":"QI Rating: "}]
[null,null,null,"a","Planning for accountability and improvement is aligned with the vision, mission and purpose of Part C or 619.",null,null,null,null,null,"Element Rating:",null,null,null,null,null,null,null,0,{"$f":"IFERROR(VLOOKUP(L13,#REF!,2,FALSE),\"\")","v":""},{"$f":"IF(LEFT(D13,2)=\"QI\",0,1)","v":1},null,null,null,null,null,null,"Planning for accountability and improvement is aligned with the vision, mission and purpose of Part C or 619.",{"$f":"K13","v":"Element Rating:"}]
[null,null,null,null,"Evidence:",null,null,null,null,null,null,null,null,null,null,null,null,null,1,null,1,null,null,null,null,null,null,"Evidence:",0]
[null,null,null,"b","An accountability and improvement plan is used to inform policy decisions and actions related to the accountability and ongoing improvement of the system.",null,null,null,null,null,"Element Rating:",null,null,null,null,null,null,null,0,{"$f":"IFERROR(VLOOKUP(L15,#REF!,2,FALSE),\"\")","v":""},1,null,null,null,null,null,null,"An accountability and improvement plan is used to inform policy decisions and actions related to the accountability and ongoing improvement of the system.","Element Rating:"]
[null,null,null,null,"Evidence:",null,null,null,null,null,null,null,null,null,null,null,null,null,1,null,1,null,null,null,null,null,null,"Evidence:",0]
[null,null,null,"c","Stakeholders are engaged on an ongoing basis to inform development, implementation and revisions to the accountability and improvement plan.",null,null,null,null,null,"Element Rating:",null,null,null,null,null,null,null,0,{"$f":"IFERROR(VLOOKUP(L17,#REF!,2,FALSE),\"\")","v":""},1,null,null,null,null,null,null,"Stakeholders are engaged on an ongoing basis to inform development, implementation and revisions to the accountability and improvement plan.","Element Rating:"]
[null,null,null,null,"Evidence:",null,null,null,null,null,null,null,null,null,null,null,null,null,1,null,1,null,null,null,null,null,null,"Evidence:",0]
[null,null,null,"d","The accountability and improvement plan is readily available and accessible (e.g., other formats, languages) to the public.",null,null,null,null,null,"Element Rating:",null,null,null,null,null,null,null,0,{"$f":"IFERROR(VLOOKUP(L19,#REF!,2,FALSE),\"\")","v":""},1,null,null,null,null,null,null,"The accountability and improvement plan is readily available and accessible (e.g., other formats, languages) to the public.","Element Rating:"]
[null,null,null,null,"Evidence:",null,null,null,null,null,null,null,null,null,null,null,null,null,1,null,1,null,null,null,null,null,null,"Evidence:",0]
[null,null,null,"e","State leadership ensures that each element of the accountability and improvement plan is executed in a timely, efficient and effective manner.",null,null,null,null,null,"Element Rating:",null,null,null,null,null,null,null,0,{"$f":"IFERROR(VLOOKUP(L21,#REF!,2,FALSE),\"\")","v":""},1,null,null,null,null,null,null,"State leadership ensures that each element of the accountability and improvement plan is executed in a timely, efficient and effective manner.","Element Rating:"]
[null,null,null,null,"Evidence:",null,null,null,null,null,null,null,null,null,null,null,null,null,1,null,1,null,null,null,null,null,null,"Evidence:",0]
[null,null,null,"f","The accountability and improvement plan is aligned with and informed by other quality improvement initiatives within and across agencies.",null,null,null,null,null,"Element Rating:",null,null,null,null,null,null,null,0,{"$f":"IFERROR(VLOOKUP(L23,#REF!,2,FALSE),\"\")","v":""},1,null,null,null,null,null,null,"The accountability and improvement plan is aligned with and informed by other quality improvement initiatives within and across agencies.","Element Rating:"]
[null,null,null,null,"Evidence:",null,null,null,null,null,null,null,null,null,null,null,null,null,1,null,1,null,null,null,null,null,null,"Evidence:",0]
[null,null,null,"g","The accountability and improvement plan is reviewed and revised as necessary based on how well the plan monitors the implementation and effectiveness of the system.",null,null,null,null,null,"Element Rating:",null,null,null,null,null,null,null,0,{"$f":"IFERROR(VLOOKUP(L25,#REF!,2,FALSE),\"\")","v":""},1,null,null,null,null,null,null,"The accountability and improvement plan is reviewed and revised as necessary based on how well the plan monitors the implementation and effectiveness of the system.","Element Rating:"]
[null,null,null,null,"Evidence:",null,null,null,null,null,null,null,null,null,null,null,null,null,1,null,1,null,null,null,null,null,null,"Evidence:",0]
[null,null,null,null,null,null,null,null,null,null,null,null,null,null,null,null,null,null,0,null,1,null,null,null,null,null,null,"",0]
[null,null,null,"QI 2","A written accountability and improvement plan includes details necessary to implement an ongoing effective statewide accountability and improvement system at all levels.",null,null,null,null,null,"QI Rating: ",null,null,null,null,null,null,null,0,"#",0,null,null,null,null,null,null,"A written accountability and improvement plan includes details necessary to implement an ongoing effective statewide accountability and improvement system at all levels.","QI Rating: "]
[null,null,null,"a","The goals of the accountability and improvement system are defined in the written accountability and improvement plan.",null,null,null,null,null,"Element Rating:",null,null,null,null,null,null,null,0,{"$f":"IFERROR(VLOOKUP(L29,#REF!,2,FALSE),\"\")","v":""},1,null,null,null,null,null,null,"The goals of the accountability and improvement system are defined in the written accountability and improvement plan.","Element Rating:"]
[null,null,null,null,"Evidence:",null,null,null,null,null,null,null,null,null,null,null,null,null,1,null,1,null,null,null,null,null,null,"Evidence:",0]
[null,null,null,"b","The accountability and improvement plan includes mechanisms for implementing informal and formal dispute resolution procedures (e.g. administrative complaints, due process hearings, mediation) as needed as part of the accountability and improvement system.",null,null,null,null,null,"Element Rating:",null,null,null,null,null,null,null,0,{"$f":"IFERROR(VLOOKUP(L31,#REF!,2,FALSE),\"\")","v":""},1,null,null,null,null,null,null,"The accountability and improvement plan includes mechanisms for implementing informal and formal dispute resolution procedures (e.g. administrative complaints, due process hearings, mediation) as needed as part of the accountability and improvement system.","Element Rating:"]
[null,null,null,null,"Evidence:",null,null,null,null,null,null,null,null,null,null,null,null,null,1,null,1,null,null,null,null,null,null,"Evidence:",0]
[null,null,null,"c","Expectations for system performance (e.g. targets, benchmarks, indicators) are clearly identified and described in the accountability and improvement plan.",null,null,null,null,null,"Element Rating:",null,null,null,null,null,null,null,0,{"$f":"IFERROR(VLOOKUP(L33,#REF!,2,FALSE),\"\")","v":""},1,null,null,null,null,null,null,"Expectations for system performance (e.g. targets, benchmarks, indicators) are clearly identified and described in the accountability and improvement plan.","Element Rating:"]
[null,null,null,null,"Evidence:",null,null,null,null,null,null,null,null,null,null,null,null,null,1,null,1,null,null,null,null,null,null,"Evidence:",0]
[null,null,null,"d","The accountability and improvement plan includes performance measures to collect data that can be used to make data-informed decisions related to accountability and improvement.",null,null,null,null,null,"Element Rating:",null,null,null,null,null,null,null,0,{"$f":"IFERROR(VLOOKUP(L35,#REF!,2,FALSE),\"\")","v":""},1,null,null,null,null,null,null,"The accountability and improvement plan includes performance measures to collect data that can be used to make data-informed decisions related to accountability and improvement.","Element Rating:"]
[null,null,null,null,"Evidence:",null,null,null,null,null,null,null,null,null,null,null,null,null,1,null,1,null,null,null,null,null,null,"Evidence:",0]
[null,null,null,"e","The accountability and improvement plan includes mechanisms for collecting valid and reliable data (e.g. record review, surveys, self-assessment, electronic child records) for accountability, program evaluation and quality improvement.",null,null,null,null,null,"Element Rating:",null,null,null,null,null,null,null,0,{"$f":"IFERROR(VLOOKUP(L37,#REF!,2,FALSE),\"\")","v":""},1,null,null,null,null,null,null,"The accountability and improvement plan includes mechanisms for collecting valid and reliable data (e.g. record review, surveys, self-assessment, electronic child records) for accountability, program evaluation and quality improvement.","Element Rating:"]
[null,null,null,null,"Evidence:",null,null,null,null,null,null,null,null,null,null,null,null,null,1,null,1,null,null,null,null,null,null,"Evidence:",0]
[null,null,null,"f","The accountability and improvement plan includes processes and timelines for collection, analyses and making data-informed decisions based on performance data.",null,null,null,null,null,"Element Rating:",null,null,null,null,null,null,null,0,{"$f":"IFERROR(VLOOKUP(L39,#REF!,2,FALSE),\"\")","v":""},1,null,null,null,null,null,null,"The accountability and improvement plan includes processes and timelines for collection, analyses and making data-informed decisions based on performance data.","Element Rating:"]
[null,null,null,null,"Evidence:",null,null,null,null,null,null,null,null,null,null,null,null,null,1,null,1,null,null,null,null,null,null,"Evidence:",0]
[null,null,null,"g","The accountability and improvement plan addresses the use of data to measure performance and identify trends, root causes and improvement strategies at the state, regional and/or local levels of the system.",null,null,null,null,null,"Element Rating:",null,null,null,null,null,null,null,0,{"$f":"IFERROR(VLOOKUP(L41,#REF!,2,FALSE),\"\")","v":""},1,null,null,null,null,null,null,"The accountability and improvement plan addresses the use of data to measure performance and identify trends, root causes and improvement strategies at the state, regional and/or local levels of the system.","Element Rating:"]
[null,null,null,null,"Evidence:",null,null,null,null,null,null,null,null,null,null,null,null,null,1,null,1,null,null,null,null,null,null,"Evidence:",0]
[null,null,null,"h","An accountability and improvement plan includes processes that allow for necessary adjustments to strategies (e.g. professional development, incentives, sanctions) based on data to enhance accountability and improvement.",null,null,null,null,null,"Element Rating:",null,null,null,null,null,null,null,0,{"$f":"IFERROR(VLOOKUP(L43,#REF!,2,FALSE),\"\")","v":""},1,null,null,null,null,null,null,"An accountability and improvement plan includes processes that allow for necessary adjustments to strategies (e.g. professional development, incentives, sanctions) based on data to enhance accountability and improvement.","Element Rating:"]
[null,null,null,null,"Evidence:",null,null,null,null,null,null,null,null,null,null,null,null,null,1,null,1,null,null,null,null,null,null,"Evidence:",0]
[null,null,null,null,null,null,null,null,null,null,null,null,null,null,null,null,null,null,0,null,1,null,null,null,null,null,null,"",0]
[null,null,null,"QI 3","Part C and 619 state staff and representatives collect adequate data to determine the quality and results of the system and services.",null,null,null,null,null,"QI Rating: ",null,null,null,null,null,null,null,0,"#",0,null,null,null,null,null,null,"Part C and 619 state staff and representatives collect adequate data to determine the quality and results of the system and services.","QI Rating: "]
[null,null,null,"a","Quantitative and qualitative data collection methods are used to provide data to answer questions that measure progress toward the identified outcomes.",null,null,null,null,null,"Element Rating:",null,null,null,null,null,null,null,0,{"$f":"IFERROR(VLOOKUP(L47,#REF!,2,FALSE),\"\")","v":""},1,null,null,null,null,null,null,"Quantitative and qualitative data collection methods are used to provide data to answer questions that measure progress toward the identified outcomes.","Element Rating:"]
[null,null,null,null,"Evidence:",null,null,null,null,null,null,null,null,null,null,null,null,null,1,null,1,null,null,null,null,null,null,"Evidence:",0]
[null,null,null,"b","Stakeholders are involved in the development of data collection tools or instruments as necessary.",null,null,null,null,null,"Element Rating:",null,null,null,null,null,null,null,0,{"$f":"IFERROR(VLOOKUP(L49,#REF!,2,FALSE),\"\")","v":""},1,null,null,null,null,null,null,"Stakeholders are involved in the development of data collection tools or instruments as necessary.","Element Rating:"]
[null,null,null,null,"Evidence:",null,null,null,null,null,null,null,null,null,null,null,null,null,1,null,1,null,null,null,null,null,null,"Evidence:",0]
[null,null,null,"c","Data collection methods are designed to address what is needed to meet Federal and state requirements.",null,null,null,null,null,"Element Rating:",null,null,null,null,null,null,null,0,{"$f":"IFERROR(VLOOKUP(L51,#REF!,2,FALSE),\"\")","v":""},1,null,null,null,null,null,null,"Data collection methods are designed to address what is needed to meet Federal and state requirements.","Element Rating:"]
[null,null,null,null,"Evidence:",null,null,null,null,null,null,null,null,null,null,null,null,null,1,null,1,null,null,null,null,null,null,"Evidence:",0]
[null,null,null,"d","Data are collected to monitor the appropriateness of outcomes/goals, services, frequency, intensity and settings/environments.",null,null,null,null,null,"Element Rating:",null,null,null,null,null,null,null,0,{"$f":"IFERROR(VLOOKUP(L53,#REF!,2,FALSE),\"\")","v":""},1,null,null,null,null,null,null,"Data are collected to monitor the appropriateness of outcomes/goals, services, frequency, intensity and settings/environments.","Element Rating:"]
[null,null,null,null,"Evidence:",null,null,null,null,null,null,null,null,null,null,null,null,null,1,null,1,null,null,null,null,null,null,"Evidence:",0]
[null,null,null,"e","State Part C and 619 staff implement procedures to ensure data collected are verified and are of high quality (e.g. valid, reliable, accurate, timely).",null,null,null,null,null,"Element Rating:",null,null,null,null,null,null,null,0,{"$f":"IFERROR(VLOOKUP(L55,#REF!,2,FALSE),\"\")","v":""},1,null,null,null,null,null,null,"State Part C and 619 staff implement procedures to ensure data collected are verified and are of high quality (e.g. valid, reliable, accurate, timely).","Element Rating:"]
[null,null,null,null,"Evidence:",null,null,null,null,null,null,null,null,null,null,null,null,null,1,null,1,null,null,null,null,null,null,"Evidence:",0]
[null,null,null,"f","Data are collected on a regular basis and the type and amount collected is intentional based on priorities included in the accountability and improvement plan for accountability and improvement.",null,null,null,null,null,"Element Rating:",null,null,null,null,null,null,null,0,{"$f":"IFERROR(VLOOKUP(L57,#REF!,2,FALSE),\"\")","v":""},1,null,null,null,null,null,null,"Data are collected on a regular basis and the type and amount collected is intentional based on priorities included in the accountability and improvement plan for accountability and improvement.","Element Rating:"]
[null,null,null,null,"Evidence:",null,null,null,null,null,null,null,null,null,null,null,null,null,1,null,1,null,null,null,null,null,null,"Evidence:",0]
[null,null,null,"g","Data collection methods measure fidelity of interventions and determine quality and/or the effectiveness of intervention approaches/strategies.",null,null,null,null,null,"Element Rating:",null,null,null,null,null,null,null,0,{"$f":"IFERROR(VLOOKUP(L59,#REF!,2,FALSE),\"\")","v":""},1,null,null,null,null,null,null,"Data collection methods measure fidelity of interventions and determine quality and/or the effectiveness of intervention approaches/strategies.","Element Rating:"]
[null,null,null,null,"Evidence:",null,null,null,null,null,null,null,null,null,null,null,null,null,1,null,1,null,null,null,null,null,null,"Evidence:",0]
[null,null,null,"h","Individuals collecting performance data possess required knowledge and competence in data collection and have access to ongoing support and training in this area.",null,null,null,null,null,"Element Rating:",null,null,null,null,null,null,null,0,{"$f":"IFERROR(VLOOKUP(L61,#REF!,2,FALSE),\"\")","v":""},1,null,null,null,null,null,null,"Individuals collecting performance data possess required knowledge and competence in data collection and have access to ongoing support and training in this area.","Element Rating:"]
[null,null,null,null,"Evidence:",null,null,null,null,null,null,null,null,null,null,null,null,null,1,null,1,null,null,null,null,null,null,"Evidence:",0]
[null,null,null,"i","Selected data collection methods are coordinated across early care and education programs, are integrated with each other and do not duplicate effort.",null,null,null,null,null,"Element Rating:",null,null,null,null,null,null,null,0,{"$f":"IFERROR(VLOOKUP(L63,#REF!,2,FALSE),\"\")","v":""},1,null,null,null,null,null,null,"Selected data collection methods are coordinated across early care and education programs, are integrated with each other and do not duplicate effort.","Element Rating:"]
[null,null,null,null,"Evidence:",null,null,null,null,null,null,null,null,null,null,null,null,null,1,null,1,null,null,null,null,null,null,"Evidence:",0]
[null,null,null,"j","State Part C and 619 staff review and revise data collection methods as necessary to meet changing circumstances and ensure collection of needed data.",null,null,null,null,null,"Element Rating:",null,null,null,null,null,null,null,0,{"$f":"IFERROR(VLOOKUP(L65,#REF!,2,FALSE),\"\")","v":""},1,null,null,null,null,null,null,"State Part C and 619 staff review and revise data collection methods as necessary to meet changing circumstances and ensure collection of needed data.","Element Rating:"]
[null,null,null,null,"Evidence:",null,null,null,null,null,null,null,null,null,null,null,null,null,1,null,1,null,null,null,null,null,null,"Evidence:",0]
[null,null,null,null,null,null,null,null,null,null,null,null,null,null,null,null,null,null,0,null,1,null,null,null,null,null,null,"",0]
[null,null,null,"QI 4","Leadership at all levels have sufficient information to make accountability and improvement decisions.",null,null,null,null,null,"QI Rating: ",null,null,null,null,null,null,null,0,"#",0,null,null,null,null,null,null,"Leadership at all levels have sufficient information to make accountability and improvement decisions.","QI Rating: "]
[null,null,null,"a","Leaders at all levels analyze data quality (e.g. valid, reliable, accurate, timely) to make informed decisions for accountability and improvement.",null,null,null,null,null,"Element Rating:",null,null,null,null,null,null,null,0,{"$f":"IFERROR(VLOOKUP(L69,#REF!,2,FALSE),\"\")","v":""},1,null,null,null,null,null,null,"Leaders at all levels analyze data quality (e.g. valid, reliable, accurate, timely) to make informed decisions for accountability and improvement.","Element Rating:"]
[null,null,null,null,"Evidence:",null,null,null,null,null,null,null,null,null,null,null,null,null,1,null,1,null,null,null,null,null,null,"Evidence:",0]
[null,null,null,"b","Leaders at all levels analyze and disaggregate data by programs/agencies, demographics and other variables to make conclusions about performance in relation to the targets.",null,null,null,null,null,"Element Rating:",null,null,null,null,null,null,null,0,{"$f":"IFERROR(VLOOKUP(L71,#REF!,2,FALSE),\"\")","v":""},1,null,null,null,null,null,null,"Leaders at all levels analyze and disaggregate data by programs/agencies, demographics and other variables to make conclusions about performance in relation to the targets.","Element Rating:"]
[null,null,null,null,"Evidence:",null,null,null,null,null,null,null,null,null,null,null,null,null,1,null,1,null,null,null,null,null,null,"Evidence:",0]
[null,null,null,"c","Data collected assist stakeholders and leaders at all levels in making data-informed decisions about how to enhance progress towards the intended results.",null,null,null,null,null,"Element Rating:",null,null,null,null,null,null,null,0,{"$f":"IFERROR(VLOOKUP(L73,#REF!,2,FALSE),\"\")","v":""},1,null,null,null,null,null,null,"Data collected assist stakeholders and leaders at all levels in making data-informed decisions about how to enhance progress towards the intended results.","Element Rating:"]
[null,null,null,null,"Evidence:",null,null,null,null,null,null,null,null,null,null,null,null,null,1,null,1,null,null,null,null,null,null,"Evidence:",0]
[null,null,null,"d","Conclusions about local, regional and state performance are available for developing strategies that yield sustainable improvement.",null,null,null,null,null,"Element Rating:",null,null,null,null,null,null,null,0,{"$f":"IFERROR(VLOOKUP(L75,#REF!,2,FALSE),\"\")","v":""},1,null,null,null,null,null,null,"Conclusions about local, regional and state performance are available for developing strategies that yield sustainable improvement.","Element Rating:"]
[null,null,null,null,"Evidence:",null,null,null,null,null,null,null,null,null,null,null,null,null,{"$f":"IF(E76=\"Evidence:\",1,0)","v":1},null,1,null,null,null,null,null,null,{"$f":"E76&F76","v":"Evidence:"},0]
[null,null,null,null,null,null,null,null,null,null,null,null,null,null,null,null,null,null,0,null,{"$f":"IF(LEFT(D77,2)=\"QI\",0,1)","v":1},null,null,null,null,null,null,"",{"$f":"K77","v":0}]
[null,null,null,"QI 5","Leadership at all levels, as appropriate, communicate and publicly report data and information through a variety of methods to document performance and evaluation results.",null,null,null,null,null,"QI Rating: ",null,null,null,null,null,null,null,0,"#",0,null,null,null,null,null,null,"Leadership at all levels, as appropriate, communicate and publicly report data and information through a variety of methods to document performance and evaluation results.","QI Rating: "]
[null,null,null,"a","The state Part C and 619 systems have effective and efficient procedures in place to report data that adhere to applicable laws and regulations including timelines, content requirements, and privacy requirements.",null,null,null,null,null,"Element Rating:",null,null,null,null,null,null,null,0,{"$f":"IFERROR(VLOOKUP(L79,#REF!,2,FALSE),\"\")","v":""},1,null,null,null,null,null,null,"The state Part C and 619 systems have effective and efficient procedures in place to report data that adhere to applicable laws and regulations including timelines, content requirements, and privacy requirements.","Element Rating:"]
[null,null,null,null,"Evidence:",null,null,null,null,null,null,null,null,null,null,null,null,null,1,null,1,null,null,null,null,null,null,"Evidence:",0]
[null,null,null,"b","Performance data and desired messages (e.g. Annual Performance Report (APR), publicly reported data, legislative reports, monitoring reports, dispute resolution data) are accessible to relevant stakeholders using clear and concise reporting methods.",null,null,null,null,null,"Element Rating:",null,null,null,null,null,null,null,0,{"$f":"IFERROR(VLOOKUP(L81,#REF!,2,FALSE),\"\")","v":""},1,null,null,null,null,null,null,"Performance data and desired messages (e.g. Annual Performance Report (APR), publicly reported data, legislative reports, monitoring reports, dispute resolution data) are accessible to relevant stakeholders using clear and concise reporting methods.","Element Rating:"]
[null,null,null,null,"Evidence:",null,null,null,null,null,null,null,null,null,null,null,null,null,1,null,1,null,null,null,null,null,null,"Evidence:",0]
[null,null,null,"c","Monitoring and dispute resolution reports communicating data-informed conclusions  are issued to programs identifying regional and/or local performance, including findings of noncompliance and actions needed to make improvement and ensure correction.",null,null,null,null,null,"Element Rating:",null,null,null,null,null,null,null,0,{"$f":"IFERROR(VLOOKUP(L83,#REF!,2,FALSE),\"\")","v":""},1,null,null,null,null,null,null,"Monitoring and dispute resolution reports communicating data-informed conclusions  are issued to programs identifying regional and/or local performance, including findings of noncompliance and actions needed to make improvement and ensure correction.","Element Rating:"]
[null,null,null,null,"Evidence:",null,null,null,null,null,null,null,null,null,null,null,null,null,1,null,1,null,null,null,null,null,null,"Evidence:",0]
[null,null,null,"d","Leaders at all levels evaluate methods used to communicate data-based conclusions on an ongoing basis and revise as necessary.",null,null,null,null,null,"Element Rating:",null,null,null,null,null,null,null,0,{"$f":"IFERROR(VLOOKUP(L85,#REF!,2,FALSE),\"\")","v":""},1,null,null,null,null,null,null,"Leaders at all levels evaluate methods used to communicate data-based conclusions on an ongoing basis and revise as necessary.","Element Rating:"]
[null,null,null,null,"Evidence:",null,null,null,null,null,null,null,null,null,null,null,null,null,1,null,1,null,null,null,null,null,null,"Evidence:",0]
[null,null,null,null,null,null,null,null,null,null,null,null,null,null,null,null,null,null,0,null,1,null,null,null,null,null,null,"",0]
[null,null,null,"QI 6","Leadership at all levels use strategies to support continuous improvement to achieve expectations, as articulated in the accountability and improvement plan.",null,null,null,null,null,"QI Rating: ",null,null,null,null,null,null,null,0,"#",0,null,null,null,null,null,null,"Leadership at all levels use strategies to support continuous improvement to achieve expectations, as articulated in the accountability and improvement plan.","QI Rating: "]
[null,null,null,"a","Part C and 619 state staff use data-informed decisions to target state resources and support (e.g. fiscal, human resources, technical assistance and professional development) for effective accountability and continuous improvement.",null,null,null,null,null,"Element Rating:",null,null,null,null,null,null,null,0,{"$f":"IFERROR(VLOOKUP(L89,#REF!,2,FALSE),\"\")","v":""},1,null,null,null,null,null,null,"Part C and 619 state staff use data-informed decisions to target state resources and support (e.g. fiscal, human resources, technical assistance and professional development) for effective accountability and continuous improvement.","Element Rating:"]
[null,null,null,null,"Evidence:",null,null,null,null,null,null,null,null,null,null,null,null,null,1,null,1,null,null,null,null,null,null,"Evidence:",0]
[null,null,null,"b","Improvement planning processes incorporate evidence-based practices to achieve intended results.",null,null,null,null,null,"Element Rating:",null,null,null,null,null,null,null,0,{"$f":"IFERROR(VLOOKUP(L91,#REF!,2,FALSE),\"\")","v":""},1,null,null,null,null,null,null,"Improvement planning processes incorporate evidence-based practices to achieve intended results.","Element Rating:"]
[null,null,null,null,"Evidence:",null,null,null,null,null,null,null,null,null,null,null,null,null,1,null,1,null,null,null,null,null,null,"Evidence:",0]
[null,null,null,"c","Part C and 619 state staff support continuous improvement by local educational agencies/early intervention service (LEAs/EIS) programs, through a variety of strategies (e.g. technical assistance, corrective action or improvement plans, IDEA Determinations, sanctions) designed to meet federal and state requirements and move toward achieving the goals of the accountability and improvement plan.",null,null,null,null,null,"Element Rating:",null,null,null,null,null,null,null,0,{"$f":"IFERROR(VLOOKUP(L93,#REF!,2,FALSE),\"\")","v":""},1,null,null,null,null,null,null,"Part C and 619 state staff support continuous improvement by local educational agencies/early intervention service (LEAs/EIS) programs, through a variety of strategies (e.g. technical assistance, corrective action or improvement plans, IDEA Determinations, sanctions) designed to meet federal and state requirements and move toward achieving the goals of the accountability and improvement plan.","Element Rating:"]
[null,null,null,null,"Evidence:",null,null,null,null,null,null,null,null,null,null,null,null,null,1,null,1,null,null,null,null,null,null,"Evidence:",0]
[null,null,null,"d","Leaders at all levels use data on fidelity of implementation to improve intervention practices.",null,null,null,null,null,"Element Rating:",null,null,null,null,null,null,null,0,{"$f":"IFERROR(VLOOKUP(L95,#REF!,2,FALSE),\"\")","v":""},1,null,null,null,null,null,null,"Leaders at all levels use data on fidelity of implementation to improve intervention practices.","Element Rating:"]
[null,null,null,null,"Evidence:",null,null,null,null,null,null,null,null,null,null,null,null,null,1,null,1,null,null,null,null,null,null,"Evidence:",0]
[null,null,null,"e","Continuous improvement activities are aligned with existing early childhood and education initiatives whenever appropriate.",null,null,null,null,null,"Element Rating:",null,null,null,null,null,null,null,0,{"$f":"IFERROR(VLOOKUP(L97,#REF!,2,FALSE),\"\")","v":""},1,null,null,null,null,null,null,"Continuous improvement activities are aligned with existing early childhood and education initiatives whenever appropriate.","Element Rating:"]
[null,null,null,null,"Evidence:",null,null,null,null,null,null,null,null,null,null,null,null,null,1,null,1,null,null,null,null,null,null,"Evidence:",0]
[null,null,null,"f","Part C and 619 state staff verify timely correction of noncompliance to support overall systems improvement leading to improved access and outcomes for children with disabilities.",null,null,null,null,null,"Element Rating:",null,null,null,null,null,null,null,0,{"$f":"IFERROR(VLOOKUP(L99,#REF!,2,FALSE),\"\")","v":""},1,null,null,null,null,null,null,"Part C and 619 state staff verify timely correction of noncompliance to support overall systems improvement leading to improved access and outcomes for children with disabilities.","Element Rating:"]
[null,null,null,null,"Evidence:",null,null,null,null,null,null,null,null,null,null,null,null,null,1,null,1,null,null,null,null,null,null,"Evidence:",0]
[null,null,null,"g","Strategies that are used to support improvement are reviewed and revised as necessary to ensure improvement occurs and is maintained.",null,null,null,null,null,"Element Rating:",null,null,null,null,null,null,null,0,{"$f":"IFERROR(VLOOKUP(L101,#REF!,2,FALSE),\"\")","v":""},1,null,null,null,null,null,null,"Strategies that are used to support improvement are reviewed and revised as necessary to ensure improvement occurs and is maintained.","Element Rating:"]
[null,null,null,null,"Evidence:",null,null,null,null,null,null,null,null,null,null,null,null,null,1,null,1,null,null,null,null,null,null,"Evidence:",0]
[null,null,null,null,null,null,null,null,null,null,null,null,null,null,null,null,null,null,0,null,1,null,null,null,null,null,null,"",0]
[null,null,null,"QI 7","Leadership at all levels work to enhance capacity to use data-informed practices to implement effective accountability and improvement schemes.",null,null,null,null,null,"QI Rating: ",null,null,null,null,null,null,null,0,"#",0,null,null,null,null,null,null,"Leadership at all levels work to enhance capacity to use data-informed practices to implement effective accountability and improvement schemes.","QI Rating: "]
[null,null,null,"a","Technical assistance and/or professional development activities are targeted toward the knowledge and skills needed at the state and local level to use data-informed practices, including identifying and correcting noncompliance and improving results performance.",null,null,null,null,null,"Element Rating:",null,null,null,null,null,null,null,0,{"$f":"IFERROR(VLOOKUP(L105,#REF!,2,FALSE),\"\")","v":""},1,null,null,null,null,null,null,"Technical assistance and/or professional development activities are targeted toward the knowledge and skills needed at the state and local level to use data-informed practices, including identifying and correcting noncompliance and improving results performance.","Element Rating:"]
[null,null,null,null,"Evidence:",null,null,null,null,null,null,null,null,null,null,null,null,null,1,null,1,null,null,null,null,null,null,"Evidence:",0]
[null,null,null,"b","Multiple professional development activities and supports (e.g. coaching, mentoring, training, peer to peer support) are aligned to enhance knowledge and skills related to using data to make program improvements.",null,null,null,null,null,"Element Rating:",null,null,null,null,null,null,null,0,{"$f":"IFERROR(VLOOKUP(L107,#REF!,2,FALSE),\"\")","v":""},1,null,null,null,null,null,null,"Multiple professional development activities and supports (e.g. coaching, mentoring, training, peer to peer support) are aligned to enhance knowledge and skills related to using data to make program improvements.","Element Rating:"]
[null,null,null,null,"Evidence:",null,null,null,null,null,null,null,null,null,null,null,null,null,1,null,1,null,null,null,null,null,null,"Evidence:",0]
[null,null,null,"c","State and local leaders use mechanisms to track and inform improvement to practices and results over time.",null,null,null,null,null,"Element Rating:",null,null,null,null,null,null,null,0,{"$f":"IFERROR(VLOOKUP(L109,#REF!,2,FALSE),\"\")","v":""},1,null,null,null,null,null,null,"State and local leaders use mechanisms to track and inform improvement to practices and results over time.","Element Rating:"]
[null,null,null,null,"Evidence:",null,null,null,null,null,null,null,null,null,null,null,null,null,1,null,1,null,null,null,null,null,null,"Evidence:",0]
[null,null,null,"d","Technical assistance and professional development activities designed to enhance capacity at all levels are reviewed and revised as necessary.",null,null,null,null,null,"Element Rating:",null,null,null,null,null,null,null,0,{"$f":"IFERROR(VLOOKUP(L111,#REF!,2,FALSE),\"\")","v":""},1,null,null,null,null,null,null,"Technical assistance and professional development activities designed to enhance capacity at all levels are reviewed and revised as necessary.","Element Rating:"]
[null,null,null,null,"Evidence:",null,null,null,null,null,null,null,null,null,null,null,null,null,1,null,1,null,null,null,null,null,null,"Evidence:",0]
[null,null,null,null,null,null,null,null,null,null,null,null,null,null,null,null,null,null,null,null,null,null,null,null,null,null,null,"",0]
[null,null,null,null,null,null,null,null,null,null,null,null,null,null,null,null,null,null,null,null,null,null,null,null,null,null,null,{"$f":"E114","v":0},0]

{"sheet":"QS","index":7,"n_rows":118,"n_cols":33,"rows_kept":118,"cut":false,"hidden":false,"merged":[[114,10,115,10],[104,10,105,10],[106,10,107,10],[108,10,109,10],[102,10,103,10],[110,10,111,10],[92,10,93,10],[58,10,59,10],[54,10,55,10],[62,10,63,10],[82,10,83,10],[78,10,79,10],[76,10,77,10],[64,10,65,10],[66,10,67,10],[70,10,71,10],[98,10,99,10],[94,10,95,10],[96,10,97,10],[72,10,73,10],[74,10,75,10],[69,5,69,8],[8,15,8,17],[90,10,91,10],[86,10,87,10],[88,10,89,10],[84,10,85,10],[7,8,7,13],[8,8,8,13],[4,7,4,13],[27,5,27,8],[26,4,26,8],[28,4,28,8],[28,10,29,10],[42,10,43,10],[44,10,45,10],[34,10,35,10],[36,10,37,10],[38,10,39,10],[30,10,31,10],[50,10,51,10],[52,10,53,10],[46,10,47,10],[68,10,69,10],[56,10,57,10],[2,3,2,5],[3,4,3,5],[4,4,4,5],[5,4,5,5],[6,4,6,5],[7,4,7,5],[32,10,33,10],[12,10,13,10],[14,10,15,10],[16,10,17,10],[18,10,19,10],[22,10,23,10],[8,4,8,5],[9,4,9,5],[5,8,5,13],[6,8,6,13],[24,10,25,10],[33,5,33,8],[20,10,21,10],[29,5,29,8],[30,4,30,8],[31,5,31,8],[32,4,32,8],[26,10,27,10],[50,19,51,19],[52,19,53,19],[54,19,55,19],[56,19,57,19],[58,19,59,19],[44,19,45,19],[70,19,71,19],[72,19,73,19],[74,19,75,19],[46,19,47,19],[112,19,113,19],[114,19,115,19],[78,19,79,19],[82,19,83,19],[98,19,99,19],[94,19,95,19],[96,19,97,19],[62,19,63,19],[64,19,65,19],[66,19,67,19],[68,19,69,19],[84,19,85,19],[86,19,87,19],[88,19,89,19],[90,19,91,19],[92,19,93,19],[102,19,103,19],[104,19,105,19],[106,19,107,19],[108,19,109,19],[110,19,111,19],[76,19,77,19],[12,19,13,19],[14,19,15,19],[16,19,17,19],[18,19,19,19],[20,19,21,19],[22,19,23,19],[24,19,25,19],[26,19,27,19],[42,19,43,19],[28,19,29,19],[30,19,31,19],[32,19,33,19],[34,19,35,19],[36,19,37,19],[38,19,39,19],[92,4,92,8],[93,5,93,8],[94,4,94,8],[95,5,95,8],[96,4,96,8],[101,4,101,8],[102,4,102,8],[103,5,103,8],[104,4,104,8],[97,5,97,8],[98,4,98,8],[99,5,99,8],[105,5,105,8],[106,4,106,8],[107,5,107,8],[108,4,108,8],[109,5,109,8],[110,4,110,8],[111,5,111,8],[112,10,113,10],[113,5,113,8],[112,4,112,8],[81,4,81,8],[74,4,74,8],[75,5,75,8],[11,4,11,8],[12,4,12,8],[13,5,13,8],[14,4,14,8],[15,5,15,8],[16,4,16,8],[17,5,17,8],[18,4,18,8],[19,5,19,8],[20,4,20,8],[21,5,21,8],[22,4,22,8],[23,5,23,8],[24,4,24,8],[25,5,25,8],[34,4,34,8],[35,5,35,8],[36,4,36,8],[77,5,77,8],[78,4,78,8],[79,5,79,8],[82,4,82,8],[37,5,37,8],[38,4,38,8],[39,5,39,8],[41,4,41,8],[42,4,42,8],[43,5,43,8],[44,4,44,8],[45,5,45,8],[46,4,46,8],[47,5,47,8],[56,4,56,8],[57,5,57,8],[58,4,58,8],[59,5,59,8],[49,4,49,8],[50,4,50,8],[51,5,51,8],[52,4,52,8],[53,5,53,8],[54,4,54,8],[55,5,55,8],[73,5,73,8],[76,4,76,8],[6,32,7,37],[8,32,8,37],[114,4,114,8],[115,5,115,8],[70,4,70,8],[71,5,71,8],[72,4,72,8],[91,5,91,8],[83,5,83,8],[84,4,84,8],[85,5,85,8],[86,4,86,8],[87,5,87,8],[88,4,88,8],[89,5,89,8],[90,4,90,8],[61,4,61,8],[62,4,62,8],[63,5,63,8],[64,4,64,8],[65,5,65,8],[66,4,66,8],[67,5,67,8],[68,4,68,8]]}
[null,null,null,"Quality Standards"]
[]
[null,null,null,"Quality Indicator Rating (Calculated)"]
[null,null,null,1,"None of the elements is yet planned or in place.  "]
[null,null,null,2,"Most of the elements are not yet planned or in place. ",null,null,"Element of Quality Rating (EQR) [Imported from T1, T2, T3]"]
[null,null,null,3,"Some elements are in place; a few may be fully implemented.",null,null,1,"No - element not in place and not planning to work on it at this time"]
[null,null,null,4,"At least half of the elements are in place; a few may be fully implemented.",null,null,2,"No - element not in place but planning to work on it or getting started",null,null,null,null,null,null,null,null,null,null,null,null,null,null,null,null,null,null,null,null,null,null,null,{"$f":"IF(ISERROR(FIND(\"Subcomponent\",D1)),D1,\"DS: \"&MID(D1,18,99))","v":"Quality Standards"}]
[null,null,null,5,"At least half of the elements are in place; some are fully implemented.",null,null,3,"Yes - element partially implemented"]
[null,null,null,6,"At least half of the elements are fully implemented; the rest are partially implemented.",null,null,4,"Yes - element fully implemented",null,null,null,null,null,null,"PRIORITY",null,null,null,null,null,null,null,null,null,null,null,null,null,null,null,null,"Quality Indicator Ratings"]
[null,null,null,7,"All elements are fully implemented.",null,null,null,null,null,null,"TIME1","TIME2","TIME3",null,"TIME1","TIME2","TIME3"]
[null,null,{"$f":"MID(CELL(\"Filename\",C1),FIND(\"]\",CELL(\"Filename\",C1))+1,255)","v":"QS"},null,null,null,null,null,null,null,"Date:",null,null,null,null,null,null,null,null,null,null,null,null,null,null,null,null,{"$f":"E11&F11","v":""}]
[null,null,null,"QI 1","The state has articulated what children under age five, including children with disabilities, are expected to know and do.",null,null,null,null,null,"QI Rating: ",null,null,null,null,null,null,null,{"$f":"IF(E12=\"Evidence:\",1,0)","v":0},"#",{"$f":"IF(LEFT(D12,2)=\"QI\",0,1)","v":0},null,null,null,null,null,null,{"$f":"E12&F12","v":"The state has articulated what children under age five, including children with disabilities, are expected to know and do."},{"$f":"K12","v":"QI Rating: "}]
[null,null,null,"a","Child level standards emphasize significant, developmentally appropriate content and outcomes.",null,null,null,null,null,"Element Rating:",null,null,null,null,null,null,null,0,{"$f":"IFERROR(VLOOKUP(L13,#REF!,2,FALSE),\"\")","v":""},{"$f":"IF(LEFT(D13,2)=\"QI\",0,1)","v":1},null,null,null,null,null,null,"Child level standards emphasize significant, developmentally appropriate content and outcomes.",{"$f":"K13","v":"Element Rating:"}]
[null,null,null,null,"Evidence:",null,null,null,null,null,null,null,null,null,null,null,null,null,1,null,1,null,null,null,null,null,null,"Evidence:",0]
[null,null,null,"b","Child level standards are aligned from birth through age five.",null,null,null,null,null,"Element Rating:",null,null,null,null,null,null,null,0,{"$f":"IFERROR(VLOOKUP(L15,#REF!,2,FALSE),\"\")","v":""},1,null,null,null,null,null,null,"Child level standards are aligned from birth through age five.","Element Rating:"]
[null,null,null,null,"Evidence:",null,null,null,null,null,null,null,null,null,null,null,null,null,1,null,1,null,null,null,null,null,null,"Evidence:",0]
[null,null,null,"c","Child level standards are age anchored with specific precision to reflect that there are different expectations for children in each year of life.",null,null,null,null,null,"Element Rating:",null,null,null,null,null,null,null,0,{"$f":"IFERROR(VLOOKUP(L17,#REF!,2,FALSE),\"\")","v":""},1,null,null,null,null,null,null,"Child level standards are age anchored with specific precision to reflect that there are different expectations for children in each year of life.","Element Rating:"]
[null,null,null,null,"Evidence:",null,null,null,null,null,null,null,null,null,null,null,null,null,1,null,1,null,null,null,null,null,null,"Evidence:",0]
[null,null,null,"d","Child level standard content reflects the best available evidence on development and learning.",null,null,null,null,null,"Element Rating:",null,null,null,null,null,null,null,0,{"$f":"IFERROR(VLOOKUP(L19,#REF!,2,FALSE),\"\")","v":""},1,null,null,null,null,null,null,"Child level standard content reflects the best available evidence on development and learning.","Element Rating:"]
[null,null,null,null,"Evidence:",null,null,null,null,null,null,null,null,null,null,null,null,null,1,null,1,null,null,null,null,null,null,"Evidence:",0]
[null,null,null,"e","Child level standards are appropriate for children from diverse cultural, linguistic and socio- economic  backgrounds.",null,null,null,null,null,"Element Rating:",null,null,null,null,null,null,null,0,{"$f":"IFERROR(VLOOKUP(L21,#REF!,2,FALSE),\"\")","v":""},1,null,null,null,null,null,null,"Child level standards are appropriate for children from diverse cultural, linguistic and socio- economic  backgrounds.","Element Rating:"]
[null,null,null,null,"Evidence:",null,null,null,null,null,null,null,null,null,null,null,null,null,1,null,1,null,null,null,null,null,null,"Evidence:",0]
[null,null,null,"f","Child level standards are aligned with standards for K-12.",null,null,null,null,null,"Element Rating:",null,null,null,null,null,null,null,0,{"$f":"IFERROR(VLOOKUP(L23,#REF!,2,FALSE),\"\")","v":""},1,null,null,null,null,null,null,"Child level standards are aligned with standards for K-12.","Element Rating:"]
[null,null,null,null,"Evidence:",null,null,null,null,null,null,null,null,null,null,null,null,null,1,null,1,null,null,null,null,null,null,"Evidence:",0]
[null,null,null,"g","Child level standards are clear and understood by early care and education practitioners, local program administrators and families.",null,null,null,null,null,"Element Rating:",null,null,null,null,null,null,null,0,{"$f":"IFERROR(VLOOKUP(L25,#REF!,2,FALSE),\"\")","v":""},1,null,null,null,null,null,null,"Child level standards are clear and understood by early care and education practitioners, local program administrators and families.","Element Rating:"]
[null,null,null,null,"Evidence:",null,null,null,null,null,null,null,null,null,null,null,null,null,1,null,1,null,null,null,null,null,null,"Evidence:",0]
[null,null,null,"h","Child level standards represent multiple areas of development and learning and reflect the content of nationally recognized early childhood outcomes frameworks, including the Office of Special Education Programs (OSEP) child outcomes and the Head Start child outcomes framework. *",null,null,null,null,null,"Element Rating:",null,null,null,null,null,null,null,0,{"$f":"IFERROR(VLOOKUP(L27,#REF!,2,FALSE),\"\")","v":""},1,null,null,null,null,null,null,"Child level standards represent multiple areas of development and learning and reflect the content of nationally recognized early childhood outcomes frameworks, including the Office of Special Education Programs (OSEP) child outcomes and the Head Start child outcomes framework. *","Element Rating:"]
[null,null,null,null,"Evidence:",null,null,null,null,null,null,null,null,null,null,null,null,null,1,null,1,null,null,null,null,null,null,"Evidence:",0]
[null,null,null,"i","Child level standards reflect universal design for learning, ensuring the standards are appropriate for young children with disabilities. *",null,null,null,null,null,"Element Rating:",null,null,null,null,null,null,null,0,{"$f":"IFERROR(VLOOKUP(L29,#REF!,2,FALSE),\"\")","v":""},1,null,null,null,null,null,null,"Child level standards reflect universal design for learning, ensuring the standards are appropriate for young children with disabilities. *","Element Rating:"]
[null,null,null,null,"Evidence:",null,null,null,null,null,null,null,null,null,null,null,null,null,1,null,1,null,null,null,null,null,null,"Evidence:",0]
[null,null,null,"j","Child level standards are reviewed and revised as necessary with input from stakeholders, including families of young children with disabilities, practitioners and representatives from Part C and 619 programs.",null,null,null,null,null,"Element Rating:",null,null,null,null,null,null,null,0,{"$f":"IFERROR(VLOOKUP(L31,#REF!,2,FALSE),\"\")","v":""},1,null,null,null,null,null,null,"Child level standards are reviewed and revised as necessary with input from stakeholders, including families of young children with disabilities, practitioners and representatives from Part C and 619 programs.","Element Rating:"]
[null,null,null,null,"Evidence:",null,null,null,null,null,null,null,null,null,null,null,null,null,1,null,1,null,null,null,null,null,null,"Evidence:",0]
[null,null,null,"k","Part C and Section 619 programs use the state child level standards (i.e., those used by other early childhood programs) to support the implementation of high-quality practices. *",null,null,null,null,null,"Element Rating:",null,null,null,null,null,null,null,0,{"$f":"IFERROR(VLOOKUP(L33,#REF!,2,FALSE),\"\")","v":""},1,null,null,null,null,null,null,"Part C and Section 619 programs use the state child level standards (i.e., those used by other early childhood programs) to support the implementation of high-quality practices. *","Element Rating:"]
[null,null,null,null,"Evidence:",null,null,null,null,null,null,null,null,null,null,null,null,null,1,null,1,null,null,null,null,null,null,"Evidence:",0]
[null,null,null,"l","State Part C and Section 619 programs have specified what children birth to 5 are expected to know and do, reflecting universal design, and programs use these standards.",null,null,null,null,null,"Element Rating:",null,null,null,null,null,null,null,0,{"$f":"IFERROR(VLOOKUP(L35,#REF!,2,FALSE),\"\")","v":""},1,null,null,null,null,null,null,"State Part C and Section 619 programs have specified what children birth to 5 are expected to know and do, reflecting universal design, and programs use these standards.","Element Rating:"]
[null,null,null,null,"Evidence:",null,null,null,null,null,null,null,null,null,null,null,null,null,1,null,1,null,null,null,null,null,null,"Evidence:",0]
[null,null,null,"m","Child level standards developed by Part C and Section 619 are reviewed and revised as necessary with input from stakeholders, including families of young children with disabilities, practitioners and representatives from Part C and 619 programs.",null,null,null,null,null,"Element Rating:",null,null,null,null,null,null,null,0,{"$f":"IFERROR(VLOOKUP(L37,#REF!,2,FALSE),\"\")","v":""},1,null,null,null,null,null,null,"Child level standards developed by Part C and Section 619 are reviewed and revised as necessary with input from stakeholders, including families of young children with disabilities, practitioners and representatives from Part C and 619 programs.","Element Rating:"]
[null,null,null,null,"Evidence:",null,null,null,null,null,null,null,null,null,null,null,null,null,1,null,1,null,null,null,null,null,null,"Evidence:",0]
[null,null,null,"n","State Part C and Section 619 programs are involved with state efforts to develop child standards appropriate for all children.",null,null,null,null,null,"Element Rating:",null,null,null,null,null,null,null,0,{"$f":"IFERROR(VLOOKUP(L39,#REF!,2,FALSE),\"\")","v":""},1,null,null,null,null,null,null,"State Part C and Section 619 programs are involved with state efforts to develop child standards appropriate for all children.","Element Rating:"]
[null,null,null,null,"Evidence:",null,null,null,null,null,null,null,null,null,null,null,null,null,1,null,1,null,null,null,null,null,null,"Evidence:",0]
[null,null,null,null,null,null,null,null,null,null,null,null,null,null,null,null,null,null,0,null,1,null,null,null,null,null,null,"",0]
[null,null,null,"QI 2","Early childhood programs, including Part C and Section 619, use the child level standards to support the implementation of high-quality practices.",null,null,null,null,null,"QI Rating: ",null,null,null,null,null,null,null,0,"#",0,null,null,null,null,null,null,"Early childhood programs, including Part C and Section 619, use the child level standards to support the implementation of high-quality practices.","QI Rating: "]
[null,null,null,"a","Child level standards are widely disseminated and easily accessible to practitioners, families and the general public.",null,null,null,null,null,"Element Rating:",null,null,null,null,null,null,null,0,{"$f":"IFERROR(VLOOKUP(L43,#REF!,2,FALSE),\"\")","v":""},1,null,null,null,null,null,null,"Child level standards are widely disseminated and easily accessible to practitioners, families and the general public.","Element Rating:"]
[null,null,null,null,"Evidence:",null,null,null,null,null,null,null,null,null,null,null,null,null,1,null,1,null,null,null,null,null,null,"Evidence:",0]
[null,null,null,"b","Early care and education practitioners working with young children with disabilities are familiar with the child standards.",null,null,null,null,null,"Element Rating:",null,null,null,null,null,null,null,0,{"$f":"IFERROR(VLOOKUP(L45,#REF!,2,FALSE),\"\")","v":""},1,null,null,null,null,null,null,"Early care and education practitioners working with young children with disabilities are familiar with the child standards.","Element Rating:"]
[null,null,null,null,"Evidence:",null,null,null,null,null,null,null,null,null,null,null,null,null,1,null,1,null,null,null,null,null,null,"Evidence:",0]
[null,null,null,"c","Practices (e.g. assessment, IFSP/IEP development, development and learning activities) reflect the child level standards.",null,null,null,null,null,"Element Rating:",null,null,null,null,null,null,null,0,{"$f":"IFERROR(VLOOKUP(L47,#REF!,2,FALSE),\"\")","v":""},1,null,null,null,null,null,null,"Practices (e.g. assessment, IFSP/IEP development, development and learning activities) reflect the child level standards.","Element Rating:"]
[null,null,null,null,"Evidence:",null,null,null,null,null,null,null,null,null,null,null,null,null,1,null,1,null,null,null,null,null,null,"Evidence:",0]
[null,null,null,null,null,null,null,null,null,null,null,null,null,null,null,null,null,null,0,null,1,null,null,null,null,null,null,"",0]
[null,null,null,"QI 3","The state has an infrastructure in place to support the effective use of child level standards.",null,null,null,null,null,"QI Rating: ",null,null,null,null,null,null,null,0,"#",0,null,null,null,null,null,null,"The state has an infrastructure in place to support the effective use of child level standards.","QI Rating: "]
[null,null,null,"a","Two and four year professional preparation programs address child level standards, including their use with children with disabilities.",null,null,null,null,null,"Element Rating:",null,null,null,null,null,null,null,0,{"$f":"IFERROR(VLOOKUP(L51,#REF!,2,FALSE),\"\")","v":""},1,null,null,null,null,null,null,"Two and four year professional preparation programs address child level standards, including their use with children with disabilities.","Element Rating:"]
[null,null,null,null,"Evidence:",null,null,null,null,null,null,null,null,null,null,null,null,null,1,null,1,null,null,null,null,null,null,"Evidence:",0]
[null,null,null,"b","On-going professional development (e.g. mentoring, coaching) supports effective use of the child standards, including individualization for children with disabilities.",null,null,null,null,null,"Element Rating:",null,null,null,null,null,null,null,0,{"$f":"IFERROR(VLOOKUP(L53,#REF!,2,FALSE),\"\")","v":""},1,null,null,null,null,null,null,"On-going professional development (e.g. mentoring, coaching) supports effective use of the child standards, including individualization for children with disabilities.","Element Rating:"]
[null,null,null,null,"Evidence:",null,null,null,null,null,null,null,null,null,null,null,null,null,1,null,1,null,null,null,null,null,null,"Evidence:",0]
[null,null,null,"c","Resources are available to support families in understanding and using the child standards to help their children develop and learn.",null,null,null,null,null,"Element Rating:",null,null,null,null,null,null,null,0,{"$f":"IFERROR(VLOOKUP(L55,#REF!,2,FALSE),\"\")","v":""},1,null,null,null,null,null,null,"Resources are available to support families in understanding and using the child standards to help their children develop and learn.","Element Rating:"]
[null,null,null,null,"Evidence:",null,null,null,null,null,null,null,null,null,null,null,null,null,1,null,1,null,null,null,null,null,null,"Evidence:",0]
[null,null,null,"d","The state has policies, procedures and/or guidance to support local programs in the alignment of curriculum and assessment with the child level standards.",null,null,null,null,null,"Element Rating:",null,null,null,null,null,null,null,0,{"$f":"IFERROR(VLOOKUP(L57,#REF!,2,FALSE),\"\")","v":""},1,null,null,null,null,null,null,"The state has policies, procedures and/or guidance to support local programs in the alignment of curriculum and assessment with the child level standards.","Element Rating:"]
[null,null,null,null,"Evidence:",null,null,null,null,null,null,null,null,null,null,null,null,null,1,null,1,null,null,null,null,null,null,"Evidence:",0]
[null,null,null,"e","Evaluating program quality includes monitoring how well child standards are effectively used to guide practice, including individualization for children with disabilities.",null,null,null,null,null,"Element Rating:",null,null,null,null,null,null,null,0,{"$f":"IFERROR(VLOOKUP(L59,#REF!,2,FALSE),\"\")","v":""},1,null,null,null,null,null,null,"Evaluating program quality includes monitoring how well child standards are effectively used to guide practice, including individualization for children with disabilities.","Element Rating:"]
[null,null,null,null,"Evidence:",null,null,null,null,null,null,null,null,null,null,null,null,null,1,null,1,null,null,null,null,null,null,"Evidence:",0]
[null,null,null,null,null,null,null,null,null,null,null,null,null,null,null,null,null,null,0,null,1,null,null,null,null,null,null,"",0]
[null,null,null,"QI 4","The state has articulated what constitutes quality in early care and education programs.",null,null,null,null,null,"QI Rating: ",null,null,null,null,null,null,null,0,"#",0,null,null,null,null,null,null,"The state has articulated what constitutes quality in early care and education programs.","QI Rating: "]
[null,null,null,"a","Program level standards are consistent with agreed upon program standards in the field (e.g., NAEYC Program Standards, Head Start Performance Standards).",null,null,null,null,null,"Element Rating:",null,null,null,null,null,null,null,0,{"$f":"IFERROR(VLOOKUP(L63,#REF!,2,FALSE),\"\")","v":""},1,null,null,null,null,null,null,"Program level standards are consistent with agreed upon program standards in the field (e.g., NAEYC Program Standards, Head Start Performance Standards).","Element Rating:"]
[null,null,null,null,"Evidence:",null,null,null,null,null,null,null,null,null,null,null,null,null,1,null,1,null,null,null,null,null,null,"Evidence:",0]
[null,null,null,"b","Program level standards reflect the best available evidence on early childhood program quality and effectiveness.",null,null,null,null,null,"Element Rating:",null,null,null,null,null,null,null,0,{"$f":"IFERROR(VLOOKUP(L65,#REF!,2,FALSE),\"\")","v":""},1,null,null,null,null,null,null,"Program level standards reflect the best available evidence on early childhood program quality and effectiveness.","Element Rating:"]
[null,null,null,null,"Evidence:",null,null,null,null,null,null,null,null,null,null,null,null,null,1,null,1,null,null,null,null,null,null,"Evidence:",0]
[null,null,null,"c","Program level standards apply to the full range of programs in which young children with disabilities participate.",null,null,null,null,null,"Element Rating:",null,null,null,null,null,null,null,0,{"$f":"IFERROR(VLOOKUP(L67,#REF!,2,FALSE),\"\")","v":""},1,null,null,null,null,null,null,"Program level standards apply to the full range of programs in which young children with disabilities participate.","Element Rating:"]
[null,null,null,null,"Evidence:",null,null,null,null,null,null,null,null,null,null,null,null,null,1,null,1,null,null,null,null,null,null,"Evidence:",0]
[null,null,null,"d","Program level standards address a program’s ability to support the needs of a diverse population of children.",null,null,null,null,null,"Element Rating:",null,null,null,null,null,null,null,0,{"$f":"IFERROR(VLOOKUP(L69,#REF!,2,FALSE),\"\")","v":""},1,null,null,null,null,null,null,"Program level standards address a program’s ability to support the needs of a diverse population of children.","Element Rating:"]
[null,null,null,null,"Evidence:",null,null,null,null,null,null,null,null,null,null,null,null,null,1,null,1,null,null,null,null,null,null,"Evidence:",0]
[null,null,null,"e","Program level standards address program’s responsibilities to build on families’ strengths to support them in caring for their children and in encouraging them to serve in leadership roles.",null,null,null,null,null,"Element Rating:",null,null,null,null,null,null,null,0,{"$f":"IFERROR(VLOOKUP(L71,#REF!,2,FALSE),\"\")","v":""},1,null,null,null,null,null,null,"Program level standards address program’s responsibilities to build on families’ strengths to support them in caring for their children and in encouraging them to serve in leadership roles.","Element Rating:"]
[null,null,null,null,"Evidence:",null,null,null,null,null,null,null,null,null,null,null,null,null,1,null,1,null,null,null,null,null,null,"Evidence:",0]
[null,null,null,"f","Program level standards are clear and understood by practitioners, local program administrators and families.",null,null,null,null,null,"Element Rating:",null,null,null,null,null,null,null,0,{"$f":"IFERROR(VLOOKUP(L73,#REF!,2,FALSE),\"\")","v":""},1,null,null,null,null,null,null,"Program level standards are clear and understood by practitioners, local program administrators and families.","Element Rating:"]
[null,null,null,null,"Evidence:",null,null,null,null,null,null,null,null,null,null,null,null,null,1,null,1,null,null,null,null,null,null,"Evidence:",0]
[null,null,null,"g","Program level standards are widely disseminated and easily accessible to practitioners, families and the general public.",null,null,null,null,null,"Element Rating:",null,null,null,null,null,null,null,0,{"$f":"IFERROR(VLOOKUP(L75,#REF!,2,FALSE),\"\")","v":""},1,null,null,null,null,null,null,"Program level standards are widely disseminated and easily accessible to practitioners, families and the general public.","Element Rating:"]
[null,null,null,null,"Evidence:",null,null,null,null,null,null,null,null,null,null,null,null,null,{"$f":"IF(E76=\"Evidence:\",1,0)","v":1},null,1,null,null,null,null,null,null,{"$f":"E76&F76","v":"Evidence:"},0]
[null,null,null,"h","Early childhood programs, including Part C and Section 619, use program level standards to drive program improvement.",null,null,null,null,null,"Element Rating:",null,null,null,null,null,null,null,0,{"$f":"IFERROR(VLOOKUP(L77,#REF!,2,FALSE),\"\")","v":""},{"$f":"IF(LEFT(D77,2)=\"QI\",0,1)","v":1},null,null,null,null,null,null,"Early childhood programs, including Part C and Section 619, use program level standards to drive program improvement.",{"$f":"K77","v":"Element Rating:"}]
[null,null,null,null,"Evidence:",null,null,null,null,null,null,null,null,null,null,null,null,null,1,null,1,null,null,null,null,null,null,"Evidence:",0]
[null,null,null,"i","Program level standards are reviewed and revised as necessary with input from stakeholders, including families of young children with disabilities, practitioners and representatives from Part C and 619 programs.",null,null,null,null,null,"Element Rating:",null,null,null,null,null,null,null,0,{"$f":"IFERROR(VLOOKUP(L79,#REF!,2,FALSE),\"\")","v":""},1,null,null,null,null,null,null,"Program level standards are reviewed and revised as necessary with input from stakeholders, including families of young children with disabilities, practitioners and representatives from Part C and 619 programs.","Element Rating:"]
[null,null,null,null,"Evidence:",null,null,null,null,null,null,null,null,null,null,null,null,null,1,null,1,null,null,null,null,null,null,"Evidence:",0]
[null,null,null,null,null,null,null,null,null,null,null,null,null,null,null,null,null,null,0,null,1,null,null,null,null,null,null,"",0]
[null,null,null,"QI 5","State Part C and Section 619 programs have articulated expectations for what constitutes high quality early intervention and early childhood special education services (EI/ECSE).",null,null,null,null,null,"QI Rating: ",null,null,null,null,null,null,null,0,"#",0,null,null,null,null,null,null,"State Part C and Section 619 programs have articulated expectations for what constitutes high quality early intervention and early childhood special education services (EI/ECSE).","QI Rating: "]
[null,null,null,"a","The EI/ECSE standards address federal and state legal requirements.",null,null,null,null,null,"Element Rating:",null,null,null,null,null,null,null,0,{"$f":"IFERROR(VLOOKUP(L83,#REF!,2,FALSE),\"\")","v":""},1,null,null,null,null,null,null,"The EI/ECSE standards address federal and state legal requirements.","Element Rating:"]
[null,null,null,null,"Evidence:",null,null,null,null,null,null,null,null,null,null,null,null,null,1,null,1,null,null,null,null,null,null,"Evidence:",0]
[null,null,null,"b","The EI/ECSE standards reflect the best available evidence on early childhood program quality and effectiveness.",null,null,null,null,null,"Element Rating:",null,null,null,null,null,null,null,0,{"$f":"IFERROR(VLOOKUP(L85,#REF!,2,FALSE),\"\")","v":""},1,null,null,null,null,null,null,"The EI/ECSE standards reflect the best available evidence on early childhood program quality and effectiveness.","Element Rating:"]
[null,null,null,null,"Evidence:",null,null,null,null,null,null,null,null,null,null,null,null,null,1,null,1,null,null,null,null,null,null,"Evidence:",0]
[null,null,null,"c","The EI/ECSE standards address the qualifications of practitioners providing services to young children with disabilities and their families.",null,null,null,null,null,"Element Rating:",null,null,null,null,null,null,null,0,{"$f":"IFERROR(VLOOKUP(L87,#REF!,2,FALSE),\"\")","v":""},1,null,null,null,null,null,null,"The EI/ECSE standards address the qualifications of practitioners providing services to young children with disabilities and their families.","Element Rating:"]
[null,null,null,null,"Evidence:",null,null,null,null,null,null,null,null,null,null,null,null,null,1,null,1,null,null,null,null,null,null,"Evidence:",0]
[null,null,null,"d","The EI/ECSE standards are consistent with professional practice guidance in the field (e.g., DEC Recommended Practices, American Speech and Hearing Association Practice Policies).",null,null,null,null,null,"Element Rating:",null,null,null,null,null,null,null,0,{"$f":"IFERROR(VLOOKUP(L89,#REF!,2,FALSE),\"\")","v":""},1,null,null,null,null,null,null,"The EI/ECSE standards are consistent with professional practice guidance in the field (e.g., DEC Recommended Practices, American Speech and Hearing Association Practice Policies).","Element Rating:"]
[null,null,null,null,"Evidence:",null,null,null,null,null,null,null,null,null,null,null,null,null,1,null,1,null,null,null,null,null,null,"Evidence:",0]
[null,null,null,"e","The EI/ECSE standards are coordinated and consistent with other early care and education programs across the state.",null,null,null,null,null,"Element Rating:",null,null,null,null,null,null,null,0,{"$f":"IFERROR(VLOOKUP(L91,#REF!,2,FALSE),\"\")","v":""},1,null,null,null,null,null,null,"The EI/ECSE standards are coordinated and consistent with other early care and education programs across the state.","Element Rating:"]
[null,null,null,null,"Evidence:",null,null,null,null,null,null,null,null,null,null,null,null,null,1,null,1,null,null,null,null,null,null,"Evidence:",0]
[null,null,null,"f","The EI/ECSE standards are widely disseminated and easily accessible to practitioners, families and the general public.",null,null,null,null,null,"Element Rating:",null,null,null,null,null,null,null,0,{"$f":"IFERROR(VLOOKUP(L93,#REF!,2,FALSE),\"\")","v":""},1,null,null,null,null,null,null,"The EI/ECSE standards are widely disseminated and easily accessible to practitioners, families and the general public.","Element Rating:"]
[null,null,null,null,"Evidence:",null,null,null,null,null,null,null,null,null,null,null,null,null,1,null,1,null,null,null,null,null,null,"Evidence:",0]
[null,null,null,"g","The EI/ECSE standards address program’s responsibilities to build on families’ strengths to support them in caring for their children and in encouraging them to serve in leadership roles.",null,null,null,null,null,"Element Rating:",null,null,null,null,null,null,null,0,{"$f":"IFERROR(VLOOKUP(L95,#REF!,2,FALSE),\"\")","v":""},1,null,null,null,null,null,null,"The EI/ECSE standards address program’s responsibilities to build on families’ strengths to support them in caring for their children and in encouraging them to serve in leadership roles.","Element Rating:"]
[null,null,null,null,"Evidence:",null,null,null,null,null,null,null,null,null,null,null,null,null,1,null,1,null,null,null,null,null,null,"Evidence:",0]
[null,null,null,"h","Part C and Section 619 programs use the standards to drive program improvement.",null,null,null,null,null,"Element Rating:",null,null,null,null,null,null,null,0,{"$f":"IFERROR(VLOOKUP(L97,#REF!,2,FALSE),\"\")","v":""},1,null,null,null,null,null,null,"Part C and Section 619 programs use the standards to drive program improvement.","Element Rating:"]
[null,null,null,null,"Evidence:",null,null,null,null,null,null,null,null,null,null,null,null,null,1,null,1,null,null,null,null,null,null,"Evidence:",0]
[null,null,null,"i","The EI/ECSE standards are reviewed and revised as necessary with input from a diverse group of stakeholders, including families of young children with disabilities, practitioners and representatives from Part C and 619 programs.",null,null,null,null,null,"Element Rating:",null,null,null,null,null,null,null,0,{"$f":"IFERROR(VLOOKUP(L99,#REF!,2,FALSE),\"\")","v":""},1,null,null,null,null,null,null,"The EI/ECSE standards are reviewed and revised as necessary with input from a diverse group of stakeholders, including families of young children with disabilities, practitioners and representatives from Part C and 619 programs.","Element Rating:"]
[null,null,null,null,"Evidence:",null,null,null,null,null,null,null,null,null,null,null,null,null,1,null,1,null,null,null,null,null,null,"Evidence:",0]
[null,null,null,null,null,null,null,null,null,null,null,null,null,null,null,null,null,null,0,null,1,null,null,null,null,null,null,"",0]
[null,null,null,"QI 6","The state has an infrastructure in place to support the full range of programs in meeting program standards.",null,null,null,null,null,"QI Rating: ",null,null,null,null,null,null,null,0,"#",0,null,null,null,null,null,null,"The state has an infrastructure in place to support the full range of programs in meeting program standards.","QI Rating: "]
[null,null,null,"a","The infrastructure includes adequate fiscal and human resources for the development, implementation and monitoring of program standards.",null,null,null,null,null,"Element Rating:",null,null,null,null,null,null,null,0,{"$f":"IFERROR(VLOOKUP(L103,#REF!,2,FALSE),\"\")","v":""},1,null,null,null,null,null,null,"The infrastructure includes adequate fiscal and human resources for the development, implementation and monitoring of program standards.","Element Rating:"]
[null,null,null,null,"Evidence:",null,null,null,null,null,null,null,null,null,null,null,null,null,1,null,1,null,null,null,null,null,null,"Evidence:",0]
[null,null,null,"b","Two and four year professional preparation programs address the application of program standards to the full range of early care and education programs.",null,null,null,null,null,"Element Rating:",null,null,null,null,null,null,null,0,{"$f":"IFERROR(VLOOKUP(L105,#REF!,2,FALSE),\"\")","v":""},1,null,null,null,null,null,null,"Two and four year professional preparation programs address the application of program standards to the full range of early care and education programs.","Element Rating:"]
[null,null,null,null,"Evidence:",null,null,null,null,null,null,null,null,null,null,null,null,null,1,null,1,null,null,null,null,null,null,"Evidence:",0]
[null,null,null,"c","On-going professional development (e.g. mentoring, coaching) supports effective application of program standards to the full range of early care and education programs.",null,null,null,null,null,"Element Rating:",null,null,null,null,null,null,null,0,{"$f":"IFERROR(VLOOKUP(L107,#REF!,2,FALSE),\"\")","v":""},1,null,null,null,null,null,null,"On-going professional development (e.g. mentoring, coaching) supports effective application of program standards to the full range of early care and education programs.","Element Rating:"]
[null,null,null,null,"Evidence:",null,null,null,null,null,null,null,null,null,null,null,null,null,1,null,1,null,null,null,null,null,null,"Evidence:",0]
[null,null,null,"d","The state has a process to use the program standards as part of monitoring and program improvement.",null,null,null,null,null,"Element Rating:",null,null,null,null,null,null,null,0,{"$f":"IFERROR(VLOOKUP(L109,#REF!,2,FALSE),\"\")","v":""},1,null,null,null,null,null,null,"The state has a process to use the program standards as part of monitoring and program improvement.","Element Rating:"]
[null,null,null,null,"Evidence:",null,null,null,null,null,null,null,null,null,null,null,null,null,1,null,1,null,null,null,null,null,null,"Evidence:",0]
[null,null,null,"e","The extent to which each program has achieved the program level standards is easily accessible to practitioners, families and the general public (e.g. State Performance Plan (SPP), Annual Performance Reports (APR), SPP/APR public reporting, quality rating systems).",null,null,null,null,null,"Element Rating:",null,null,null,null,null,null,null,0,{"$f":"IFERROR(VLOOKUP(L111,#REF!,2,FALSE),\"\")","v":""},1,null,null,null,null,null,null,"The extent to which each program has achieved the program level standards is easily accessible to practitioners, families and the general public (e.g. State Performance Plan (SPP), Annual Performance Reports (APR), SPP/APR public reporting, quality rating systems).","Element Rating:"]
[null,null,null,null,"Evidence:",null,null,null,null,null,null,null,null,null,null,null,null,null,1,null,1,null,null,null,null,null,null,"Evidence:",0]
[null,null,null,"f","Resources are available to support families in understanding the extent to which each program has achieved the standards in order to help them make informed decisions.",null,null,null,null,null,"Element Rating:",null,null,null,null,null,null,null,0,{"$f":"IFERROR(VLOOKUP(L113,#REF!,2,FALSE),\"\")","v":""},1,null,null,null,null,null,null,"Resources are available to support families in understanding the extent to which each program has achieved the standards in order to help them make informed decisions.","Element Rating:"]
[null,null,null,null,"Evidence:",null,null,null,null,null,null,null,null,null,null,null,null,null,1,null,1,null,null,null,null,null,null,"Evidence:",0]
[null,null,null,"g","The state evaluates the effectiveness of the infrastructure that supports the use of the program standards.",null,null,null,null,null,"Element Rating:",null,null,null,null,null,null,null,0,{"$f":"IFERROR(VLOOKUP(L115,#REF!,2,FALSE),\"\")","v":""},1,null,null,null,null,null,null,"The state evaluates the effectiveness of the infrastructure that supports the use of the program standards.","Element Rating:"]
[null,null,null,null,"Evidence:",null,null,null,null,null,null,null,null,null,null,null,null,null,1,null,1,null,null,null,null,null,null,"Evidence:",0]
[null,null,null,null,null,null,null,null,null,null,null,null,null,null,null,null,null,null,null,null,null,null,null,null,null,null,null,"",0]
[null,null,null,null,null,null,null,null,null,null,null,null,null,null,null,null,null,null,null,null,null,null,null,null,null,null,null,{"$f":"E118","v":0},0]

{"sheet":"PV","index":8,"n_rows":63,"n_cols":33,"rows_kept":63,"cut":false,"hidden":false,"merged":[[8,15,8,17],[28,10,29,10],[24,10,25,10],[26,10,27,10],[30,10,31,10],[22,10,23,10],[16,10,17,10],[12,10,13,10],[18,10,19,10],[14,10,15,10],[8,4,8,5],[9,4,9,5],[5,8,5,13],[6,8,6,13],[7,8,7,13],[8,8,8,13],[21,4,21,8],[22,4,22,8],[2,3,2,5],[3,4,3,5],[4,4,4,5],[5,4,5,5],[6,4,6,5],[12,4,12,8],[13,5,13,8],[4,7,4,13],[11,4,11,8],[7,4,7,5],[19,5,19,8],[14,4,14,8],[15,5,15,8],[16,4,16,8],[31,5,31,8],[23,5,23,8],[24,4,24,8],[25,5,25,8],[26,4,26,8],[27,5,27,8],[17,5,17,8],[18,4,18,8],[6,32,7,37],[8,32,8,37],[30,19,31,19],[24,19,25,19],[26,19,27,19],[28,19,29,19],[22,19,23,19],[12,19,13,19],[14,19,15,19],[16,19,17,19],[18,19,19,19],[28,4,28,8],[29,5,29,8],[30,4,30,8]]}
[null,null,null,"DS Subcomponent: Purpose and Vision"]
[]
[null,null,null,"Quality Indicator Rating (Calculated)"]
[null,null,null,1,"None of the elements is yet planned or in place.  "]
[null,null,null,2,"Most of the elements are not yet planned or in place. ",null,null,"Element of Quality Rating (EQR) [Imported from T1, T2, T3]"]
[null,null,null,3,"Some elements are in place; a few may be fully implemented.",null,null,1,"No - element not in place and not planning to work on it at this time"]
[null,null,null,4,"At least half of the elements are in place; a few may be fully implemented.",null,null,2,"No - element not in place but planning to work on it or getting started",null,null,null,null,null,null,null,null,null,null,null,null,null,null,null,null,null,null,null,null,null,null,null,{"$f":"IF(ISERROR(FIND(\"Subcomponent\",D1)),D1,\"DS: \"&MID(D1,18,99))","v":"DS: Purpose and Vision"}]
[null,null,null,5,"At least half of the elements are in place; some are fully implemented.",null,null,3,"Yes - element partially implemented"]
[null,null,null,6,"At least half of the elements are fully implemented; the rest are partially implemented.",null,null,4,"Yes - element fully implemented",null,null,null,null,null,null,"PRIORITY",null,null,null,null,null,null,null,null,null,null,null,null,null,null,null,null,"Quality Indicator Ratings"]
[null,null,null,7,"All elements are fully implemented.",null,null,null,null,null,null,"TIME1","TIME2","TIME3",null,"TIME1","TIME2","TIME3"]
[null,null,{"$f":"MID(CELL(\"Filename\",C1),FIND(\"]\",CELL(\"Filename\",C1))+1,255)","v":"PV"},null,null,null,null,null,null,null,"Date:",null,null,null,null,null,null,null,null,null,null,null,null,null,null,null,null,{"$f":"E11&F11","v":""}]
[null,null,null,"QI 1","Part C/619 state staff or representatives have articulated the purpose and vision of the data system. ",null,null,null,null,null,"QI Rating: ",null,null,null,null,null,null,null,{"$f":"IF(E12=\"Evidence:\",1,0)","v":0},"#",{"$f":"IF(LEFT(D12,2)=\"QI\",0,1)","v":0},null,null,null,null,null,null,{"$f":"E12&F12","v":"Part C/619 state staff or representatives have articulated the purpose and vision of the data system. "},{"$f":"K12","v":"QI Rating: "}]
[null,null,null,"a","The Part C/619 state program has a purpose and vision for its data system, either as a formal written statement, or embedded in other documents related to the data system (e.g., minutes, notes, procedures). ",null,null,null,null,null,"Element Rating:",null,null,null,null,null,null,null,0,{"$f":"IFERROR(VLOOKUP(L13,#REF!,2,FALSE),\"\")","v":""},{"$f":"IF(LEFT(D13,2)=\"QI\",0,1)","v":1},null,null,null,null,null,null,"The Part C/619 state program has a purpose and vision for its data system, either as a formal written statement, or embedded in other documents related to the data system (e.g., minutes, notes, procedures). ",{"$f":"K13","v":"Element Rating:"}]
[null,null,null,null,"Evidence:",null,null,null,null,null,null,null,null,null,null,null,null,null,1,null,1,null,null,null,null,null,null,"Evidence:",0]
[null,null,null,"b","Part C/619 state staff obtain input about the purpose and vision of the data system from stakeholders. ",null,null,null,null,null,"Element Rating:",null,null,null,null,null,null,null,0,{"$f":"IFERROR(VLOOKUP(L15,#REF!,2,FALSE),\"\")","v":""},1,null,null,null,null,null,null,"Part C/619 state staff obtain input about the purpose and vision of the data system from stakeholders. ","Element Rating:"]
[null,null,null,null,"Evidence:",null,null,null,null,null,null,null,null,null,null,null,null,null,1,null,1,null,null,null,null,null,null,"Evidence:",0]
[null,null,null,"c","A statement of the data system's purpose and vision is readily accessible (e.g., available on the website, in a parent handbook). ",null,null,null,null,null,"Element Rating:",null,null,null,null,null,null,null,0,{"$f":"IFERROR(VLOOKUP(L17,#REF!,2,FALSE),\"\")","v":""},1,null,null,null,null,null,null,"A statement of the data system's purpose and vision is readily accessible (e.g., available on the website, in a parent handbook). ","Element Rating:"]
[null,null,null,null,"Evidence:",null,null,null,null,null,null,null,null,null,null,null,null,null,1,null,1,null,null,null,null,null,null,"Evidence:",0]
[null,null,null,"d","Part C/619 state staff review and revise the data system's purpose and vision as needed with stakeholders to ensure its continued relevance.",null,null,null,null,null,"Element Rating:",null,null,null,null,null,null,null,0,{"$f":"IFERROR(VLOOKUP(L19,#REF!,2,FALSE),\"\")","v":""},1,null,null,null,null,null,null,"Part C/619 state staff review and revise the data system's purpose and vision as needed with stakeholders to ensure its continued relevance.","Element Rating:"]
[null,null,null,null,"Evidence:",null,null,null,null,null,null,null,null,null,null,null,null,null,1,null,1,null,null,null,null,null,null,"Evidence:",0]
[null,null,null,null,null,null,null,null,null,null,null,null,null,null,null,null,null,null,0,null,1,null,null,null,null,null,null,"",0]
[null,null,null,"QI 2","The purpose and vision include the Part C/619 state program’s intents and goals for the data system.",null,null,null,null,null,"QI Rating: ",null,null,null,null,null,null,null,0,"#",0,null,null,null,null,null,null,"The purpose and vision include the Part C/619 state program’s intents and goals for the data system.","QI Rating: "]
[null,null,null,"a","The purpose and vision of the data system guide decision-making about who uses the system, what general kinds of data to include (e.g., fiscal, workforce, outcomes), and how the data are used.",null,null,null,null,null,"Element Rating:",null,null,null,null,null,null,null,0,{"$f":"IFERROR(VLOOKUP(L23,#REF!,2,FALSE),\"\")","v":""},1,null,null,null,null,null,null,"The purpose and vision of the data system guide decision-making about who uses the system, what general kinds of data to include (e.g., fiscal, workforce, outcomes), and how the data are used.","Element Rating:"]
[null,null,null,null,"Evidence:",null,null,null,null,null,null,null,null,null,null,null,null,null,1,null,1,null,null,null,null,null,null,"Evidence:",0]
[null,null,null,"b","The purpose and vision of the data system address meeting IDEA reporting requirements and other state and federal data requirements.",null,null,null,null,null,"Element Rating:",null,null,null,null,null,null,null,0,{"$f":"IFERROR(VLOOKUP(L25,#REF!,2,FALSE),\"\")","v":""},1,null,null,null,null,null,null,"The purpose and vision of the data system address meeting IDEA reporting requirements and other state and federal data requirements.","Element Rating:"]
[null,null,null,null,"Evidence:",null,null,null,null,null,null,null,null,null,null,null,null,null,1,null,1,null,null,null,null,null,null,"Evidence:",0]
[null,null,null,"c","The purpose and vision of the data system address accountability, program improvement, and program operations, including the state’s key program and policy questions.",null,null,null,null,null,"Element Rating:",null,null,null,null,null,null,null,0,{"$f":"IFERROR(VLOOKUP(L27,#REF!,2,FALSE),\"\")","v":""},1,null,null,null,null,null,null,"The purpose and vision of the data system address accountability, program improvement, and program operations, including the state’s key program and policy questions.","Element Rating:"]
[null,null,null,null,"Evidence:",null,null,null,null,null,null,null,null,null,null,null,null,null,1,null,1,null,null,null,null,null,null,"Evidence:",0]
[null,null,null,"d","The purpose and vision of the data system address linking Part C and Section 619 data.",null,null,null,null,null,"Element Rating:",null,null,null,null,null,null,null,0,{"$f":"IFERROR(VLOOKUP(L29,#REF!,2,FALSE),\"\")","v":""},1,null,null,null,null,null,null,"The purpose and vision of the data system address linking Part C and Section 619 data.","Element Rating:"]
[null,null,null,null,"Evidence:",null,null,null,null,null,null,null,null,null,null,null,null,null,1,null,1,null,null,null,null,null,null,"Evidence:",0]
[null,null,null,"e","The purpose and vision of the Part C/619 state data system include integrating information from early childhood programs and agencies as well as participation in the broader State Longitudinal Data System (SLDS) efforts.",null,null,null,null,null,"Element Rating:",null,null,null,null,null,null,null,0,{"$f":"IFERROR(VLOOKUP(L31,#REF!,2,FALSE),\"\")","v":""},1,null,null,null,null,null,null,"The purpose and vision of the Part C/619 state data system include integrating information from early childhood programs and agencies as well as participation in the broader State Longitudinal Data System (SLDS) efforts.","Element Rating:"]
[null,null,null,null,"Evidence:",null,null,null,null,null,null,null,null,null,null,null,null,null,1,null,1,null,null,null,null,null,null,"Evidence:",0]
[null,null,null,null,null,null,null,null,null,null,null,null,null,null,null,null,null,null,null,null,null,null,null,null,null,null,null,""]
[null,null,null,null,null,null,null,null,null,null,null,null,null,null,null,null,null,null,null,null,null,null,null,null,null,null,null,{"$f":"E34","v":0}]
[null,null,null,null,null,null,null,null,null,null,null,null,null,null,null,null,null,null,null,null,null,null,null,null,null,null,null,0]
[null,null,null,null,null,null,null,null,null,null,null,null,null,null,null,null,null,null,null,null,null,null,null,null,null,null,null,0]
[null,null,null,null,null,null,null,null,null,null,null,null,null,null,null,null,null,null,null,null,null,null,null,null,null,null,null,0]
[null,null,null,null,null,null,null,null,null,null,null,null,null,null,null,null,null,null,null,null,null,null,null,null,null,null,null,0]
[null,null,null,null,null,null,null,null,null,null,null,null,null,null,null,null,null,null,null,null,null,null,null,null,null,null,null,0]
[null,null,null,null,null,null,null,null,null,null,null,null,null,null,null,null,null,null,null,null,null,null,null,null,null,null,null,0]
[null,null,null,null,null,null,null,null,null,null,null,null,null,null,null,null,null,null,null,null,null,null,null,null,null,null,null,0]
[null,null,null,null,null,null,null,null,null,null,null,null,null,null,null,null,null,null,null,null,null,null,null,null,null,null,null,0]
[null,null,null,null,null,null,null,null,null,null,null,null,null,null,null,null,null,null,null,null,null,null,null,null,null,null,null,0]
[null,null,null,null,null,null,null,null,null,null,null,null,null,null,null,null,null,null,null,null,null,null,null,null,null,null,null,0]
[null,null,null,null,null,null,null,null,null,null,null,null,null,null,null,null,null,null,null,null,null,null,null,null,null,null,null,0]
[null,null,null,null,null,null,null,null,null,null,null,null,null,null,null,null,null,null,null,null,null,null,null,null,null,null,null,0]
[null,null,null,null,null,null,null,null,null,null,null,null,null,null,null,null,null,null,null,null,null,null,null,null,null,null,null,0]
[null,null,null,null,null,null,null,null,null,null,null,null,null,null,null,null,null,null,null,null,null,null,null,null,null,null,null,0]
[null,null,null,null,null,null,null,null,null,null,null,null,null,null,null,null,null,null,null,null,null,null,null,null,null,null,null,{"$f":"E49","v":0}]
[null,null,null,null,null,null,null,null,null,null,null,null,null,null,null,null,null,null,null,null,null,null,null,null,null,null,null,0]
[null,null,null,null,null,null,null,null,null,null,null,null,null,null,null,null,null,null,null,null,null,null,null,null,null,null,null,0]
[null,null,null,null,null,null,null,null,null,null,null,null,null,null,null,null,null,null,null,null,null,null,null,null,null,null,null,0]
[null,null,null,null,null,null,null,null,null,null,null,null,null,null,null,null,null,null,null,null,null,null,null,null,null,null,null,0]
[null,null,null,null,null,null,null,null,null,null,null,null,null,null,null,null,null,null,null,null,null,null,null,null,null,null,null,0]
[null,null,null,null,null,null,null,null,null,null,null,null,null,null,null,null,null,null,null,null,null,null,null,null,null,null,null,0]
[null,null,null,null,null,null,null,null,null,null,null,null,null,null,null,null,null,null,null,null,null,null,null,null,null,null,null,0]
[null,null,null,null,null,null,null,null,null,null,null,null,null,null,null,null,null,null,null,null,null,null,null,null,null,null,null,0]
[null,null,null,null,null,null,null,null,null,null,null,null,null,null,null,null,null,null,null,null,null,null,null,null,null,null,null,0]
[null,null,null,null,null,null,null,null,null,null,null,null,null,null,null,null,null,null,null,null,null,null,null,null,null,null,null,0]
[null,null,null,null,null,null,null,null,null,null,null,null,null,null,null,null,null,null,null,null,null,null,null,null,null,null,null,0]
[null,null,null,null,null,null,null,null,null,null,null,null,null,null,null,null,null,null,null,null,null,null,null,null,null,null,null,0]
[null,null,null,null,null,null,null,null,null,null,null,null,null,null,null,null,null,null,null,null,null,null,null,null,null,null,null,0]
[null,null,null,null,null,null,null,null,null,null,null,null,null,null,null,null,null,null,null,null,null,null,null,null,null,null,null,0]

{"sheet":"DG","index":9,"n_rows":128,"n_cols":33,"rows_kept":128,"cut":false,"hidden":false,"merged":[[118,10,119,10],[120,10,121,10],[112,10,113,10],[122,10,123,10],[8,15,8,17],[114,10,115,10],[8,4,8,5],[9,4,9,5],[5,8,5,13],[6,8,6,13],[7,8,7,13],[8,8,8,13],[46,10,47,10],[14,10,15,10],[16,10,17,10],[18,10,19,10],[36,10,37,10],[26,10,27,10],[28,10,29,10],[30,10,31,10],[34,10,35,10],[40,10,41,10],[110,10,111,10],[82,4,82,8],[4,7,4,13],[116,10,117,10],[68,10,69,10],[70,10,71,10],[64,10,65,10],[66,10,67,10],[78,10,79,10],[86,10,87,10],[74,10,75,10],[72,10,73,10],[92,10,93,10],[90,10,91,10],[80,10,81,10],[82,10,83,10],[84,10,85,10],[42,10,43,10],[38,10,39,10],[48,10,49,10],[50,10,51,10],[60,10,61,10],[54,10,55,10],[56,10,57,10],[58,10,59,10],[52,10,53,10],[83,5,83,8],[84,4,84,8],[85,5,85,8],[86,4,86,8],[87,5,87,8],[88,10,89,10],[98,4,98,8],[95,4,95,8],[96,4,96,8],[102,4,102,8],[103,5,103,8],[104,4,104,8],[105,5,105,8],[106,4,106,8],[107,5,107,8],[104,10,105,10],[106,10,107,10],[96,10,97,10],[98,10,99,10],[101,5,101,8],[124,10,125,10],[2,3,2,5],[3,4,3,5],[4,4,4,5],[5,4,5,5],[6,4,6,5],[7,4,7,5],[67,5,67,8],[68,4,68,8],[69,5,69,8],[28,4,28,8],[29,5,29,8],[30,4,30,8],[118,4,118,8],[119,5,119,8],[74,4,74,8],[75,5,75,8],[77,4,77,8],[78,4,78,8],[79,5,79,8],[80,4,80,8],[81,5,81,8],[100,10,101,10],[102,10,103,10],[120,19,121,19],[122,19,123,19],[124,19,125,19],[96,19,97,19],[98,19,99,19],[100,19,101,19],[102,19,103,19],[104,19,105,19],[106,19,107,19],[110,19,111,19],[112,19,113,19],[114,19,115,19],[116,19,117,19],[118,19,119,19],[78,19,79,19],[80,19,81,19],[82,19,83,19],[84,19,85,19],[86,19,87,19],[88,19,89,19],[90,19,91,19],[92,19,93,19],[64,19,65,19],[66,19,67,19],[68,19,69,19],[70,19,71,19],[72,19,73,19],[74,19,75,19],[60,19,61,19],[34,19,35,19],[36,19,37,19],[38,19,39,19],[40,19,41,19],[42,19,43,19],[56,19,57,19],[58,19,59,19],[46,19,47,19],[48,19,49,19],[50,19,51,19],[52,19,53,19],[54,19,55,19],[33,4,33,8],[34,4,34,8],[35,5,35,8],[12,19,13,19],[14,19,15,19],[16,19,17,19],[18,19,19,19],[22,19,23,19],[24,19,25,19],[26,19,27,19],[28,19,29,19],[30,19,31,19],[23,5,23,8],[24,4,24,8],[25,5,25,8],[26,4,26,8],[27,5,27,8],[19,5,19,8],[21,4,21,8],[22,4,22,8],[31,5,31,8],[22,10,23,10],[24,10,25,10],[12,10,13,10],[11,4,11,8],[12,4,12,8],[13,5,13,8],[14,4,14,8],[15,5,15,8],[16,4,16,8],[17,5,17,8],[18,4,18,8],[97,5,97,8],[57,5,57,8],[60,4,60,8],[61,5,61,8],[88,4,88,8],[89,5,89,8],[90,4,90,8],[91,5,91,8],[70,4,70,8],[71,5,71,8],[72,4,72,8],[73,5,73,8],[63,4,63,8],[58,4,58,8],[59,5,59,8],[43,5,43,8],[50,4,50,8],[51,5,51,8],[52,4,52,8],[53,5,53,8],[54,4,54,8],[55,5,55,8],[56,4,56,8],[36,4,36,8],[37,5,37,8],[38,4,38,8],[39,5,39,8],[45,4,45,8],[46,4,46,8],[47,5,47,8],[48,4,48,8],[49,5,49,8],[40,4,40,8],[41,5,41,8],[42,4,42,8],[6,32,7,37],[8,32,8,37],[122,4,122,8],[123,5,123,8],[124,4,124,8],[125,5,125,8],[109,4,109,8],[110,4,110,8],[120,4,120,8],[121,5,121,8],[111,5,111,8],[112,4,112,8],[113,5,113,8],[114,4,114,8],[115,5,115,8],[116,4,116,8],[117,5,117,8],[64,4,64,8],[65,5,65,8],[66,4,66,8],[92,4,92,8],[93,5,93,8],[99,5,99,8],[100,4,100,8]]}
[null,null,null,"DS Subcomponent: Data Governance and Management"]
[]
[null,null,null,"Quality Indicator Rating (Calculated)"]
[null,null,null,1,"None of the elements is yet planned or in place.  "]
[null,null,null,2,"Most of the elements are not yet planned or in place. ",null,null,"Element of Quality Rating (EQR) [Imported from T1, T2, T3]"]
[null,null,null,3,"Some elements are in place; a few may be fully implemented.",null,null,1,"No - element not in place and not planning to work on it at this time"]
[null,null,null,4,"At least half of the elements are in place; a few may be fully implemented.",null,null,2,"No - element not in place but planning to work on it or getting started",null,null,null,null,null,null,null,null,null,null,null,null,null,null,null,null,null,null,null,null,null,null,null,{"$f":"IF(ISERROR(FIND(\"Subcomponent\",D1)),D1,\"DS: \"&MID(D1,18,99))","v":"DS: Data Governance and Management"}]
[null,null,null,5,"At least half of the elements are in place; some are fully implemented.",null,null,3,"Yes - element partially implemented"]
[null,null,null,6,"At least half of the elements are fully implemented; the rest are partially implemented.",null,null,4,"Yes - element fully implemented",null,null,null,null,null,null,"PRIORITY",null,null,null,null,null,null,null,null,null,null,null,null,null,null,null,null,"Quality Indicator Ratings"]
[null,null,null,7,"All elements are fully implemented.",null,null,null,null,null,null,"TIME1","TIME2","TIME3",null,"TIME1","TIME2","TIME3"]
[null,null,{"$f":"MID(CELL(\"Filename\",C1),FIND(\"]\",CELL(\"Filename\",C1))+1,255)","v":"DG"},null,null,null,null,null,null,null,"Date:",null,null,null,null,null,null,null,null,null,null,null,null,null,null,null,null,{"$f":"E11&F11","v":""}]
[null,null,null,"QI 1","The data governance structure delineates appropriate decision-making authority and accountability consistent with the uses of the data system reflected in the purpose and vision.",null,null,null,null,null,"QI Rating: ",null,null,null,null,null,null,null,{"$f":"IF(E12=\"Evidence:\",1,0)","v":0},"#",{"$f":"IF(LEFT(D12,2)=\"QI\",0,1)","v":0},null,null,null,null,null,null,{"$f":"E12&F12","v":"The data governance structure delineates appropriate decision-making authority and accountability consistent with the uses of the data system reflected in the purpose and vision."},{"$f":"K12","v":"QI Rating: "}]
[null,null,null,"a","State-level, formalized data governance structure is authorized or assigned to make decisions about the Part C/619 data system. ",null,null,null,null,null,"Element Rating:",null,null,null,null,null,null,null,0,{"$f":"IFERROR(VLOOKUP(L13,#REF!,2,FALSE),\"\")","v":""},{"$f":"IF(LEFT(D13,2)=\"QI\",0,1)","v":1},null,null,null,null,null,null,"State-level, formalized data governance structure is authorized or assigned to make decisions about the Part C/619 data system. ",{"$f":"K13","v":"Element Rating:"}]
[null,null,null,null,"Evidence:",null,null,null,null,null,null,null,null,null,null,null,null,null,1,null,1,null,null,null,null,null,null,"Evidence:",0]
[null,null,null,"b","The data governance structure includes representatives from Part C/619 state programs who have decision-making authority. ",null,null,null,null,null,"Element Rating:",null,null,null,null,null,null,null,0,{"$f":"IFERROR(VLOOKUP(L15,#REF!,2,FALSE),\"\")","v":""},1,null,null,null,null,null,null,"The data governance structure includes representatives from Part C/619 state programs who have decision-making authority. ","Element Rating:"]
[null,null,null,null,"Evidence:",null,null,null,null,null,null,null,null,null,null,null,null,null,1,null,1,null,null,null,null,null,null,"Evidence:",0]
[null,null,null,"c","The data governance structure oversees all data collected and maintained by Part C/619 and ensures adherence to governance policies related to Part C/619 data, regardless of where the data are located.",null,null,null,null,null,"Element Rating:",null,null,null,null,null,null,null,0,{"$f":"IFERROR(VLOOKUP(L17,#REF!,2,FALSE),\"\")","v":""},1,null,null,null,null,null,null,"The data governance structure oversees all data collected and maintained by Part C/619 and ensures adherence to governance policies related to Part C/619 data, regardless of where the data are located.","Element Rating:"]
[null,null,null,null,"Evidence:",null,null,null,null,null,null,null,null,null,null,null,null,null,1,null,1,null,null,null,null,null,null,"Evidence:",0]
[null,null,null,"d","The data governance structure’s authority is reviewed and revised as necessary.",null,null,null,null,null,"Element Rating:",null,null,null,null,null,null,null,0,{"$f":"IFERROR(VLOOKUP(L19,#REF!,2,FALSE),\"\")","v":""},1,null,null,null,null,null,null,"The data governance structure’s authority is reviewed and revised as necessary.","Element Rating:"]
[null,null,null,null,"Evidence:",null,null,null,null,null,null,null,null,null,null,null,null,null,1,null,1,null,null,null,null,null,null,"Evidence:",0]
[null,null,null,null,null,null,null,null,null,null,null,null,null,null,null,null,null,null,0,null,1,null,null,null,null,null,null,"",0]
[null,null,null,"QI 2","The state ensures data governance and management roles and responsibilities clearly establish decision-making authority and accountability.",null,null,null,null,null,"QI Rating: ",null,null,null,null,null,null,null,0,"#",0,null,null,null,null,null,null,"The state ensures data governance and management roles and responsibilities clearly establish decision-making authority and accountability.","QI Rating: "]
[null,null,null,"a","A written statement(s) (e.g., organizational chart, data sharing agreements) delineates decision-making authority for Part C/619 data decisions.",null,null,null,null,null,"Element Rating:",null,null,null,null,null,null,null,0,{"$f":"IFERROR(VLOOKUP(L23,#REF!,2,FALSE),\"\")","v":""},1,null,null,null,null,null,null,"A written statement(s) (e.g., organizational chart, data sharing agreements) delineates decision-making authority for Part C/619 data decisions.","Element Rating:"]
[null,null,null,null,"Evidence:",null,null,null,null,null,null,null,null,null,null,null,null,null,1,null,1,null,null,null,null,null,null,"Evidence:",0]
[null,null,null,"b","All data-related responsibilities associated with the Part C/619 state data system(s) are clearly assigned to responsible and informed parties (e.g., data manager, data steward, data owner).",null,null,null,null,null,"Element Rating:",null,null,null,null,null,null,null,0,{"$f":"IFERROR(VLOOKUP(L25,#REF!,2,FALSE),\"\")","v":""},1,null,null,null,null,null,null,"All data-related responsibilities associated with the Part C/619 state data system(s) are clearly assigned to responsible and informed parties (e.g., data manager, data steward, data owner).","Element Rating:"]
[null,null,null,null,"Evidence:",null,null,null,null,null,null,null,null,null,null,null,null,null,1,null,1,null,null,null,null,null,null,"Evidence:",0]
[null,null,null,"c","Information about data governance decision-making authority is communicated to staff and stakeholders (e.g., dissemination of organizational chart, policies and data sharing agreements).",null,null,null,null,null,"Element Rating:",null,null,null,null,null,null,null,0,{"$f":"IFERROR(VLOOKUP(L27,#REF!,2,FALSE),\"\")","v":""},1,null,null,null,null,null,null,"Information about data governance decision-making authority is communicated to staff and stakeholders (e.g., dissemination of organizational chart, policies and data sharing agreements).","Element Rating:"]
[null,null,null,null,"Evidence:",null,null,null,null,null,null,null,null,null,null,null,null,null,1,null,1,null,null,null,null,null,null,"Evidence:",0]
[null,null,null,"d","Data governance policies are developed with input from stakeholders and vendors and are reviewed and revised as necessary.",null,null,null,null,null,"Element Rating:",null,null,null,null,null,null,null,0,{"$f":"IFERROR(VLOOKUP(L29,#REF!,2,FALSE),\"\")","v":""},1,null,null,null,null,null,null,"Data governance policies are developed with input from stakeholders and vendors and are reviewed and revised as necessary.","Element Rating:"]
[null,null,null,null,"Evidence:",null,null,null,null,null,null,null,null,null,null,null,null,null,1,null,1,null,null,null,null,null,null,"Evidence:",0]
[null,null,null,"e","Data governance policies address Part C/619 representation on other data governance structures and describe the extent of their decision-making authority as it relates to Part C/619 state data.",null,null,null,null,null,"Element Rating:",null,null,null,null,null,null,null,0,{"$f":"IFERROR(VLOOKUP(L31,#REF!,2,FALSE),\"\")","v":""},1,null,null,null,null,null,null,"Data governance policies address Part C/619 representation on other data governance structures and describe the extent of their decision-making authority as it relates to Part C/619 state data.","Element Rating:"]
[null,null,null,null,"Evidence:",null,null,null,null,null,null,null,null,null,null,null,null,null,1,null,1,null,null,null,null,null,null,"Evidence:",0]
[null,null,null,null,null,null,null,null,null,null,null,null,null,null,null,null,null,null,0,null,1,null,null,null,null,null,null,"",0]
[null,null,null,"QI 3","Data governance authorizes Part C/619 staff or representatives to implement policies established for the state Part C/619 data system and manage the data system in accordance with all policies.",null,null,null,null,null,"QI Rating: ",null,null,null,null,null,null,null,0,"#",0,null,null,null,null,null,null,"Data governance authorizes Part C/619 staff or representatives to implement policies established for the state Part C/619 data system and manage the data system in accordance with all policies.","QI Rating: "]
[null,null,null,"a","A process is in place to allow Part C/619 staff or representatives to recommend policy changes to the data governance structure via their Part C/619 data governance representative.",null,null,null,null,null,"Element Rating:",null,null,null,null,null,null,null,0,{"$f":"IFERROR(VLOOKUP(L35,#REF!,2,FALSE),\"\")","v":""},1,null,null,null,null,null,null,"A process is in place to allow Part C/619 staff or representatives to recommend policy changes to the data governance structure via their Part C/619 data governance representative.","Element Rating:"]
[null,null,null,null,"Evidence:",null,null,null,null,null,null,null,null,null,null,null,null,null,1,null,1,null,null,null,null,null,null,"Evidence:",0]
[null,null,null,"b","All requirements (e.g., operational, research, reporting) for Part C/619 data are clearly defined to ensure oversight and accountability. ",null,null,null,null,null,"Element Rating:",null,null,null,null,null,null,null,0,{"$f":"IFERROR(VLOOKUP(L37,#REF!,2,FALSE),\"\")","v":""},1,null,null,null,null,null,null,"All requirements (e.g., operational, research, reporting) for Part C/619 data are clearly defined to ensure oversight and accountability. ","Element Rating:"]
[null,null,null,null,"Evidence:",null,null,null,null,null,null,null,null,null,null,null,null,null,1,null,1,null,null,null,null,null,null,"Evidence:",0]
[null,null,null,"c","Part C/619 staff or representatives approve, prior to implementation, plans for substantive Part C/619 data system changes proposed by information technology (IT) (e.g., enhancements, business rules, technology changes). ",null,null,null,null,null,"Element Rating:",null,null,null,null,null,null,null,0,{"$f":"IFERROR(VLOOKUP(L39,#REF!,2,FALSE),\"\")","v":""},1,null,null,null,null,null,null,"Part C/619 staff or representatives approve, prior to implementation, plans for substantive Part C/619 data system changes proposed by information technology (IT) (e.g., enhancements, business rules, technology changes). ","Element Rating:"]
[null,null,null,null,"Evidence:",null,null,null,null,null,null,null,null,null,null,null,null,null,1,null,1,null,null,null,null,null,null,"Evidence:",0]
[null,null,null,"d","Part C/619 staff or representatives review and revise the state data system’s operating procedures to be responsive to changes in state and federal policy (e.g., new or revised data collection standard to meet reporting requirements).",null,null,null,null,null,"Element Rating:",null,null,null,null,null,null,null,0,{"$f":"IFERROR(VLOOKUP(L41,#REF!,2,FALSE),\"\")","v":""},1,null,null,null,null,null,null,"Part C/619 staff or representatives review and revise the state data system’s operating procedures to be responsive to changes in state and federal policy (e.g., new or revised data collection standard to meet reporting requirements).","Element Rating:"]
[null,null,null,null,"Evidence:",null,null,null,null,null,null,null,null,null,null,null,null,null,1,null,1,null,null,null,null,null,null,"Evidence:",0]
[null,null,null,"e","Part C/619 staff or representatives communicate the state data system’s operating procedures to staff and stakeholders.",null,null,null,null,null,"Element Rating:",null,null,null,null,null,null,null,0,{"$f":"IFERROR(VLOOKUP(L43,#REF!,2,FALSE),\"\")","v":""},1,null,null,null,null,null,null,"Part C/619 staff or representatives communicate the state data system’s operating procedures to staff and stakeholders.","Element Rating:"]
[null,null,null,null,"Evidence:",null,null,null,null,null,null,null,null,null,null,null,null,null,1,null,1,null,null,null,null,null,null,"Evidence:",0]
[null,null,null,null,null,null,null,null,null,null,null,null,null,null,null,null,null,null,0,null,1,null,null,null,null,null,null,"",0]
[null,null,null,"QI 4","Data governance policies require the development and implementation of procedures to ensure the quality and integrity of data collected from state/local programs and agencies. ",null,null,null,null,null,"QI Rating: ",null,null,null,null,null,null,null,0,"#",0,null,null,null,null,null,null,"Data governance policies require the development and implementation of procedures to ensure the quality and integrity of data collected from state/local programs and agencies. ","QI Rating: "]
[null,null,null,"a","Data governance policies require that data included in the state data system are aligned with the purpose and vision of the Part C/619 data system. ",null,null,null,null,null,"Element Rating:",null,null,null,null,null,null,null,0,{"$f":"IFERROR(VLOOKUP(L47,#REF!,2,FALSE),\"\")","v":""},1,null,null,null,null,null,null,"Data governance policies require that data included in the state data system are aligned with the purpose and vision of the Part C/619 data system. ","Element Rating:"]
[null,null,null,null,"Evidence:",null,null,null,null,null,null,null,null,null,null,null,null,null,1,null,1,null,null,null,null,null,null,"Evidence:",0]
[null,null,null,"b","Data governance policies require procedures to ensure the validity of Part C/619 data.",null,null,null,null,null,"Element Rating:",null,null,null,null,null,null,null,0,{"$f":"IFERROR(VLOOKUP(L49,#REF!,2,FALSE),\"\")","v":""},1,null,null,null,null,null,null,"Data governance policies require procedures to ensure the validity of Part C/619 data.","Element Rating:"]
[null,null,null,null,"Evidence:",null,null,null,null,null,null,null,null,null,null,null,null,null,1,null,1,null,null,null,null,null,null,"Evidence:",0]
[null,null,null,"c","Data governance policies require a point of contact for each state Part C/619 data transfer or exchange.",null,null,null,null,null,"Element Rating:",null,null,null,null,null,null,null,0,{"$f":"IFERROR(VLOOKUP(L51,#REF!,2,FALSE),\"\")","v":""},1,null,null,null,null,null,null,"Data governance policies require a point of contact for each state Part C/619 data transfer or exchange.","Element Rating:"]
[null,null,null,null,"Evidence:",null,null,null,null,null,null,null,null,null,null,null,null,null,1,null,1,null,null,null,null,null,null,"Evidence:",0]
[null,null,null,"d","Data governance policies require the development of data quality and integrity procedures for the state data system. ",null,null,null,null,null,"Element Rating:",null,null,null,null,null,null,null,0,{"$f":"IFERROR(VLOOKUP(L53,#REF!,2,FALSE),\"\")","v":""},1,null,null,null,null,null,null,"Data governance policies require the development of data quality and integrity procedures for the state data system. ","Element Rating:"]
[null,null,null,null,"Evidence:",null,null,null,null,null,null,null,null,null,null,null,null,null,1,null,1,null,null,null,null,null,null,"Evidence:",0]
[null,null,null,"e","Data governance policies require staff and contractors who collect, maintain, and/or receive state data to participate in ongoing data quality and integrity training.",null,null,null,null,null,"Element Rating:",null,null,null,null,null,null,null,0,{"$f":"IFERROR(VLOOKUP(L55,#REF!,2,FALSE),\"\")","v":""},1,null,null,null,null,null,null,"Data governance policies require staff and contractors who collect, maintain, and/or receive state data to participate in ongoing data quality and integrity training.","Element Rating:"]
[null,null,null,null,"Evidence:",null,null,null,null,null,null,null,null,null,null,null,null,null,1,null,1,null,null,null,null,null,null,"Evidence:",0]
[null,null,null,"f","Data governance policies related to data quality and integrity of the state data system are regularly reviewed and adjustments are made as necessary.",null,null,null,null,null,"Element Rating:",null,null,null,null,null,null,null,0,{"$f":"IFERROR(VLOOKUP(L57,#REF!,2,FALSE),\"\")","v":""},1,null,null,null,null,null,null,"Data governance policies related to data quality and integrity of the state data system are regularly reviewed and adjustments are made as necessary.","Element Rating:"]
[null,null,null,null,"Evidence:",null,null,null,null,null,null,null,null,null,null,null,null,null,1,null,1,null,null,null,null,null,null,"Evidence:",0]
[null,null,null,"g","Data governance policies require that any internal or external program or agency maintaining and/or using state Part C/619 data adhere to applicable data quality policies and procedures.",null,null,null,null,null,"Element Rating:",null,null,null,null,null,null,null,0,{"$f":"IFERROR(VLOOKUP(L59,#REF!,2,FALSE),\"\")","v":""},1,null,null,null,null,null,null,"Data governance policies require that any internal or external program or agency maintaining and/or using state Part C/619 data adhere to applicable data quality policies and procedures.","Element Rating:"]
[null,null,null,null,"Evidence:",null,null,null,null,null,null,null,null,null,null,null,null,null,1,null,1,null,null,null,null,null,null,"Evidence:",0]
[null,null,null,"h","Data governance policies require that supporting documentation is available to ensure interoperability when transferring state Part C/619 data to other programs or agencies (e.g., data dictionaries, data validation checks).",null,null,null,null,null,"Element Rating:",null,null,null,null,null,null,null,0,{"$f":"IFERROR(VLOOKUP(L61,#REF!,2,FALSE),\"\")","v":""},1,null,null,null,null,null,null,"Data governance policies require that supporting documentation is available to ensure interoperability when transferring state Part C/619 data to other programs or agencies (e.g., data dictionaries, data validation checks).","Element Rating:"]
[null,null,null,null,"Evidence:",null,null,null,null,null,null,null,null,null,null,null,null,null,1,null,1,null,null,null,null,null,null,"Evidence:",0]
[null,null,null,null,null,null,null,null,null,null,null,null,null,null,null,null,null,null,0,null,1,null,null,null,null,null,null,"",0]
[null,null,null,"QI 5","Part C/619 state staff or representatives implement monitoring procedures and technical assistance to ensure consistent application of data quality and integrity policies.",null,null,null,null,null,"QI Rating: ",null,null,null,null,null,null,null,0,"#",0,null,null,null,null,null,null,"Part C/619 state staff or representatives implement monitoring procedures and technical assistance to ensure consistent application of data quality and integrity policies.","QI Rating: "]
[null,null,null,"a","Part C/619 state staff or representatives communicate to data system users regularly about Part C/619 data quality and integrity policies and procedures.",null,null,null,null,null,"Element Rating:",null,null,null,null,null,null,null,0,{"$f":"IFERROR(VLOOKUP(L65,#REF!,2,FALSE),\"\")","v":""},1,null,null,null,null,null,null,"Part C/619 state staff or representatives communicate to data system users regularly about Part C/619 data quality and integrity policies and procedures.","Element Rating:"]
[null,null,null,null,"Evidence:",null,null,null,null,null,null,null,null,null,null,null,null,null,1,null,1,null,null,null,null,null,null,"Evidence:",0]
[null,null,null,"b","Part C/619 state staff or representatives monitor the implementation of the data quality and integrity procedures for Part C/619 data.",null,null,null,null,null,"Element Rating:",null,null,null,null,null,null,null,0,{"$f":"IFERROR(VLOOKUP(L67,#REF!,2,FALSE),\"\")","v":""},1,null,null,null,null,null,null,"Part C/619 state staff or representatives monitor the implementation of the data quality and integrity procedures for Part C/619 data.","Element Rating:"]
[null,null,null,null,"Evidence:",null,null,null,null,null,null,null,null,null,null,null,null,null,1,null,1,null,null,null,null,null,null,"Evidence:",0]
[null,null,null,"c","Part C/619 state staff or representatives have a data quality orientation training for data managers at the state and local levels.",null,null,null,null,null,"Element Rating:",null,null,null,null,null,null,null,0,{"$f":"IFERROR(VLOOKUP(L69,#REF!,2,FALSE),\"\")","v":""},1,null,null,null,null,null,null,"Part C/619 state staff or representatives have a data quality orientation training for data managers at the state and local levels.","Element Rating:"]
[null,null,null,null,"Evidence:",null,null,null,null,null,null,null,null,null,null,null,null,null,1,null,1,null,null,null,null,null,null,"Evidence:",0]
[null,null,null,"d","Part C/619 state staff or representatives create and maintain standardized training materials regarding procedures and responsibility for Part C/619 data system quality and integrity operations.",null,null,null,null,null,"Element Rating:",null,null,null,null,null,null,null,0,{"$f":"IFERROR(VLOOKUP(L71,#REF!,2,FALSE),\"\")","v":""},1,null,null,null,null,null,null,"Part C/619 state staff or representatives create and maintain standardized training materials regarding procedures and responsibility for Part C/619 data system quality and integrity operations.","Element Rating:"]
[null,null,null,null,"Evidence:",null,null,null,null,null,null,null,null,null,null,null,null,null,1,null,1,null,null,null,null,null,null,"Evidence:",0]
[null,null,null,"e","Part C/619 state staff or representatives ensure adherence to data quality and integrity procedures when Part C/619 data are exchanged or transferred.",null,null,null,null,null,"Element Rating:",null,null,null,null,null,null,null,0,{"$f":"IFERROR(VLOOKUP(L73,#REF!,2,FALSE),\"\")","v":""},1,null,null,null,null,null,null,"Part C/619 state staff or representatives ensure adherence to data quality and integrity procedures when Part C/619 data are exchanged or transferred.","Element Rating:"]
[null,null,null,null,"Evidence:",null,null,null,null,null,null,null,null,null,null,null,null,null,1,null,1,null,null,null,null,null,null,"Evidence:",0]
[null,null,null,"f","The Part C/619 data system’s data quality procedures are reviewed and revised periodically and as new management needs arise (e.g., establishment of memorandum of understanding [MOU] with other existing early childhood data system or external research requests).",null,null,null,null,null,"Element Rating:",null,null,null,null,null,null,null,0,{"$f":"IFERROR(VLOOKUP(L75,#REF!,2,FALSE),\"\")","v":""},1,null,null,null,null,null,null,"The Part C/619 data system’s data quality procedures are reviewed and revised periodically and as new management needs arise (e.g., establishment of memorandum of understanding [MOU] with other existing early childhood data system or external research requests).","Element Rating:"]
[null,null,null,null,"Evidence:",null,null,null,null,null,null,null,null,null,null,null,null,null,{"$f":"IF(E76=\"Evidence:\",1,0)","v":1},null,1,null,null,null,null,null,null,{"$f":"E76&F76","v":"Evidence:"},0]
[null,null,null,null,null,null,null,null,null,null,null,null,null,null,null,null,null,null,0,null,{"$f":"IF(LEFT(D77,2)=\"QI\",0,1)","v":1},null,null,null,null,null,null,"",{"$f":"K77","v":0}]
[null,null,null,"QI 6","Data governance policies require the development and implementation of procedures to ensure the security of the data from breach or loss.",null,null,null,null,null,"QI Rating: ",null,null,null,null,null,null,null,0,"#",0,null,null,null,null,null,null,"Data governance policies require the development and implementation of procedures to ensure the security of the data from breach or loss.","QI Rating: "]
[null,null,null,"a","Data governance security policies are in place and available to Part C/619 state staff.",null,null,null,null,null,"Element Rating:",null,null,null,null,null,null,null,0,{"$f":"IFERROR(VLOOKUP(L79,#REF!,2,FALSE),\"\")","v":""},1,null,null,null,null,null,null,"Data governance security policies are in place and available to Part C/619 state staff.","Element Rating:"]
[null,null,null,null,"Evidence:",null,null,null,null,null,null,null,null,null,null,null,null,null,1,null,1,null,null,null,null,null,null,"Evidence:",0]
[null,null,null,"b","Data governance security policies adhere to all federal, state, and local laws, regulations, and standards.",null,null,null,null,null,"Element Rating:",null,null,null,null,null,null,null,0,{"$f":"IFERROR(VLOOKUP(L81,#REF!,2,FALSE),\"\")","v":""},1,null,null,null,null,null,null,"Data governance security policies adhere to all federal, state, and local laws, regulations, and standards.","Element Rating:"]
[null,null,null,null,"Evidence:",null,null,null,null,null,null,null,null,null,null,null,null,null,1,null,1,null,null,null,null,null,null,"Evidence:",0]
[null,null,null,"c","Data governance security policies apply to all Part C/619 data collected, maintained, and/or used.",null,null,null,null,null,"Element Rating:",null,null,null,null,null,null,null,0,{"$f":"IFERROR(VLOOKUP(L83,#REF!,2,FALSE),\"\")","v":""},1,null,null,null,null,null,null,"Data governance security policies apply to all Part C/619 data collected, maintained, and/or used.","Element Rating:"]
[null,null,null,null,"Evidence:",null,null,null,null,null,null,null,null,null,null,null,null,null,1,null,1,null,null,null,null,null,null,"Evidence:",0]
[null,null,null,"d","Data governance security policies require documenting data system operations which, at a minimum, include the following for each state data system:\n·        Person(s) responsible for data security\n·        Data training for authorized data users\n·        Data storage method\n·        Data back-up and recovery\n·        Response to data breach\n·        Data transference (e.g., agency to agency, email, FTP, texting, USB)\n·        Data encryption\n·        Data destruction\n·        Employee use of program equipment and personal devices",null,null,null,null,null,"Element Rating:",null,null,null,null,null,null,null,0,{"$f":"IFERROR(VLOOKUP(L85,#REF!,2,FALSE),\"\")","v":""},1,null,null,null,null,null,null,"Data governance security policies require documenting data system operations which, at a minimum, include the following for each state data system:\n·        Person(s) responsible for data security\n·        Data training for authorized data users\n·        Data storage method\n·        Data back-up and recovery\n·        Response to data breach\n·        Data transference (e.g., agency to agency, email, FTP, texting, USB)\n·        Data encryption\n·        Data destruction\n·        Employee use of program equipment and personal devices","Element Rating:"]
[null,null,null,null,"Evidence:",null,null,null,null,null,null,null,null,null,null,null,null,null,1,null,1,null,null,null,null,null,null,"Evidence:",0]
[null,null,null,"e","Data governance security policies require that staff and contractors who collect, maintain, or receive data participate in periodic training about data security.",null,null,null,null,null,"Element Rating:",null,null,null,null,null,null,null,0,{"$f":"IFERROR(VLOOKUP(L87,#REF!,2,FALSE),\"\")","v":""},1,null,null,null,null,null,null,"Data governance security policies require that staff and contractors who collect, maintain, or receive data participate in periodic training about data security.","Element Rating:"]
[null,null,null,null,"Evidence:",null,null,null,null,null,null,null,null,null,null,null,null,null,1,null,1,null,null,null,null,null,null,"Evidence:",0]
[null,null,null,"f","Data governance security policies require adherence to security policies and procedures when transferring or exchanging Part C/619 state data.",null,null,null,null,null,"Element Rating:",null,null,null,null,null,null,null,0,{"$f":"IFERROR(VLOOKUP(L89,#REF!,2,FALSE),\"\")","v":""},1,null,null,null,null,null,null,"Data governance security policies require adherence to security policies and procedures when transferring or exchanging Part C/619 state data.","Element Rating:"]
[null,null,null,null,"Evidence:",null,null,null,null,null,null,null,null,null,null,null,null,null,1,null,1,null,null,null,null,null,null,"Evidence:",0]
[null,null,null,"g","Data governance security policies require that all internal or external entity or agency maintaining or using state Part C/619 data adhere to all applicable security policies and procedures.",null,null,null,null,null,"Element Rating:",null,null,null,null,null,null,null,0,{"$f":"IFERROR(VLOOKUP(L91,#REF!,2,FALSE),\"\")","v":""},1,null,null,null,null,null,null,"Data governance security policies require that all internal or external entity or agency maintaining or using state Part C/619 data adhere to all applicable security policies and procedures.","Element Rating:"]
[null,null,null,null,"Evidence:",null,null,null,null,null,null,null,null,null,null,null,null,null,1,null,1,null,null,null,null,null,null,"Evidence:",0]
[null,null,null,"h","Data governance security policies are periodically reviewed and revised as necessary.",null,null,null,null,null,"Element Rating:",null,null,null,null,null,null,null,0,{"$f":"IFERROR(VLOOKUP(L93,#REF!,2,FALSE),\"\")","v":""},1,null,null,null,null,null,null,"Data governance security policies are periodically reviewed and revised as necessary.","Element Rating:"]
[null,null,null,null,"Evidence:",null,null,null,null,null,null,null,null,null,null,null,null,null,1,null,1,null,null,null,null,null,null,"Evidence:",0]
[null,null,null,null,null,null,null,null,null,null,null,null,null,null,null,null,null,null,0,null,1,null,null,null,null,null,null,"",0]
[null,null,null,"QI 7","Data governance policies require the development and implementation of procedures to ensure that only authorized users gain appropriate access to the data, including reports. ",null,null,null,null,null,"QI Rating: ",null,null,null,null,null,null,null,0,"#",0,null,null,null,null,null,null,"Data governance policies require the development and implementation of procedures to ensure that only authorized users gain appropriate access to the data, including reports. ","QI Rating: "]
[null,null,null,"a","Data governance access policies are in place and available to all state Part C/619 state staff.",null,null,null,null,null,"Element Rating:",null,null,null,null,null,null,null,0,{"$f":"IFERROR(VLOOKUP(L97,#REF!,2,FALSE),\"\")","v":""},1,null,null,null,null,null,null,"Data governance access policies are in place and available to all state Part C/619 state staff.","Element Rating:"]
[null,null,null,null,"Evidence:",null,null,null,null,null,null,null,null,null,null,null,null,null,1,null,1,null,null,null,null,null,null,"Evidence:",0]
[null,null,null,"b","Data governance access policies adhere to all federal, state, and local laws, regulations, and standards.",null,null,null,null,null,"Element Rating:",null,null,null,null,null,null,null,0,{"$f":"IFERROR(VLOOKUP(L99,#REF!,2,FALSE),\"\")","v":""},1,null,null,null,null,null,null,"Data governance access policies adhere to all federal, state, and local laws, regulations, and standards.","Element Rating:"]
[null,null,null,null,"Evidence:",null,null,null,null,null,null,null,null,null,null,null,null,null,1,null,1,null,null,null,null,null,null,"Evidence:",0]
[null,null,null,"c","Data governance access policies apply to all Part C/619 data collected, maintained, and/or used.",null,null,null,null,null,"Element Rating:",null,null,null,null,null,null,null,0,{"$f":"IFERROR(VLOOKUP(L101,#REF!,2,FALSE),\"\")","v":""},1,null,null,null,null,null,null,"Data governance access policies apply to all Part C/619 data collected, maintained, and/or used.","Element Rating:"]
[null,null,null,null,"Evidence:",null,null,null,null,null,null,null,null,null,null,null,null,null,1,null,1,null,null,null,null,null,null,"Evidence:",0]
[null,null,null,"d","Data governance access policies require that internal (and, to the extent required, external) Part C/619 data users participate in relevant access trainings regarding Part C/619 data.",null,null,null,null,null,"Element Rating:",null,null,null,null,null,null,null,0,{"$f":"IFERROR(VLOOKUP(L103,#REF!,2,FALSE),\"\")","v":""},1,null,null,null,null,null,null,"Data governance access policies require that internal (and, to the extent required, external) Part C/619 data users participate in relevant access trainings regarding Part C/619 data.","Element Rating:"]
[null,null,null,null,"Evidence:",null,null,null,null,null,null,null,null,null,null,null,null,null,1,null,1,null,null,null,null,null,null,"Evidence:",0]
[null,null,null,"e","Data governance access policies require Part C/619 state staff or representatives to routinely monitor and test data system access to ensure effective and consistent implementation.",null,null,null,null,null,"Element Rating:",null,null,null,null,null,null,null,0,{"$f":"IFERROR(VLOOKUP(L105,#REF!,2,FALSE),\"\")","v":""},1,null,null,null,null,null,null,"Data governance access policies require Part C/619 state staff or representatives to routinely monitor and test data system access to ensure effective and consistent implementation.","Element Rating:"]
[null,null,null,null,"Evidence:",null,null,null,null,null,null,null,null,null,null,null,null,null,1,null,1,null,null,null,null,null,null,"Evidence:",0]
[null,null,null,"f","Data governance access policies are periodically reviewed and revised as necessary.",null,null,null,null,null,"Element Rating:",null,null,null,null,null,null,null,0,{"$f":"IFERROR(VLOOKUP(L107,#REF!,2,FALSE),\"\")","v":""},1,null,null,null,null,null,null,"Data governance access policies are periodically reviewed and revised as necessary.","Element Rating:"]
[null,null,null,null,"Evidence:",null,null,null,null,null,null,null,null,null,null,null,null,null,1,null,1,null,null,null,null,null,null,"Evidence:",0]
[null,null,null,null,null,null,null,null,null,null,null,null,null,null,null,null,null,null,0,null,1,null,null,null,null,null,null,"",0]
[null,null,null,"QI 8","Part C/619 state staff or representatives support and implement management procedures that maintain and address data security and access. ",null,null,null,null,null,"QI Rating: ",null,null,null,null,null,null,null,0,"#",0,null,null,null,null,null,null,"Part C/619 state staff or representatives support and implement management procedures that maintain and address data security and access. ","QI Rating: "]
[null,null,null,"a","Part C/619 state staff or representatives communicate regularly to data system users about Part C/619 data security and access policies, and procedures.",null,null,null,null,null,"Element Rating:",null,null,null,null,null,null,null,0,{"$f":"IFERROR(VLOOKUP(L111,#REF!,2,FALSE),\"\")","v":""},1,null,null,null,null,null,null,"Part C/619 state staff or representatives communicate regularly to data system users about Part C/619 data security and access policies, and procedures.","Element Rating:"]
[null,null,null,null,"Evidence:",null,null,null,null,null,null,null,null,null,null,null,null,null,1,null,1,null,null,null,null,null,null,"Evidence:",0]
[null,null,null,"b","Part C/619 state staff or representatives monitor the implementation of the security procedures and the overall security of Part C/619 data.",null,null,null,null,null,"Element Rating:",null,null,null,null,null,null,null,0,{"$f":"IFERROR(VLOOKUP(L113,#REF!,2,FALSE),\"\")","v":""},1,null,null,null,null,null,null,"Part C/619 state staff or representatives monitor the implementation of the security procedures and the overall security of Part C/619 data.","Element Rating:"]
[null,null,null,null,"Evidence:",null,null,null,null,null,null,null,null,null,null,null,null,null,1,null,1,null,null,null,null,null,null,"Evidence:",0]
[null,null,null,"c","Part C/619 state staff or representatives monitor to ensure that all data users, at all levels, with access to state Part C/619 data adhere to the policies and procedures.",null,null,null,null,null,"Element Rating:",null,null,null,null,null,null,null,0,{"$f":"IFERROR(VLOOKUP(L115,#REF!,2,FALSE),\"\")","v":""},1,null,null,null,null,null,null,"Part C/619 state staff or representatives monitor to ensure that all data users, at all levels, with access to state Part C/619 data adhere to the policies and procedures.","Element Rating:"]
[null,null,null,null,"Evidence:",null,null,null,null,null,null,null,null,null,null,null,null,null,1,null,1,null,null,null,null,null,null,"Evidence:",0]
[null,null,null,"d","Part C/619 state staff or representatives monitor to ensure adherence to security procedures when transferring or exchanging Part C/619 state data.",null,null,null,null,null,"Element Rating:",null,null,null,null,null,null,null,0,{"$f":"IFERROR(VLOOKUP(L117,#REF!,2,FALSE),\"\")","v":""},1,null,null,null,null,null,null,"Part C/619 state staff or representatives monitor to ensure adherence to security procedures when transferring or exchanging Part C/619 state data.","Element Rating:"]
[null,null,null,null,"Evidence:",null,null,null,null,null,null,null,null,null,null,null,null,null,1,null,1,null,null,null,null,null,null,"Evidence:",0]
[null,null,null,"e","Part C/619 state staff or representatives develop training materials regarding procedures and responsibility for Part C/619 data system security and access operations and data use.",null,null,null,null,null,"Element Rating:",null,null,null,null,null,null,null,0,{"$f":"IFERROR(VLOOKUP(L119,#REF!,2,FALSE),\"\")","v":""},1,null,null,null,null,null,null,"Part C/619 state staff or representatives develop training materials regarding procedures and responsibility for Part C/619 data system security and access operations and data use.","Element Rating:"]
[null,null,null,null,"Evidence:",null,null,null,null,null,null,null,null,null,null,null,null,null,1,null,1,null,null,null,null,null,null,"Evidence:",0]
[null,null,null,"f","Part C/619 state staff or representatives require that all individuals with access to Part C/619 data demonstrate knowledge about security and access policies and procedures.",null,null,null,null,null,"Element Rating:",null,null,null,null,null,null,null,0,{"$f":"IFERROR(VLOOKUP(L121,#REF!,2,FALSE),\"\")","v":""},1,null,null,null,null,null,null,"Part C/619 state staff or representatives require that all individuals with access to Part C/619 data demonstrate knowledge about security and access policies and procedures.","Element Rating:"]
[null,null,null,null,"Evidence:",null,null,null,null,null,null,null,null,null,null,null,null,null,1,null,1,null,null,null,null,null,null,"Evidence:",0]
[null,null,null,"g","Part C/619 state staff and representatives review and revise security and access training materials periodically and as new management needs arise (e.g., new or revised data policies).",null,null,null,null,null,"Element Rating:",null,null,null,null,null,null,null,0,{"$f":"IFERROR(VLOOKUP(L123,#REF!,2,FALSE),\"\")","v":""},1,null,null,null,null,null,null,"Part C/619 state staff and representatives review and revise security and access training materials periodically and as new management needs arise (e.g., new or revised data policies).","Element Rating:"]
[null,null,null,null,"Evidence:",null,null,null,null,null,null,null,null,null,null,null,null,null,1,null,1,null,null,null,null,null,null,"Evidence:",0]
[null,null,null,"h","Part C/619 state staff and representatives review and revise procedures for monitoring security and access as necessary.",null,null,null,null,null,"Element Rating:",null,null,null,null,null,null,null,0,{"$f":"IFERROR(VLOOKUP(L125,#REF!,2,FALSE),\"\")","v":""},1,null,null,null,null,null,null,"Part C/619 state staff and representatives review and revise procedures for monitoring security and access as necessary.","Element Rating:"]
[null,null,null,null,"Evidence:",null,null,null,null,null,null,null,null,null,null,null,null,null,1,null,1,null,null,null,null,null,null,"Evidence:",0]
[null,null,null,null,null,null,null,null,null,null,null,null,null,null,null,null,null,null,0,null,null,null,null,null,null,null,null,"",0]
[null,null,null,null,null,null,null,null,null,null,null,null,null,null,null,null,null,null,null,null,null,null,null,null,null,null,null,{"$f":"E128","v":0},0]

{"sheet":"SE","index":10,"n_rows":44,"n_cols":33,"rows_kept":44,"cut":false,"hidden":false,"merged":[[8,15,8,17],[7,4,7,5],[11,4,11,8],[8,4,8,5],[9,4,9,5],[7,8,7,13],[8,8,8,13],[5,8,5,13],[6,8,6,13],[2,3,2,5],[3,4,3,5],[4,4,4,5],[5,4,5,5],[6,4,6,5],[4,7,4,13],[12,10,13,10],[34,19,35,19],[34,4,34,8],[35,5,35,8],[34,10,35,10],[26,19,27,19],[32,4,32,8],[33,5,33,8],[18,4,18,8],[19,5,19,8],[21,4,21,8],[30,10,31,10],[24,10,25,10],[30,19,31,19],[32,19,33,19],[32,10,33,10],[38,19,39,19],[40,19,41,19],[37,4,37,8],[38,4,38,8],[39,5,39,8],[38,10,39,10],[40,10,41,10],[41,5,41,8],[40,4,40,8],[29,4,29,8],[30,4,30,8],[31,5,31,8],[22,10,23,10],[16,4,16,8],[17,5,17,8],[18,10,19,10],[25,5,25,8],[26,4,26,8],[26,10,27,10],[27,5,27,8],[16,10,17,10],[6,32,7,37],[8,32,8,37],[22,4,22,8],[23,5,23,8],[24,4,24,8],[12,19,13,19],[14,19,15,19],[16,19,17,19],[18,19,19,19],[14,10,15,10],[22,19,23,19],[24,19,25,19],[12,4,12,8],[13,5,13,8],[14,4,14,8],[15,5,15,8]]}
[null,null,null,"DS Subcomponent: Stakeholder Engagement"]
[]
[null,null,null,"Quality Indicator Rating (Calculated)"]
[null,null,null,1,"None of the elements is yet planned or in place.  "]
[null,null,null,2,"Most of the elements are not yet planned or in place. ",null,null,"Element of Quality Rating (EQR) [Imported from T1, T2, T3]"]
[null,null,null,3,"Some elements are in place; a few may be fully implemented.",null,null,1,"No - element not in place and not planning to work on it at this time"]
[null,null,null,4,"At least half of the elements are in place; a few may be fully implemented.",null,null,2,"No - element not in place but planning to work on it or getting started",null,null,null,null,null,null,null,null,null,null,null,null,null,null,null,null,null,null,null,null,null,null,null,{"$f":"IF(ISERROR(FIND(\"Subcomponent\",D1)),D1,\"DS: \"&MID(D1,18,99))","v":"DS: Stakeholder Engagement"}]
[null,null,null,5,"At least half of the elements are in place; some are fully implemented.",null,null,3,"Yes - element partially implemented"]
[null,null,null,6,"At least half of the elements are fully implemented; the rest are partially implemented.",null,null,4,"Yes - element fully implemented",null,null,null,null,null,null,"PRIORITY",null,null,null,null,null,null,null,null,null,null,null,null,null,null,null,null,"Quality Indicator Ratings"]
[null,null,null,7,"All elements are fully implemented.",null,null,null,null,null,null,"TIME1","TIME2","TIME3",null,"TIME1","TIME2","TIME3"]
[null,null,{"$f":"MID(CELL(\"Filename\",C1),FIND(\"]\",CELL(\"Filename\",C1))+1,255)","v":"SE"},null,null,null,null,null,null,null,"Date:",null,null,null,null,null,null,null,null,null,null,null,null,null,null,null,null,{"$f":"E11&F11","v":""}]
[null,null,null,"QI 1","Part C/619 state staff identify groups and individuals who are affected by the data system.",null,null,null,null,null,"QI Rating: ",null,null,null,null,null,null,null,{"$f":"IF(E12=\"Evidence:\",1,0)","v":0},"#",{"$f":"IF(LEFT(D12,2)=\"QI\",0,1)","v":0},null,null,null,null,null,null,{"$f":"E12&F12","v":"Part C/619 state staff identify groups and individuals who are affected by the data system."},{"$f":"K12","v":"QI Rating: "}]
[null,null,null,"a","Part C/619 state staff establish purposes for engaging stakeholders.",null,null,null,null,null,"Element Rating:",null,null,null,null,null,null,null,0,{"$f":"IFERROR(VLOOKUP(L13,#REF!,2,FALSE),\"\")","v":""},{"$f":"IF(LEFT(D13,2)=\"QI\",0,1)","v":1},null,null,null,null,null,null,"Part C/619 state staff establish purposes for engaging stakeholders.",{"$f":"K13","v":"Element Rating:"}]
[null,null,null,null,"Evidence:",null,null,null,null,null,null,null,null,null,null,null,null,null,1,null,{"$f":"IF(LEFT(D14,2)=\"QI\",0,1)","v":1},null,null,null,null,null,null,"Evidence:",0]
[null,null,null,"b","Part C/619 state staff identify individuals to represent different types of stakeholder groups and that include diversity related to language, culture, and perspective.",null,null,null,null,null,"Element Rating:",null,null,null,null,null,null,null,0,{"$f":"IFERROR(VLOOKUP(L15,#REF!,2,FALSE),\"\")","v":""},{"$f":"IF(LEFT(D15,2)=\"QI\",0,1)","v":1},null,null,null,null,null,null,"Part C/619 state staff identify individuals to represent different types of stakeholder groups and that include diversity related to language, culture, and perspective.","Element Rating:"]
[null,null,null,null,"Evidence:",null,null,null,null,null,null,null,null,null,null,null,null,null,1,null,1,null,null,null,null,null,null,"Evidence:",0]
[null,null,null,"c","Part C/619 state staff articulate the expectations for stakeholder involvement, including the timeline for involvement, mechanisms for responding to requests for input, and the role of stakeholders in decision-making or advising.",null,null,null,null,null,"Element Rating:",null,null,null,null,null,null,null,0,{"$f":"IFERROR(VLOOKUP(L17,#REF!,2,FALSE),\"\")","v":""},1,null,null,null,null,null,null,"Part C/619 state staff articulate the expectations for stakeholder involvement, including the timeline for involvement, mechanisms for responding to requests for input, and the role of stakeholders in decision-making or advising.","Element Rating:"]
[null,null,null,null,"Evidence:",null,null,null,null,null,null,null,null,null,null,null,null,null,1,null,1,null,null,null,null,null,null,"Evidence:",0]
[null,null,null,"d","Part C/619 state staff periodically review stakeholder representation to ensure all relevant groups are included and participating.",null,null,null,null,null,"Element Rating:",null,null,null,null,null,null,null,0,{"$f":"IFERROR(VLOOKUP(L19,#REF!,2,FALSE),\"\")","v":""},1,null,null,null,null,null,null,"Part C/619 state staff periodically review stakeholder representation to ensure all relevant groups are included and participating.","Element Rating:"]
[null,null,null,null,"Evidence:",null,null,null,null,null,null,null,null,null,null,null,null,null,1,null,1,null,null,null,null,null,null,"Evidence:",0]
[null,null,null,null,null,null,null,null,null,null,null,null,null,null,null,null,null,null,0,null,1,null,null,null,null,null,null,"",0]
[null,null,null,"QI 2","Part C/619 state staff provide opportunities for stakeholders to give input about the data system.",null,null,null,null,null,"QI Rating: ",null,null,null,null,null,null,null,0,"#",0,null,null,null,null,null,null,"Part C/619 state staff provide opportunities for stakeholders to give input about the data system.","QI Rating: "]
[null,null,null,"a","Part C/ 619 state staff use multiple methods to maximize opportunities for stakeholder input.",null,null,null,null,null,"Element Rating:",null,null,null,null,null,null,null,0,{"$f":"IFERROR(VLOOKUP(L23,#REF!,2,FALSE),\"\")","v":""},1,null,null,null,null,null,null,"Part C/ 619 state staff use multiple methods to maximize opportunities for stakeholder input.","Element Rating:"]
[null,null,null,null,"Evidence:",null,null,null,null,null,null,null,null,null,null,null,null,null,1,null,1,null,null,null,null,null,null,"Evidence:",0]
[null,null,null,"b","Part C/619 state staff provide stakeholders with the necessary information to provide input on the issues or decisions under consideration.",null,null,null,null,null,"Element Rating:",null,null,null,null,null,null,null,0,{"$f":"IFERROR(VLOOKUP(L25,#REF!,2,FALSE),\"\")","v":""},1,null,null,null,null,null,null,"Part C/619 state staff provide stakeholders with the necessary information to provide input on the issues or decisions under consideration.","Element Rating:"]
[null,null,null,null,"Evidence:",null,null,null,null,null,null,null,null,null,null,null,null,null,1,null,1,null,null,null,null,null,null,"Evidence:",0]
[null,null,null,"c","Part C/619 state staff periodically review and revise the methods for gathering input from stakeholders.",null,null,null,null,null,"Element Rating:",null,null,null,null,null,null,null,0,{"$f":"IFERROR(VLOOKUP(L27,#REF!,2,FALSE),\"\")","v":""},1,null,null,null,null,null,null,"Part C/619 state staff periodically review and revise the methods for gathering input from stakeholders.","Element Rating:"]
[null,null,null,null,"Evidence:",null,null,null,null,null,null,null,null,null,null,null,null,null,1,null,1,null,null,null,null,null,null,"Evidence:",0]
[null,null,null,null,null,null,null,null,null,null,null,null,null,null,null,null,null,null,0,null,1,null,null,null,null,null,null,"",0]
[null,null,null,"QI 3","Part C/619 state staff consider stakeholder input in decision-making and notify stakeholders of decisions made regarding the data system. ",null,null,null,null,null,"QI Rating: ",null,null,null,null,null,null,null,0,"#",0,null,null,null,null,null,null,"Part C/619 state staff consider stakeholder input in decision-making and notify stakeholders of decisions made regarding the data system. ","QI Rating: "]
[null,null,null,"a","Part C/619 state staff review stakeholder input to guide decision-making.",null,null,null,null,null,"Element Rating:",null,null,null,null,null,null,null,0,{"$f":"IFERROR(VLOOKUP(L31,#REF!,2,FALSE),\"\")","v":""},1,null,null,null,null,null,null,"Part C/619 state staff review stakeholder input to guide decision-making.","Element Rating:"]
[null,null,null,null,"Evidence:",null,null,null,null,null,null,null,null,null,null,null,null,null,1,null,1,null,null,null,null,null,null,"Evidence:",0]
[null,null,null,"b","Part C/619 state staff use multiple methods for communicating decisions to stakeholders in a timely manner.",null,null,null,null,null,"Element Rating:",null,null,null,null,null,null,null,0,{"$f":"IFERROR(VLOOKUP(L33,#REF!,2,FALSE),\"\")","v":""},1,null,null,null,null,null,null,"Part C/619 state staff use multiple methods for communicating decisions to stakeholders in a timely manner.","Element Rating:"]
[null,null,null,null,"Evidence:",null,null,null,null,null,null,null,null,null,null,null,null,null,1,null,1,null,null,null,null,null,null,"Evidence:",0]
[null,null,null,"c","Part C/619 state staff periodically review and revise the methods used for communicating decisions.",null,null,null,null,null,"Element Rating:",null,null,null,null,null,null,null,0,{"$f":"IFERROR(VLOOKUP(L35,#REF!,2,FALSE),\"\")","v":""},1,null,null,null,null,null,null,"Part C/619 state staff periodically review and revise the methods used for communicating decisions.","Element Rating:"]
[null,null,null,null,"Evidence:",null,null,null,null,null,null,null,null,null,null,null,null,null,1,null,1,null,null,null,null,null,null,"Evidence:",0]
[null,null,null,null,null,null,null,null,null,null,null,null,null,null,null,null,null,null,0,null,1,null,null,null,null,null,null,"",0]
[null,null,null,"QI 4","Part C/619 state staff are engaged as stakeholders in integrated data system initiatives, such as C/619 integrated data system, ECIDS, SLDS.",null,null,null,null,null,"QI Rating: ",null,null,null,null,null,null,null,0,"#",0,null,null,null,null,null,null,"Part C/619 state staff are engaged as stakeholders in integrated data system initiatives, such as C/619 integrated data system, ECIDS, SLDS.","QI Rating: "]
[null,null,null,"a","SE4a. Part C/619 state staff understand their role as stakeholders in the integrated data system initiative.",null,null,null,null,null,"Element Rating:",null,null,null,null,null,null,null,0,{"$f":"IFERROR(VLOOKUP(L39,#REF!,2,FALSE),\"\")","v":""},1,null,null,null,null,null,null,"SE4a. Part C/619 state staff understand their role as stakeholders in the integrated data system initiative.","Element Rating:"]
[null,null,null,null,"Evidence:",null,null,null,null,null,null,null,null,null,null,null,null,null,1,null,1,null,null,null,null,null,null,"Evidence:",0]
[null,null,null,"b","SE4b. Part C/619 state staff participate as active stakeholders in the initiative in a variety of ways, including:\n·        Responding to requests for input within designated timelines\n·        Attending and actively participating in meetings\n·        Acquiring knowledge about integrated data systems (i.e., integrated data systems literacy)\n·        Providing information to the larger stakeholder group about their program\n·        Ensuring the appropriate program data are included in the integrated data system\n·        Keeping Part C/619 state stakeholders and leadership informed about the initiative. ",null,null,null,null,null,"Element Rating:",null,null,null,null,null,null,null,0,{"$f":"IFERROR(VLOOKUP(L41,#REF!,2,FALSE),\"\")","v":""},1,null,null,null,null,null,null,"SE4b. Part C/619 state staff participate as active stakeholders in the initiative in a variety of ways, including:\n·        Responding to requests for input within designated timelines\n·        Attending and actively participating in meetings\n·        Acquiring knowledge about integrated data systems (i.e., integrated data systems literacy)\n·        Providing information to the larger stakeholder group about their program\n·        Ensuring the appropriate program data are included in the integrated data system\n·        Keeping Part C/619 state stakeholders and leadership informed about the initiative. ","Element Rating:"]
[null,null,null,null,"Evidence:",null,null,null,null,null,null,null,null,null,null,null,null,null,1,null,1,null,null,null,null,null,null,"Evidence:",0]
[null,null,null,null,null,null,null,null,null,null,null,null,null,null,null,null,null,null,0,null,null,null,null,null,null,null,null,null,0]
[null,null,null,null,null,null,null,null,null,null,null,null,null,null,null,null,null,null,null,null,null,null,null,null,null,null,null,null,0]

{"sheet":"SD","index":11,"n_rows":151,"n_cols":33,"rows_kept":151,"cut":false,"hidden":false,"merged":[[8,15,8,17],[142,10,143,10],[140,10,141,10],[144,10,145,10],[132,10,133,10],[2,3,2,5],[3,4,3,5],[4,4,4,5],[5,4,5,5],[6,4,6,5],[7,4,7,5],[8,4,8,5],[9,4,9,5],[5,8,5,13],[6,8,6,13],[7,8,7,13],[8,8,8,13],[4,7,4,13],[130,10,131,10],[114,10,115,10],[116,10,117,10],[126,10,127,10],[80,10,81,10],[96,10,97,10],[88,10,89,10],[92,10,93,10],[94,10,95,10],[118,10,119,10],[106,10,107,10],[120,10,121,10],[122,10,123,10],[60,10,61,10],[62,10,63,10],[64,10,65,10],[68,10,69,10],[70,10,71,10],[72,10,73,10],[66,10,67,10],[74,10,75,10],[76,10,77,10],[40,10,41,10],[42,10,43,10],[44,10,45,10],[38,10,39,10],[56,10,57,10],[58,10,59,10],[52,10,53,10],[46,10,47,10],[48,10,49,10],[50,10,51,10],[22,10,23,10],[16,10,17,10],[28,10,29,10],[18,10,19,10],[24,10,25,10],[26,10,27,10],[36,10,37,10],[12,10,13,10],[14,10,15,10],[30,10,31,10],[32,10,33,10],[137,5,137,8],[136,19,137,19],[138,19,139,19],[140,19,141,19],[142,19,143,19],[144,19,145,19],[146,19,147,19],[148,19,149,19],[142,4,142,8],[143,5,143,8],[144,4,144,8],[145,5,145,8],[146,4,146,8],[147,5,147,8],[148,4,148,8],[138,4,138,8],[139,5,139,8],[140,4,140,8],[141,5,141,8],[149,5,149,8],[148,10,149,10],[146,10,147,10],[136,10,137,10],[138,10,139,10],[135,4,135,8],[136,4,136,8],[88,19,89,19],[70,19,71,19],[100,19,101,19],[110,19,111,19],[112,19,113,19],[114,19,115,19],[116,19,117,19],[118,19,119,19],[102,19,103,19],[104,19,105,19],[106,19,107,19],[125,4,125,8],[126,4,126,8],[127,5,127,8],[109,4,109,8],[110,4,110,8],[111,5,111,8],[110,10,111,10],[78,10,79,10],[82,10,83,10],[84,10,85,10],[86,10,87,10],[50,19,51,19],[132,19,133,19],[72,19,73,19],[74,19,75,19],[76,19,77,19],[78,19,79,19],[80,19,81,19],[82,19,83,19],[92,19,93,19],[94,19,95,19],[96,19,97,19],[84,19,85,19],[86,19,87,19],[66,19,67,19],[68,19,69,19],[52,19,53,19],[56,19,57,19],[58,19,59,19],[60,19,61,19],[62,19,63,19],[64,19,65,19],[130,19,131,19],[120,19,121,19],[122,19,123,19],[36,19,37,19],[38,19,39,19],[40,19,41,19],[42,19,43,19],[44,19,45,19],[46,19,47,19],[48,19,49,19],[12,19,13,19],[14,19,15,19],[16,19,17,19],[18,19,19,19],[22,19,23,19],[24,19,25,19],[26,19,27,19],[28,19,29,19],[30,19,31,19],[32,19,33,19],[100,4,100,8],[101,5,101,8],[102,4,102,8],[103,5,103,8],[104,4,104,8],[105,5,105,8],[106,4,106,8],[107,5,107,8],[112,10,113,10],[102,10,103,10],[104,10,105,10],[94,4,94,8],[95,5,95,8],[96,4,96,8],[97,5,97,8],[89,5,89,8],[91,4,91,8],[92,4,92,8],[93,5,93,8],[99,4,99,8],[55,4,55,8],[58,4,58,8],[68,4,68,8],[69,5,69,8],[59,5,59,8],[60,4,60,8],[61,5,61,8],[62,4,62,8],[76,4,76,8],[56,4,57,8],[11,4,11,8],[12,4,12,8],[13,5,13,8],[14,4,14,8],[15,5,15,8],[16,4,16,8],[17,5,17,8],[18,4,18,8],[19,5,19,8],[21,4,21,8],[22,4,22,8],[23,5,23,8],[24,4,24,8],[25,5,25,8],[26,4,26,8],[27,5,27,8],[28,4,28,8],[29,5,29,8],[30,4,30,8],[53,5,53,8],[35,4,35,8],[36,4,36,8],[37,5,37,8],[38,4,38,8],[39,5,39,8],[40,4,40,8],[41,5,41,8],[42,4,42,8],[43,5,43,8],[44,4,44,8],[45,5,45,8],[46,4,46,8],[47,5,47,8],[48,4,48,8],[49,5,49,8],[50,4,50,8],[51,5,51,8],[52,4,52,8],[31,5,31,8],[32,4,32,8],[33,5,33,8],[84,4,84,8],[85,5,85,8],[86,4,86,8],[87,5,87,8],[88,4,88,8],[63,5,63,8],[64,4,64,8],[65,5,65,8],[66,4,66,8],[67,5,67,8],[70,4,70,8],[71,5,71,8],[72,4,72,8],[73,5,73,8],[74,4,74,8],[75,5,75,8],[77,5,77,8],[78,4,78,8],[79,5,79,8],[80,4,80,8],[81,5,81,8],[82,4,82,8],[83,5,83,8],[6,32,7,37],[8,32,8,37],[132,4,132,8],[133,5,133,8],[119,5,119,8],[120,4,120,8],[112,4,112,8],[113,5,113,8],[114,4,114,8],[115,5,115,8],[116,4,116,8],[121,5,121,8],[122,4,122,8],[123,5,123,8],[117,5,117,8],[118,4,118,8],[128,4,128,8],[129,5,129,8],[130,4,130,8],[131,5,131,8],[128,10,129,10],[126,19,127,19],[128,19,129,19],[100,10,101,10]]}
[null,null,null,"DS Subcomponent: System Design and Development"]
[]
[null,null,null,"Quality Indicator Rating (Calculated)"]
[null,null,null,1,"None of the elements is yet planned or in place.  "]
[null,null,null,2,"Most of the elements are not yet planned or in place. ",null,null,"Element of Quality Rating (EQR) [Imported from T1, T2, T3]"]
[null,null,null,3,"Some elements are in place; a few may be fully implemented.",null,null,1,"No - element not in place and not planning to work on it at this time"]
[null,null,null,4,"At least half of the elements are in place; a few may be fully implemented.",null,null,2,"No - element not in place but planning to work on it or getting started",null,null,null,null,null,null,null,null,null,null,null,null,null,null,null,null,null,null,null,null,null,null,null,{"$f":"IF(ISERROR(FIND(\"Subcomponent\",D1)),D1,\"DS: \"&MID(D1,18,99))","v":"DS: System Design and Development"}]
[null,null,null,5,"At least half of the elements are in place; some are fully implemented.",null,null,3,"Yes - element partially implemented"]
[null,null,null,6,"At least half of the elements are fully implemented; the rest are partially implemented.",null,null,4,"Yes - element fully implemented",null,null,null,null,null,null,"PRIORITY",null,null,null,null,null,null,null,null,null,null,null,null,null,null,null,null,"Quality Indicator Ratings"]
[null,null,null,7,"All elements are fully implemented.",null,null,null,null,null,null,"TIME1","TIME2","TIME3",null,"TIME1","TIME2","TIME3"]
[null,null,{"$f":"MID(CELL(\"Filename\",C1),FIND(\"]\",CELL(\"Filename\",C1))+1,255)","v":"SD"},null,null,null,null,null,null,null,"Date:",null,null,null,null,null,null,null,null,null,null,null,null,null,null,null,null,{"$f":"E11&F11","v":""}]
[null,null,null,"QI 1","Part C/619 state staff are actively involved in initiating the development of the new data system or enhancement.",null,null,null,null,null,"QI Rating: ",null,null,null,null,null,null,null,{"$f":"IF(E12=\"Evidence:\",1,0)","v":0},"#",{"$f":"IF(LEFT(D12,2)=\"QI\",0,1)","v":0},null,null,null,null,null,null,{"$f":"E12&F12","v":"Part C/619 state staff are actively involved in initiating the development of the new data system or enhancement."},{"$f":"K12","v":"QI Rating: "}]
[null,null,null,"a","Part C/619 state management or leadership provide input to determine project team roles and responsibilities and commit Part C/619 staff to the development of the data system/enhancement. ",null,null,null,null,null,"Element Rating:",null,null,null,null,null,null,null,0,{"$f":"IFERROR(VLOOKUP(L13,#REF!,2,FALSE),\"\")","v":""},{"$f":"IF(LEFT(D13,2)=\"QI\",0,1)","v":1},null,null,null,null,null,null,"Part C/619 state management or leadership provide input to determine project team roles and responsibilities and commit Part C/619 staff to the development of the data system/enhancement. ",{"$f":"K13","v":"Element Rating:"}]
[null,null,null,null,"Evidence:",null,null,null,null,null,null,null,null,null,null,null,null,null,1,null,1,null,null,null,null,null,null,"Evidence:",0]
[null,null,null,"b","Part C/619 state staff review the high-level plan for the data system/enhancement to ensure that it meets Part C/619 goals and needs. ",null,null,null,null,null,"Element Rating:",null,null,null,null,null,null,null,0,{"$f":"IFERROR(VLOOKUP(L15,#REF!,2,FALSE),\"\")","v":""},1,null,null,null,null,null,null,"Part C/619 state staff review the high-level plan for the data system/enhancement to ensure that it meets Part C/619 goals and needs. ","Element Rating:"]
[null,null,null,null,"Evidence:",null,null,null,null,null,null,null,null,null,null,null,null,null,1,null,1,null,null,null,null,null,null,"Evidence:",0]
[null,null,null,"c","Part C/619 state staff provide input on how the new system/enhancement will be developed (i.e., vendor/contractor, in-house, commercially available product) and related staffing needs. ",null,null,null,null,null,"Element Rating:",null,null,null,null,null,null,null,0,{"$f":"IFERROR(VLOOKUP(L17,#REF!,2,FALSE),\"\")","v":""},1,null,null,null,null,null,null,"Part C/619 state staff provide input on how the new system/enhancement will be developed (i.e., vendor/contractor, in-house, commercially available product) and related staffing needs. ","Element Rating:"]
[null,null,null,null,"Evidence:",null,null,null,null,null,null,null,null,null,null,null,null,null,1,null,1,null,null,null,null,null,null,"Evidence:",0]
[null,null,null,"d","Part C/619 state staff provide input into the plan and schedule for the system requirements analysis and the plan and schedule for the remaining system design/development phases. ",null,null,null,null,null,"Element Rating:",null,null,null,null,null,null,null,0,{"$f":"IFERROR(VLOOKUP(L19,#REF!,2,FALSE),\"\")","v":""},1,null,null,null,null,null,null,"Part C/619 state staff provide input into the plan and schedule for the system requirements analysis and the plan and schedule for the remaining system design/development phases. ","Element Rating:"]
[null,null,null,null,"Evidence:",null,null,null,null,null,null,null,null,null,null,null,null,null,1,null,1,null,null,null,null,null,null,"Evidence:",0]
[null,null,null,null,null,null,null,null,null,null,null,null,null,null,null,null,null,null,0,null,1,null,null,null,null,null,null,"",0]
[null,null,null,"QI 2","Part C/619 state staff are actively involved in the development of business requirements, process models, and data models for the data system/enhancement. ",null,null,null,null,null,"QI Rating: ",null,null,null,null,null,null,null,0,"#",0,null,null,null,null,null,null,"Part C/619 state staff are actively involved in the development of business requirements, process models, and data models for the data system/enhancement. ","QI Rating: "]
[null,null,null,"a","Part C/619 state staff are actively involved in defining, reviewing, and revising business requirements, which identify programmatic needs expressed in the language of the Part C/619 program.",null,null,null,null,null,"Element Rating:",null,null,null,null,null,null,null,0,{"$f":"IFERROR(VLOOKUP(L23,#REF!,2,FALSE),\"\")","v":""},1,null,null,null,null,null,null,"Part C/619 state staff are actively involved in defining, reviewing, and revising business requirements, which identify programmatic needs expressed in the language of the Part C/619 program.","Element Rating:"]
[null,null,null,null,"Evidence:",null,null,null,null,null,null,null,null,null,null,null,null,null,1,null,1,null,null,null,null,null,null,"Evidence:",0]
[null,null,null,"b","Part C/619 state staff are actively involved with the IT team to create work process models that reflect an understanding of the Part C/619 program, processes, and language.",null,null,null,null,null,"Element Rating:",null,null,null,null,null,null,null,0,{"$f":"IFERROR(VLOOKUP(L25,#REF!,2,FALSE),\"\")","v":""},1,null,null,null,null,null,null,"Part C/619 state staff are actively involved with the IT team to create work process models that reflect an understanding of the Part C/619 program, processes, and language.","Element Rating:"]
[null,null,null,null,"Evidence:",null,null,null,null,null,null,null,null,null,null,null,null,null,1,null,1,null,null,null,null,null,null,"Evidence:",0]
[null,null,null,"c","Part C/619 state staff are actively involved with the IT team to create data models that reflect program language.",null,null,null,null,null,"Element Rating:",null,null,null,null,null,null,null,0,{"$f":"IFERROR(VLOOKUP(L27,#REF!,2,FALSE),\"\")","v":""},1,null,null,null,null,null,null,"Part C/619 state staff are actively involved with the IT team to create data models that reflect program language.","Element Rating:"]
[null,null,null,null,"Evidence:",null,null,null,null,null,null,null,null,null,null,null,null,null,1,null,1,null,null,null,null,null,null,"Evidence:",0]
[null,null,null,"d","Part C/619 state staff solicit end user input on business requirements, process models, and data models.",null,null,null,null,null,"Element Rating:",null,null,null,null,null,null,null,0,{"$f":"IFERROR(VLOOKUP(L29,#REF!,2,FALSE),\"\")","v":""},1,null,null,null,null,null,null,"Part C/619 state staff solicit end user input on business requirements, process models, and data models.","Element Rating:"]
[null,null,null,null,"Evidence:",null,null,null,null,null,null,null,null,null,null,null,null,null,1,null,1,null,null,null,null,null,null,"Evidence:",0]
[null,null,null,"e","Part C/619 state staff are actively involved in reconciling process models and data models with business requirements, with specific consideration of budget and scope.",null,null,null,null,null,"Element Rating:",null,null,null,null,null,null,null,0,{"$f":"IFERROR(VLOOKUP(L31,#REF!,2,FALSE),\"\")","v":""},1,null,null,null,null,null,null,"Part C/619 state staff are actively involved in reconciling process models and data models with business requirements, with specific consideration of budget and scope.","Element Rating:"]
[null,null,null,null,"Evidence:",null,null,null,null,null,null,null,null,null,null,null,null,null,1,null,1,null,null,null,null,null,null,"Evidence:",0]
[null,null,null,"f","Part C/619 state staff have a clear process for the approval of the final business requirements.",null,null,null,null,null,"Element Rating:",null,null,null,null,null,null,null,0,{"$f":"IFERROR(VLOOKUP(L33,#REF!,2,FALSE),\"\")","v":""},1,null,null,null,null,null,null,"Part C/619 state staff have a clear process for the approval of the final business requirements.","Element Rating:"]
[null,null,null,null,"Evidence:",null,null,null,null,null,null,null,null,null,null,null,null,null,1,null,1,null,null,null,null,null,null,"Evidence:",0]
[null,null,null,null,null,null,null,null,null,null,null,null,null,null,null,null,null,null,0,null,1,null,null,null,null,null,null,"",0]
[null,null,null,"QI 3","The requirements analysis defines the full set of requirements for the new data system/enhancement—that is, what the new system/enhancement must do.",null,null,null,null,null,"QI Rating: ",null,null,null,null,null,null,null,0,"#",0,null,null,null,null,null,null,"The requirements analysis defines the full set of requirements for the new data system/enhancement—that is, what the new system/enhancement must do.","QI Rating: "]
[null,null,null,"a","Features and functions of the data system/enhancement, including those for reporting, interfaces and user types/access, are fully described and expressed in the language of the Part C/619 program.",null,null,null,null,null,"Element Rating:",null,null,null,null,null,null,null,0,{"$f":"IFERROR(VLOOKUP(L37,#REF!,2,FALSE),\"\")","v":""},1,null,null,null,null,null,null,"Features and functions of the data system/enhancement, including those for reporting, interfaces and user types/access, are fully described and expressed in the language of the Part C/619 program.","Element Rating:"]
[null,null,null,null,"Evidence:",null,null,null,null,null,null,null,null,null,null,null,null,null,1,null,1,null,null,null,null,null,null,"Evidence:",0]
[null,null,null,"b","The list of required features and functions of the data system/enhancement indicates what is in and out of scope.",null,null,null,null,null,"Element Rating:",null,null,null,null,null,null,null,0,{"$f":"IFERROR(VLOOKUP(L39,#REF!,2,FALSE),\"\")","v":""},1,null,null,null,null,null,null,"The list of required features and functions of the data system/enhancement indicates what is in and out of scope.","Element Rating:"]
[null,null,null,null,"Evidence:",null,null,null,null,null,null,null,null,null,null,null,null,null,1,null,1,null,null,null,null,null,null,"Evidence:",0]
[null,null,null,"c","Business requirements are prioritized (e.g., as essential, useful, or desirable).",null,null,null,null,null,"Element Rating:",null,null,null,null,null,null,null,0,{"$f":"IFERROR(VLOOKUP(L41,#REF!,2,FALSE),\"\")","v":""},1,null,null,null,null,null,null,"Business requirements are prioritized (e.g., as essential, useful, or desirable).","Element Rating:"]
[null,null,null,null,"Evidence:",null,null,null,null,null,null,null,null,null,null,null,null,null,1,null,1,null,null,null,null,null,null,"Evidence:",0]
[null,null,null,"d","The business requirements address technical requirements that operate in the background, such as encryption, system performance and load, data archiving, audits and controls, and data conversion.",null,null,null,null,null,"Element Rating:",null,null,null,null,null,null,null,0,{"$f":"IFERROR(VLOOKUP(L43,#REF!,2,FALSE),\"\")","v":""},1,null,null,null,null,null,null,"The business requirements address technical requirements that operate in the background, such as encryption, system performance and load, data archiving, audits and controls, and data conversion.","Element Rating:"]
[null,null,null,null,"Evidence:",null,null,null,null,null,null,null,null,null,null,null,null,null,1,null,1,null,null,null,null,null,null,"Evidence:",0]
[null,null,null,"e","A diagram or description of Part C/619 work processes and work flows is developed and depicts processes such as referral/intake, eligibility determination, IFSP/IEP development, and transition.",null,null,null,null,null,"Element Rating:",null,null,null,null,null,null,null,0,{"$f":"IFERROR(VLOOKUP(L45,#REF!,2,FALSE),\"\")","v":""},1,null,null,null,null,null,null,"A diagram or description of Part C/619 work processes and work flows is developed and depicts processes such as referral/intake, eligibility determination, IFSP/IEP development, and transition.","Element Rating:"]
[null,null,null,null,"Evidence:",null,null,null,null,null,null,null,null,null,null,null,null,null,1,null,1,null,null,null,null,null,null,"Evidence:",0]
[null,null,null,"f","Work processes and work flows are broken down into manageable functions and subfunctions (e.g., IFSP/IEP development and provision of services and supports).",null,null,null,null,null,"Element Rating:",null,null,null,null,null,null,null,0,{"$f":"IFERROR(VLOOKUP(L47,#REF!,2,FALSE),\"\")","v":""},1,null,null,null,null,null,null,"Work processes and work flows are broken down into manageable functions and subfunctions (e.g., IFSP/IEP development and provision of services and supports).","Element Rating:"]
[null,null,null,null,"Evidence:",null,null,null,null,null,null,null,null,null,null,null,null,null,1,null,1,null,null,null,null,null,null,"Evidence:",0]
[null,null,null,"g","All data needed for Part C/619 reporting, and for accountability, program improvement, and program operations (refer to Purpose and Vision subcomponent), have been identified for the data system/enhancement.",null,null,null,null,null,"Element Rating:",null,null,null,null,null,null,null,0,{"$f":"IFERROR(VLOOKUP(L49,#REF!,2,FALSE),\"\")","v":""},1,null,null,null,null,null,null,"All data needed for Part C/619 reporting, and for accountability, program improvement, and program operations (refer to Purpose and Vision subcomponent), have been identified for the data system/enhancement.","Element Rating:"]
[null,null,null,null,"Evidence:",null,null,null,null,null,null,null,null,null,null,null,null,null,1,null,1,null,null,null,null,null,null,"Evidence:",0]
[null,null,null,"h","A data model identifying the data elements, the characteristics that define those data (i.e., the data attributes), and the relationships between the entities has been developed.",null,null,null,null,null,"Element Rating:",null,null,null,null,null,null,null,0,{"$f":"IFERROR(VLOOKUP(L51,#REF!,2,FALSE),\"\")","v":""},1,null,null,null,null,null,null,"A data model identifying the data elements, the characteristics that define those data (i.e., the data attributes), and the relationships between the entities has been developed.","Element Rating:"]
[null,null,null,null,"Evidence:",null,null,null,null,null,null,null,null,null,null,null,null,null,1,null,1,null,null,null,null,null,null,"Evidence:",0]
[null,null,null,"i","An initial data dictionary is produced that defines the data elements, their attributes, and the logical relationships among the data elements.",null,null,null,null,null,"Element Rating:",null,null,null,null,null,null,null,0,{"$f":"IFERROR(VLOOKUP(L53,#REF!,2,FALSE),\"\")","v":""},1,null,null,null,null,null,null,"An initial data dictionary is produced that defines the data elements, their attributes, and the logical relationships among the data elements.","Element Rating:"]
[null,null,null,null,"Evidence:",null,null,null,null,null,null,null,null,null,null,null,null,null,1,null,1,null,null,null,null,null,null,"Evidence:",0]
[null,null,null,null,null,null,null,null,null,null,null,null,null,null,null,null,null,null,0,null,1,null,null,null,null,null,null,"",0]
[null,null,null,"QI 4","The Part C/619 state data system has the capacity to support accountability, program improvement, and program operations, and should contain the following data elements and features.  ",null,null,null,null,null,"QI Rating: ",null,null,null,null,null,null,null,0,"#",0,null,null,null,null,null,null,"The Part C/619 state data system has the capacity to support accountability, program improvement, and program operations, and should contain the following data elements and features.  ","QI Rating: "]
[null,null,null,"a","The Part C/619 state data system includes, but is not limited to, the following types of data: \n",null,null,null,null,null,null,null,null,null,null,null,null,null,0,{"$f":"IFERROR(VLOOKUP(L57,#REF!,2,FALSE),\"\")","v":""},1,null,null,null,null,null,null,"The Part C/619 state data system includes, but is not limited to, the following types of data: \n",0]
[null,null,null,null,null,null,null,null,null,null,null,null,null,null,null,null,null,null,0,null,1,null,null,null,null,null,null,"",0]
[null,null,null,"b","The Part C/619 state data system has the capacity to track data about children when they move from one Part C/619 local program to another in the state. ",null,null,null,null,null,"Element Rating:",null,null,null,null,null,null,null,0,{"$f":"IFERROR(VLOOKUP(L59,#REF!,2,FALSE),\"\")","v":""},1,null,null,null,null,null,null,"The Part C/619 state data system has the capacity to track data about children when they move from one Part C/619 local program to another in the state. ","Element Rating:"]
[null,null,null,null,"Evidence:",null,null,null,null,null,null,null,null,null,null,null,null,null,1,null,1,null,null,null,null,null,null,"Evidence:",0]
[null,null,null,"c","The Part C/619 state data system has built-in edit-check routines at the application and/or database levels (e.g., format checks, field validation restrictions, import restrictions/checks). ",null,null,null,null,null,"Element Rating:",null,null,null,null,null,null,null,0,{"$f":"IFERROR(VLOOKUP(L61,#REF!,2,FALSE),\"\")","v":""},1,null,null,null,null,null,null,"The Part C/619 state data system has built-in edit-check routines at the application and/or database levels (e.g., format checks, field validation restrictions, import restrictions/checks). ","Element Rating:"]
[null,null,null,null,"Evidence:",null,null,null,null,null,null,null,null,null,null,null,null,null,1,null,1,null,null,null,null,null,null,"Evidence:",0]
[null,null,null,"d","The Part C/619 state data system has reports in place to assess data quality (e.g., error reports, outliers, missing data). ",null,null,null,null,null,"Element Rating:",null,null,null,null,null,null,null,0,{"$f":"IFERROR(VLOOKUP(L63,#REF!,2,FALSE),\"\")","v":""},1,null,null,null,null,null,null,"The Part C/619 state data system has reports in place to assess data quality (e.g., error reports, outliers, missing data). ","Element Rating:"]
[null,null,null,null,"Evidence:",null,null,null,null,null,null,null,null,null,null,null,null,null,1,null,1,null,null,null,null,null,null,"Evidence:",0]
[null,null,null,"e","The Part C/619 state data system has controls in place so end users access data consistent with federal, state and local privacy requirements, including requiring strong passwords; limits on the length of access (e.g., session timeouts, use of different user types and role-based permissions).",null,null,null,null,null,"Element Rating:",null,null,null,null,null,null,null,0,{"$f":"IFERROR(VLOOKUP(L65,#REF!,2,FALSE),\"\")","v":""},1,null,null,null,null,null,null,"The Part C/619 state data system has controls in place so end users access data consistent with federal, state and local privacy requirements, including requiring strong passwords; limits on the length of access (e.g., session timeouts, use of different user types and role-based permissions).","Element Rating:"]
[null,null,null,null,"Evidence:",null,null,null,null,null,null,null,null,null,null,null,null,null,1,null,1,null,null,null,null,null,null,"Evidence:",0]
[null,null,null,"f","The Part C/619 state data system has embedded supports and training materials for end users (e.g., mouse over definitions, support documents, practice scenarios, practice site within the application, audiovisual tutorials). ",null,null,null,null,null,"Element Rating:",null,null,null,null,null,null,null,0,{"$f":"IFERROR(VLOOKUP(L67,#REF!,2,FALSE),\"\")","v":""},1,null,null,null,null,null,null,"The Part C/619 state data system has embedded supports and training materials for end users (e.g., mouse over definitions, support documents, practice scenarios, practice site within the application, audiovisual tutorials). ","Element Rating:"]
[null,null,null,null,"Evidence:",null,null,null,null,null,null,null,null,null,null,null,null,null,1,null,1,null,null,null,null,null,null,"Evidence:",0]
[null,null,null,"g","The Part C/619 state data system, directly or through a related application, has reporting and analysis tools that provide end users, including state and local program staff, with easy access to the data in both raw form and reports. ",null,null,null,null,null,"Element Rating:",null,null,null,null,null,null,null,0,{"$f":"IFERROR(VLOOKUP(L69,#REF!,2,FALSE),\"\")","v":""},1,null,null,null,null,null,null,"The Part C/619 state data system, directly or through a related application, has reporting and analysis tools that provide end users, including state and local program staff, with easy access to the data in both raw form and reports. ","Element Rating:"]
[null,null,null,null,"Evidence:",null,null,null,null,null,null,null,null,null,null,null,null,null,1,null,1,null,null,null,null,null,null,"Evidence:",0]
[null,null,null,"h","For transactional systems: The Part C/619 state data system provides automated functions that support program practices for end users, (e.g., date tickler or calendar reminders of critical dates such as deadlines for IFSP/IEP reviews and transition conferences). ",null,null,null,null,null,"Element Rating:",null,null,null,null,null,null,null,0,{"$f":"IFERROR(VLOOKUP(L71,#REF!,2,FALSE),\"\")","v":""},1,null,null,null,null,null,null,"For transactional systems: The Part C/619 state data system provides automated functions that support program practices for end users, (e.g., date tickler or calendar reminders of critical dates such as deadlines for IFSP/IEP reviews and transition conferences). ","Element Rating:"]
[null,null,null,null,"Evidence:",null,null,null,null,null,null,null,null,null,null,null,null,null,1,null,1,null,null,null,null,null,null,"Evidence:",0]
[null,null,null,"i","The Part C/619 state data system has security measures that allow the state to comply with federal, state, and local privacy requirements, including those that address:\n• Data back-up and recovery\n• Data storage\n• Data encryption\n• Proper destruction of data\n• Secure transmission of data\n",null,null,null,null,null,"Element Rating:",null,null,null,null,null,null,null,0,{"$f":"IFERROR(VLOOKUP(L73,#REF!,2,FALSE),\"\")","v":""},1,null,null,null,null,null,null,"The Part C/619 state data system has security measures that allow the state to comply with federal, state, and local privacy requirements, including those that address:\n• Data back-up and recovery\n• Data storage\n• Data encryption\n• Proper destruction of data\n• Secure transmission of data\n","Element Rating:"]
[null,null,null,null,"Evidence:",null,null,null,null,null,null,null,null,null,null,null,null,null,1,null,1,null,null,null,null,null,null,"Evidence:",0]
[null,null,null,"j","The Part C/619 state data system allows for selected modifications within the data system with little or no reliance on the IT team, such as adjusting user permissions and adding support documents.",null,null,null,null,null,"Element Rating:",null,null,null,null,null,null,null,0,{"$f":"IFERROR(VLOOKUP(L75,#REF!,2,FALSE),\"\")","v":""},1,null,null,null,null,null,null,"The Part C/619 state data system allows for selected modifications within the data system with little or no reliance on the IT team, such as adjusting user permissions and adding support documents.","Element Rating:"]
[null,null,null,null,"Evidence:",null,null,null,null,null,null,null,null,null,null,null,null,null,{"$f":"IF(E76=\"Evidence:\",1,0)","v":1},null,1,null,null,null,null,null,null,{"$f":"E76&F76","v":"Evidence:"},0]
[null,null,null,"k","The Part C/619 state data system has the capacity to link various child-level data elements, including child outcomes.",null,null,null,null,null,"Element Rating:",null,null,null,null,null,null,null,0,{"$f":"IFERROR(VLOOKUP(L77,#REF!,2,FALSE),\"\")","v":""},{"$f":"IF(LEFT(D77,2)=\"QI\",0,1)","v":1},null,null,null,null,null,null,"The Part C/619 state data system has the capacity to link various child-level data elements, including child outcomes.",{"$f":"K77","v":"Element Rating:"}]
[null,null,null,null,"Evidence:",null,null,null,null,null,null,null,null,null,null,null,null,null,1,null,1,null,null,null,null,null,null,"Evidence:",0]
[null,null,null,"l","The Part C/619 state data system has the capacity to link child-level data with service provider/teacher data.",null,null,null,null,null,"Element Rating:",null,null,null,null,null,null,null,0,{"$f":"IFERROR(VLOOKUP(L79,#REF!,2,FALSE),\"\")","v":""},1,null,null,null,null,null,null,"The Part C/619 state data system has the capacity to link child-level data with service provider/teacher data.","Element Rating:"]
[null,null,null,null,"Evidence:",null,null,null,null,null,null,null,null,null,null,null,null,null,1,null,1,null,null,null,null,null,null,"Evidence:",0]
[null,null,null,"m","The Part C/619 state data system has the capacity to link child-level data with program/school/classroom data.",null,null,null,null,null,"Element Rating:",null,null,null,null,null,null,null,0,{"$f":"IFERROR(VLOOKUP(L81,#REF!,2,FALSE),\"\")","v":""},1,null,null,null,null,null,null,"The Part C/619 state data system has the capacity to link child-level data with program/school/classroom data.","Element Rating:"]
[null,null,null,null,"Evidence:",null,null,null,null,null,null,null,null,null,null,null,null,null,1,null,1,null,null,null,null,null,null,"Evidence:",0]
[null,null,null,"n","The Part C/619 state data system has the capacity to link service provider/teacher data with program/school/classroom data.",null,null,null,null,null,"Element Rating:",null,null,null,null,null,null,null,0,{"$f":"IFERROR(VLOOKUP(L83,#REF!,2,FALSE),\"\")","v":""},1,null,null,null,null,null,null,"The Part C/619 state data system has the capacity to link service provider/teacher data with program/school/classroom data.","Element Rating:"]
[null,null,null,null,"Evidence:",null,null,null,null,null,null,null,null,null,null,null,null,null,1,null,1,null,null,null,null,null,null,"Evidence:",0]
[null,null,null,"o","The Part C/619 state data system has the capacity to link family survey/outcomes data with other child-level data, including child outcomes.",null,null,null,null,null,"Element Rating:",null,null,null,null,null,null,null,0,{"$f":"IFERROR(VLOOKUP(L85,#REF!,2,FALSE),\"\")","v":""},1,null,null,null,null,null,null,"The Part C/619 state data system has the capacity to link family survey/outcomes data with other child-level data, including child outcomes.","Element Rating:"]
[null,null,null,null,"Evidence:",null,null,null,null,null,null,null,null,null,null,null,null,null,1,null,1,null,null,null,null,null,null,"Evidence:",0]
[null,null,null,"p","For transactional systems: The Part C/619 state data system is able to track entries/changes made by end users to data in the database, and the user who made them.",null,null,null,null,null,"Element Rating:",null,null,null,null,null,null,null,0,{"$f":"IFERROR(VLOOKUP(L87,#REF!,2,FALSE),\"\")","v":""},1,null,null,null,null,null,null,"For transactional systems: The Part C/619 state data system is able to track entries/changes made by end users to data in the database, and the user who made them.","Element Rating:"]
[null,null,null,null,"Evidence:",null,null,null,null,null,null,null,null,null,null,null,null,null,1,null,1,null,null,null,null,null,null,"Evidence:",0]
[null,null,null,"q","The Part C/619 state data system has interoperability that allows for linking Part C or 619 data to other statewide longitudinal and early childhood data systems.",null,null,null,null,null,"Element Rating:",null,null,null,null,null,null,null,0,{"$f":"IFERROR(VLOOKUP(L89,#REF!,2,FALSE),\"\")","v":""},1,null,null,null,null,null,null,"The Part C/619 state data system has interoperability that allows for linking Part C or 619 data to other statewide longitudinal and early childhood data systems.","Element Rating:"]
[null,null,null,null,"Evidence:",null,null,null,null,null,null,null,null,null,null,null,null,null,1,null,1,null,null,null,null,null,null,"Evidence:",0]
[null,null,null,null,null,null,null,null,null,null,null,null,null,null,null,null,null,null,0,null,1,null,null,null,null,null,null,"",0]
[null,null,null,"QI 5","Part C/619 state staff work with the IT team to translate the system requirements analysis into the design for the new data system/enhancement.",null,null,null,null,null,"QI Rating: ",null,null,null,null,null,null,null,0,"#",0,null,null,null,null,null,null,"Part C/619 state staff work with the IT team to translate the system requirements analysis into the design for the new data system/enhancement.","QI Rating: "]
[null,null,null,"a","Part C/619 state staff or representatives work with the IT team as decisions are made about technical architecture (e.g., hardware and software, naming conventions, importing legacy data) and provide clarification as necessary.",null,null,null,null,null,"Element Rating:",null,null,null,null,null,null,null,0,{"$f":"IFERROR(VLOOKUP(L93,#REF!,2,FALSE),\"\")","v":""},1,null,null,null,null,null,null,"Part C/619 state staff or representatives work with the IT team as decisions are made about technical architecture (e.g., hardware and software, naming conventions, importing legacy data) and provide clarification as necessary.","Element Rating:"]
[null,null,null,null,"Evidence:",null,null,null,null,null,null,null,null,null,null,null,null,null,1,null,1,null,null,null,null,null,null,"Evidence:",0]
[null,null,null,"b","Part C/619 state staff work with the IT team to review, refine, and approve mock-ups of modules, reports, and other functions.",null,null,null,null,null,"Element Rating:",null,null,null,null,null,null,null,0,{"$f":"IFERROR(VLOOKUP(L95,#REF!,2,FALSE),\"\")","v":""},1,null,null,null,null,null,null,"Part C/619 state staff work with the IT team to review, refine, and approve mock-ups of modules, reports, and other functions.","Element Rating:"]
[null,null,null,null,"Evidence:",null,null,null,null,null,null,null,null,null,null,null,null,null,1,null,1,null,null,null,null,null,null,"Evidence:",0]
[null,null,null,"c","Part C/619 state staff work with the IT team on the ongoing development of the data dictionary.",null,null,null,null,null,"Element Rating:",null,null,null,null,null,null,null,0,{"$f":"IFERROR(VLOOKUP(L97,#REF!,2,FALSE),\"\")","v":""},1,null,null,null,null,null,null,"Part C/619 state staff work with the IT team on the ongoing development of the data dictionary.","Element Rating:"]
[null,null,null,null,"Evidence:",null,null,null,null,null,null,null,null,null,null,null,null,null,1,null,1,null,null,null,null,null,null,"Evidence:",0]
[null,null,null,null,null,null,null,null,null,null,null,null,null,null,null,null,null,null,0,null,1,null,null,null,null,null,null,"",0]
[null,null,null,"QI 6","Part C/619 state staff work with the IT team as they build and test the new data system/enhancement.",null,null,null,null,null,"QI Rating: ",null,null,null,null,null,null,null,0,"#",0,null,null,null,null,null,null,"Part C/619 state staff work with the IT team as they build and test the new data system/enhancement.","QI Rating: "]
[null,null,null,"a","Part C/619 state staff are actively involved with the IT team in refining the data system requirements during system construction with consideration of the scope.",null,null,null,null,null,"Element Rating:",null,null,null,null,null,null,null,0,{"$f":"IFERROR(VLOOKUP(L101,#REF!,2,FALSE),\"\")","v":""},1,null,null,null,null,null,null,"Part C/619 state staff are actively involved with the IT team in refining the data system requirements during system construction with consideration of the scope.","Element Rating:"]
[null,null,null,null,"Evidence:",null,null,null,null,null,null,null,null,null,null,null,null,null,1,null,1,null,null,null,null,null,null,"Evidence:",0]
[null,null,null,"b","Part C/619 state staff test modules as they are developed until they function as intended.",null,null,null,null,null,"Element Rating:",null,null,null,null,null,null,null,0,{"$f":"IFERROR(VLOOKUP(L103,#REF!,2,FALSE),\"\")","v":""},1,null,null,null,null,null,null,"Part C/619 state staff test modules as they are developed until they function as intended.","Element Rating:"]
[null,null,null,null,"Evidence:",null,null,null,null,null,null,null,null,null,null,null,null,null,1,null,1,null,null,null,null,null,null,"Evidence:",0]
[null,null,null,"c","Part C/619 state staff communicate with the IT team to ensure adequate system performance based upon anticipated system peak usage.",null,null,null,null,null,"Element Rating:",null,null,null,null,null,null,null,0,{"$f":"IFERROR(VLOOKUP(L105,#REF!,2,FALSE),\"\")","v":""},1,null,null,null,null,null,null,"Part C/619 state staff communicate with the IT team to ensure adequate system performance based upon anticipated system peak usage.","Element Rating:"]
[null,null,null,null,"Evidence:",null,null,null,null,null,null,null,null,null,null,null,null,null,1,null,1,null,null,null,null,null,null,"Evidence:",0]
[null,null,null,"d","Part C/619 state staff or representatives require technical documentation, including instructions for system deployment and maintenance.",null,null,null,null,null,"Element Rating:",null,null,null,null,null,null,null,0,{"$f":"IFERROR(VLOOKUP(L107,#REF!,2,FALSE),\"\")","v":""},1,null,null,null,null,null,null,"Part C/619 state staff or representatives require technical documentation, including instructions for system deployment and maintenance.","Element Rating:"]
[null,null,null,null,"Evidence:",null,null,null,null,null,null,null,null,null,null,null,null,null,1,null,1,null,null,null,null,null,null,"Evidence:",0]
[null,null,null,null,null,null,null,null,null,null,null,null,null,null,null,null,null,null,0,null,1,null,null,null,null,null,null,"",0]
[null,null,null,"QI 7","Part C/619 state staff prepare for, communicate about, and conduct system acceptance testing to ensure the new data system/enhancement functions properly before deployment.",null,null,null,null,null,"QI Rating: ",null,null,null,null,null,null,null,0,"#",0,null,null,null,null,null,null,"Part C/619 state staff prepare for, communicate about, and conduct system acceptance testing to ensure the new data system/enhancement functions properly before deployment.","QI Rating: "]
[null,null,null,"a","Part C/619 state staff select representative end users (e.g., based on user types, permissions) for acceptance testing.",null,null,null,null,null,"Element Rating:",null,null,null,null,null,null,null,0,{"$f":"IFERROR(VLOOKUP(L111,#REF!,2,FALSE),\"\")","v":""},1,null,null,null,null,null,null,"Part C/619 state staff select representative end users (e.g., based on user types, permissions) for acceptance testing.","Element Rating:"]
[null,null,null,null,"Evidence:",null,null,null,null,null,null,null,null,null,null,null,null,null,1,null,1,null,null,null,null,null,null,"Evidence:",0]
[null,null,null,"b","Part C/619 state staff collaborate with the IT team to create the acceptance testing plan, including a schedule and expected testing environment.",null,null,null,null,null,"Element Rating:",null,null,null,null,null,null,null,0,{"$f":"IFERROR(VLOOKUP(L113,#REF!,2,FALSE),\"\")","v":""},1,null,null,null,null,null,null,"Part C/619 state staff collaborate with the IT team to create the acceptance testing plan, including a schedule and expected testing environment.","Element Rating:"]
[null,null,null,null,"Evidence:",null,null,null,null,null,null,null,null,null,null,null,null,null,1,null,1,null,null,null,null,null,null,"Evidence:",0]
[null,null,null,"c","Part C/619 state staff prepare materials (e.g., test data, sample cases) and feedback mechanism for acceptance testing.",null,null,null,null,null,"Element Rating:",null,null,null,null,null,null,null,0,{"$f":"IFERROR(VLOOKUP(L115,#REF!,2,FALSE),\"\")","v":""},1,null,null,null,null,null,null,"Part C/619 state staff prepare materials (e.g., test data, sample cases) and feedback mechanism for acceptance testing.","Element Rating:"]
[null,null,null,null,"Evidence:",null,null,null,null,null,null,null,null,null,null,null,null,null,1,null,1,null,null,null,null,null,null,"Evidence:",0]
[null,null,null,"d","Part C/619 state staff work with the IT team to ensure that legacy and new data are processed together as specified in the systems requirement analysis (e.g., test associated system utilities and processes for accuracy and fidelity).",null,null,null,null,null,"Element Rating:",null,null,null,null,null,null,null,0,{"$f":"IFERROR(VLOOKUP(L117,#REF!,2,FALSE),\"\")","v":""},1,null,null,null,null,null,null,"Part C/619 state staff work with the IT team to ensure that legacy and new data are processed together as specified in the systems requirement analysis (e.g., test associated system utilities and processes for accuracy and fidelity).","Element Rating:"]
[null,null,null,null,"Evidence:",null,null,null,null,null,null,null,null,null,null,null,null,null,1,null,1,null,null,null,null,null,null,"Evidence:",0]
[null,null,null,"e","Part C/619 state staff conduct acceptance testing, process user feedback, and communicate findings to the IT team.",null,null,null,null,null,"Element Rating:",null,null,null,null,null,null,null,0,{"$f":"IFERROR(VLOOKUP(L119,#REF!,2,FALSE),\"\")","v":""},1,null,null,null,null,null,null,"Part C/619 state staff conduct acceptance testing, process user feedback, and communicate findings to the IT team.","Element Rating:"]
[null,null,null,null,"Evidence:",null,null,null,null,null,null,null,null,null,null,null,null,null,1,null,1,null,null,null,null,null,null,"Evidence:",0]
[null,null,null,"f","Part C/619 state staff work with the IT team and/or project management to adjust plans as needed.",null,null,null,null,null,"Element Rating:",null,null,null,null,null,null,null,0,{"$f":"IFERROR(VLOOKUP(L121,#REF!,2,FALSE),\"\")","v":""},1,null,null,null,null,null,null,"Part C/619 state staff work with the IT team and/or project management to adjust plans as needed.","Element Rating:"]
[null,null,null,null,"Evidence:",null,null,null,null,null,null,null,null,null,null,null,null,null,1,null,1,null,null,null,null,null,null,"Evidence:",0]
[null,null,null,"g","Part C/619 state staff repeat system acceptance testing as necessary until the system functions properly.",null,null,null,null,null,"Element Rating:",null,null,null,null,null,null,null,0,{"$f":"IFERROR(VLOOKUP(L123,#REF!,2,FALSE),\"\")","v":""},1,null,null,null,null,null,null,"Part C/619 state staff repeat system acceptance testing as necessary until the system functions properly.","Element Rating:"]
[null,null,null,null,"Evidence:",null,null,null,null,null,null,null,null,null,null,null,null,null,1,null,1,null,null,null,null,null,null,"Evidence:",0]
[null,null,null,null,null,null,null,null,null,null,null,null,null,null,null,null,null,null,0,null,1,null,null,null,null,null,null,"",0]
[null,null,null,"QI 8","Part C/619 state staff participate in creating, reviewing, and revising materials to support the implementation of the new data system/enhancement.",null,null,null,null,null,"QI Rating: ",null,null,null,null,null,null,null,0,"#",0,null,null,null,null,null,null,"Part C/619 state staff participate in creating, reviewing, and revising materials to support the implementation of the new data system/enhancement.","QI Rating: "]
[null,null,null,"a","Part C/619 state staff ensure data dictionary is reviewed and revised as necessary.",null,null,null,null,null,"Element Rating:",null,null,null,null,null,null,null,0,{"$f":"IFERROR(VLOOKUP(L127,#REF!,2,FALSE),\"\")","v":""},1,null,null,null,null,null,null,"Part C/619 state staff ensure data dictionary is reviewed and revised as necessary.","Element Rating:"]
[null,null,null,null,"Evidence:",null,null,null,null,null,null,null,null,null,null,null,null,null,1,null,1,null,null,null,null,null,null,"Evidence:",0]
[null,null,null,"b","Part C/619 state staff participate in creating and updating system materials (e.g., user manuals, online tutorials, webinars) as necessary.",null,null,null,null,null,"Element Rating:",null,null,null,null,null,null,null,0,{"$f":"IFERROR(VLOOKUP(L129,#REF!,2,FALSE),\"\")","v":""},1,null,null,null,null,null,null,"Part C/619 state staff participate in creating and updating system materials (e.g., user manuals, online tutorials, webinars) as necessary.","Element Rating:"]
[null,null,null,null,"Evidence:",null,null,null,null,null,null,null,null,null,null,null,null,null,1,null,1,null,null,null,null,null,null,"Evidence:",0]
[null,null,null,"c","Part C/619 state staff ensure changes to the materials are communicated to help desk support.",null,null,null,null,null,"Element Rating:",null,null,null,null,null,null,null,0,{"$f":"IFERROR(VLOOKUP(L131,#REF!,2,FALSE),\"\")","v":""},1,null,null,null,null,null,null,"Part C/619 state staff ensure changes to the materials are communicated to help desk support.","Element Rating:"]
[null,null,null,null,"Evidence:",null,null,null,null,null,null,null,null,null,null,null,null,null,1,null,1,null,null,null,null,null,null,"Evidence:",0]
[null,null,null,"d","Part C/619 state staff revise updated materials based on acceptance testers’ review and feedback.",null,null,null,null,null,"Element Rating:",null,null,null,null,null,null,null,0,{"$f":"IFERROR(VLOOKUP(L133,#REF!,2,FALSE),\"\")","v":""},1,null,null,null,null,null,null,"Part C/619 state staff revise updated materials based on acceptance testers’ review and feedback.","Element Rating:"]
[null,null,null,null,"Evidence:",null,null,null,null,null,null,null,null,null,null,null,null,null,1,null,1,null,null,null,null,null,null,"Evidence:",0]
[null,null,null,null,null,null,null,null,null,null,null,null,null,null,null,null,null,null,0,null,1,null,null,null,null,null,null,"",0]
[null,null,null,"QI 9","Part C/619 state staff communicate and work with the IT team to deploy the new data system/enhancement.",null,null,null,null,null,"QI Rating: ",null,null,null,null,null,null,null,0,"#",0,null,null,null,null,null,null,"Part C/619 state staff communicate and work with the IT team to deploy the new data system/enhancement.","QI Rating: "]
[null,null,null,"a","Part C/619 state staff collaborate with the IT team to create a deployment plan, including guidelines for transition to the new data system/enhancement, schedule, and roles and responsibilities.",null,null,null,null,null,"Element Rating:",null,null,null,null,null,null,null,0,{"$f":"IFERROR(VLOOKUP(L137,#REF!,2,FALSE),\"\")","v":""},1,null,null,null,null,null,null,"Part C/619 state staff collaborate with the IT team to create a deployment plan, including guidelines for transition to the new data system/enhancement, schedule, and roles and responsibilities.","Element Rating:"]
[null,null,null,null,"Evidence:",null,null,null,null,null,null,null,null,null,null,null,null,null,1,null,1,null,null,null,null,null,null,"Evidence:",0]
[null,null,null,"b","Part C/619 state staff communicate the deployment plan to all necessary parties, including state and local staff. ",null,null,null,null,null,"Element Rating:",null,null,null,null,null,null,null,0,{"$f":"IFERROR(VLOOKUP(L139,#REF!,2,FALSE),\"\")","v":""},1,null,null,null,null,null,null,"Part C/619 state staff communicate the deployment plan to all necessary parties, including state and local staff. ","Element Rating:"]
[null,null,null,null,"Evidence:",null,null,null,null,null,null,null,null,null,null,null,null,null,{"$f":"IF(E140=\"Evidence:\",1,0)","v":1},null,1,null,null,null,null,null,null,{"$f":"E140&F140","v":"Evidence:"},0]
[null,null,null,"c","Part C/619 state staff ensure end user support (e.g., training, release notes) is provided to all end users for the new data system/enhancement.",null,null,null,null,null,"Element Rating:",null,null,null,null,null,null,null,0,{"$f":"IFERROR(VLOOKUP(L141,#REF!,2,FALSE),\"\")","v":""},{"$f":"IF(LEFT(D141,2)=\"QI\",0,1)","v":1},null,null,null,null,null,null,"Part C/619 state staff ensure end user support (e.g., training, release notes) is provided to all end users for the new data system/enhancement.",{"$f":"K141","v":"Element Rating:"}]
[null,null,null,null,"Evidence:",null,null,null,null,null,null,null,null,null,null,null,null,null,1,null,1,null,null,null,null,null,null,"Evidence:",0]
[null,null,null,"d","Part C/619 state staff or representatives confirm that contingency plans exist for problems during and after deployment of the new data system/enhancement.",null,null,null,null,null,"Element Rating:",null,null,null,null,null,null,null,0,{"$f":"IFERROR(VLOOKUP(L143,#REF!,2,FALSE),\"\")","v":""},1,null,null,null,null,null,null,"Part C/619 state staff or representatives confirm that contingency plans exist for problems during and after deployment of the new data system/enhancement.","Element Rating:"]
[null,null,null,null,"Evidence:",null,null,null,null,null,null,null,null,null,null,null,null,null,1,null,1,null,null,null,null,null,null,"Evidence:",0]
[null,null,null,"e","Part C/619 state staff coordinate with the IT team to release the new data system/enhancement.",null,null,null,null,null,"Element Rating:",null,null,null,null,null,null,null,0,{"$f":"IFERROR(VLOOKUP(L145,#REF!,2,FALSE),\"\")","v":""},1,null,null,null,null,null,null,"Part C/619 state staff coordinate with the IT team to release the new data system/enhancement.","Element Rating:"]
[null,null,null,null,"Evidence:",null,null,null,null,null,null,null,null,null,null,null,null,null,1,null,1,null,null,null,null,null,null,"Evidence:",0]
[null,null,null,"f","Part C/619 state staff coordinate with the IT team to transition the responsibility for the new data system/enhancement to the state agency according to the deployment plan. ",null,null,null,null,null,"Element Rating:",null,null,null,null,null,null,null,0,{"$f":"IFERROR(VLOOKUP(L147,#REF!,2,FALSE),\"\")","v":""},1,null,null,null,null,null,null,"Part C/619 state staff coordinate with the IT team to transition the responsibility for the new data system/enhancement to the state agency according to the deployment plan. ","Element Rating:"]
[null,null,null,null,"Evidence:",null,null,null,null,null,null,null,null,null,null,null,null,null,1,null,1,null,null,null,null,null,null,"Evidence:",0]
[null,null,null,"g","For new systems only: Part C/619 state staff coordinate with the IT team on the retirement of the legacy system, including the decision to run the two systems in parallel. ",null,null,null,null,null,"Element Rating:",null,null,null,null,null,null,null,0,{"$f":"IFERROR(VLOOKUP(L149,#REF!,2,FALSE),\"\")","v":""},1,null,null,null,null,null,null,"For new systems only: Part C/619 state staff coordinate with the IT team on the retirement of the legacy system, including the decision to run the two systems in parallel. ","Element Rating:"]
[null,null,null,null,"Evidence:",null,null,null,null,null,null,null,null,null,null,null,null,null,1,null,1,null,null,null,null,null,null,"Evidence:",0]
[null,null,null,null,null,null,null,null,null,null,null,null,null,null,null,null,null,null,0,null,null,null,null,null,null,null,null,""]

{"sheet":"DU","index":12,"n_rows":79,"n_cols":33,"rows_kept":79,"cut":false,"hidden":false,"merged":[[18,10,19,10],[20,10,21,10],[22,10,23,10],[28,10,29,10],[26,10,27,10],[64,10,65,10],[48,10,49,10],[50,10,51,10],[38,10,39,10],[42,10,43,10],[44,10,45,10],[62,10,63,10],[58,10,59,10],[52,10,53,10],[54,10,55,10],[2,3,2,5],[3,4,3,5],[4,4,4,5],[5,4,5,5],[6,4,6,5],[7,4,7,5],[12,10,13,10],[8,4,8,5],[9,4,9,5],[5,8,5,13],[6,8,6,13],[7,8,7,13],[8,8,8,13],[4,7,4,13],[18,19,19,19],[20,19,21,19],[22,19,23,19],[36,19,37,19],[58,19,59,19],[60,19,61,19],[26,19,27,19],[28,19,29,19],[38,19,39,19],[40,19,41,19],[42,19,43,19],[44,19,45,19],[28,4,28,8],[68,19,69,19],[54,4,54,8],[55,5,55,8],[69,5,69,8],[29,5,29,8],[30,4,30,8],[31,5,31,8],[32,4,32,8],[33,5,33,8],[48,19,49,19],[50,19,51,19],[52,19,53,19],[54,19,55,19],[30,19,31,19],[32,19,33,19],[62,19,63,19],[64,19,65,19],[32,10,33,10],[40,10,41,10],[36,10,37,10],[30,10,31,10],[68,10,69,10],[70,19,71,19],[72,19,73,19],[74,19,75,19],[76,19,77,19],[60,4,60,8],[61,5,61,8],[62,4,62,8],[63,5,63,8],[64,4,64,8],[65,5,65,8],[71,5,71,8],[72,4,72,8],[73,5,73,8],[74,4,74,8],[75,5,75,8],[76,4,76,8],[77,5,77,8],[74,10,75,10],[60,10,61,10],[67,4,67,8],[68,4,68,8],[76,10,77,10],[70,10,71,10],[72,10,73,10],[18,4,18,8],[19,5,19,8],[20,4,20,8],[21,5,21,8],[22,4,22,8],[23,5,23,8],[25,4,25,8],[26,4,26,8],[27,5,27,8],[70,4,70,8],[44,4,44,8],[45,5,45,8],[35,4,35,8],[36,4,36,8],[37,5,37,8],[38,4,38,8],[39,5,39,8],[40,4,40,8],[41,5,41,8],[42,4,42,8],[43,5,43,8],[57,4,57,8],[58,4,58,8],[59,5,59,8],[47,4,47,8],[48,4,48,8],[49,5,49,8],[50,4,50,8],[51,5,51,8],[52,4,52,8],[53,5,53,8],[6,32,7,37],[8,32,8,37],[11,4,11,8],[12,4,12,8],[13,5,13,8],[14,4,14,8],[15,5,15,8],[16,4,16,8],[17,5,17,8],[14,10,15,10],[12,19,13,19],[14,19,15,19],[16,19,17,19],[16,10,17,10],[8,15,8,17]]}
[null,null,null,"DS Subcomponent: Data Use"]
[]
[null,null,null,"Quality Indicator Rating (Calculated)"]
[null,null,null,1,"None of the elements is yet planned or in place.  "]
[null,null,null,2,"Most of the elements are not yet planned or in place. ",null,null,"Element of Quality Rating (EQR) [Imported from T1, T2, T3]"]
[null,null,null,3,"Some elements are in place; a few may be fully implemented.",null,null,1,"No - element not in place and not planning to work on it at this time"]
[null,null,null,4,"At least half of the elements are in place; a few may be fully implemented.",null,null,2,"No - element not in place but planning to work on it or getting started",null,null,null,null,null,null,null,null,null,null,null,null,null,null,null,null,null,null,null,null,null,null,null,{"$f":"IF(ISERROR(FIND(\"Subcomponent\",D1)),D1,\"DS: \"&MID(D1,18,99))","v":"DS: Data Use"}]
[null,null,null,5,"At least half of the elements are in place; some are fully implemented.",null,null,3,"Yes - element partially implemented"]
[null,null,null,6,"At least half of the elements are fully implemented; the rest are partially implemented.",null,null,4,"Yes - element fully implemented",null,null,null,null,null,null,"PRIORITY",null,null,null,null,null,null,null,null,null,null,null,null,null,null,null,null,"Quality Indicator Ratings"]
[null,null,null,7,"All elements are fully implemented.",null,null,null,null,null,null,"TIME1","TIME2","TIME3",null,"TIME1","TIME2","TIME3"]
[null,null,{"$f":"MID(CELL(\"Filename\",C1),FIND(\"]\",CELL(\"Filename\",C1))+1,255)","v":"DU"},null,null,null,null,null,null,null,"Date:",null,null,null,null,null,null,null,null,null,null,null,null,null,null,null,null,{"$f":"E11&F11","v":""}]
[null,null,null,"QI 1","Part C/619 state staff plan for data analysis, product development, and dissemination to address the needs of the state agency and other users. ",null,null,null,null,null,"QI Rating: ",null,null,null,null,null,null,null,{"$f":"IF(E12=\"Evidence:\",1,0)","v":0},"#",{"$f":"IF(LEFT(D12,2)=\"QI\",0,1)","v":0},null,null,null,null,null,null,{"$f":"E12&F12","v":"Part C/619 state staff plan for data analysis, product development, and dissemination to address the needs of the state agency and other users. "},{"$f":"K12","v":"QI Rating: "}]
[null,null,null,"a","Part C/619 state staff develop recommendations for effective data use.",null,null,null,null,null,"Element Rating:",null,null,null,null,null,null,null,0,{"$f":"IFERROR(VLOOKUP(L13,#REF!,2,FALSE),\"\")","v":""},{"$f":"IF(LEFT(D13,2)=\"QI\",0,1)","v":1},null,null,null,null,null,null,"Part C/619 state staff develop recommendations for effective data use.",{"$f":"K13","v":"Element Rating:"}]
[null,null,null,null,"Evidence:",null,null,null,null,null,null,null,null,null,null,null,null,null,1,null,1,null,null,null,null,null,null,"Evidence:",0]
[null,null,null,"b","Part C/619 state staff identify potential data users (state and local) and periodically gather information about their specific data needs.",null,null,null,null,null,"Element Rating:",null,null,null,null,null,null,null,0,{"$f":"IFERROR(VLOOKUP(L15,#REF!,2,FALSE),\"\")","v":""},1,null,null,null,null,null,null,"Part C/619 state staff identify potential data users (state and local) and periodically gather information about their specific data needs.","Element Rating:"]
[null,null,null,null,"Evidence:",null,null,null,null,null,null,null,null,null,null,null,null,null,1,null,1,null,null,null,null,null,null,"Evidence:",0]
[null,null,null,"c","When planning documents, products, resources, and timelines, Part C/619 state staff consider accountability and program improvement questions that drive data analysis and use.",null,null,null,null,null,"Element Rating:",null,null,null,null,null,null,null,0,{"$f":"IFERROR(VLOOKUP(L17,#REF!,2,FALSE),\"\")","v":""},1,null,null,null,null,null,null,"When planning documents, products, resources, and timelines, Part C/619 state staff consider accountability and program improvement questions that drive data analysis and use.","Element Rating:"]
[null,null,null,null,"Evidence:",null,null,null,null,null,null,null,null,null,null,null,null,null,1,null,1,null,null,null,null,null,null,"Evidence:",0]
[null,null,null,"d","Part C/619 state staff have a process to prioritize data requests, both for data that are readily available and queried regularly and data that require additional staff time to query, and respond to them (as appropriate) in a timely fashion.",null,null,null,null,null,"Element Rating:",null,null,null,null,null,null,null,0,{"$f":"IFERROR(VLOOKUP(L19,#REF!,2,FALSE),\"\")","v":""},1,null,null,null,null,null,null,"Part C/619 state staff have a process to prioritize data requests, both for data that are readily available and queried regularly and data that require additional staff time to query, and respond to them (as appropriate) in a timely fashion.","Element Rating:"]
[null,null,null,null,"Evidence:",null,null,null,null,null,null,null,null,null,null,null,null,null,1,null,1,null,null,null,null,null,null,"Evidence:",0]
[null,null,null,"e","Part C/619 state staff plan for dissemination that focuses on products, methods, and timelines tailored to specific stakeholder groups.",null,null,null,null,null,"Element Rating:",null,null,null,null,null,null,null,0,{"$f":"IFERROR(VLOOKUP(L21,#REF!,2,FALSE),\"\")","v":""},1,null,null,null,null,null,null,"Part C/619 state staff plan for dissemination that focuses on products, methods, and timelines tailored to specific stakeholder groups.","Element Rating:"]
[null,null,null,null,"Evidence:",null,null,null,null,null,null,null,null,null,null,null,null,null,1,null,1,null,null,null,null,null,null,"Evidence:",0]
[null,null,null,"f","Part C/619 state staff review and revise plans for data analysis, product development, and dissemination as necessary.",null,null,null,null,null,"Element Rating:",null,null,null,null,null,null,null,0,{"$f":"IFERROR(VLOOKUP(L23,#REF!,2,FALSE),\"\")","v":""},1,null,null,null,null,null,null,"Part C/619 state staff review and revise plans for data analysis, product development, and dissemination as necessary.","Element Rating:"]
[null,null,null,null,"Evidence:",null,null,null,null,null,null,null,null,null,null,null,null,null,1,null,1,null,null,null,null,null,null,"Evidence:",0]
[null,null,null,null,null,null,null,null,null,null,null,null,null,null,null,null,null,null,0,null,1,null,null,null,null,null,null,"",0]
[null,null,null,"QI 2","Part C/619 state staff or representatives conduct data analysis activities and implement procedures to ensure the integrity of the data. ",null,null,null,null,null,"QI Rating: ",null,null,null,null,null,null,null,0,"#",0,null,null,null,null,null,null,"Part C/619 state staff or representatives conduct data analysis activities and implement procedures to ensure the integrity of the data. ","QI Rating: "]
[null,null,null,"a","Part C/619 state staff or representatives analyze data to address accountability and program improvement needs, including providing timely information for federal and state reporting requirements.",null,null,null,null,null,"Element Rating:",null,null,null,null,null,null,null,0,{"$f":"IFERROR(VLOOKUP(L27,#REF!,2,FALSE),\"\")","v":""},1,null,null,null,null,null,null,"Part C/619 state staff or representatives analyze data to address accountability and program improvement needs, including providing timely information for federal and state reporting requirements.","Element Rating:"]
[null,null,null,null,"Evidence:",null,null,null,null,null,null,null,null,null,null,null,null,null,1,null,1,null,null,null,null,null,null,"Evidence:",0]
[null,null,null,"b","Part C/619 state staff prioritize and respond to various types of data requests, including for data that are readily available and queried regularly, data that require additional staff time to query, and data exports for external users.",null,null,null,null,null,"Element Rating:",null,null,null,null,null,null,null,0,{"$f":"IFERROR(VLOOKUP(L29,#REF!,2,FALSE),\"\")","v":""},1,null,null,null,null,null,null,"Part C/619 state staff prioritize and respond to various types of data requests, including for data that are readily available and queried regularly, data that require additional staff time to query, and data exports for external users.","Element Rating:"]
[null,null,null,null,"Evidence:",null,null,null,null,null,null,null,null,null,null,null,null,null,1,null,1,null,null,null,null,null,null,"Evidence:",0]
[null,null,null,"c","Part C/619 state staff or representatives develop documentation of the specifications (e.g., data elements, restrictions related to data elements, querying parameters, report criteria) to answer specific questions, and is updated as needed.",null,null,null,null,null,"Element Rating:",null,null,null,null,null,null,null,0,{"$f":"IFERROR(VLOOKUP(L31,#REF!,2,FALSE),\"\")","v":""},1,null,null,null,null,null,null,"Part C/619 state staff or representatives develop documentation of the specifications (e.g., data elements, restrictions related to data elements, querying parameters, report criteria) to answer specific questions, and is updated as needed.","Element Rating:"]
[null,null,null,null,"Evidence:",null,null,null,null,null,null,null,null,null,null,null,null,null,1,null,1,null,null,null,null,null,null,"Evidence:",0]
[null,null,null,"d","Part C/619 state staff or representatives implement procedures to ensure that data, as queried and reported, are accurate and include, when appropriate, checks with the authoritative or original source of the data.",null,null,null,null,null,"Element Rating:",null,null,null,null,null,null,null,0,{"$f":"IFERROR(VLOOKUP(L33,#REF!,2,FALSE),\"\")","v":""},1,null,null,null,null,null,null,"Part C/619 state staff or representatives implement procedures to ensure that data, as queried and reported, are accurate and include, when appropriate, checks with the authoritative or original source of the data.","Element Rating:"]
[null,null,null,null,"Evidence:",null,null,null,null,null,null,null,null,null,null,null,null,null,1,null,1,null,null,null,null,null,null,"Evidence:",0]
[null,null,null,null,null,null,null,null,null,null,null,null,null,null,null,null,null,null,0,null,1,null,null,null,null,null,null,"",0]
[null,null,null,"QI 3","Part C/619 state and local staff or representatives prepare data products to promote understanding of the data and inform decision-making.",null,null,null,null,null,"QI Rating: ",null,null,null,null,null,null,null,0,"#",0,null,null,null,null,null,null,"Part C/619 state and local staff or representatives prepare data products to promote understanding of the data and inform decision-making.","QI Rating: "]
[null,null,null,"a","Part C/619 state and local staff or their representatives prepare a variety of data products.",null,null,null,null,null,"Element Rating:",null,null,null,null,null,null,null,0,{"$f":"IFERROR(VLOOKUP(L37,#REF!,2,FALSE),\"\")","v":""},1,null,null,null,null,null,null,"Part C/619 state and local staff or their representatives prepare a variety of data products.","Element Rating:"]
[null,null,null,null,"Evidence:",null,null,null,null,null,null,null,null,null,null,null,null,null,1,null,1,null,null,null,null,null,null,"Evidence:",0]
[null,null,null,"b","Part C/619 state and local staff or representatives include documentation in data products as needed for accurate interpretation and use of the information (e.g., querying parameters, changes to data elements or collection protocols).",null,null,null,null,null,"Element Rating:",null,null,null,null,null,null,null,0,{"$f":"IFERROR(VLOOKUP(L39,#REF!,2,FALSE),\"\")","v":""},1,null,null,null,null,null,null,"Part C/619 state and local staff or representatives include documentation in data products as needed for accurate interpretation and use of the information (e.g., querying parameters, changes to data elements or collection protocols).","Element Rating:"]
[null,null,null,null,"Evidence:",null,null,null,null,null,null,null,null,null,null,null,null,null,1,null,1,null,null,null,null,null,null,"Evidence:",0]
[null,null,null,"c","Part C/619 state staff or their representatives ensure that personally identifiable information (PII) is protected in accordance with federal and state requirements in all data products.",null,null,null,null,null,"Element Rating:",null,null,null,null,null,null,null,0,{"$f":"IFERROR(VLOOKUP(L41,#REF!,2,FALSE),\"\")","v":""},1,null,null,null,null,null,null,"Part C/619 state staff or their representatives ensure that personally identifiable information (PII) is protected in accordance with federal and state requirements in all data products.","Element Rating:"]
[null,null,null,null,"Evidence:",null,null,null,null,null,null,null,null,null,null,null,null,null,1,null,1,null,null,null,null,null,null,"Evidence:",0]
[null,null,null,"d","Part C/619 state and local administrators or their designees use a variety of approaches (e.g., videos, webinars) and displays (e.g., tables, infographics) to enhance understanding of the data.",null,null,null,null,null,"Element Rating:",null,null,null,null,null,null,null,0,{"$f":"IFERROR(VLOOKUP(L43,#REF!,2,FALSE),\"\")","v":""},1,null,null,null,null,null,null,"Part C/619 state and local administrators or their designees use a variety of approaches (e.g., videos, webinars) and displays (e.g., tables, infographics) to enhance understanding of the data.","Element Rating:"]
[null,null,null,null,"Evidence:",null,null,null,null,null,null,null,null,null,null,null,null,null,1,null,1,null,null,null,null,null,null,"Evidence:",0]
[null,null,null,"e","Part C/619 state and local staff or representatives evaluate data products (e.g., quality, use of products) and use the information to plan or revise products.",null,null,null,null,null,"Element Rating:",null,null,null,null,null,null,null,0,{"$f":"IFERROR(VLOOKUP(L45,#REF!,2,FALSE),\"\")","v":""},1,null,null,null,null,null,null,"Part C/619 state and local staff or representatives evaluate data products (e.g., quality, use of products) and use the information to plan or revise products.","Element Rating:"]
[null,null,null,null,"Evidence:",null,null,null,null,null,null,null,null,null,null,null,null,null,1,null,1,null,null,null,null,null,null,"Evidence:",0]
[null,null,null,null,null,null,null,null,null,null,null,null,null,null,null,null,null,null,0,null,1,null,null,null,null,null,null,"",0]
[null,null,null,"QI 4","Part C/619 state and local staff or their representatives disseminate data products to users to meet their needs.",null,null,null,null,null,"QI Rating: ",null,null,null,null,null,null,null,0,"#",0,null,null,null,null,null,null,"Part C/619 state and local staff or their representatives disseminate data products to users to meet their needs.","QI Rating: "]
[null,null,null,"a","Part C/619 state and local staff use a variety of methods (e.g. dashboard, issue briefs, websites) to disseminate data products.",null,null,null,null,null,"Element Rating:",null,null,null,null,null,null,null,0,{"$f":"IFERROR(VLOOKUP(L49,#REF!,2,FALSE),\"\")","v":""},1,null,null,null,null,null,null,"Part C/619 state and local staff use a variety of methods (e.g. dashboard, issue briefs, websites) to disseminate data products.","Element Rating:"]
[null,null,null,null,"Evidence:",null,null,null,null,null,null,null,null,null,null,null,null,null,1,null,1,null,null,null,null,null,null,"Evidence:",0]
[null,null,null,"b","Part C/619 state and local staff’s dissemination of data products includes sufficient information to interpret and use the data appropriately.",null,null,null,null,null,"Element Rating:",null,null,null,null,null,null,null,0,{"$f":"IFERROR(VLOOKUP(L51,#REF!,2,FALSE),\"\")","v":""},1,null,null,null,null,null,null,"Part C/619 state and local staff’s dissemination of data products includes sufficient information to interpret and use the data appropriately.","Element Rating:"]
[null,null,null,null,"Evidence:",null,null,null,null,null,null,null,null,null,null,null,null,null,1,null,1,null,null,null,null,null,null,"Evidence:",0]
[null,null,null,"c","Part C/619 state and local staff’s dissemination procedures include providing data sources the opportunity to verify the accuracy of the data prior to the release of data products to the general public, as appropriate.",null,null,null,null,null,"Element Rating:",null,null,null,null,null,null,null,0,{"$f":"IFERROR(VLOOKUP(L53,#REF!,2,FALSE),\"\")","v":""},1,null,null,null,null,null,null,"Part C/619 state and local staff’s dissemination procedures include providing data sources the opportunity to verify the accuracy of the data prior to the release of data products to the general public, as appropriate.","Element Rating:"]
[null,null,null,null,"Evidence:",null,null,null,null,null,null,null,null,null,null,null,null,null,1,null,1,null,null,null,null,null,null,"Evidence:",0]
[null,null,null,"d","Part C/619 state and local staff periodically evaluate the effectiveness of the dissemination strategies and revise as necessary.",null,null,null,null,null,"Element Rating:",null,null,null,null,null,null,null,0,{"$f":"IFERROR(VLOOKUP(L55,#REF!,2,FALSE),\"\")","v":""},1,null,null,null,null,null,null,"Part C/619 state and local staff periodically evaluate the effectiveness of the dissemination strategies and revise as necessary.","Element Rating:"]
[null,null,null,null,"Evidence:",null,null,null,null,null,null,null,null,null,null,null,null,null,1,null,1,null,null,null,null,null,null,"Evidence:",0]
[null,null,null,null,null,null,null,null,null,null,null,null,null,null,null,null,null,null,0,null,1,null,null,null,null,null,null,"",0]
[null,null,null,"QI 5","Part C/619 state and local staff use data to inform decisions. ",null,null,null,null,null,"QI Rating: ",null,null,null,null,null,null,null,0,"#",0,null,null,null,null,null,null,"Part C/619 state and local staff use data to inform decisions. ","QI Rating: "]
[null,null,null,"a","Part C/619 state staff use subgroup analysis (e.g., geographic locality, race/ethnicity, disability type, age, gender, or other criteria) to facilitate interpretation of the data.",null,null,null,null,null,"Element Rating:",null,null,null,null,null,null,null,0,{"$f":"IFERROR(VLOOKUP(L59,#REF!,2,FALSE),\"\")","v":""},1,null,null,null,null,null,null,"Part C/619 state staff use subgroup analysis (e.g., geographic locality, race/ethnicity, disability type, age, gender, or other criteria) to facilitate interpretation of the data.","Element Rating:"]
[null,null,null,null,"Evidence:",null,null,null,null,null,null,null,null,null,null,null,null,null,1,null,1,null,null,null,null,null,null,"Evidence:",0]
[null,null,null,"b","Part C/619 state staff systematically review the findings of data analyses, interpret the findings, and make decisions based on the data.",null,null,null,null,null,"Element Rating:",null,null,null,null,null,null,null,0,{"$f":"IFERROR(VLOOKUP(L61,#REF!,2,FALSE),\"\")","v":""},1,null,null,null,null,null,null,"Part C/619 state staff systematically review the findings of data analyses, interpret the findings, and make decisions based on the data.","Element Rating:"]
[null,null,null,null,"Evidence:",null,null,null,null,null,null,null,null,null,null,null,null,null,1,null,1,null,null,null,null,null,null,"Evidence:",0]
[null,null,null,"c","Part C/619 local staff systematically review the findings of data analyses, interpret the findings, and make decisions based on the data.",null,null,null,null,null,"Element Rating:",null,null,null,null,null,null,null,0,{"$f":"IFERROR(VLOOKUP(L63,#REF!,2,FALSE),\"\")","v":""},1,null,null,null,null,null,null,"Part C/619 local staff systematically review the findings of data analyses, interpret the findings, and make decisions based on the data.","Element Rating:"]
[null,null,null,null,"Evidence:",null,null,null,null,null,null,null,null,null,null,null,null,null,1,null,1,null,null,null,null,null,null,"Evidence:",0]
[null,null,null,"d","Part C/619 state and local staff evaluate data use at the state and local levels to support accountability, program improvement, and program operations.",null,null,null,null,null,"Element Rating:",null,null,null,null,null,null,null,0,{"$f":"IFERROR(VLOOKUP(L65,#REF!,2,FALSE),\"\")","v":""},1,null,null,null,null,null,null,"Part C/619 state and local staff evaluate data use at the state and local levels to support accountability, program improvement, and program operations.","Element Rating:"]
[null,null,null,null,"Evidence:",null,null,null,null,null,null,null,null,null,null,null,null,null,1,null,1,null,null,null,null,null,null,"Evidence:",0]
[null,null,null,null,null,null,null,null,null,null,null,null,null,null,null,null,null,null,0,null,1,null,null,null,null,null,null,"",0]
[null,null,null,"QI 6","Part C/619 state staff or representatives support the use of data at state and local levels. ",null,null,null,null,null,"QI Rating: ",null,null,null,null,null,null,null,0,"#",0,null,null,null,null,null,null,"Part C/619 state staff or representatives support the use of data at state and local levels. ","QI Rating: "]
[null,null,null,"a","Part C/619 state staff or representatives provide multiple resources and tools (e.g., help desk, analytic and querying tools, Web portal) for a variety of data users to facilitate access to data and to support data use.",null,null,null,null,null,"Element Rating:",null,null,null,null,null,null,null,0,{"$f":"IFERROR(VLOOKUP(L69,#REF!,2,FALSE),\"\")","v":""},1,null,null,null,null,null,null,"Part C/619 state staff or representatives provide multiple resources and tools (e.g., help desk, analytic and querying tools, Web portal) for a variety of data users to facilitate access to data and to support data use.","Element Rating:"]
[null,null,null,null,"Evidence:",null,null,null,null,null,null,null,null,null,null,null,null,null,1,null,1,null,null,null,null,null,null,"Evidence:",0]
[null,null,null,"b"," Part C/619 state staff or representatives assess professional development needs of Part C/619 state and local staff related to data use.",null,null,null,null,null,"Element Rating:",null,null,null,null,null,null,null,0,{"$f":"IFERROR(VLOOKUP(L71,#REF!,2,FALSE),\"\")","v":""},1,null,null,null,null,null,null," Part C/619 state staff or representatives assess professional development needs of Part C/619 state and local staff related to data use.","Element Rating:"]
[null,null,null,null,"Evidence:",null,null,null,null,null,null,null,null,null,null,null,null,null,1,null,1,null,null,null,null,null,null,"Evidence:",0]
[null,null,null,"c","Part C/619 state staff or representatives provide for professional development that supports Part C/619 state and local users’ skills and competencies to understand, interpret, and use data effectively.",null,null,null,null,null,"Element Rating:",null,null,null,null,null,null,null,0,{"$f":"IFERROR(VLOOKUP(L73,#REF!,2,FALSE),\"\")","v":""},1,null,null,null,null,null,null,"Part C/619 state staff or representatives provide for professional development that supports Part C/619 state and local users’ skills and competencies to understand, interpret, and use data effectively.","Element Rating:"]
[null,null,null,null,"Evidence:",null,null,null,null,null,null,null,null,null,null,null,null,null,1,null,1,null,null,null,null,null,null,"Evidence:",0]
[null,null,null,"d","Part C/619 state administrators or designees provide professional development activities using a variety of methods (e.g., workshops, user groups) for users to improve skills and competencies.",null,null,null,null,null,"Element Rating:",null,null,null,null,null,null,null,0,{"$f":"IFERROR(VLOOKUP(L75,#REF!,2,FALSE),\"\")","v":""},1,null,null,null,null,null,null,"Part C/619 state administrators or designees provide professional development activities using a variety of methods (e.g., workshops, user groups) for users to improve skills and competencies.","Element Rating:"]
[null,null,null,null,"Evidence:",null,null,null,null,null,null,null,null,null,null,null,null,null,{"$f":"IF(E76=\"Evidence:\",1,0)","v":1},null,1,null,null,null,null,null,null,{"$f":"E76&F76","v":"Evidence:"},0]
[null,null,null,"e","Part C/619 state staff or representatives evaluate the effectiveness of professional development activities to enhance state and local capacity for data use and revise as necessary.",null,null,null,null,null,"Element Rating:",null,null,null,null,null,null,null,0,{"$f":"IFERROR(VLOOKUP(L77,#REF!,2,FALSE),\"\")","v":""},{"$f":"IF(LEFT(D77,2)=\"QI\",0,1)","v":1},null,null,null,null,null,null,"Part C/619 state staff or representatives evaluate the effectiveness of professional development activities to enhance state and local capacity for data use and revise as necessary.",{"$f":"K77","v":"Element Rating:"}]
[null,null,null,null,"Evidence:",null,null,null,null,null,null,null,null,null,null,null,null,null,1,null,1,null,null,null,null,null,null,"Evidence:",0]
[null,null,null,null,null,null,null,null,null,null,null,null,null,null,null,null,null,null,0,null,null,null,null,null,null,null,null,"",0]

{"sheet":"SU","index":13,"n_rows":37,"n_cols":33,"rows_kept":37,"cut":false,"hidden":false,"merged":[[25,4,25,8],[8,15,8,17],[20,4,20,8],[20,10,21,10],[21,5,21,8],[22,4,22,8],[23,5,23,8],[7,8,7,13],[8,8,8,13],[18,10,19,10],[18,4,18,8],[19,5,19,8],[4,7,4,13],[16,10,17,10],[12,4,12,8],[7,4,7,5],[12,10,13,10],[8,4,8,5],[9,4,9,5],[14,4,14,8],[15,5,15,8],[16,4,16,8],[17,5,17,8],[13,5,13,8],[14,10,15,10],[11,4,11,8],[5,8,5,13],[6,8,6,13],[2,3,2,5],[3,4,3,5],[4,4,4,5],[5,4,5,5],[6,4,6,5],[26,10,27,10],[22,10,23,10],[34,10,35,10],[28,10,29,10],[30,10,31,10],[32,10,33,10],[20,19,21,19],[22,19,23,19],[34,19,35,19],[26,19,27,19],[28,19,29,19],[32,19,33,19],[30,19,31,19],[6,32,7,37],[8,32,8,37],[34,4,34,8],[35,5,35,8],[26,4,26,8],[27,5,27,8],[28,4,28,8],[29,5,29,8],[30,4,30,8],[31,5,31,8],[32,4,32,8],[33,5,33,8],[12,19,13,19],[14,19,15,19],[16,19,17,19],[18,19,19,19]]}
[null,null,null,"DS Subcomponent: Sustainability"]
[]
[null,null,null,"Quality Indicator Rating (Calculated)"]
[null,null,null,1,"None of the elements is yet planned or in place.  "]
[null,null,null,2,"Most of the elements are not yet planned or in place. ",null,null,"Element of Quality Rating (EQR) [Imported from T1, T2, T3]"]
[null,null,null,3,"Some elements are in place; a few may be fully implemented.",null,null,1,"No - element not in place and not planning to work on it at this time"]
[null,null,null,4,"At least half of the elements are in place; a few may be fully implemented.",null,null,2,"No - element not in place but planning to work on it or getting started",null,null,null,null,null,null,null,null,null,null,null,null,null,null,null,null,null,null,null,null,null,null,null,{"$f":"IF(ISERROR(FIND(\"Subcomponent\",D1)),D1,\"DS: \"&MID(D1,18,99))","v":"DS: Sustainability"}]
[null,null,null,5,"At least half of the elements are in place; some are fully implemented.",null,null,3,"Yes - element partially implemented"]
[null,null,null,6,"At least half of the elements are fully implemented; the rest are partially implemented.",null,null,4,"Yes - element fully implemented",null,null,null,null,null,null,"PRIORITY",null,null,null,null,null,null,null,null,null,null,null,null,null,null,null,null,"Quality Indicator Ratings"]
[null,null,null,7,"All elements are fully implemented.",null,null,null,null,null,null,"TIME1","TIME2","TIME3",null,"TIME1","TIME2","TIME3"]
[null,null,{"$f":"MID(CELL(\"Filename\",C1),FIND(\"]\",CELL(\"Filename\",C1))+1,255)","v":"SU"},null,null,null,null,null,null,null,"Date:",null,null,null,42316,null,null,null,null,null,null,null,null,null,null,null,null,{"$f":"E11&F11","v":""}]
[null,null,null,"QI 1","Part C/619 state staff use a systematic process that includes stakeholder input to identify enhancements to the data system.",null,null,null,null,null,"QI Rating: ",null,null,null,null,null,null,null,{"$f":"IF(E12=\"Evidence:\",1,0)","v":0},"#",{"$f":"IF(LEFT(D12,2)=\"QI\",0,1)","v":0},null,null,null,null,null,null,{"$f":"E12&F12","v":"Part C/619 state staff use a systematic process that includes stakeholder input to identify enhancements to the data system."},{"$f":"K12","v":"QI Rating: "}]
[null,null,null,"a","Part C/619 state staff identify the criteria that indicate that the data system is meeting the needs of various types of stakeholders.",null,null,null,null,null,"Element Rating:",null,null,null,null,null,null,null,0,{"$f":"IFERROR(VLOOKUP(L13,#REF!,2,FALSE),\"\")","v":""},{"$f":"IF(LEFT(D13,2)=\"QI\",0,1)","v":1},null,null,null,null,null,null,"Part C/619 state staff identify the criteria that indicate that the data system is meeting the needs of various types of stakeholders.",{"$f":"K13","v":"Element Rating:"}]
[null,null,null,null,"Evidence:",null,null,null,null,null,null,null,null,null,null,null,null,null,1,null,1,null,null,null,null,null,null,"Evidence:",0]
[null,null,null,"b","Part C/619 state staff or representatives collect and analyze data on the identified criteria.",null,null,null,null,null,"Element Rating:",null,null,null,null,null,null,null,0,{"$f":"IFERROR(VLOOKUP(L15,#REF!,2,FALSE),\"\")","v":""},1,null,null,null,null,null,null,"Part C/619 state staff or representatives collect and analyze data on the identified criteria.","Element Rating:"]
[null,null,null,null,"Evidence:",null,null,null,null,null,null,null,null,null,null,null,null,null,1,null,1,null,null,null,null,null,null,"Evidence:",0]
[null,null,null,"c","Part C/619 state staff use results of the analysis to identify needed improvements to the data system and the supports for the data system (e.g., improved professional development for data use, improved access to data analysts).",null,null,null,null,null,"Element Rating:",null,null,null,null,null,null,null,0,{"$f":"IFERROR(VLOOKUP(L17,#REF!,2,FALSE),\"\")","v":""},1,null,null,null,null,null,null,"Part C/619 state staff use results of the analysis to identify needed improvements to the data system and the supports for the data system (e.g., improved professional development for data use, improved access to data analysts).","Element Rating:"]
[null,null,null,null,"Evidence:",null,null,null,null,null,null,null,null,null,null,null,null,null,1,null,1,null,null,null,null,null,null,"Evidence:",0]
[null,null,null,"d","Part C/619 state staff verify that potential improvements align with the purpose and vision of the data system.",null,null,null,null,null,"Element Rating:",null,null,null,null,null,null,null,0,{"$f":"IFERROR(VLOOKUP(L19,#REF!,2,FALSE),\"\")","v":""},1,null,null,null,null,null,null,"Part C/619 state staff verify that potential improvements align with the purpose and vision of the data system.","Element Rating:"]
[null,null,null,null,"Evidence:",null,null,null,null,null,null,null,null,null,null,null,null,null,1,null,1,null,null,null,null,null,null,"Evidence:",0]
[null,null,null,"e","Part C/619 state staff have a process for initiating changes to the data system in response to changes to federal or state reporting requirements.",null,null,null,null,null,"Element Rating:",null,null,null,null,null,null,null,0,{"$f":"IFERROR(VLOOKUP(L21,#REF!,2,FALSE),\"\")","v":""},1,null,null,null,null,null,null,"Part C/619 state staff have a process for initiating changes to the data system in response to changes to federal or state reporting requirements.","Element Rating:"]
[null,null,null,null,"Evidence:",null,null,null,null,null,null,null,null,null,null,null,null,null,1,null,1,null,null,null,null,null,null,"Evidence:",0]
[null,null,null,"f","Part C/619 state staff or representatives monitor that the data system is up-to-date with effective technologies to meet stakeholder needs.",null,null,null,null,null,"Element Rating:",null,null,null,null,null,null,null,0,{"$f":"IFERROR(VLOOKUP(L23,#REF!,2,FALSE),\"\")","v":""},1,null,null,null,null,null,null,"Part C/619 state staff or representatives monitor that the data system is up-to-date with effective technologies to meet stakeholder needs.","Element Rating:"]
[null,null,null,null,"Evidence:",null,null,null,null,null,null,null,null,null,null,null,null,null,1,null,1,null,null,null,null,null,null,"Evidence:",0]
[null,null,null,null,null,null,null,null,null,null,null,null,null,null,null,null,null,null,0,null,1,null,null,null,null,null,null,"",0]
[null,null,null,"QI 2","Part C/619 state staff generate political and fiscal support to maintain and enhance the data system.",null,null,null,null,null,"QI Rating: ",null,null,null,null,null,null,null,0,"#",0,null,null,null,null,null,null,"Part C/619 state staff generate political and fiscal support to maintain and enhance the data system.","QI Rating: "]
[null,null,null,"a","Part C/619 state staff articulate to decision-makers the benefits of the data system and the need for improvements.",null,null,null,null,null,"Element Rating:",null,null,null,null,null,null,null,0,{"$f":"IFERROR(VLOOKUP(L27,#REF!,2,FALSE),\"\")","v":""},1,null,null,null,null,null,null,"Part C/619 state staff articulate to decision-makers the benefits of the data system and the need for improvements.","Element Rating:"]
[null,null,null,null,"Evidence:",null,null,null,null,null,null,null,null,null,null,null,null,null,1,null,1,null,null,null,null,null,null,"Evidence:",0]
[null,null,null,"b","Part C/619 state staff work with state leadership/management to identify the needed resources (i.e., fiscal, personnel, time), including expanding current funding and finding new funding sources to maintain the existing system and, as needed, to improve the system.",null,null,null,null,null,"Element Rating:",null,null,null,null,null,null,null,0,{"$f":"IFERROR(VLOOKUP(L29,#REF!,2,FALSE),\"\")","v":""},1,null,null,null,null,null,null,"Part C/619 state staff work with state leadership/management to identify the needed resources (i.e., fiscal, personnel, time), including expanding current funding and finding new funding sources to maintain the existing system and, as needed, to improve the system.","Element Rating:"]
[null,null,null,null,"Evidence:",null,null,null,null,null,null,null,null,null,null,null,null,null,1,null,1,null,null,null,null,null,null,"Evidence:",0]
[null,null,null,"c","Part C/619 state staff promote the use of data-informed decision-making for continuous program improvement at multiple levels (policymakers to local users), to generate support for the data system by demonstrating its value.",null,null,null,null,null,"Element Rating:",null,null,null,null,null,null,null,0,{"$f":"IFERROR(VLOOKUP(L31,#REF!,2,FALSE),\"\")","v":""},1,null,null,null,null,null,null,"Part C/619 state staff promote the use of data-informed decision-making for continuous program improvement at multiple levels (policymakers to local users), to generate support for the data system by demonstrating its value.","Element Rating:"]
[null,null,null,null,"Evidence:",null,null,null,null,null,null,null,null,null,null,null,null,null,1,null,1,null,null,null,null,null,null,"Evidence:",0]
[null,null,null,"d","Part C/619 state staff plan for and address transfer of knowledge about the data system to new Part C/619 state staff, IT staff, and vendors, including maintaining documentation, establishing a personnel system with back-ups, and providing orientation/training.",null,null,null,null,null,"Element Rating:",null,null,null,null,null,null,null,0,{"$f":"IFERROR(VLOOKUP(L33,#REF!,2,FALSE),\"\")","v":""},1,null,null,null,null,null,null,"Part C/619 state staff plan for and address transfer of knowledge about the data system to new Part C/619 state staff, IT staff, and vendors, including maintaining documentation, establishing a personnel system with back-ups, and providing orientation/training.","Element Rating:"]
[null,null,null,null,"Evidence:",null,null,null,null,null,null,null,null,null,null,null,null,null,1,null,1,null,null,null,null,null,null,"Evidence:",0]
[null,null,null,"e","Part C/619 state staff promote participation in integrated and/or linked data systems initiatives such as ECIDS and SLDS, which generates support for the data system by demonstrating its value.",null,null,null,null,null,"Element Rating:",null,null,null,null,null,null,null,0,{"$f":"IFERROR(VLOOKUP(L35,#REF!,2,FALSE),\"\")","v":""},1,null,null,null,null,null,null,"Part C/619 state staff promote participation in integrated and/or linked data systems initiatives such as ECIDS and SLDS, which generates support for the data system by demonstrating its value.","Element Rating:"]
[null,null,null,null,"Evidence:",null,null,null,null,null,null,null,null,null,null,null,null,null,1,null,1,null,null,null,null,null,null,"Evidence:",0]
[null,null,null,null,null,null,null,null,null,null,null,null,null,null,null,null,null,null,null,null,null,null,null,null,null,null,null,""]